Workbook

Sheet Homepage
B1: Tax Wrapper Comparison Tool Built by M&G | E1: Tax Year 2026/27
B4: This tool is for UK financial professionals only. | R4: Assumptions
B5: Important information about this tool | R5: Will be issue for SRIT if PA lost
B6: This calculator is designed to give an estimation of a person’s tax liability for the differing investments that are used. It does not take into account all the possible individual circumstances that may impact on the tax position of the individual. It should not be taken as offering advice or any recommendation. You should be satisfied that the information you have entered into the calculator is correct, for example this tool will assume that any pension contributions and/or gift aid contributions are valid. You should ensure that the outputs are correct for your client. The information in this modeller is based on our current understanding of legislation and HMRC practice as at November 2025 all which is subject to change without notice. Every care has been taken as to its accuracy, but it must be appreciated that neither M&G nor its representatives can accept any responsibility for loss, however caused, suffered by any person who has acted or refrained from acting as a result of material contained in this tool. Certain areas have been omitted from this model for simplicity and ease of use including National Insurance, some sources of income and other reliefs, allowances and tax charges. Please note, this tool will cease to operate at the end of the tax year displayed above. | R6: AMC & platform charges same wrapped or not
R7: Wrapper charge for bonds taken at end of year
R8: Rounding to 0 DP
R9: Beneficial ordering caveat, 11k NSND, £100 savings gives onshore tax bill that wouldn't exist.
R10: BRB left for offshore won't factor in divis going into HRT
B16: Important information about the calculations
B18: Personal allowance is allocated to taxable income following the statutory order of income taxation, more beneficial ordering may be possible in some cases. Beneficial ordering is not applied to the top-slicing calculations. The tool assumes UK rates for the non-savings, non-dividend income that is inputted. Scottish taxpayers may have differing tax to pay where personal allowance is lost. Personal Allowance and Basic Rate Band increase by CPI from year 6. The starting point where personal allowance is reduced starts at £100,000 for all years, Additional Rate tax starts once personal allowance has been fully lost. Annual Management Charges and platform charges are assumed to be the same, any platform charge for bonds is assumed to be taken at the end of the year. The tool runs in tax years from 6 April to 5 April inclusive. The tool uses the dividend rates that apply from the 2026/27 tax year. Basic rate is 10.75%, Higher Rate is 35.75% and Additional Rate is 39.35%. The increase by 2% to savings rates applies from year 2 onwards. Where the CGT annual exempt amount is used the bed and breakfast rules are avoided. Unused gross investment income is reinvested. Taxation over term is paid from other resources. ISA funds taken at end of year and reinvested at start of next. No withdrawals are taken in the final year. Withdrawals for ISA are taken before regular withdrawal amounts. 100 initial segments for bonds. Collectives are in income units. No surrender or reinvest costs.

Sheet Inputs
C1: Tax Wrapper Comparison Tool built by M&G | Q1: =Homepage!E1 -> Tax Year 2026/27
C3: Planning Assumptions | G3: Income Assumptions | O3: Investment Assumptions
K4: Increase assumption
C5: Invested Amount | F5: 0 | G5: Existing income | M5: 0 | N5: 0 | W5: Full segments and partials
F6: 0 | G6: Non Savings Non Dividend | H6: 0 | I6: 0 | K6: 0 | M6: 0 | N6: 0 | O6: Savings Income | P6: 0 | Q6: 0 | S6: Onshore Bond Internal Tax Rate | W6: Partials Only
C7: Proposed Term (5 to 10 only) | F7: 0 | G7: Savings | H7: 0 | I7: 0 | K7: 0 | M7: 0 | N7: 0 | O7: Dividend Return | P7: 0 | Q7: 0
G8: Dividend | I8: 0 | K8: 0 | O8: Capital Gain | Q8: 0 | S8: =IF(W15=FALSE,0%,Bonds!F5) -> 0
H9: 0 | M9: 0 | N9: 0 | P9: 0
G10: CPI Increase for Tax Bands from 2031 | K10: 0 | O10: Extra Wrapper Cost | Q10: 0
C11: Use annual exempt amount? | K11: Projected income - encashment | P11: 0 | S11: Internal Tax Rate
C12: ISA Wrap each year? | F12: 0 | G12: Income in year of encashment | P12: 0 | S12: In Year One.
C13: Regular withdrawal amount? | F13: 0 | G13: =G6 -> Non Savings Non Dividend | I13: 0 | K13: =IF(D7>0,(HLOOKUP((Inputs!$D$7-1),'Tax Analysis'!$E$3:$N$8,4,FALSE))*(1+K6),0) -> 0 | P13: 0 | S13: =IF(W15=FALSE,0%,Bonds!D5) -> 0 | W13: DO NOT DELETE
C14: Bond encashment method | F14: 0 | G14: =G7 -> Savings | I14: 0 | K14: =IF($D$7>0,(HLOOKUP((Inputs!$D$7-1),'Tax Analysis'!$E$3:$N$8,5,FALSE))*(1+K7),0) -> 0 | P14: 0
C15: Year 1 ISA Allowance from Investment? | G15: Dividend | I15: 0 | K15: =IF($D$7>0,(HLOOKUP((Inputs!$D$7-1),'Tax Analysis'!$E$3:$N$8,6,FALSE))*(1+K8),0) -> 0 | W15: =AND(D5>0,D7>0,SUM(Q6:Q8)>0%) -> FALSE
G19: Projected Values | K19: Tax Breakdown
D20: Collectives | G20: Onshore | I20: Offshore
C21: End of term values
C22: Surrender | D22: =CGT!Q51 -> 0 | G22: =Bonds!O28 -> 0 | I22: =Bonds!O59 -> 0
C23: Gain | D23: =CGT!R47 -> 0 | G23: =Bonds!P71 -> 0 | I23: =Bonds!P85 -> 0
C24: Taxation
C25: Internal Taxation | D25: 0 | G25: =Bonds!O11+Bonds!O17 -> 0 | I25: =D25 -> 0 | O25: =D20 -> Collectives | P25: =G20 -> Onshore | Q25: =I20 -> Offshore
C26: Income Tax over term | D26: =CGT!Q59 -> 0 | G26: =Bonds!Q75 -> 0 | I26: =Bonds!Q89 -> 0 | N26: =C25 -> Internal Taxation | O26: 0 | P26: =G25 -> 0 | Q26: =I25 -> 0
C27: CGT Over Term | D27: =CGT!S50 -> 0 | G27: 0 | I27: 0 | N27: Income Tax over term | O27: 0 | P27: =G26 -> 0 | Q27: =I26 -> 0
C28: Tax on Surrender | D28: =CGT!R50 -> 0 | G28: =Bonds!P75 -> 0 | I28: =Bonds!P89 -> 0 | N28: CGT Over Term | O28: 0 | P28: =G27 -> 0 | Q28: =I27 -> 0
C29: Net Proceeds | D29: =D20 -> Collectives | G29: =G20 -> Onshore | I29: =I20 -> Offshore | N29: Tax on Surrender | O29: 0 | P29: =G28 -> 0 | Q29: =I28 -> 0
C30: On Surrender | D30: =D22-D28 -> 0 | G30: =G22-G28 -> 0 | I30: 0
C31: ISA Value | D31: =CGT!Q57 -> 0 | G31: =Bonds!O79 -> 0 | I31: =Bonds!O93 -> 0
C32: Gross Withdrawals | D32: =CGT!Q28 -> 0 | G32: =Bonds!O24 -> 0 | I32: =Bonds!O55 -> 0
C33: Personal Taxes Paid Over Term | D33: =D26+D27 -> 0 | G33: =G26 -> 0 | I33: =I26 -> 0
C34: Overall Outcome | D34: =D30+D31-D33+D32 -> 0 | G34: =G30+G31-G33+G32 -> 0 | I34: =I30+I31-I33+I32 -> 0

Sheet Tax Analysis
E2: Year
E3: 1 | F3: =E3+1 -> 2 | G3: =F3+1 -> 3 | H3: 4 | I3: 5 | J3: 6 | K3: 7 | L3: 8 | M3: 9 | N3: 10
B6: INCOME (non portfolio) | D6: Non Savings, Non Dividend | E6: ='Yr 1'!$F$14 -> 0 | F6: ='Yr 2'!$F$14 -> 0 | G6: ='Yr 3'!$F$14 -> 0 | H6: ='Yr 4'!$F$14 -> 0 | I6: ='Yr 5'!$F$14 -> 0 | J6: ='Yr 6'!$F$14 -> 0 | K6: ='Yr 7'!$F$14 -> 0 | L6: ='Yr 8'!$F$14 -> 0 | M6: ='Yr 9'!$F$14 -> 0 | N6: ='Yr 10'!$F$14 -> 0
D7: Existing Savings | E7: ='Yr 1'!$F$15 -> 0 | F7: ='Yr 2'!$F$15 -> 0 | G7: ='Yr 3'!$F$15 -> 0 | H7: ='Yr 4'!$F$15 -> 0 | I7: ='Yr 5'!$F$15 -> 0 | J7: ='Yr 6'!$F$15 -> 0 | K7: ='Yr 7'!$F$15 -> 0 | L7: ='Yr 8'!$F$15 -> 0 | M7: ='Yr 9'!$F$15 -> 0 | N7: ='Yr 10'!$F$15 -> 0
D8: Existing Dividend | E8: ='Yr 1'!$F$16 -> 0 | F8: ='Yr 2'!$F$16 -> 0 | G8: ='Yr 3'!$F$16 -> 0 | H8: ='Yr 4'!$F$16 -> 0 | I8: ='Yr 5'!$F$16 -> 0 | J8: ='Yr 6'!$F$16 -> 0 | K8: ='Yr 7'!$F$16 -> 0 | L8: ='Yr 8'!$F$16 -> 0 | M8: ='Yr 9'!$F$16 -> 0 | N8: ='Yr 10'!$F$16 -> 0
D9: New Savings | E9: ='Yr 1'!$F$17 -> 0 | F9: ='Yr 2'!$F$17 -> 0 | G9: ='Yr 3'!$F$17 -> 0 | H9: ='Yr 4'!$F$17 -> 0 | I9: ='Yr 5'!$F$17 -> 0 | J9: ='Yr 6'!$F$17 -> 0 | K9: ='Yr 7'!$F$17 -> 0 | L9: ='Yr 8'!$F$17 -> 0 | M9: ='Yr 9'!$F$17 -> 0 | N9: ='Yr 10'!$F$17 -> 0
D10: New Dividend | E10: ='Yr 1'!$F$18 -> 0 | F10: ='Yr 2'!$F$18 -> 0 | G10: ='Yr 3'!$F$18 -> 0 | H10: ='Yr 4'!$F$18 -> 0 | I10: ='Yr 5'!$F$18 -> 0 | J10: ='Yr 6'!$F$18 -> 0 | K10: ='Yr 7'!$F$18 -> 0 | L10: ='Yr 8'!$F$18 -> 0 | M10: ='Yr 9'!$F$18 -> 0 | N10: ='Yr 10'!$F$18 -> 0
D11: Total | E11: =E6+E7+E8 -> 0 | F11: =F6+F7+F8 -> 0 | G11: 0 | H11: 0 | I11: 0 | J11: 0 | K11: 0 | L11: 0 | M11: 0 | N11: 0
D12: Total Combined Divi | E12: =E8+E10 -> 0 | F12: =F8+F10 -> 0 | G12: 0 | H12: 0 | I12: 0 | J12: 0 | K12: 0 | L12: 0 | M12: 0 | N12: 0
D13: Total Combined savings | E13: =E7+E9 -> 0 | F13: =F7+F9 -> 0 | G13: 0 | H13: 0 | I13: 0 | J13: 0 | K13: 0 | L13: 0 | M13: 0 | N13: 0
B16: COLLECTIVES
D17: Starting Value | E17: =CGT!G12 -> 0 | F17: =CGT!H12 -> 0 | G17: =CGT!I12 -> 0 | H17: =CGT!J12 -> 0 | I17: =CGT!K12 -> 0 | J17: =CGT!L12 -> 0 | K17: =CGT!M12 -> 0 | L17: =CGT!N12 -> 0 | M17: =CGT!O12 -> 0 | N17: =CGT!P12 -> 0
D18: Fund plus growth (no income reinvested) | E18: =CGT!G14 -> 0 | F18: =CGT!H14 -> 0 | G18: =CGT!I14 -> 0 | H18: =CGT!J14 -> 0 | I18: =CGT!K14 -> 0 | J18: =CGT!L14 -> 0 | K18: =CGT!M14 -> 0 | L18: =CGT!N14 -> 0 | M18: =CGT!O14 -> 0 | N18: =CGT!P14 -> 0
D19: Capital Growth | E19: =CGT!G15 -> 0 | F19: =CGT!H15 -> 0 | G19: =CGT!I15 -> 0 | H19: =CGT!J15 -> 0 | I19: =CGT!K15 -> 0 | J19: =CGT!L15 -> 0 | K19: =CGT!M15 -> 0 | L19: =CGT!N15 -> 0 | M19: =CGT!O15 -> 0 | N19: =CGT!P15 -> 0
D20: AEA for year | E20: ='Parameters_Inc Calcs'!$D$16 -> 3000 | F20: ='Parameters_Inc Calcs'!$D$16 -> 3000 | G20: ='Parameters_Inc Calcs'!$D$16 -> 3000 | H20: ='Parameters_Inc Calcs'!$D$16 -> 3000 | I20: ='Parameters_Inc Calcs'!$D$16 -> 3000 | J20: ='Parameters_Inc Calcs'!$D$16 -> 3000 | K20: ='Parameters_Inc Calcs'!$D$16 -> 3000 | L20: ='Parameters_Inc Calcs'!$D$16 -> 3000 | M20: ='Parameters_Inc Calcs'!$D$16 -> 3000 | N20: ='Parameters_Inc Calcs'!$D$16 -> 3000
D21: Portfolio realised to use AEA | E21: =CGT!G20 -> 0 | F21: =CGT!H20 -> 0 | G21: =CGT!I20 -> 0 | H21: =CGT!J20 -> 0 | I21: =CGT!K20 -> 0 | J21: =CGT!L20 -> 0 | K21: =CGT!M20 -> 0 | L21: =CGT!N20 -> 0 | M21: =CGT!O20 -> 0 | N21: =CGT!P20 -> 0
D22: AEA used | E22: =MIN(E20,CGT!G47) -> 0 | F22: =MIN(F20,CGT!H47) -> 0 | G22: =MIN(G20,CGT!I47) -> 0 | H22: =MIN(H20,CGT!J47) -> 0 | I22: =MIN(I20,CGT!K47) -> 0 | J22: =MIN(J20,CGT!L47) -> 0 | K22: =MIN(K20,CGT!M47) -> 0 | L22: =MIN(L20,CGT!N47) -> 0 | M22: =MIN(M20,CGT!O47) -> 0 | N22: =MIN(N20,CGT!P47) -> 0
D23: Carried Gain | E23: =CGT!G52 -> 0 | F23: =CGT!H52 -> 0 | G23: =CGT!I52 -> 0 | H23: =CGT!J52 -> 0 | I23: =CGT!K52 -> 0 | J23: =CGT!L52 -> 0 | K23: =CGT!M52 -> 0 | L23: =CGT!N52 -> 0 | M23: =CGT!O52 -> 0 | N23: =CGT!P52 -> 0
D25: Withdrawal
D26: For ISA | E26: =CGT!H54+CGT!G54 -> 0 | F26: =CGT!I54 -> 0 | G26: =CGT!J54 -> 0 | H26: =CGT!K54 -> 0 | I26: =CGT!L54 -> 0 | J26: =CGT!M54 -> 0 | K26: =CGT!N54 -> 0 | L26: =CGT!O54 -> 0 | M26: =CGT!P54 -> 0 | N26: =CGT!Q54 -> 0
D27: For income | E27: =CGT!G28 -> 0 | F27: =CGT!H28 -> 0 | G27: =CGT!I28 -> 0 | H27: =CGT!J28 -> 0 | I27: =CGT!K28 -> 0 | J27: =CGT!L28 -> 0 | K27: =CGT!M28 -> 0 | L27: =CGT!N28 -> 0 | M27: =CGT!O28 -> 0 | N27: =CGT!P28 -> 0
D28: Total withdrawn | E28: =E26+E27 -> 0 | F28: =F26+F27 -> 0 | G28: 0 | H28: 0 | I28: 0 | J28: 0 | K28: 0 | L28: 0 | M28: 0 | N28: 0
D30: Closing Collective Value | E30: =CGT!G51 -> 0 | F30: =CGT!H51 -> 0 | G30: =CGT!I51 -> 0 | H30: =CGT!J51 -> 0 | I30: =CGT!K51 -> 0 | J30: =CGT!L51 -> 0 | K30: =CGT!M51 -> 0 | L30: =CGT!N51 -> 0 | M30: =CGT!O51 -> 0 | N30: =CGT!P51 -> 0
D32: Additional Tax from Portfolio
D33: Income to be reinvested | E33: =CGT!G39 -> 0 | F33: =CGT!H39 -> 0 | G33: =CGT!I39 -> 0 | H33: =CGT!J39 -> 0 | I33: =CGT!K39 -> 0 | J33: =CGT!L39 -> 0 | K33: =CGT!M39 -> 0 | L33: =CGT!N39 -> 0 | M33: =CGT!O39 -> 0 | N33: =CGT!P39 -> 0
D34: Non-Savings Non-Dividend | E34: 0 | F34: 0 | G34: 0 | H34: 0 | I34: 0 | J34: 0 | K34: 0 | L34: 0 | M34: 0 | N34: 0
D35: Tax | E35: ='Yr 1'!AA20 -> 0 | F35: ='Yr 2'!AA20 -> 0 | G35: ='Yr 3'!AA20 -> 0 | H35: ='Yr 4'!AA20 -> 0 | I35: ='Yr 5'!AA20 -> 0 | J35: ='Yr 6'!AA20 -> 0 | K35: ='Yr 7'!AA20 -> 0 | L35: ='Yr 7'!$AA$29 -> 0 | M35: ='Yr 7'!$AA$29 -> 0 | N35: ='Yr 7'!$AA$29 -> 0
D36: Savings | E36: ='Yr 1'!$F$17 -> 0 | F36: ='Yr 2'!$F$17 -> 0 | G36: ='Yr 3'!$F$17 -> 0 | H36: ='Yr 4'!$F$17 -> 0 | I36: ='Yr 5'!$F$17 -> 0 | J36: ='Yr 6'!$F$17 -> 0 | K36: ='Yr 7'!$F$17 -> 0 | L36: ='Yr 8'!$F$17 -> 0 | M36: ='Yr 9'!$F$17 -> 0 | N36: ='Yr 10'!$F$17 -> 0
D37: Tax | E37: ='Yr 1'!$AA$29 -> 0 | F37: ='Yr 2'!$AA$29 -> 0 | G37: ='Yr 3'!$AA$29 -> 0 | H37: ='Yr 4'!$AA$29 -> 0 | I37: ='Yr 5'!$AA$29 -> 0 | J37: ='Yr 6'!$AA$29 -> 0 | K37: ='Yr 7'!$AA$29 -> 0 | L37: ='Yr 8'!$AA$29 -> 0 | M37: ='Yr 9'!$AA$29 -> 0 | N37: ='Yr 10'!$AA$29 -> 0
D38: Dividend | E38: ='Yr 1'!$F$18 -> 0 | F38: ='Yr 2'!$F$18 -> 0 | G38: ='Yr 3'!$F$18 -> 0 | H38: ='Yr 4'!$F$18 -> 0 | I38: ='Yr 5'!$F$18 -> 0 | J38: ='Yr 6'!$F$18 -> 0 | K38: ='Yr 7'!$F$18 -> 0 | L38: ='Yr 8'!$F$18 -> 0 | M38: ='Yr 9'!$F$18 -> 0 | N38: ='Yr 10'!$F$18 -> 0
D39: Tax | E39: ='Yr 1'!$AA$47 -> 0 | F39: ='Yr 2'!$AA$47 -> 0 | G39: ='Yr 3'!$AA$47 -> 0 | H39: ='Yr 4'!$AA$47 -> 0 | I39: ='Yr 5'!$AA$47 -> 0 | J39: ='Yr 6'!$AA$47 -> 0 | K39: ='Yr 7'!$AA$47 -> 0 | L39: ='Yr 8'!$AA$47 -> 0 | M39: ='Yr 9'!$AA$47 -> 0 | N39: ='Yr 10'!$AA$47 -> 0
D40: Gain (after AEA) | E40: =CGT!G49 -> 0 | F40: =CGT!H49 -> 0 | G40: =CGT!I49 -> 0 | H40: =CGT!J49 -> 0 | I40: =CGT!K49 -> 0 | J40: =CGT!L49 -> 0 | K40: =CGT!M49 -> 0 | L40: =CGT!N49 -> 0 | M40: =CGT!O49 -> 0 | N40: =CGT!P49 -> 0
D41: Tax | E41: ='Yr 1'!$AA$63 -> 0 | F41: ='Yr 2'!$AA$63 -> 0 | G41: ='Yr 3'!$AA$63 -> 0 | H41: ='Yr 4'!$AA$63 -> 0 | I41: ='Yr 5'!$AA$63 -> 0 | J41: ='Yr 6'!$AA$63 -> 0 | K41: ='Yr 7'!$AA$63 -> 0 | L41: ='Yr 9'!$AA$63 -> 0 | M41: ='Yr 9'!$AA$63 -> 0 | N41: ='Yr 10'!$AA$63 -> 0
D42: Personal Allowance Lost | E42: ='Yr 1'!$T$9 -> 0 | F42: ='Yr 2'!$T$9 -> 0 | G42: ='Yr 3'!$T$9 -> 0 | H42: ='Yr 4'!$T$9 -> 0 | I42: ='Yr 5'!$T$9 -> 0 | J42: ='Yr 6'!$T$9 -> 0 | K42: ='Yr 7'!$T$9 -> 0 | L42: ='Yr 8'!$T$9 -> 0 | M42: ='Yr 9'!$T$9 -> 0 | N42: ='Yr 10'!$T$9 -> 0
D43: Total Tax | E43: =E35+E37+E39+E41 -> 0 | F43: =F35+F37+F39+F41 -> 0 | G43: 0 | H43: 0 | I43: 0 | J43: 0 | K43: 0 | L43: 0 | M43: 0 | N43: 0
D45: ISA Values
D46: Opening | E46: 0 | F46: =CGT!G57 -> 0 | G46: =CGT!H57 -> 0 | H46: =CGT!I57 -> 0 | I46: =CGT!J57 -> 0 | J46: =CGT!K57 -> 0 | K46: =CGT!L57 -> 0 | L46: =CGT!M57 -> 0 | M46: =CGT!N57 -> 0 | N46: =CGT!O57 -> 0
D47: Contribution | E47: =CGT!G54 -> 0 | F47: =CGT!H54 -> 0 | G47: =CGT!I54 -> 0 | H47: =CGT!J54 -> 0 | I47: =CGT!K54 -> 0 | J47: =CGT!L54 -> 0 | K47: =CGT!M54 -> 0 | L47: =CGT!N54 -> 0 | M47: =CGT!O54 -> 0 | N47: =CGT!P54 -> 0
D48: Growth | E48: =CGT!G56 -> 0 | F48: =CGT!H56 -> 0 | G48: =CGT!I56 -> 0 | H48: =CGT!J56 -> 0 | I48: =CGT!K56 -> 0 | J48: =CGT!L56 -> 0 | K48: =CGT!M56 -> 0 | L48: =CGT!N56 -> 0 | M48: =CGT!O56 -> 0 | N48: =CGT!P56 -> 0
D49: Closing | E49: =CGT!G57 -> 0 | F49: =CGT!H57 -> 0 | G49: =CGT!I57 -> 0 | H49: =CGT!J57 -> 0 | I49: =CGT!K57 -> 0 | J49: =CGT!L57 -> 0 | K49: =CGT!M57 -> 0 | L49: =CGT!N57 -> 0 | M49: =CGT!O57 -> 0 | N49: =CGT!P57 -> 0
B53: ONSHORE BOND
D54: =D17 -> Starting Value | E54: =Bonds!E8 -> 0 | F54: =Bonds!F8 -> 0 | G54: =Bonds!G8 -> 0 | H54: =Bonds!H8 -> 0 | I54: =Bonds!I8 -> 0 | J54: =Bonds!J8 -> 0 | K54: =Bonds!K8 -> 0 | L54: =Bonds!L8 -> 0 | M54: =Bonds!M8 -> 0 | N54: =Bonds!N8 -> 0
D55: Internal Taxation | E55: =Bonds!E11+Bonds!E17 -> 0 | F55: =Bonds!F11+Bonds!F17 -> 0 | G55: =Bonds!G11+Bonds!G17 -> 0 | H55: =Bonds!H11+Bonds!H17 -> 0 | I55: =Bonds!I11+Bonds!I17 -> 0 | J55: =Bonds!J11+Bonds!J17 -> 0 | K55: =Bonds!K11+Bonds!K17 -> 0 | L55: =Bonds!L11+Bonds!L17 -> 0 | M55: =Bonds!M11+Bonds!M17 -> 0 | N55: =Bonds!N11+Bonds!N17 -> 0
D56: Withdrawal
D57: For ISA | E57: =Bonds!E23 -> 0 | F57: =Bonds!F23 -> 0 | G57: =Bonds!G23 -> 0 | H57: =Bonds!H23 -> 0 | I57: =Bonds!I23 -> 0 | J57: =Bonds!J23 -> 0 | K57: =Bonds!K23 -> 0 | L57: =Bonds!L23 -> 0 | M57: =Bonds!M23 -> 0 | N57: =Bonds!N23 -> 0
D58: For income | E58: =Bonds!E24 -> 0 | F58: =Bonds!F24 -> 0 | G58: =Bonds!G24 -> 0 | H58: =Bonds!H24 -> 0 | I58: =Bonds!I24 -> 0 | J58: =Bonds!J24 -> 0 | K58: =Bonds!K24 -> 0 | L58: =Bonds!L24 -> 0 | M58: =Bonds!M24 -> 0 | N58: =Bonds!N24 -> 0
D59: Total withdrawn | E59: =E57+E58 -> 0 | F59: =F57+F58 -> 0 | G59: 0 | H59: 0 | I59: 0 | J59: 0 | K59: 0 | L59: 0 | M59: 0 | N59: 0
D60: Closing Value | E60: =Bonds!E21 -> 0 | F60: =Bonds!F21 -> 0 | G60: =Bonds!G21 -> 0 | H60: =Bonds!H21 -> 0 | I60: =Bonds!I21 -> 0 | J60: =Bonds!J21 -> 0 | K60: =Bonds!K21 -> 0 | L60: =Bonds!L21 -> 0 | M60: =Bonds!M21 -> 0 | N60: =Bonds!N21 -> 0
D62: Bond Gain
D63: Gain | E63: =Bonds!E71 -> 0 | F63: =Bonds!F71 -> 0 | G63: =Bonds!G71 -> 0 | H63: =Bonds!H71 -> 0 | I63: =Bonds!I71 -> 0 | J63: =Bonds!J71 -> 0 | K63: =Bonds!K71 -> 0 | L63: =Bonds!L71 -> 0 | M63: =Bonds!M71 -> 0 | N63: =Bonds!N71 -> 0
D64: Slice Years (N) | E64: =Bonds!E73 -> 0 | F64: =Bonds!F73 -> 0 | G64: =Bonds!G73 -> 0 | H64: =Bonds!H73 -> 0 | I64: =Bonds!I73 -> 0 | J64: =Bonds!J73 -> 0 | K64: =Bonds!K73 -> 0 | L64: =Bonds!L73 -> 0 | M64: =Bonds!M73 -> 0 | N64: =Bonds!N73 -> 0
D65: Non-Savings Non-Dividend | E65: 0 | F65: 0 | G65: 0 | H65: 0 | I65: 0 | J65: 0 | K65: 0 | L65: 0 | M65: 0 | N65: 0
D66: Tax | E66: ='Yr 1'!$AP$19 -> 0 | F66: ='Yr 2'!$AP$19 -> 0 | G66: ='Yr 3'!$AP$19 -> 0 | H66: ='Yr 4'!$AP$19 -> 0 | I66: ='Yr 5'!$AP$19 -> 0 | J66: ='Yr 6'!$AP$19 -> 0 | K66: ='Yr 7'!$AP$19 -> 0 | L66: ='Yr 8'!$AP$19 -> 0 | M66: ='Yr 9'!$AP$19 -> 0 | N66: ='Yr 10'!$AP$19 -> 0
D67: Savings | E67: 0 | F67: 0 | G67: 0 | H67: 0 | I67: 0 | J67: 0 | K67: 0 | L67: 0 | M67: 0 | N67: 0
D68: Tax | E68: ='Yr 1'!$AP$28 -> 0 | F68: ='Yr 2'!$AP$28 -> 0 | G68: ='Yr 3'!$AP$28 -> 0 | H68: ='Yr 4'!$AP$28 -> 0 | I68: ='Yr 5'!$AP$28 -> 0 | J68: ='Yr 6'!$AP$28 -> 0 | K68: ='Yr 7'!$AP$28 -> 0 | L68: ='Yr 8'!$AP$28 -> 0 | M68: ='Yr 9'!$AP$28 -> 0 | N68: ='Yr 10'!$AP$28 -> 0
D69: Dividend | E69: 0 | F69: 0 | G69: 0 | H69: 0 | I69: 0 | J69: 0 | K69: 0 | L69: 0 | M69: 0 | N69: 0
D70: Tax | E70: ='Yr 1'!$AP$46 -> 0 | F70: ='Yr 2'!$AP$46 -> 0 | G70: ='Yr 3'!$AP$46 -> 0 | H70: ='Yr 4'!$AP$46 -> 0 | I70: ='Yr 5'!$AP$46 -> 0 | J70: ='Yr 6'!$AP$46 -> 0 | K70: ='Yr 7'!$AP$46 -> 0 | L70: ='Yr 8'!$AP$46 -> 0 | M70: ='Yr 9'!$AP$46 -> 0 | N70: ='Yr 10'!$AP$46 -> 0
D71: Tax on Bond Gain | E71: ='Yr 1'!$AP$56 -> 0 | F71: ='Yr 2'!$AP$56 -> 0 | G71: ='Yr 3'!$AP$56 -> 0 | H71: ='Yr 4'!$AP$56 -> 0 | I71: ='Yr 5'!$AP$56 -> 0 | J71: ='Yr 6'!$AP$56 -> 0 | K71: ='Yr 7'!$AP$56 -> 0 | L71: ='Yr 8'!$AP$56 -> 0 | M71: ='Yr 9'!$AP$56 -> 0 | N71: ='Yr 10'!$AP$56 -> 0
D72: Onshore Bond Tax Credit | E72: ='Yr 1'!$AO$60 -> 0 | F72: ='Yr 2'!$AO$60 -> 0 | G72: ='Yr 3'!$AO$60 -> 0 | H72: ='Yr 4'!$AO$60 -> 0 | I72: ='Yr 5'!$AO$60 -> 0 | J72: ='Yr 6'!$AO$60 -> 0 | K72: ='Yr 7'!$AO$60 -> 0 | L72: ='Yr 8'!$AO$60 -> 0 | M72: ='Yr 9'!$AO$60 -> 0 | N72: ='Yr 10'!$AO$60 -> 0
D73: Top Slicing Relief | E73: ='Yr 1'!$AO$61 -> 0 | F73: ='Yr 2'!$AO$61 -> 0 | G73: ='Yr 3'!$AO$61 -> 0 | H73: ='Yr 4'!$AO$61 -> 0 | I73: ='Yr 5'!$AO$61 -> 0 | J73: ='Yr 6'!$AO$61 -> 0 | K73: ='Yr 7'!$AO$61 -> 0 | L73: ='Yr 8'!$AO$61 -> 0 | M73: ='Yr 9'!$AO$61 -> 0 | N73: ='Yr 10'!$AO$61 -> 0
D74: Deficiency Relief | E74: ='Yr 1'!$AO$62 -> 0 | F74: ='Yr 2'!$AO$62 -> 0 | G74: ='Yr 3'!$AO$62 -> 0 | H74: ='Yr 4'!$AO$62 -> 0 | I74: ='Yr 5'!$AO$62 -> 0 | J74: ='Yr 6'!$AO$62 -> 0 | K74: ='Yr 7'!$AO$62 -> 0 | L74: ='Yr 8'!$AO$62 -> 0 | M74: ='Yr 9'!$AO$62 -> 0 | N74: ='Yr 10'!$AO$62 -> 0
D75: Personal Allowance Lost | E75: ='Yr 1'!$AI$8 -> 0 | F75: ='Yr 2'!$AI$8 -> 0 | G75: ='Yr 3'!$AI$8 -> 0 | H75: ='Yr 4'!$AI$8 -> 0 | I75: ='Yr 5'!$AI$8 -> 0 | J75: ='Yr 6'!$AI$8 -> 0 | K75: ='Yr 7'!$AI$8 -> 0 | L75: ='Yr 8'!$AI$8 -> 0 | M75: ='Yr 9'!$AI$8 -> 0 | N75: ='Yr 10'!$AI$8 -> 0
D76: Total Tax | E76: =Bonds!E75 -> 0 | F76: =Bonds!F75 -> 0 | G76: =Bonds!G75 -> 0 | H76: =Bonds!H75 -> 0 | I76: =Bonds!I75 -> 0 | J76: =Bonds!J75 -> 0 | K76: =Bonds!K75 -> 0 | L76: =Bonds!L75 -> 0 | M76: =Bonds!M75 -> 0 | N76: =Bonds!N75 -> 0
D77: ISA Values
D78: Opening | E78: 0 | F78: =Bonds!E79 -> 0 | G78: =Bonds!F79 -> 0 | H78: =Bonds!G79 -> 0 | I78: =Bonds!H79 -> 0 | J78: =Bonds!I79 -> 0 | K78: =Bonds!J79 -> 0 | L78: =Bonds!K79 -> 0 | M78: =Bonds!L79 -> 0 | N78: =Bonds!M79 -> 0
D79: Contribution | E79: =Bonds!E77 -> 0 | F79: =Bonds!F77 -> 0 | G79: =Bonds!G77 -> 0 | H79: =Bonds!H77 -> 0 | I79: =Bonds!I77 -> 0 | J79: =Bonds!J77 -> 0 | K79: =Bonds!K77 -> 0 | L79: =Bonds!L77 -> 0 | M79: =Bonds!M77 -> 0 | N79: =Bonds!N77 -> 0
D80: Growth | E80: =E81-E79 -> 0 | F80: =F81-F78-F79 -> 0 | G80: =G81-G78-G79 -> 0 | H80: 0 | I80: 0 | J80: 0 | K80: 0 | L80: 0 | M80: 0 | N80: 0
D81: Closing | E81: =Bonds!E79 -> 0 | F81: =Bonds!F79 -> 0 | G81: =Bonds!G79 -> 0 | H81: =Bonds!H79 -> 0 | I81: =Bonds!I79 -> 0 | J81: =Bonds!J79 -> 0 | K81: =Bonds!K79 -> 0 | L81: =Bonds!L79 -> 0 | M81: =Bonds!M79 -> 0 | N81: =Bonds!N79 -> 0
B85: OFFSHORE BOND
D87: =D54 -> Starting Value | E87: =Bonds!E43 -> 0 | F87: =Bonds!F43 -> 0 | G87: =Bonds!G43 -> 0 | H87: =Bonds!H43 -> 0 | I87: =Bonds!I43 -> 0 | J87: =Bonds!J43 -> 0 | K87: =Bonds!K43 -> 0 | L87: =Bonds!L43 -> 0 | M87: =Bonds!M43 -> 0 | N87: =Bonds!N43 -> 0
D88: Withdrawal
D89: For ISA | E89: =Bonds!E54 -> 0 | F89: =Bonds!F54 -> 0 | G89: =Bonds!G54 -> 0 | H89: =Bonds!H54 -> 0 | I89: =Bonds!I54 -> 0 | J89: =Bonds!J54 -> 0 | K89: =Bonds!K54 -> 0 | L89: =Bonds!L54 -> 0 | M89: =Bonds!M54 -> 0 | N89: =Bonds!N54 -> 0
D90: For income | E90: =Bonds!E55 -> 0 | F90: =Bonds!F55 -> 0 | G90: =Bonds!G55 -> 0 | H90: =Bonds!H55 -> 0 | I90: =Bonds!I55 -> 0 | J90: =Bonds!J55 -> 0 | K90: =Bonds!K55 -> 0 | L90: =Bonds!L55 -> 0 | M90: =Bonds!M55 -> 0 | N90: =Bonds!N55 -> 0
D91: Total withdrawn | E91: =E89+E90 -> 0 | F91: 0 | G91: 0 | H91: 0 | I91: 0 | J91: 0 | K91: 0 | L91: 0 | M91: 0 | N91: 0
D92: Closing Value | E92: =Bonds!E59 -> 0 | F92: =Bonds!F59 -> 0 | G92: =Bonds!G59 -> 0 | H92: =Bonds!H59 -> 0 | I92: =Bonds!I59 -> 0 | J92: =Bonds!J59 -> 0 | K92: =Bonds!K59 -> 0 | L92: =Bonds!L59 -> 0 | M92: =Bonds!M59 -> 0 | N92: =Bonds!N59 -> 0
D94: Bond Gain
D95: Gain | E95: =Bonds!E85 -> 0 | F95: =Bonds!F85 -> 0 | G95: =Bonds!G85 -> 0 | H95: =Bonds!H85 -> 0 | I95: =Bonds!I85 -> 0 | J95: =Bonds!J85 -> 0 | K95: =Bonds!K85 -> 0 | L95: =Bonds!L85 -> 0 | M95: =Bonds!M85 -> 0 | N95: =Bonds!N85 -> 0
D96: Slice Years (N) | E96: =Bonds!E87 -> 0 | F96: =Bonds!F87 -> 0 | G96: =Bonds!G87 -> 0 | H96: =Bonds!H87 -> 0 | I96: =Bonds!I87 -> 0 | J96: =Bonds!J87 -> 0 | K96: =Bonds!K87 -> 0 | L96: =Bonds!L87 -> 0 | M96: =Bonds!M87 -> 0 | N96: =Bonds!N87 -> 0
D97: Non-Savings Non-Dividend | E97: 0 | F97: 0 | G97: 0 | H97: 0 | I97: 0 | J97: 0 | K97: 0 | L97: 0 | M97: 0 | N97: 0
D98: Tax | E98: ='Yr 1'!$CA$19 -> 0 | F98: ='Yr 2'!$CA$19 -> 0 | G98: ='Yr 3'!$CA$19 -> 0 | H98: ='Yr 4'!$CA$19 -> 0 | I98: ='Yr 5'!$CA$19 -> 0 | J98: ='Yr 6'!$CA$19 -> 0 | K98: ='Yr 7'!$CA$19 -> 0 | L98: ='Yr 8'!$CA$19 -> 0 | M98: ='Yr 9'!$CA$19 -> 0 | N98: ='Yr 10'!$CA$19 -> 0
D99: Savings | E99: 0 | F99: 0 | G99: 0 | H99: 0 | I99: 0 | J99: 0 | K99: 0 | L99: 0 | M99: 0 | N99: 0
D100: Tax | E100: ='Yr 1'!$CA$28 -> 0 | F100: ='Yr 2'!$CA$28 -> 0 | G100: ='Yr 3'!$CA$28 -> 0 | H100: ='Yr 4'!$CA$28 -> 0 | I100: ='Yr 5'!$CA$28 -> 0 | J100: ='Yr 6'!$CA$28 -> 0 | K100: ='Yr 7'!$CA$28 -> 0 | L100: ='Yr 8'!$CA$28 -> 0 | M100: ='Yr 9'!$CA$28 -> 0 | N100: ='Yr 10'!$CA$28 -> 0
D101: Dividend | E101: 0 | F101: 0 | G101: 0 | H101: 0 | I101: 0 | J101: 0 | K101: 0 | L101: 0 | M101: 0 | N101: 0
D102: Tax | E102: ='Yr 1'!$CA$46 -> 0 | F102: ='Yr 2'!$CA$46 -> 0 | G102: ='Yr 3'!$CA$46 -> 0 | H102: ='Yr 4'!$CA$46 -> 0 | I102: ='Yr 5'!$CA$46 -> 0 | J102: ='Yr 6'!$CA$46 -> 0 | K102: ='Yr 7'!$CA$46 -> 0 | L102: ='Yr 8'!$CA$46 -> 0 | M102: ='Yr 9'!$CA$46 -> 0 | N102: ='Yr 10'!$CA$46 -> 0
D103: Tax on Bond Gain | E103: ='Yr 1'!$CA$38 -> 0 | F103: ='Yr 2'!$CA$38 -> 0 | G103: ='Yr 3'!$CA$38 -> 0 | H103: ='Yr 4'!$CA$38 -> 0 | I103: ='Yr 5'!$CA$38 -> 0 | J103: ='Yr 6'!$CA$38 -> 0 | K103: ='Yr 7'!$CA$38 -> 0 | L103: ='Yr 8'!$CA$38 -> 0 | M103: ='Yr 9'!$CA$38 -> 0 | N103: ='Yr 10'!$CA$38 -> 0
D104: Top Slicing Relief | E104: ='Yr 1'!$BZ$61 -> 0 | F104: ='Yr 2'!$BZ$61 -> 0 | G104: ='Yr 3'!$BZ$61 -> 0 | H104: ='Yr 4'!$BZ$61 -> 0 | I104: ='Yr 5'!$BZ$61 -> 0 | J104: ='Yr 6'!$BZ$61 -> 0 | K104: ='Yr 7'!$BZ$61 -> 0 | L104: ='Yr 8'!$BZ$61 -> 0 | M104: ='Yr 9'!$BZ$61 -> 0 | N104: ='Yr 10'!$BZ$61 -> 0
D105: Deficiency Relief | E105: ='Yr 1'!$BZ$62 -> 0 | F105: ='Yr 2'!$BZ$62 -> 0 | G105: ='Yr 3'!$BZ$62 -> 0 | H105: ='Yr 4'!$BZ$62 -> 0 | I105: ='Yr 5'!$BZ$62 -> 0 | J105: ='Yr 6'!$BZ$62 -> 0 | K105: ='Yr 7'!$BZ$62 -> 0 | L105: ='Yr 8'!$BZ$62 -> 0 | M105: ='Yr 9'!$BZ$62 -> 0 | N105: ='Yr 10'!$BZ$62 -> 0
D106: Personal Allowance Lost | E106: ='Yr 1'!$BT$8 -> 0 | F106: ='Yr 2'!$BT$8 -> 0 | G106: ='Yr 3'!$BT$8 -> 0 | H106: ='Yr 4'!$BT$8 -> 0 | I106: ='Yr 5'!$BT$8 -> 0 | J106: ='Yr 6'!$BT$8 -> 0 | K106: ='Yr 7'!$BT$8 -> 0 | L106: ='Yr 8'!$BT$8 -> 0 | M106: ='Yr 9'!$BT$8 -> 0 | N106: ='Yr 10'!$BT$8 -> 0
D107: Total Tax | E107: =Bonds!E89 -> 0 | F107: =Bonds!F89 -> 0 | G107: =Bonds!G89 -> 0 | H107: =Bonds!H89 -> 0 | I107: =Bonds!I89 -> 0 | J107: =Bonds!J89 -> 0 | K107: =Bonds!K89 -> 0 | L107: =Bonds!L89 -> 0 | M107: =Bonds!M89 -> 0 | N107: =Bonds!N89 -> 0
D109: ISA Values
D110: Opening | E110: 0 | F110: =Bonds!E93 -> 0 | G110: =Bonds!F93 -> 0 | H110: =Bonds!G93 -> 0 | I110: =Bonds!H93 -> 0 | J110: =Bonds!I93 -> 0 | K110: =Bonds!J93 -> 0 | L110: =Bonds!K93 -> 0 | M110: =Bonds!L93 -> 0 | N110: =Bonds!M93 -> 0
D111: Contribution | E111: =Bonds!E91 -> 0 | F111: =Bonds!F91 -> 0 | G111: =Bonds!G91 -> 0 | H111: =Bonds!H91 -> 0 | I111: =Bonds!I91 -> 0 | J111: =Bonds!J91 -> 0 | K111: =Bonds!K91 -> 0 | L111: =Bonds!L91 -> 0 | M111: =Bonds!M91 -> 0 | N111: =Bonds!N91 -> 0
D112: Growth | E112: =E113-E111 -> 0 | F112: =F113-F110-F111 -> 0 | G112: =G113-G110-G111 -> 0 | H112: 0 | I112: 0 | J112: 0 | K112: 0 | L112: 0 | M112: 0 | N112: 0
D113: Closing | E113: =Bonds!E93 -> 0 | F113: =Bonds!F93 -> 0 | G113: =Bonds!G93 -> 0 | H113: =Bonds!H93 -> 0 | I113: =Bonds!I93 -> 0 | J113: =Bonds!J93 -> 0 | K113: =Bonds!K93 -> 0 | L113: =Bonds!L93 -> 0 | M113: =Bonds!M93 -> 0 | N113: =Bonds!N93 -> 0
E116: =E3 -> 1 | F116: 2 | G116: 3 | H116: 4 | I116: 5 | J116: 6 | K116: 7 | L116: 8 | M116: 9 | N116: 10
D117: =B16 -> COLLECTIVES | E117: =E30 -> 0 | F117: 0 | G117: 0 | H117: 0 | I117: 0 | J117: 0 | K117: 0 | L117: 0 | M117: 0 | N117: 0
D118: =B53 -> ONSHORE BOND | E118: =E60 -> 0 | F118: 0 | G118: 0 | H118: 0 | I118: 0 | J118: 0 | K118: 0 | L118: 0 | M118: 0 | N118: 0
D119: =B85 -> OFFSHORE BOND | E119: =E92 -> 0 | F119: =F92 -> 0 | G119: 0 | H119: 0 | I119: 0 | J119: 0 | K119: 0 | L119: 0 | M119: 0 | N119: 0

Sheet Glossary of Terms
B2: Inputs
B5: Section | C5: Input Name | E5: Description
B6: =Inputs!C3 -> Planning Assumptions | C6: =Inputs!C5 -> Invested Amount | E6: This is the gross amount that the client is looking to invest.
C7: =Inputs!C7 -> Proposed Term (5 to 10 only) | E7: This is the term that the money is to be invested for.
C8: =Inputs!C11 -> Use annual exempt amount? | E8: If yes is selected the tool will use the full value of the annual exempt amount to crystalise gains to rebase the CGT where possible. As an example if the gains are £6,000 it will sell and repurchase half of the portfolio (Bed and Breakfast rules are ignored for this.
C9: =Inputs!C12 -> ISA Wrap each year? | E9: If yes is selected the tool will take £20,000 gross from the investment and place this into an ISA. The disinvestment takes place on the 5th of April and is invested on the 6th of April.
C10: =Inputs!C13 -> Regular withdrawal amount? | E10: If the client is looking to take regular withdrawals from the portfolio the tool will take this gross amount from the investment on the 5th of April.
C11: =Inputs!C14 -> Bond encashment method | E11: For the Onshore and Offshore bonds you select if you want to do a partisl surrender across all of the segments, or you can select to take full segments close to the withdrawal amount with any remainder being taken across the remaining segments.
C12: =Inputs!C15 -> Year 1 ISA Allowance from Investment? | E12: If yes is selected the tool will take the first years ISA investment amount from the gross amount that the client is looking to invest. E.g. if the gross investment amount is £250,000 the tool will take £20,000 from this at the start to place into an ISA and invest £230,000 in the Collectives and Bonds.
B13: =Inputs!G3 -> Income Assumptions | C13: =Inputs!G6 -> Non Savings Non Dividend | E13: This is the amount of income a client has that is not classed as savings or dividends (employment income etc.).
C14: =Inputs!G7 -> Savings | E14: This is any existing savings income that the client has, this is required to know how much savings allowances may be available for the proposed investment.
C15: =Inputs!G8 -> Dividend | E15: This is any existing dividend income that the client has, this is required to know how much divident nil rate that may be available for the proposed investment.
C16: =Inputs!K4 -> Increase assumption | E16: These are here so you can factor in any percentage increases in the clients existing sources of income.
C17: =Inputs!G10 -> CPI Increase for Tax Bands from 2031 | E17: If you want to increase the tax bands from 2031 by CPI, please select the rate you feel is appropriate.
C18: =Inputs!G12 -> Income in year of encashment | E18: These are for the expected non portfolio income the client will have in the year of encashment.
C19: =Inputs!K11 -> Projected income - encashment | E19: If you wish to continue the increase assupmtions for the client in the year of encashment, these are the figures required.
B20: =Inputs!O3 -> Investment Assumptions | C20: =Inputs!O6 -> Savings Income | E20: This is the expected percentage return on the fund or portfolio produced by interest.
C21: =Inputs!O7 -> Dividend Return | E21: This is the expected percentage return on the fund or portfolio produced by dividends.
C22: =Inputs!O8 -> Capital Gain | E22: This is the expected capital growth return on the fund or portfolio produced by capital gains.
C23: =Inputs!O10 -> Extra Wrapper Cost | E23: This can be a positive or negative number to refelct if it is more or less expensive to have the investments wrapped in a bond.
B26: Outputs
B29: Section | C29: Output Section | D29: Output Name | E29: Description
B30: Projected Values Inputs Page | C30: =Inputs!C21 -> End of term values | D30: =Inputs!C22 -> Surrender | E30: This is the surrender value of the investment at the end of the proposed term.
D31: =Inputs!C23 -> Gain | E31: This is the capital gain (collectives) or chargable gain (bonds) that the investment has at the end of the proposed term.
C32: =Inputs!C24 -> Taxation | D32: =Inputs!C25 -> Internal Taxation | E32: This is the internal taxation that has been paid by the onshore bond.
D33: =Inputs!C26 -> Income Tax over term | E33: This is the income tax that the client has had to pay from their own resources during the investment period.
D34: =Inputs!C27 -> CGT Over Term | E34: This is the capital gains tax that the client has had to pay from their own resources during the investment period.
D35: =Inputs!C28 -> Tax on Surrender | E35: This is the tax due on surrendering the investment at the end of the proposed term.
C36: =Inputs!C29 -> Net Proceeds | D36: =Inputs!C30 -> On Surrender | E36: This is the value from the surrender values after any taxes on gains have been paid.
D37: =Inputs!C31 -> ISA Value | E37: This is the value of the ISA that has been build up over the proposed term.
D38: =Inputs!C32 -> Gross Withdrawals | E38: This is the value of the gross withdrawals taken to ISA wrap, as a personal withdrawal or both, over the proposed term.
D39: =Inputs!C33 -> Personal Taxes Paid Over Term | E39: This is the total tax that the client has had to pay from their own resources during the investment period.
D40: =Inputs!C34 -> Overall Outcome | E40: This is the net surrender value of the investment, added to the ISA value and gross withdrawals taken, less any personal taxes paid over the term.
B43: Tax Analysis
B46: Section | C46: Output Section | D46: Output Name | E46: Description
B47: ='Tax Analysis'!B6 -> INCOME (non portfolio) | D47: ='Tax Analysis'!D6 -> Non Savings, Non Dividend | E47: This is the amount of non savngs, non dividend income the client has for the year.
D48: ='Tax Analysis'!D7 -> Existing Savings | E48: This is the amount of savngs income the client has for the year that has not come from the proposed investment.
D49: ='Tax Analysis'!D8 -> Existing Dividend | E49: This is the amount of dividend income the client has for the year that has not come from the proposed investment.
D50: ='Tax Analysis'!D11 -> Total | E50: This is the total of all income the client has for the year.
B51: ='Tax Analysis'!B16 -> COLLECTIVES | D51: ='Tax Analysis'!D17 -> Starting Value | E51: This is the opening value of the collective investment for the year.
D52: ='Tax Analysis'!D19 -> Capital Growth | E52: This is the capital growth return on the fund or portfolio produced by dividends.
D53: ='Tax Analysis'!D20 -> AEA for year | E53: This is the Capital Gains Tax Annual Exempt Amount for the year.
D54: ='Tax Analysis'!D21 -> Portfolio realised to use AEA | E54: This is how much of the portfolio or fund that can be realised to fully utilise the AEA for the year.
D55: ='Tax Analysis'!D22 -> AEA used | E55: This is how much of the AEA that has actually be used.
D56: ='Tax Analysis'!D23 -> Carried Gain | E56: This is how much of a gain a portfolio or fund is carrying over in any year.
C57: ='Tax Analysis'!D25 -> Withdrawal | D57: ='Tax Analysis'!D26 -> For ISA | E57: This is how much that has been withdrawn to fund the ISA.
D58: ='Tax Analysis'!D27 -> For income | E58: This is the amount specified to be withdrawn in the inputs.
D59: ='Tax Analysis'!D28 -> Total withdrawn | E59: This is the total amount withdrawn from the investment.
D60: ='Tax Analysis'!D30 -> Closing Collective Value | E60: This is the closing value for the investment factoring in any withdrawals that have been taken.
C61: ='Tax Analysis'!D32 -> Additional Tax from Portfolio | D61: ='Tax Analysis'!D34 -> Non-Savings Non-Dividend | E61: This is the amount of non savngs, non dividend income that is paying more tax because of the investment and any withdrawals.
D62: ='Tax Analysis'!D35 -> Tax | E62: This is the amount of tax paid due to the above.
D63: ='Tax Analysis'!D36 -> Savings | E63: This is the amount of savngs income that is paying more tax because of the investment and any withdrawals.
D64: ='Tax Analysis'!D37 -> Tax | E64: This is the amount of tax paid due to the above.
D65: ='Tax Analysis'!D38 -> Dividend | E65: This is the amount of dividend income that is paying more tax because of the investment and any withdrawals.
D66: ='Tax Analysis'!D39 -> Tax | E66: This is the amount of tax paid due to the above.
D67: ='Tax Analysis'!D40 -> Gain (after AEA) | E67: This is the amount of the gain realised that will be subject to CGT.
D68: ='Tax Analysis'!D41 -> Tax | E68: This is the amount of tax paid due to the above.
D69: ='Tax Analysis'!D42 -> Personal Allowance Lost | E69: This is the amount of personal allowance that has been lost because of the investment and any withdrawals.
D70: ='Tax Analysis'!D43 -> Total Tax | E70: This is the total tax due by the individual that is solely down to the investment.
C71: ='Tax Analysis'!D45 -> ISA Values | D71: ='Tax Analysis'!D46 -> Opening | E71: This is the opening value of the ISA investment for the year.
D72: ='Tax Analysis'!D47 -> Contribution | E72: This is the contribution made to the ISA for the year.
D73: ='Tax Analysis'!D48 -> Growth | E73: This is the growth in the ISA for the year.
D74: ='Tax Analysis'!D49 -> Closing | E74: This is the final value of the ISA for the year.
B75: ='Tax Analysis'!B53 -> ONSHORE BOND | D75: ='Tax Analysis'!D54 -> Starting Value | E75: This is the opening value of the Onshore Bond investment for the year.
D76: ='Tax Analysis'!D55 -> Internal Taxation | E76: This is the amount of taxation that the bond has paid on any interest or capital gains for the year (dividend income is exempt from tax in an onshore bond).
C77: ='Tax Analysis'!D56 -> Withdrawal | D77: ='Tax Analysis'!D57 -> For ISA | E77: This is how much that has been withdrawn to fund the ISA.
D78: ='Tax Analysis'!D58 -> For income | E78: This is the amount specified to be withdrawn in the inputs.
D79: ='Tax Analysis'!D59 -> Total withdrawn | E79: This is the total amount withdrawn from the investment.
D80: ='Tax Analysis'!D60 -> Closing Value | E80: This is the closing value for the investment factoring in any withdrawals that have been taken.
C81: ='Tax Analysis'!D62 -> Bond Gain | D81: ='Tax Analysis'!D63 -> Gain | E81: This is the gain arising from a surrender in the year.
D82: ='Tax Analysis'!D64 -> Slice Years (N) | E82: This is the number of years that can be used for top slicing the above gain.
D83: ='Tax Analysis'!D65 -> Non-Savings Non-Dividend | E83: This is the amount of non savngs, non dividend income that is paying more tax because of the investment and any withdrawals.
D84: ='Tax Analysis'!D66 -> Tax | E84: This is the amount of tax paid due to the above.
D85: ='Tax Analysis'!D67 -> Savings | E85: This is the amount of savngs income that is paying more tax because of the investment and any withdrawals.
D86: ='Tax Analysis'!D68 -> Tax | E86: This is the amount of tax paid due to the above.
D87: ='Tax Analysis'!D69 -> Dividend | E87: This is the amount of dividend income that is paying more tax because of the investment and any withdrawals.
D88: ='Tax Analysis'!D70 -> Tax | E88: This is the amount of tax paid due to the above.
D89: ='Tax Analysis'!D71 -> Tax on Bond Gain | E89: This is the gross amount of tax due on the bond gain before any onshore bond tax credit, top slicing relief or deddiciency relief could reduce the amount.
D90: ='Tax Analysis'!D72 -> Onshore Bond Tax Credit | E90: This is the amount of the non reclaimable tax credit that can be applied to the bond gain.
D91: ='Tax Analysis'!D73 -> Top Slicing Relief | E91: This is the amount of top slicing relief that can be applied to mitigate any gain generated.
D92: ='Tax Analysis'!D74 -> Deficiency Relief | E92: This is the amount of relief given on the bonds surrender if the final gain was negative and there have been previous chargable events.
D93: ='Tax Analysis'!D75 -> Personal Allowance Lost | E93: This is the amount of personal allowance that has been lost because of the investment and any withdrawals.
D94: ='Tax Analysis'!D76 -> Total Tax | E94: This is the total tax due by the individual that is solely down to the investment.
C95: ='Tax Analysis'!D77 -> ISA Values | D95: ='Tax Analysis'!D78 -> Opening | E95: This is the opening value of the ISA investment for the year.
D96: ='Tax Analysis'!D79 -> Contribution | E96: This is the contribution made to the ISA for the year.
D97: ='Tax Analysis'!D80 -> Growth | E97: This is the growth in the ISA for the year.
D98: ='Tax Analysis'!D81 -> Closing | E98: This is the final value of the ISA for the year.
B99: ='Tax Analysis'!B85 -> OFFSHORE BOND | D99: ='Tax Analysis'!D87 -> Starting Value | E99: This is the opening value of the Offshore Bond investment for the year.
C100: ='Tax Analysis'!D88 -> Withdrawal | D100: ='Tax Analysis'!D89 -> For ISA | E100: This is how much that has been withdrawn to fund the ISA.
D101: ='Tax Analysis'!D90 -> For income | E101: This is the amount specified to be withdrawn in the inputs.
D102: ='Tax Analysis'!D91 -> Total withdrawn | E102: This is the total amount withdrawn from the investment.
D103: ='Tax Analysis'!D92 -> Closing Value | E103: This is the closing value for the investment factoring in any withdrawals that have been taken.
C104: ='Tax Analysis'!D94 -> Bond Gain | D104: ='Tax Analysis'!D95 -> Gain | E104: This is the gain arising from a surrender in the year.
D105: ='Tax Analysis'!D96 -> Slice Years (N) | E105: This is the number of years that can be used for top slicing the above gain.
D106: ='Tax Analysis'!D97 -> Non-Savings Non-Dividend | E106: This is the amount of non savngs, non dividend income that is paying more tax because of the investment and any withdrawals.
D107: ='Tax Analysis'!D98 -> Tax | E107: This is the amount of tax paid due to the above.
D108: ='Tax Analysis'!D99 -> Savings | E108: This is the amount of savngs income that is paying more tax because of the investment and any withdrawals.
D109: ='Tax Analysis'!D100 -> Tax | E109: This is the amount of tax paid due to the above.
D110: ='Tax Analysis'!D101 -> Dividend | E110: This is the amount of dividend income that is paying more tax because of the investment and any withdrawals.
D111: ='Tax Analysis'!D102 -> Tax | E111: This is the amount of tax paid due to the above.
D112: ='Tax Analysis'!D103 -> Tax on Bond Gain | E112: This is the gross amount of tax due on the bond gain before any top slicing relief or deddiciency relief could reduce the amount.
D113: ='Tax Analysis'!D104 -> Top Slicing Relief | E113: This is the amount of top slicing relief that can be applied to mitigate any gain generated.
D114: ='Tax Analysis'!D105 -> Deficiency Relief | E114: This is the amount of relief given on the bonds surrender if the final gain was negative and there have been previous chargable events.
D115: ='Tax Analysis'!D106 -> Personal Allowance Lost | E115: This is the amount of personal allowance that has been lost because of the investment and any withdrawals.
D116: ='Tax Analysis'!D107 -> Total Tax | E116: This is the total tax due by the individual that is solely down to the investment.
C117: ='Tax Analysis'!D109 -> ISA Values | D117: ='Tax Analysis'!D110 -> Opening | E117: This is the opening value of the ISA investment for the year.
D118: ='Tax Analysis'!D111 -> Contribution | E118: This is the contribution made to the ISA for the year.
D119: ='Tax Analysis'!D112 -> Growth | E119: This is the growth in the ISA for the year.
D120: ='Tax Analysis'!D113 -> Closing | E120: This is the final value of the ISA for the year.
B123: Further Resources
B124: Taxation of investment bonds | E124: https://www.mandg.com/wealth/adviser-services/tech-matters/investments-and-taxation/taxation-of-investment-bonds
B125: OEICs & unit trusts | E125: https://www.mandg.com/wealth/adviser-services/tech-matters/investments-and-taxation/oeics-and-unit-trusts
B126: Individual savings account (ISA) | E126: https://www.mandg.com/wealth/adviser-services/tech-matters/investments-and-taxation/isa

Sheet Parameters_Inc Calcs (hidden)
B2: PA standard | C2: 12570
B3: ANI Limit | C3: 100000 | D3: Divis | E3: Savings | F3: Gains | G3: NSND | I3: Suicide Code | J3: =TODAY() -> 2026-04-16
B4: Basic Rate Band | C4: 37700 | D4: 0.1075 | E4: 0.22 | F4: 0.18 | G4: 0.2 | J4: 2027-04-05
B5: Higher Threshold | C5: 50270 | D5: 0.3575 | E5: 0.42 | F5: 0.24 | G5: 0.4
B6: Higher Rate Band - Do not alter as calced | C6: =C8-C4 -> 87440
B7: PA Trap Start | C7: 100000
B8: Additional Threshold - Do not alter as calced | C8: =C7+(C2*2) -> 125140 | D8: 0.3935 | E8: 0.47 | G8: 0.45
B9: PSA Basic | C9: 1000
B10: PSA Higher | C10: 500
B11: PSA Add | C11: 0
B12: Starting Rate for Savings | C12: 5000
B13: ISA Allowance | C13: 20000
C14: Div | D14: CGT
B15: Collective allowances | C15: 500 | D15: 3000
D16: =IF(Inputs!D11="No",0,D15) -> 3000 | E16: Logic for AEA usage
B19: For tax band increases from 2028, change the cell in C25 to the starting year of the tax year for updates
B21: CPI Rate Selected | C21: =Inputs!K10 -> 0
B22: CPI Increases from | C22: 2031
B23: Investment Year | C23: 1 | D23: =C23+1 -> 2 | E23: =D23+1 -> 3 | F23: 4 | G23: 5 | H23: 6 | I23: 7 | J23: 8 | K23: 9 | L23: =K23+1 -> 10
B24: Tax Year Start | C24: 2026 | D24: =C24+1 -> 2027 | E24: =D24+1 -> 2028 | F24: 2029 | G24: 2030 | H24: 2031 | I24: 2032 | J24: 2033 | K24: 2034 | L24: =K24+1 -> 2035
B25: Personal Allowance | C25: =C2 -> 12570 | D25: =IF(D24>=$C$22,C25*(1+$C$21),C25) -> 12570 | E25: 12570 | F25: =IF(F24>=$C$22,E25*(1+$C$21),E25) -> 12570 | G25: 12570 | H25: 12570 | I25: 12570 | J25: 12570 | K25: 12570 | L25: 12570
B26: Basic Rate Band | C26: =C4 -> 37700 | D26: =IF(D24>=$C$22,C26*(1+$C$21),C26) -> 37700 | E26: =IF(E24>=$C$22,D26*(1+$C$21),D26) -> 37700 | F26: 37700 | G26: 37700 | H26: 37700 | I26: 37700 | J26: 37700 | K26: 37700 | L26: 37700
B27: Higher Threshold | C27: =C25+C26 -> 50270 | D27: =D25+D26 -> 50270 | E27: 50270 | F27: 50270 | G27: 50270 | H27: 50270 | I27: 50270 | J27: 50270 | K27: 50270 | L27: 50270
B28: Higher Rate Band | C28: =C29-C26 -> 87440 | D28: =D29-D26 -> 87440 | E28: =E29-E26 -> 87440 | F28: 87440 | G28: =G29-G26 -> 87440 | H28: 87440 | I28: 87440 | J28: 87440 | K28: 87440 | L28: 87440
B29: Additional Threshold | C29: =C8 -> 125140 | D29: =IF(D24>=$C$22,$C$7+(D25*2),C29) -> 125140 | E29: 125140 | F29: 125140 | G29: =IF(G24>=$C$22,$C$7+(G25*2),F29) -> 125140 | H29: 125140 | I29: 125140 | J29: 125140 | K29: 125140 | L29: 125140
D31: =D29 -> 125140 | E31: 125140 | F31: 125140 | G31: =F31*1.03 -> 128894.2 | H31: =G31*1.03 -> 132761.026 | I31: 136743.8568 | J31: 140846.1725 | K31: 145071.5577
G32: =F28*1.03 -> 90063.2 | H32: =G28*1.03 -> 90063.2 | I32: 90063.2 | J32: 90063.2 | K32: 90063.2 | L32: 90063.2
G33: =G26+G32 -> 127763.2 | H33: =H26+H32 -> 127763.2 | I33: 127763.2 | J33: 127763.2 | K33: 127763.2 | L33: 127763.2

Sheet CGT (hidden)
D7: =Inputs!C5 -> Invested Amount | E7: =Inputs!D5 -> 0 | F7: Term | G7: =Inputs!D7 -> 0
D8: =Inputs!O8 -> Capital Gain | E8: =Inputs!Q8 -> 0 | G8: =G18 -> 0
F9: Past final year | G9: =AND(G10>$G$7) -> TRUE | H9: =AND(H10>$G$7) -> TRUE | I9: TRUE | J9: TRUE | K9: TRUE | L9: TRUE | M9: TRUE | N9: =AND(N10>$G$7) -> TRUE | O9: TRUE | P9: TRUE
D10: 1 | G10: 1 | H10: 2 | I10: 3 | J10: 4 | K10: 5 | L10: 6 | M10: 7 | N10: 8 | O10: 9 | P10: 10 | Q10: Total
D11: =D10+1 -> 2 | F11: CGT Base | G11: =G12 -> 0 | H11: =IF(H9=TRUE,0,G45) -> 0 | I11: =IF(I9=TRUE,0,H45) -> 0 | J11: =IF(J9=TRUE,0,I45) -> 0 | K11: 0 | L11: 0 | M11: 0 | N11: 0 | O11: 0 | P11: 0 | Q11: =SUM(G11:P11) -> 0
D12: =D11+1 -> 3 | F12: Starting value | G12: =IF(G9=TRUE,0,IF(AND(Inputs!$D$12="Yes",Inputs!$D$15="Yes"),MAX(0,Inputs!$D$5-'Parameters_Inc Calcs'!$C$13),Inputs!$D$5)) -> 0 | H12: =IF(H9=TRUE,0,G51) -> 0 | I12: =IF(I9=TRUE,0,H51) -> 0 | J12: 0 | K12: 0 | L12: 0 | M12: 0 | N12: 0 | O12: 0 | P12: 0 | Q12: =SUM(G12:P12) -> 0
A13: =400000*1.05^10 -> 651557.8507 | D13: 4 | F13: Growth Factor | G13: =1+E8 -> 1 | H13: =IF(H9=TRUE,0,G13) -> 0 | I13: =IF(I9=TRUE,0,H13) -> 0 | J13: 0 | K13: 0 | L13: 0 | M13: 0 | N13: 0 | O13: 0 | P13: 0
A14: 400000 | D14: 5 | F14: SV | G14: =G12*G13 -> 0 | H14: =H12*H13 -> 0 | I14: =I12*I13 -> 0 | J14: =J12*J13 -> 0 | K14: 0 | L14: 0 | M14: 0 | N14: 0 | O14: 0 | P14: =P12*P13 -> 0 | Q14: =SUM(G14:P14) -> 0
D15: 6 | F15: Growth | G15: =G14-G12 -> 0 | H15: =H14-H12 -> 0 | I15: 0 | J15: 0 | K15: 0 | L15: 0 | M15: 0 | N15: 0 | O15: 0 | P15: 0
A16: =A13-A14 -> 251557.8507 | D16: 7 | F16: Gain | G16: =G14-G12 -> 0 | H16: =H14-H11 -> 0 | I16: =I14-I11 -> 0 | J16: =J14-J11 -> 0 | K16: 0 | L16: 0 | M16: 0 | N16: 0 | O16: 0 | P16: 0 | Q16: =SUM(G16:P16) -> 0
A17: =SUM(G18:P18) -> 0 | D17: 8 | F17: Cumulative Gain do for end of year? | Q17: =SUM(G17:P17) -> 0
A18: =A16-A17 -> 251557.8507 | D18: 9 | F18: AEA | G18: =IF(G10>=Inputs!$D$7,0,IF(G12=0,0,IF(G9=TRUE,0,MIN(G17,'Parameters_Inc Calcs'!$D$16)))) -> 0 | H18: =IF(H10>=Inputs!$D$7,0,IF(H12=0,0,IF(H9=TRUE,0,MIN(H17,'Parameters_Inc Calcs'!$D$16)))) -> 0 | I18: =IF(I10>=Inputs!$D$7,0,IF(I11=0,0,IF(I9=TRUE,0,MIN(I17,'Parameters_Inc Calcs'!$D$16)))) -> 0 | J18: =IF(J10>=Inputs!$D$7,0,IF(J11=0,0,IF(J9=TRUE,0,MIN(J17,'Parameters_Inc Calcs'!$D$16)))) -> 0 | K18: =IF(K10>=Inputs!$D$7,0,IF(K11=0,0,IF(K9=TRUE,0,MIN(K17,'Parameters_Inc Calcs'!$D$16)))) -> 0 | L18: =IF(L10>=Inputs!$D$7,0,IF(L11=0,0,IF(L9=TRUE,0,MIN(L17,'Parameters_Inc Calcs'!$D$16)))) -> 0 | M18: =IF(M10>=Inputs!$D$7,0,IF(M11=0,0,IF(M9=TRUE,0,MIN(M17,'Parameters_Inc Calcs'!$D$16)))) -> 0 | N18: =IF(N10>=Inputs!$D$7,0,IF(N11=0,0,IF(N9=TRUE,0,MIN(N17,'Parameters_Inc Calcs'!$D$16)))) -> 0 | O18: =IF(O10>=Inputs!$D$7,0,IF(O11=0,0,IF(O9=TRUE,0,MIN(O17,'Parameters_Inc Calcs'!$D$16)))) -> 0 | P18: =IF(P10>=Inputs!$D$7,0,IF(P11=0,0,IF(P9=TRUE,0,MIN(P17,'Parameters_Inc Calcs'!$D$16)))) -> 0 | Q18: =SUM(G18:P18) -> 0
D19: 10 | F19: AEA/Gain | G19: =IF(G16=0,0,MIN(1,G18/G16)) -> 0 | H19: =IF(H16=0,0,MIN(1,H18/H16)) -> 0 | I19: =IF(I16=0,0,MIN(1,I18/I16)) -> 0 | J19: 0 | K19: 0 | L19: 0 | M19: 0 | N19: 0 | O19: 0 | P19: 0
D20: 11 | F20: Surrender | G20: =G19*G14 -> 0 | H20: =IF(H9=TRUE,0,H19*H14) -> 0 | I20: =IF(I9=TRUE,0,I19*I14) -> 0 | J20: =IF(J9=TRUE,0,J19*J14) -> 0 | K20: =IF(K9=TRUE,0,K19*K14) -> 0 | L20: =IF(L9=TRUE,0,L19*L14) -> 0 | M20: =IF(M9=TRUE,0,M19*M14) -> 0 | N20: =IF(N9=TRUE,0,N19*N14) -> 0 | O20: 0 | P20: 0 | Q20: =SUM(G20:P20) -> 0
D21: 12 | Q21: =SUM(G52:P52) -> 0
D22: 13 | F22: Base Surrendered | G22: =G11*G19 -> 0 | H22: =H11*H19 -> 0 | I22: =I11*I19 -> 0 | J22: 0 | K22: 0 | L22: 0 | M22: 0 | N22: 0 | O22: 0 | P22: 0 | Q22: =SUM(G22:P22) -> 0
D23: 14 | F23: Base remaining | G23: =G11-G22 -> 0 | H23: =H11-H22 -> 0 | I23: 0 | J23: 0 | K23: 0 | L23: 0 | M23: 0 | N23: 0 | O23: 0 | P23: 0 | Q23: =SUM(G23:P23) -> 0
D24: 15
D25: 16 | F25: GROSS income - This is a change | G25: ='Yr 1'!$AD$26 -> 0 | H25: ='Yr 2'!$AD$26 -> 0 | I25: ='Yr 3'!$AD$26 -> 0 | J25: ='Yr 4'!$AD$26 -> 0 | K25: ='Yr 5'!AD26 -> 0 | L25: ='Yr 6'!$AD$26 -> 0 | M25: ='Yr 7'!$AD$26 -> 0 | N25: ='Yr 8'!$AD$26 -> 0 | O25: ='Yr 9'!$AD$26 -> 0 | P25: ='Yr 10'!$AD$26 -> 0 | Q25: =SUM(G25:P25) -> 0
D26: 17 | F26: SV plus income | G26: =G20+G25 -> 0 | H26: =H20+H25 -> 0 | I26: 0 | J26: =J20+J25 -> 0 | K26: 0 | L26: 0 | M26: 0 | N26: 0 | O26: 0 | P26: 0
D27: 18 | F27: ISA Wrapping? | G27: =IF(AND(G10<>Inputs!$D$7,Inputs!$D$12="Yes"),MIN(G14+G25,'Parameters_Inc Calcs'!$C$13),0) -> 0 | H27: =IF(AND(H10<>Inputs!$D$7,Inputs!$D$12="Yes"),MIN(H14+H25,'Parameters_Inc Calcs'!$C$13),0) -> 0 | I27: =IF(AND(I10<>Inputs!$D$7,Inputs!$D$12="Yes"),MIN(I14+I25,'Parameters_Inc Calcs'!$C$13),0) -> 0 | J27: =IF(AND(J10<>Inputs!$D$7,Inputs!$D$12="Yes"),MIN(J14+J25,'Parameters_Inc Calcs'!$C$13),0) -> 0 | K27: =IF(AND(K10<>Inputs!$D$7,Inputs!$D$12="Yes"),MIN(K14+K25,'Parameters_Inc Calcs'!$C$13),0) -> 0 | L27: =IF(AND(L10<>Inputs!$D$7,Inputs!$D$12="Yes"),MIN(L14+L25,'Parameters_Inc Calcs'!$C$13),0) -> 0 | M27: =IF(AND(M10<>Inputs!$D$7,Inputs!$D$12="Yes"),MIN(M14+M25,'Parameters_Inc Calcs'!$C$13),0) -> 0 | N27: =IF(AND(N10<>Inputs!$D$7,Inputs!$D$12="Yes"),MIN(N14+N25,'Parameters_Inc Calcs'!$C$13),0) -> 0 | O27: =IF(AND(O10<>Inputs!$D$7,Inputs!$D$12="Yes"),MIN(O14+O25,'Parameters_Inc Calcs'!$C$13),0) -> 0 | P27: =IF(AND(P10<>Inputs!$D$7,Inputs!$D$12="Yes"),MIN(P14+P25,'Parameters_Inc Calcs'!$C$13),0) -> 0 | Q27: Should always be zero
D28: 19 | F28: Specified Withdrawal | G28: =IF(G10>=Inputs!$D$7,0,IF(Inputs!$D$13="",0,MIN(Inputs!$D$13,G14+G25-G27))) -> 0 | H28: =IF(H10>=Inputs!$D$7,0,IF(Inputs!$D$13="",0,MIN(Inputs!$D$13,H14+H25-H27))) -> 0 | I28: =IF(I10>=Inputs!$D$7,0,IF(Inputs!$D$13="",0,MIN(Inputs!$D$13,I14+I25-I27))) -> 0 | J28: =IF(J10>=Inputs!$D$7,0,IF(Inputs!$D$13="",0,MIN(Inputs!$D$13,J14+J25-J27))) -> 0 | K28: =IF(K10>=Inputs!$D$7,0,IF(Inputs!$D$13="",0,MIN(Inputs!$D$13,K14+K25-K27))) -> 0 | L28: =IF(L10>=Inputs!$D$7,0,IF(Inputs!$D$13="",0,MIN(Inputs!$D$13,L14+L25-L27))) -> 0 | M28: =IF(M10>=Inputs!$D$7,0,IF(Inputs!$D$13="",0,MIN(Inputs!$D$13,M14+M25-M27))) -> 0 | N28: =IF(N10>=Inputs!$D$7,0,IF(Inputs!$D$13="",0,MIN(Inputs!$D$13,N14+N25-N27))) -> 0 | O28: =IF(O10>=Inputs!$D$7,0,IF(Inputs!$D$13="",0,MIN(Inputs!$D$13,O14+O25-O27))) -> 0 | P28: =IF(P10>=Inputs!$D$7,0,IF(Inputs!$D$13="",0,MIN(Inputs!$D$13,P14+P25-P27))) -> 0 | Q28: =SUM(G28:P28) -> 0 | R28: Total withdrawn
D29: 20 | F29: Shortfall from Income? | G29: =MAX(0,G27+G28-G25) -> 0 | H29: =MAX(0,H27+H28-H25) -> 0 | I29: =MAX(0,I27+I28-I25) -> 0 | J29: 0 | K29: 0 | L29: 0 | M29: 0 | N29: 0 | O29: 0 | P29: 0
D30: 21 | F30: Extra Needed for ISA+spec wd Surrender over AEA surrender | G30: =MAX(0,G29-G20) -> 0 | H30: =MAX(0,H29-H20) -> 0 | I30: =MAX(0,I29-I20) -> 0 | J30: =MAX(0,J29-J20) -> 0 | K30: 0 | L30: 0 | M30: 0 | N30: 0 | O30: 0 | P30: 0
D31: 22 | F31: Units Start | G31: 100000 | H31: =IF(H10>Inputs!$D$7,0,G43) -> 0 | I31: =IF(I10>Inputs!$D$7,0,H43) -> 0 | J31: =IF(J10>Inputs!$D$7,0,I43) -> 0 | K31: =IF(K10>Inputs!$D$7,0,J43) -> 0 | L31: =IF(L10>Inputs!$D$7,0,K43) -> 0 | M31: =IF(M10>Inputs!$D$7,0,L43) -> 0 | N31: =IF(N10>Inputs!$D$7,0,M43) -> 0 | O31: =IF(O10>Inputs!$D$7,0,N43) -> 0 | P31: =IF(P10>Inputs!$D$7,0,O43) -> 0
D32: 23 | F32: Unit Price Start | G32: =G12/100000 -> 0 | H32: =IF(H10>Inputs!$D$7,0,G33) -> 0 | I32: =IF(I10>Inputs!$D$7,0,H33) -> 0 | J32: =IF(J10>Inputs!$D$7,0,I33) -> 0 | K32: =IF(K10>Inputs!$D$7,0,J33) -> 0 | L32: =IF(L10>Inputs!$D$7,0,K33) -> 0 | M32: =IF(M10>Inputs!$D$7,0,L33) -> 0 | N32: =IF(N10>Inputs!$D$7,0,M33) -> 0 | O32: =IF(O10>Inputs!$D$7,0,N33) -> 0 | P32: =IF(P10>Inputs!$D$7,0,O33) -> 0
D33: 24 | F33: Unit Price End | G33: =IF(G10>Inputs!$D$7,0,G32*(1+$E$8)) -> 0 | H33: =IF(H10>Inputs!$D$7,0,H32*(1+$E$8)) -> 0 | I33: =IF(I10>Inputs!$D$7,0,I32*(1+$E$8)) -> 0 | J33: =IF(J10>Inputs!$D$7,0,J32*(1+$E$8)) -> 0 | K33: =IF(K10>Inputs!$D$7,0,K32*(1+$E$8)) -> 0 | L33: =IF(L10>Inputs!$D$7,0,L32*(1+$E$8)) -> 0 | M33: =IF(M10>Inputs!$D$7,0,M32*(1+$E$8)) -> 0 | N33: =IF(N10>Inputs!$D$7,0,N32*(1+$E$8)) -> 0 | O33: =IF(O10>Inputs!$D$7,0,O32*(1+$E$8)) -> 0 | P33: =IF(P10>Inputs!$D$7,0,P32*(1+$E$8)) -> 0
D34: 25 | F34: Units Sold for AEA | G34: =IF(G10>=Inputs!$D$7,0,IF(G20>0,MIN(G31,G31*G19))) -> 0 | H34: =IF(H10>=Inputs!$D$7,0,IF(H20>0,MIN(H31,H31*H19))) -> 0 | I34: =IF(I10>=Inputs!$D$7,0,IF(I20>0,MIN(I31,I31*I19))) -> 0 | J34: =IF(J10>=Inputs!$D$7,0,IF(J20>0,MIN(J31,J31*J19))) -> 0 | K34: =IF(K10>=Inputs!$D$7,0,IF(K20>0,MIN(K31,K31*K19))) -> 0 | L34: =IF(L10>=Inputs!$D$7,0,IF(L20>0,MIN(L31,L31*L19))) -> 0 | M34: =IF(M10>=Inputs!$D$7,0,IF(M20>0,MIN(M31,M31*M19))) -> 0 | N34: =IF(N10>=Inputs!$D$7,0,IF(N20>0,MIN(N31,N31*N19))) -> 0 | O34: =IF(O10>=Inputs!$D$7,0,IF(O20>0,MIN(O31,O31*O19))) -> 0 | P34: =IF(P10>=Inputs!$D$7,0,IF(P20>0,MIN(P31,P31*P19))) -> 0 | Q34: Should always be zero
D35: 26 | F35: Extra Units Needed for ISA above AEA + Income | G35: =IF(G30>0,(G29-G20)/G33,0) -> 0 | H35: =IF(H30>0,(H29-H20)/H33,0) -> 0 | I35: =IF(I30>0,(I29-I20)/I33,0) -> 0 | J35: =IF(J30>0,(J29-J20)/J33,0) -> 0 | K35: 0 | L35: =IF(L30>0,(L29-L20)/L33,0) -> 0 | M35: 0 | N35: 0 | O35: 0 | P35: 0
D36: 27 | F36: Units used if no extra for ISA+spec w/d | G36: =IF(G10>Inputs!$D$7,0,IF(G30=0,IF(G29>0,G29/G33,0),0)) -> 0 | H36: =IF(H10>Inputs!$D$7,0,IF(H30=0,IF(H29>0,H29/H33,0),0)) -> 0 | I36: =IF(I10>Inputs!$D$7,0,IF(I30=0,IF(I29>0,I29/I33,0),0)) -> 0 | J36: =IF(J10>Inputs!$D$7,0,IF(J30=0,IF(J29>0,J29/J33,0),0)) -> 0 | K36: =IF(K10>Inputs!$D$7,0,IF(K30=0,IF(K29>0,K29/K33,0),0)) -> 0 | L36: =IF(L10>Inputs!$D$7,0,IF(L30=0,IF(L29>0,L29/L33,0),0)) -> 0 | M36: =IF(M10>Inputs!$D$7,0,IF(M30=0,IF(M29>0,M29/M33,0),0)) -> 0 | N36: =IF(N10>Inputs!$D$7,0,IF(N30=0,IF(N29>0,N29/N33,0),0)) -> 0 | O36: =IF(O10>Inputs!$D$7,0,IF(O30=0,IF(O29>0,O29/O33,0),0)) -> 0 | P36: =IF(P10>Inputs!$D$7,0,IF(P30=0,IF(P29>0,P29/P33,0),0)) -> 0
D37: 28 | F37: If within AEA value to be reinvested | G37: =IF(G30=0,G20-G29,0) -> 0 | H37: =IF(H30=0,H20-H29,0) -> 0 | I37: 0 | J37: 0 | K37: 0 | L37: 0 | M37: 0 | N37: 0 | O37: 0 | P37: 0
D38: 29 | F38: Units bought from AEA useage less what's taken for ISA or W/d | G38: =IF(G10>Inputs!$D$7,0,IF(G37>0,(G37/G33),0)) -> 0 | H38: =IF(H10>Inputs!$D$7,0,IF(H37>0,(H37/H33),0)) -> 0 | I38: =IF(I10>Inputs!$D$7,0,IF(I37>0,(I37/I33),0)) -> 0 | J38: =IF(J10>Inputs!$D$7,0,IF(J37>0,(J37/J33),0)) -> 0 | K38: =IF(K10>Inputs!$D$7,0,IF(K37>0,(K37/K33),0)) -> 0 | L38: =IF(L10>Inputs!$D$7,0,IF(L37>0,(L37/L33),0)) -> 0 | M38: =IF(M10>Inputs!$D$7,0,IF(M37>0,(M37/M33),0)) -> 0 | N38: =IF(N10>Inputs!$D$7,0,IF(N37>0,(N37/N33),0)) -> 0 | O38: =IF(O10>Inputs!$D$7,0,IF(O37>0,(O37/O33),0)) -> 0 | P38: =IF(P10>Inputs!$D$7,0,IF(P37>0,(P37/P33),0)) -> 0
D39: 30 | F39: Income to be reinvested | G39: =IF((G27+G28)=0,G25,IF(G25>(G27+G28),G25-(G27+G28),0)) -> 0 | H39: =IF((H27+H28)=0,H25,IF(H25>(H27+H28),H25-(H27+H28),0)) -> 0 | I39: 0 | J39: 0 | K39: 0 | L39: 0 | M39: 0 | N39: 0 | O39: 0 | P39: 0
D40: 31 | F40: Units bought from excess income | G40: =IF(G10>=Inputs!$D$7,0,IF(G29>0,0,IF(G33>0,(G25-(G27+G28))/G33,0))) -> 0 | H40: =IF(H10>=Inputs!$D$7,0,IF(H29>0,0,IF(H33>0,(H25-(H27+H28))/H33,0))) -> 0 | I40: =IF(I10>=Inputs!$D$7,0,IF(I29>0,0,IF(I33>0,(I25-(I27+I28))/I33,0))) -> 0 | J40: =IF(J10>=Inputs!$D$7,0,IF(J29>0,0,IF(J33>0,(J25-(J27+J28))/J33,0))) -> 0 | K40: =IF(K10>=Inputs!$D$7,0,IF(K29>0,0,IF(K33>0,(K25-(K27+K28))/K33,0))) -> 0 | L40: =IF(L10>=Inputs!$D$7,0,IF(L29>0,0,IF(L33>0,(L25-(L27+L28))/L33,0))) -> 0 | M40: =IF(M10>=Inputs!$D$7,0,IF(M29>0,0,IF(M33>0,(M25-(M27+M28))/M33,0))) -> 0 | N40: =IF(N10>=Inputs!$D$7,0,IF(N29>0,0,IF(N33>0,(N25-(N27+N28))/N33,0))) -> 0 | O40: =IF(O10>=Inputs!$D$7,0,IF(O29>0,0,IF(O33>0,(O25-(O27+O28))/O33,0))) -> 0 | P40: =IF(P10>=Inputs!$D$7,0,IF(P29>0,0,IF(P33>0,(P25-(P27+P28))/P33,0))) -> 0
D41: 32 | F41: Transaction Cost for units bought AEA + Excess | G41: =(G37+G39) -> 0 | H41: =(H37+H39) -> 0 | I41: =(I37+I39) -> 0 | J41: 0 | K41: 0 | L41: 0 | M41: 0 | N41: 0 | O41: 0 | P41: =(P37+P39) -> 0
D42: 33 | F42: Original Units not rebased | G42: =MAX(0,G31-G34-G35) -> 100000 | H42: =MAX(0,H31-H34-H35) -> 0 | I42: =MAX(0,I31-I34-I35) -> 0 | J42: =MAX(0,J31-J34-J35) -> 0 | K42: =MAX(0,K31-K34-K35) -> 0 | L42: =MAX(0,L31-L34-L35) -> 0 | M42: 0 | N42: 0 | O42: 0 | P42: 0
D43: 34 | F43: Total Units Remaining | G43: =IF(G10>Inputs!$D$7,0,G40+G38+G42) -> 0 | H43: =IF(H10>Inputs!$D$7,0,H40+H38+H42) -> 0 | I43: =IF(I10>Inputs!$D$7,0,I40+I38+I42) -> 0 | J43: =IF(J10>Inputs!$D$7,0,J40+J38+J42) -> 0 | K43: =IF(K10>Inputs!$D$7,0,K40+K38+K42) -> 0 | L43: =IF(L10>Inputs!$D$7,0,L40+L38+L42) -> 0 | M43: =IF(M10>Inputs!$D$7,0,M40+M38+M42) -> 0 | N43: =IF(N10>Inputs!$D$7,0,N40+N38+N42) -> 0 | O43: =IF(O10>Inputs!$D$7,0,O40+O38+O42) -> 0 | P43: =IF(P10>Inputs!$D$7,0,P40+P38+P42) -> 0
D44: 35 | R44: =IF(Q47=0,0,100) -> 0
D45: 36 | F45: Total Transaction Cost | G45: =(G42*G32)+G41 -> 0 | H45: =IF(H43=0,0,(H42*G46)+H41) -> 0 | I45: =IF(I43=0,0,(I42*H46)+I41) -> 0 | J45: =IF(J43=0,0,(J42*I46)+J41) -> 0 | K45: 0 | L45: 0 | M45: 0 | N45: 0 | O45: 0 | P45: =IF(P43=0,0,(P42*O46)+P41) -> 0
D46: 37 | F46: S104 | G46: =IF(G12>0,((G42*G32)+((G43-G42)*G33))/G43,0) -> 0 | H46: =IF(H43>0,H45/H43,0) -> 0 | I46: =IF(I43>0,I45/I43,0) -> 0 | J46: 0 | K46: 0 | L46: 0 | M46: =IF(M43>0,M45/M43,0) -> 0 | N46: 0 | O46: 0 | P46: =IF(P43>0,P45/P43,0) -> 0 | Q46: Total Gains | R46: Gain on final year | S46: Gains During Term
D47: 38 | F47: Full Gain | G47: =(G34+G35)*(G33-G32) -> 0 | H47: =ROUNDDOWN(IF(H10=Inputs!$D$7,H16,(H34+H35)*(H33-G46)),7) -> 0 | I47: =ROUNDDOWN(IF(I10=Inputs!$D$7,I16,(I34+I35)*(I33-H46)),7) -> 0 | J47: =ROUNDDOWN(IF(J10=Inputs!$D$7,J16,(J34+J35)*(J33-I46)),7) -> 0 | K47: =ROUNDDOWN(IF(K10=Inputs!$D$7,K16,(K34+K35)*(K33-J46)),7) -> 0 | L47: =ROUNDDOWN(IF(L10=Inputs!$D$7,L16,(L34+L35)*(L33-K46)),7) -> 0 | M47: =ROUNDDOWN(IF(M10=Inputs!$D$7,M16,(M34+M35)*(M33-L46)),7) -> 0 | N47: =ROUNDDOWN(IF(N10=Inputs!$D$7,N16,(N34+N35)*(N33-M46)),7) -> 0 | O47: =ROUNDDOWN(IF(O10=Inputs!$D$7,O16,(O34+O35)*(O33-N46)),7) -> 0 | P47: =ROUNDDOWN(IF(P10=Inputs!$D$7,P16,(P34+P35)*(P33-O46)),7) -> 0 | Q47: =SUM(G47:P47) -> 0 | R47: =IF(Q47=0,0,(LOOKUP(9.99999999999999E+307,IF($G$47:$P$47>0,$G$47:$P$47)))) -> 0 | S47: =Q47-R47 -> 0
D48: 39
D49: 40 | F49: Gain for cumulative | G49: =MAX(0,G47-G18) -> 0 | H49: =MAX(0,H47-H18) -> 0 | I49: =MAX(0,I47-I18) -> 0 | J49: =MAX(0,J47-J18) -> 0 | K49: 0 | L49: 0 | M49: 0 | N49: 0 | O49: 0 | P49: 0 | Q49: Total CGT | R49: CGT on final year | S49: CGT During Term
D50: 41 | F50: CGT Bill | G50: ='Yr 1'!$AA$63 -> 0 | H50: ='Yr 2'!$AA$63 -> 0 | I50: ='Yr 3'!$AA$63 -> 0 | J50: ='Yr 4'!$AA$63 -> 0 | K50: ='Yr 5'!$AA$63 -> 0 | L50: ='Yr 6'!$AA$63 -> 0 | M50: ='Yr 7'!$AA$63 -> 0 | N50: ='Yr 8'!$AA$63 -> 0 | O50: ='Yr 9'!$AA$63 -> 0 | P50: ='Yr 10'!$AA$63 -> 0 | Q50: =SUM(G50:P50) -> 0 | R50: =IF(Q50=0,0,HLOOKUP(Inputs!D7,CGT!G10:P51,41,FALSE)) -> 0 | S50: =Q50-R50 -> 0
D51: 42 | F51: Surrender value incl Reinvested inc in final year | G51: =IF(G10=$G$7,G14+G25,IF(G10>=Inputs!$D$7,0,G43*G33)) -> 0 | H51: =IF(H10=$G$7,H14+H25,IF(H10>=Inputs!$D$7,0,H43*H33)) -> 0 | I51: =IF(I10=$G$7,I14+I25,IF(I10>=Inputs!$D$7,0,I43*I33)) -> 0 | J51: =IF(J10=$G$7,J14+J25,IF(J10>=Inputs!$D$7,0,J43*J33)) -> 0 | K51: =IF(K10=$G$7,K14+K25,IF(K10>=Inputs!$D$7,0,K43*K33)) -> 0 | L51: =IF(L10=$G$7,L14+L25,IF(L10>=Inputs!$D$7,0,L43*L33)) -> 0 | M51: =IF(M10=$G$7,M14+M25,IF(M10>=Inputs!$D$7,0,M43*M33)) -> 0 | N51: =IF(N10=$G$7,N14+N25,IF(N10>=Inputs!$D$7,0,N43*N33)) -> 0 | O51: =IF(O10=$G$7,O14+O25,IF(O10>=Inputs!$D$7,0,O43*O33)) -> 0 | P51: =IF(P10=$G$7,P14+P25,IF(P10>=Inputs!$D$7,0,P43*P33)) -> 0 | Q51: =IF(Inputs!D7="",0,HLOOKUP(Inputs!D7,CGT!G10:P51,42,FALSE)) -> 0 | R51: Surrender value last year
D52: 43 | F52: Carried Gain | G52: =G16-G47 -> 0 | H52: =H16-H47 -> 0 | I52: =I16-I47 -> 0 | J52: 0 | K52: 0 | L52: 0 | M52: =M16-M47 -> 0 | N52: 0 | O52: 0 | P52: 0
D53: 44
D54: 45 | F54: ISA Investment | G54: =IF(AND(Inputs!$D$12="Yes",Inputs!$D$15="Yes"),'Parameters_Inc Calcs'!$C$13,0) -> 0 | H54: =G27 -> 0 | I54: 0 | J54: =I27 -> 0 | K54: 0 | L54: 0 | M54: 0 | N54: 0 | O54: 0 | P54: =O27 -> 0
D55: 46 | F55: ISA Start of Year | G55: =G54 -> 0 | H55: =IF(H10>Inputs!$D$7,0,H54+G57) -> 0 | I55: =IF(I10>Inputs!$D$7,0,I54+H57) -> 0 | J55: =IF(J10>Inputs!$D$7,0,J54+I57) -> 0 | K55: =IF(K10>Inputs!$D$7,0,K54+J57) -> 0 | L55: =IF(L10>Inputs!$D$7,0,L54+K57) -> 0 | M55: =IF(M10>Inputs!$D$7,0,M54+L57) -> 0 | N55: =IF(N10>Inputs!$D$7,0,N54+M57) -> 0 | O55: =IF(O10>Inputs!$D$7,0,O54+N57) -> 0 | P55: =IF(P10>Inputs!$D$7,0,P54+O57) -> 0
D56: 47 | F56: Growth | G56: =G55*((SUM(Bonds!$B$43:$B$47))) -> 0 | H56: =H55*((SUM(Bonds!$B$43:$B$47))) -> 0 | I56: =I55*((SUM(Bonds!$B$43:$B$47))) -> 0 | J56: =J55*((SUM(Bonds!$B$43:$B$47))) -> 0 | K56: =K55*((SUM(Bonds!$B$43:$B$47))) -> 0 | L56: =L55*((SUM(Bonds!$B$43:$B$47))) -> 0 | M56: =M55*((SUM(Bonds!$B$43:$B$47))) -> 0 | N56: =N55*((SUM(Bonds!$B$43:$B$47))) -> 0 | O56: =O55*((SUM(Bonds!$B$43:$B$47))) -> 0 | P56: =P55*((SUM(Bonds!$B$43:$B$47))) -> 0
D57: 48 | F57: ISA End of Year | G57: =IF(G10>Inputs!$D$7,0,G55*(1+(SUM(Bonds!$B$43:$B$47)))) -> 0 | H57: =IF(H10>Inputs!$D$7,0,H55*(1+(SUM(Bonds!$B$43:$B$47)))) -> 0 | I57: =IF(I10>Inputs!$D$7,0,I55*(1+(SUM(Bonds!$B$43:$B$47)))) -> 0 | J57: =IF(J10>Inputs!$D$7,0,J55*(1+(SUM(Bonds!$B$43:$B$47)))) -> 0 | K57: =IF(K10>Inputs!$D$7,0,K55*(1+(SUM(Bonds!$B$43:$B$47)))) -> 0 | L57: =IF(L10>Inputs!$D$7,0,L55*(1+(SUM(Bonds!$B$43:$B$47)))) -> 0 | M57: =IF(M10>Inputs!$D$7,0,M55*(1+(SUM(Bonds!$B$43:$B$47)))) -> 0 | N57: =IF(N10>Inputs!$D$7,0,N55*(1+(SUM(Bonds!$B$43:$B$47)))) -> 0 | O57: =IF(O10>Inputs!$D$7,0,O55*(1+(SUM(Bonds!$B$43:$B$47)))) -> 0 | P57: =IF(P10>Inputs!$D$7,0,P55*(1+(SUM(Bonds!$B$43:$B$47)))) -> 0 | Q57: =MAX(G57:P57) -> 0
D58: 49
D59: 50 | F59: Savings and Divi Tax Paid over term | G59: ='Yr 1'!$AD$27 -> 0 | H59: ='Yr 2'!$AD$27 -> 0 | I59: ='Yr 3'!$AD$27 -> 0 | J59: ='Yr 4'!$AD$27 -> 0 | K59: ='Yr 5'!$AD$27 -> 0 | L59: ='Yr 6'!$AD$27 -> 0 | M59: ='Yr 7'!$AD$27 -> 0 | N59: ='Yr 8'!$AD$27 -> 0 | O59: ='Yr 9'!$AD$27 -> 0 | P59: ='Yr 10'!$AD$27 -> 0 | Q59: =SUM(G59:P59) -> 0

Sheet Bonds (hidden)
A1: Partials | R1: Full segments with partials after
C2: =Inputs!C7 -> Proposed Term (5 to 10 only) | D2: =Inputs!D7 -> 0 | F2: Post Final Year
B3: ONSHORE
C5: Year one int tax rate | D5: =((B10+B16)/SUM(B10:B16)*20%) ->  | E5: Internal Tax | F5: =((B10+B16)/SUM(B10:B16)*C11) ->  | H5: =E8*(1+(SUM(B10:B16))*(1-F5))^D2 ->  | I5: What is this for?
E6: =AND(E7>$D$2) -> TRUE | F6: =AND(F7>$D$2) -> TRUE | G6: TRUE | H6: TRUE | I6: TRUE | J6: TRUE | K6: TRUE | L6: TRUE | M6: TRUE | N6: =AND(N7>$D$2) -> TRUE
C7: Year | E7: 1 | F7: 2 | G7: 3 | H7: 4 | I7: 5 | J7: 6 | K7: 7 | L7: 8 | M7: 9 | N7: 10
C8: =Inputs!C5 -> Invested Amount | E8: =IF(E6=TRUE,0,IF(AND(Inputs!$D$12="Yes",Inputs!$D$15="Yes"),MAX(0,Inputs!$D$5-'Parameters_Inc Calcs'!$C$13),Inputs!$D$5)) -> 0 | F8: =IF(F6=TRUE,0,E28) -> 0 | G8: 0 | H8: 0 | I8: 0 | J8: 0 | K8: 0 | L8: 0 | M8: 0 | N8: 0
B9: Yield
B10: =Inputs!Q6 -> 0 | C10: Savings income | D10: Amt | E10: =E8*$B$10 -> 0 | F10: =F8*$B$10 -> 0 | G10: 0 | H10: 0 | I10: 0 | J10: 0 | K10: 0 | L10: 0 | M10: 0 | N10: 0
C11: ='Parameters_Inc Calcs'!E4 -> 0.22 | D11: Tax | E11: =E10*20% -> 0 | F11: =F10*$C$11 -> 0 | G11: =G10*$C$11 -> 0 | H11: 0 | I11: 0 | J11: 0 | K11: 0 | L11: 0 | M11: 0 | N11: 0 | O11: =SUM(E11:N11) -> 0
D12: Net | E12: =E10-E11 -> 0 | F12: =F10-F11 -> 0 | G12: 0 | H12: 0 | I12: 0 | J12: 0 | K12: 0 | L12: 0 | M12: 0 | N12: 0
B14: =Inputs!Q7 -> 0 | C14: Dividend Return | D14: Amt | E14: =E8*$B$14 -> 0 | F14: 0 | G14: 0 | H14: 0 | I14: 0 | J14: 0 | K14: 0 | L14: 0 | M14: 0 | N14: 0
B16: =Inputs!Q8 -> 0 | C16: Capital Gain | D16: Amt | E16: =E8*$B$16 -> 0 | F16: 0 | G16: 0 | H16: 0 | I16: 0 | J16: 0 | K16: 0 | L16: 0 | M16: 0 | N16: 0
C17: =C11 -> 0.22 | D17: Tax | E17: =E16*20% -> 0 | F17: =F16*$C$17 -> 0 | G17: =G16*$C$17 -> 0 | H17: 0 | I17: 0 | J17: 0 | K17: 0 | L17: 0 | M17: 0 | N17: 0 | O17: =SUM(E17:N17) -> 0 | R17: ONSHORE
D18: Net | E18: =E16-E17 -> 0 | F18: =F16-F17 -> 0 | G18: 0 | H18: 0 | I18: 0 | J18: 0 | K18: 0 | L18: 0 | M18: 0 | N18: 0 | AX18: Think this will become reduntant
D20: End Year Value (excl wrapper charge) | E20: =E8+E12+E14+E18 -> 0 | F20: =F8+F12+F14+F18 -> 0 | G20: =G8+G12+G14+G18 -> 0 | H20: 0 | I20: 0 | J20: 0 | K20: 0 | L20: 0 | M20: 0 | N20: 0 | AX20: For the LOOKUP
D21: End Year Value (inc wrapper charge) | E21: =E20*(1-Inputs!$Q$10) -> 0 | F21: =F20*(1-Inputs!$Q$10) -> 0 | G21: =G20*(1-Inputs!$Q$10) -> 0 | H21: =H20*(1-Inputs!$Q$10) -> 0 | I21: =I20*(1-Inputs!$Q$10) -> 0 | J21: =J20*(1-Inputs!$Q$10) -> 0 | K21: =K20*(1-Inputs!$Q$10) -> 0 | L21: =L20*(1-Inputs!$Q$10) -> 0 | M21: =M20*(1-Inputs!$Q$10) -> 0 | N21: =N20*(1-Inputs!$Q$10) -> 0 | R21: 5% Per seg | S21: =IF(E8>0,(E8/S23)*5%,0) -> 0 | T21: Seg Start Value | U21: =E8/100 -> 0 | AH21: Gain Calcs on Full segments | AN21: Gain Calcs on Partials | AR21: Total Gains to be used
D22: Tax Deferred Allowance | E22: =E8*5% -> 0 | F22: =E22 -> 0 | G22: =F22 -> 0 | H22: 0 | I22: 0 | J22: 0 | K22: 0 | L22: 0 | M22: 0 | N22: 0 | R22: Year | S22: Starting Segments | T22: Closing Value Before ISA | U22: Value Per Segment | V22: SV needed | W22: Segs to get Close | X22: Value from Seg Surr | Y22: Seg above SV logic | Z22: Segs Remaining | AA22: Remaining Needed | AB22: 5% for Year | AC22: 5% Remaining | AD22: WD per seg | AE22: Xs gains per seg | AF22: Year End Segmenf Factor | AG22: Gain Per seg surr | AH22: Surrender Val | AI22: Total Withdrawals | AJ22: Total Premiums | AK22: Prev XS Gains | AL22: Gain | AM22: Slice | AN22: XS Gain | AO22: Years of Excess | AP22: Years for Slice | AQ22: Slice | AR22: Total Gains | AS22: Total Slices | AT22: Derived N year 1 set to one | AY22: Onshore | BB22: Offshore
C23: Sort and ifs | D23: ISA Allowance | E23: =IF(Inputs!$D$7<=Bonds!E7,0,IF(Inputs!$D$12="Yes",IF(E21<'Parameters_Inc Calcs'!$C$13,E21,'Parameters_Inc Calcs'!$C$13),0)) -> 0 | F23: =IF(Inputs!$D$7<=Bonds!F7,0,IF(Inputs!$D$12="Yes",IF(F21<'Parameters_Inc Calcs'!$C$13,F21,'Parameters_Inc Calcs'!$C$13),0)) -> 0 | G23: =IF(Inputs!$D$7<=Bonds!G7,0,IF(Inputs!$D$12="Yes",IF(G21<'Parameters_Inc Calcs'!$C$13,G21,'Parameters_Inc Calcs'!$C$13),0)) -> 0 | H23: =IF(Inputs!$D$7<=Bonds!H7,0,IF(Inputs!$D$12="Yes",IF(H21<'Parameters_Inc Calcs'!$C$13,H21,'Parameters_Inc Calcs'!$C$13),0)) -> 0 | I23: =IF(Inputs!$D$7<=Bonds!I7,0,IF(Inputs!$D$12="Yes",IF(I21<'Parameters_Inc Calcs'!$C$13,I21,'Parameters_Inc Calcs'!$C$13),0)) -> 0 | J23: =IF(Inputs!$D$7<=Bonds!J7,0,IF(Inputs!$D$12="Yes",IF(J21<'Parameters_Inc Calcs'!$C$13,J21,'Parameters_Inc Calcs'!$C$13),0)) -> 0 | K23: =IF(Inputs!$D$7<=Bonds!K7,0,IF(Inputs!$D$12="Yes",IF(K21<'Parameters_Inc Calcs'!$C$13,K21,'Parameters_Inc Calcs'!$C$13),0)) -> 0 | L23: =IF(Inputs!$D$7<=Bonds!L7,0,IF(Inputs!$D$12="Yes",IF(L21<'Parameters_Inc Calcs'!$C$13,L21,'Parameters_Inc Calcs'!$C$13),0)) -> 0 | M23: =IF(Inputs!$D$7<=Bonds!M7,0,IF(Inputs!$D$12="Yes",IF(M21<'Parameters_Inc Calcs'!$C$13,M21,'Parameters_Inc Calcs'!$C$13),0)) -> 0 | N23: =IF(Inputs!$D$7<=Bonds!N7,0,IF(Inputs!$D$12="Yes",IF(N21<'Parameters_Inc Calcs'!$C$13,N21,'Parameters_Inc Calcs'!$C$13),0)) -> 0 | O23: Total W/d | R23: 1 | S23: =IF(E8>0,IF(R23>Inputs!$D$7,0,100),0) -> 0 | T23: =E21 -> 0 | U23: =IF(S23>0,T23/S23,0) -> 0 | V23: =E23+E24 -> 0 | W23: =IF(AND(U23>V23,V23>0),1,MIN(S23,IF(S23>0,ROUNDDOWN(V23/U23,0),0))) -> 0 | X23: =U23*W23 -> 0 | Y23: =IF(V23>=X23,0,1) -> 0 | Z23: =S23-W23 -> 0 | AA23: =IF(Z23>0,MAX(0,V23-X23),0) -> 0 | AB23: =(S23-W23)*$S$21 -> 0 | AC23: =AB23-AA23 -> 0 | AD23: =IF(Z23>0,AA23/Z23,0) -> 0 | AE23: =IF(AC23<0,-AC23/Z23,0) -> 0 | AF23: =IF(R23>Inputs!$D$7,0,IF(Z23=0,0,Z23/S23)) -> 0 | AG23: =IF(R23=Inputs!$D$7,(U23-$U$21)*Z23,(U23-$U$21)*W23) -> 0 | AH23: =IF(R23=Inputs!$D$7,Bonds!T23,W23*U23) -> 0 | AI23: 0 | AJ23: =IF(R23=Inputs!$D$7,Z23*Bonds!$U$21,$U$21*W23) -> 0 | AK23: 0 | AL23: =(AH23+AI23)-(AJ23+AK23) -> 0 | AM23: =AL23 -> 0 | AN23: =IF(AE23>0,SUM($AE$23:AE23)*Z23,0) -> 0 | AO23: =IF(AC23<0,R23,"") ->  | AP23: 1 | AQ23: =IF(AN23>0,AN23/AP23,0) -> 0 | AR23: =AL23+AN23 -> 0 | AS23: =AM23+AQ23 -> 0 | AT23: =IF((AL23+AM23+AN23+AQ23)>0,AR23/AS23,0) -> 0 | AX23: Year | AY23: Full Gain | AZ23: Slice | BA23: EOY Value | BB23: Full Gain | BC23: Slice | BD23: EOY Value
D24: Specified wd | E24: =IF(E7>=Inputs!$D$7,0,IF(Inputs!$D$13="",0,MIN(Inputs!$D$13,Bonds!E21-Bonds!E23))) -> 0 | F24: =IF(F7>=Inputs!$D$7,0,IF(Inputs!$D$13="",0,MIN(Inputs!$D$13,Bonds!F21-Bonds!F23))) -> 0 | G24: =IF(G7>=Inputs!$D$7,0,IF(Inputs!$D$13="",0,MIN(Inputs!$D$13,Bonds!G21-Bonds!G23))) -> 0 | H24: =IF(H7>=Inputs!$D$7,0,IF(Inputs!$D$13="",0,MIN(Inputs!$D$13,Bonds!H21-Bonds!H23))) -> 0 | I24: =IF(I7>=Inputs!$D$7,0,IF(Inputs!$D$13="",0,MIN(Inputs!$D$13,Bonds!I21-Bonds!I23))) -> 0 | J24: =IF(J7>=Inputs!$D$7,0,IF(Inputs!$D$13="",0,MIN(Inputs!$D$13,Bonds!J21-Bonds!J23))) -> 0 | K24: =IF(K7>=Inputs!$D$7,0,IF(Inputs!$D$13="",0,MIN(Inputs!$D$13,Bonds!K21-Bonds!K23))) -> 0 | L24: =IF(L7>=Inputs!$D$7,0,IF(Inputs!$D$13="",0,MIN(Inputs!$D$13,Bonds!L21-Bonds!L23))) -> 0 | M24: =IF(M7>=Inputs!$D$7,0,IF(Inputs!$D$13="",0,MIN(Inputs!$D$13,Bonds!M21-Bonds!M23))) -> 0 | N24: =IF(N7>=Inputs!$D$7,0,IF(Inputs!$D$13="",0,MIN(Inputs!$D$13,Bonds!N21-Bonds!N23))) -> 0 | O24: =SUM(E24:N24) -> 0 | R24: =R23+1 -> 2 | S24: =IF(R24>Inputs!$D$7,0,Z23) -> 0 | T24: =F21 -> 0 | U24: =IF(S24>0,T24/S24,0) -> 0 | V24: =F23+F24 -> 0 | W24: =IF(AND(U24>V24,V24>0),1,MIN(S24,IF(S24>0,ROUNDDOWN(V24/U24,0),0))) -> 0 | X24: =U24*W24 -> 0 | Y24: =IF(V24>=X24,0,1) -> 0 | Z24: =S24-W24 -> 0 | AA24: 0 | AB24: =IF(R24>Inputs!$D$7,0,((S24-W24)*$S$21)+(MAX(0,AC23*AF24))) -> 0 | AC24: =AB24-AA24 -> 0 | AD24: =IF(Z24>0,AA24/Z24,0) -> 0 | AE24: =IF(AC24<0,-AC24/Z24,0) -> 0 | AF24: =IF(R24>Inputs!$D$7,0,IF(Z24=0,0,Z24/S24)) -> 0 | AG24: =IF(R24=Inputs!$D$7,(U24-$U$21)*Z24,(U24-$U$21)*W24) -> 0 | AH24: =IF(R24=Inputs!$D$7,Bonds!T24,W24*U24) -> 0 | AI24: =IF(R24=Inputs!$D$7,Z24*(SUM($AD$23:AD23)),W24*(SUM($AD$23:AD23))) -> 0 | AJ24: =IF(R24=Inputs!$D$7,Z24*Bonds!$U$21,$U$21*W24) -> 0 | AK24: =IF(R24=Inputs!$D$7,Z24*(SUM($AE$23:AE23)),W24*(SUM($AE$22:AE23))) -> 0 | AL24: =(AH24+AI24)-(AJ24+AK24) -> 0 | AM24: =AL24/R24 -> 0 | AN24: =IF(AE24>0,SUM($AE$23:AE24)*Z24,0) -> 0 | AO24: =IF(AC24<0,R24,"") ->  | AP24: =IF(AN24>0,R24-(MAX($AO$22:AO23)),0) -> 0 | AQ24: 0 | AR24: =AL24+AN24 -> 0 | AS24: =AM24+AQ24 -> 0 | AT24: =IF((AL24+AM24+AN24+AQ24)>0,AR24/AS24,0) -> 0 | AX24: =E7 -> 1 | AY24: =E30 -> 0 | AZ24: =E31 ->  | BA24: =E21 -> 0 | BB24: =E61 -> 0 | BC24: =#REF! ->  | BD24: =E52 -> 0
D25: IN year Gain | E25: =IF(AND(E22<(E23+E24),E28>0),(E23+E24)-E22,0) -> 0 | F25: =IF(AND(F22<(F23+F24),F28>0),(F23+F24)-F22,0) -> 0 | G25: =IF(AND(G22<(G23+G24),G28>0),(G23+G24)-G22,0) -> 0 | H25: =IF(AND(H22<(H23+H24),H28>0),(H23+H24)-H22,0) -> 0 | I25: 0 | J25: 0 | K25: 0 | L25: 0 | M25: 0 | N25: 0 | R25: =R24+1 -> 3 | S25: =IF(R25>Inputs!$D$7,0,Z24) -> 0 | T25: =G21 -> 0 | U25: 0 | V25: =G23+G24 -> 0 | W25: 0 | X25: =U25*W25 -> 0 | Y25: 0 | Z25: =S25-W25 -> 0 | AA25: 0 | AB25: =IF(R25>Inputs!$D$7,0,((S25-W25)*$S$21)+(MAX(0,AC24*AF25))) -> 0 | AC25: =AB25-AA25 -> 0 | AD25: =IF(Z25>0,AA25/Z25,0) -> 0 | AE25: 0 | AF25: =IF(R25>Inputs!$D$7,0,IF(Z25=0,0,Z25/S25)) -> 0 | AG25: =IF(R25=Inputs!$D$7,(U25-$U$21)*Z25,(U25-$U$21)*W25) -> 0 | AH25: =IF(R25=Inputs!$D$7,Bonds!T25,W25*U25) -> 0 | AI25: =IF(R25=Inputs!$D$7,Z25*(SUM($AD$23:AD24)),W25*(SUM($AD$23:AD24))) -> 0 | AJ25: =IF(R25=Inputs!$D$7,Z25*Bonds!$U$21,$U$21*W25) -> 0 | AK25: =IF(R25=Inputs!$D$7,Z25*(SUM($AE$23:AE24)),W25*(SUM($AE$22:AE24))) -> 0 | AL25: =(AH25+AI25)-(AJ25+AK25) -> 0 | AM25: =AL25/R25 -> 0 | AN25: =IF(AE25>0,SUM($AE$23:AE25)*Z25,0) -> 0 | AP25: =IF(AN25>0,R25-(MAX($AO$22:AO24)),0) -> 0 | AQ25: 0 | AR25: =AL25+AN25 -> 0 | AS25: =AM25+AQ25 -> 0 | AT25: =IF((AL25+AM25+AN25+AQ25)>0,AR25/AS25,0) -> 0 | AX25: =F7 -> 2 | AY25: =F30 -> 0 | AZ25: =F31 ->  | BA25: =F21 -> 0 | BB25: =F61 -> 0 | BC25: =#REF! ->  | BD25: =F52 -> 0
D26: Gain on full surrender if bond depletes | E26: =IF(AND(E28=0,D28>0,E6=FALSE),((E21+(SUM(D$23:$E24)))-($E$8+(SUM(E$25:$E25)))),0) -> 0 | F26: =IF(AND(F28=0,E28>0,F6=FALSE),((F21+(SUM(E$23:$E24)))-($E$8+(SUM($E$25:F25)))),0) -> 0 | G26: =IF(AND(G28=0,F28>0,G6=FALSE),((G21+(SUM($E$23:F24)))-($E$8+(SUM($E$25:G25)))),0) -> 0 | H26: =IF(AND(H28=0,G28>0,H6=FALSE),((H21+(SUM($E$23:G24)))-($E$8+(SUM($E$25:H25)))),0) -> 0 | I26: =IF(AND(I28=0,H28>0,I6=FALSE),((I21+(SUM($E$23:H24)))-($E$8+(SUM($E$25:I25)))),0) -> 0 | J26: =IF(AND(J28=0,I28>0,J6=FALSE),((J21+(SUM($E$23:I24)))-($E$8+(SUM($E$25:J25)))),0) -> 0 | K26: =IF(AND(K28=0,J28>0,K6=FALSE),((K21+(SUM($E$23:J24)))-($E$8+(SUM($E$25:K25)))),0) -> 0 | L26: =IF(AND(L28=0,K28>0,L6=FALSE),((L21+(SUM($E$23:K24)))-($E$8+(SUM($E$25:L25)))),0) -> 0 | M26: =IF(AND(M28=0,L28>0,M6=FALSE),((M21+(SUM($E$23:L24)))-($E$8+(SUM($E$25:M25)))),0) -> 0 | N26: =IF(AND(N28=0,M28>0,N6=FALSE),((N21+(SUM($E$23:M24)))-($E$8+(SUM($E$25:N25)))),0) -> 0 | R26: 4 | S26: =IF(R26>Inputs!$D$7,0,Z25) -> 0 | T26: =H21 -> 0 | U26: 0 | V26: =H23+H24 -> 0 | W26: 0 | X26: 0 | Y26: 0 | Z26: 0 | AA26: 0 | AB26: =IF(R26>Inputs!$D$7,0,((S26-W26)*$S$21)+(MAX(0,AC25*AF26))) -> 0 | AC26: 0 | AD26: =IF(Z26>0,AA26/Z26,0) -> 0 | AE26: =IF(AC26<0,-AC26/Z26,0) -> 0 | AF26: =IF(R26>Inputs!$D$7,0,IF(Z26=0,0,Z26/S26)) -> 0 | AG26: =IF(R26=Inputs!$D$7,(U26-$U$21)*Z26,(U26-$U$21)*W26) -> 0 | AH26: =IF(R26=Inputs!$D$7,Bonds!T26,W26*U26) -> 0 | AI26: =IF(R26=Inputs!$D$7,Z26*(SUM($AD$23:AD25)),W26*(SUM($AD$23:AD25))) -> 0 | AJ26: =IF(R26=Inputs!$D$7,Z26*Bonds!$U$21,$U$21*W26) -> 0 | AK26: =IF(R26=Inputs!$D$7,Z26*(SUM($AE$23:AE25)),W26*(SUM($AE$22:AE25))) -> 0 | AL26: =(AH26+AI26)-(AJ26+AK26) -> 0 | AM26: 0 | AN26: =IF(AE26>0,SUM($AE$23:AE26)*Z26,0) -> 0 | AP26: =IF(AN26>0,R26-(MAX($AO$22:AO25)),0) -> 0 | AQ26: 0 | AR26: =AL26+AN26 -> 0 | AS26: 0 | AT26: =IF((AL26+AM26+AN26+AQ26)>0,AR26/AS26,0) -> 0 | AX26: =G7 -> 3 | AY26: =G30 -> 0 | AZ26: =G31 ->  | BA26: =G21 -> 0 | BB26: =G61 -> 0 | BC26: =#REF! ->  | BD26: =G52 -> 0
D27: Gain on full surrender if end of term | E27: =IF(AND(Bonds!E21>0,E7=Inputs!$D$7),(E21+(SUM(D$23:$E24)))-($E$8+(SUM(E$25:$E25))),0) -> 0 | F27: =IF(AND(Bonds!F21>0,F7=Inputs!$D$7),(F21+(SUM(E$23:$E24)))-($E$8+(SUM($E$25:F25))),0) -> 0 | G27: =IF(AND(Bonds!G21>0,G7=Inputs!$D$7),(G21+(SUM($E$23:F24)))-($E$8+(SUM($E$25:G25))),0) -> 0 | H27: =IF(AND(Bonds!H21>0,H7=Inputs!$D$7),(H21+(SUM($E$23:G24)))-($E$8+(SUM($E$25:H25))),0) -> 0 | I27: =IF(AND(Bonds!I21>0,I7=Inputs!$D$7),(I21+(SUM($E$23:H24)))-($E$8+(SUM($E$25:I25))),0) -> 0 | J27: =IF(AND(Bonds!J21>0,J7=Inputs!$D$7),(J21+(SUM($E$23:I24)))-($E$8+(SUM($E$25:J25))),0) -> 0 | K27: =IF(AND(Bonds!K21>0,K7=Inputs!$D$7),(K21+(SUM($E$23:J24)))-($E$8+(SUM($E$25:K25))),0) -> 0 | L27: =IF(AND(Bonds!L21>0,L7=Inputs!$D$7),(L21+(SUM($E$23:K24)))-($E$8+(SUM($E$25:L25))),0) -> 0 | M27: =IF(AND(Bonds!M21>0,M7=Inputs!$D$7),(M21+(SUM($E$23:L24)))-($E$8+(SUM($E$25:M25))),0) -> 0 | N27: =IF(AND(Bonds!N21>0,N7=Inputs!$D$7),(N21+(SUM($E$23:M24)))-($E$8+(SUM($E$25:N25))),0) -> 0 | O27: =MAX(E27:N27) -> 0 | R27: 5 | S27: =IF(R27>Inputs!$D$7,0,Z26) -> 0 | T27: =I21 -> 0 | U27: 0 | V27: =I23+I24 -> 0 | W27: 0 | X27: =U27*W27 -> 0 | Y27: =IF(V27>=X27,0,1) -> 0 | Z27: 0 | AA27: 0 | AB27: =IF(R27>Inputs!$D$7,0,((S27-W27)*$S$21)+(MAX(0,AC26*AF27))) -> 0 | AC27: 0 | AD27: 0 | AE27: 0 | AF27: =IF(R27>Inputs!$D$7,0,IF(Z27=0,0,Z27/S27)) -> 0 | AG27: =IF(R27=Inputs!$D$7,(U27-$U$21)*Z27,(U27-$U$21)*W27) -> 0 | AH27: =IF(R27=Inputs!$D$7,Bonds!T27,W27*U27) -> 0 | AI27: =IF(R27=Inputs!$D$7,Z27*(SUM($AD$23:AD26)),W27*(SUM($AD$23:AD26))) -> 0 | AJ27: =IF(R27=Inputs!$D$7,Z27*Bonds!$U$21,$U$21*W27) -> 0 | AK27: =IF(R27=Inputs!$D$7,Z27*(SUM($AE$23:AE26)),W27*(SUM($AE$22:AE26))) -> 0 | AL27: =(AH27+AI27)-(AJ27+AK27) -> 0 | AM27: 0 | AN27: =IF(AE27>0,SUM($AE$23:AE27)*Z27,0) -> 0 | AP27: =IF(AN27>0,R27-(MAX($AO$22:AO26)),0) -> 0 | AQ27: 0 | AR27: =AL27+AN27 -> 0 | AS27: 0 | AT27: =IF((AL27+AM27+AN27+AQ27)>0,AR27/AS27,0) -> 0 | AX27: =H7 -> 4 | AY27: =H30 -> 0 | AZ27: =H31 ->  | BA27: =H21 -> 0 | BB27: =H61 -> 0 | BC27: =#REF! ->  | BD27: =H52 -> 0
D28: Year end after ISA +wd | E28: =E21-E23-E24 -> 0 | F28: =F21-F23-F24 -> 0 | G28: =G21-G23-G24 -> 0 | H28: 0 | I28: 0 | J28: 0 | K28: =K21-K23-K24 -> 0 | L28: 0 | M28: 0 | N28: 0 | O28: =IF(Inputs!D7="",0,HLOOKUP(Inputs!$D$7,$E$7:$N$33,22,FALSE)) -> 0 | R28: 6 | S28: =IF(R28>Inputs!$D$7,0,Z27) -> 0 | T28: =J21 -> 0 | U28: 0 | V28: =J23+J24 -> 0 | W28: 0 | X28: 0 | Y28: 0 | Z28: 0 | AA28: 0 | AB28: =IF(R28>Inputs!$D$7,0,((S28-W28)*$S$21)+(MAX(0,AC27*AF28))) -> 0 | AC28: 0 | AD28: 0 | AE28: 0 | AF28: =IF(R28>Inputs!$D$7,0,IF(Z28=0,0,Z28/S28)) -> 0 | AG28: =IF(R28=Inputs!$D$7,(U28-$U$21)*Z28,(U28-$U$21)*W28) -> 0 | AH28: =IF(R28=Inputs!$D$7,Bonds!T28,W28*U28) -> 0 | AI28: =IF(R28=Inputs!$D$7,Z28*(SUM($AD$23:AD27)),W28*(SUM($AD$23:AD27))) -> 0 | AJ28: =IF(R28=Inputs!$D$7,Z28*Bonds!$U$21,$U$21*W28) -> 0 | AK28: =IF(R28=Inputs!$D$7,Z28*(SUM($AE$23:AE27)),W28*(SUM($AE$22:AE27))) -> 0 | AL28: 0 | AM28: 0 | AN28: =IF(AE28>0,SUM($AE$23:AE28)*Z28,0) -> 0 | AP28: =IF(AN28>0,R28-(MAX($AO$22:AO27)),0) -> 0 | AQ28: 0 | AR28: 0 | AS28: 0 | AT28: 0 | AX28: =I7 -> 5 | AY28: =I30 -> 0 | AZ28: =I31 ->  | BA28: =I21 -> 0 | BB28: =I61 -> 0 | BC28: =#REF! ->  | BD28: =I52 -> 0
R29: 7 | S29: =IF(R29>Inputs!$D$7,0,Z28) -> 0 | T29: =K21 -> 0 | U29: 0 | V29: =K23+K24 -> 0 | W29: 0 | X29: 0 | Y29: 0 | Z29: =S29-W29 -> 0 | AA29: 0 | AB29: =IF(R29>Inputs!$D$7,0,((S29-W29)*$S$21)+(MAX(0,AC28*AF29))) -> 0 | AC29: 0 | AD29: 0 | AE29: 0 | AF29: =IF(R29>Inputs!$D$7,0,IF(Z29=0,0,Z29/S29)) -> 0 | AG29: =IF(R29=Inputs!$D$7,(U29-$U$21)*Z29,(U29-$U$21)*W29) -> 0 | AH29: =IF(R29=Inputs!$D$7,Bonds!T29,W29*U29) -> 0 | AI29: =IF(R29=Inputs!$D$7,Z29*(SUM($AD$23:AD28)),W29*(SUM($AD$23:AD28))) -> 0 | AJ29: =IF(R29=Inputs!$D$7,Z29*Bonds!$U$21,$U$21*W29) -> 0 | AK29: =IF(R29=Inputs!$D$7,Z29*(SUM($AE$23:AE28)),W29*(SUM($AE$22:AE28))) -> 0 | AL29: =(AH29+AI29)-(AJ29+AK29) -> 0 | AM29: 0 | AN29: =IF(AE29>0,SUM($AE$23:AE29)*Z29,0) -> 0 | AP29: =IF(AN29>0,R29-(MAX($AO$22:AO28)),0) -> 0 | AQ29: 0 | AR29: 0 | AS29: 0 | AT29: 0 | AX29: =J7 -> 6 | AY29: =J30 -> 0 | AZ29: =J31 ->  | BA29: =J21 -> 0 | BB29: =J61 -> 0 | BC29: =#REF! ->  | BD29: =J52 -> 0
D30: Gain | E30: =SUM(E25:E27) -> 0 | F30: =SUM(F25:F27) -> 0 | G30: =SUM(G25:G27) -> 0 | H30: 0 | I30: 0 | J30: 0 | K30: 0 | L30: 0 | M30: 0 | N30: 0 | O30: =IF(Inputs!D7="",0,HLOOKUP(Inputs!$D$7,$E$7:$N$33,24,FALSE)) -> 0 | R30: 8 | S30: =IF(R30>Inputs!$D$7,0,Z29) -> 0 | T30: =L21 -> 0 | U30: 0 | V30: =L23+L24 -> 0 | W30: 0 | X30: 0 | Y30: 0 | Z30: 0 | AA30: 0 | AB30: =IF(R30>Inputs!$D$7,0,((S30-W30)*$S$21)+(MAX(0,AC29*AF30))) -> 0 | AC30: 0 | AD30: 0 | AE30: 0 | AF30: =IF(R30>Inputs!$D$7,0,IF(Z30=0,0,Z30/S30)) -> 0 | AG30: =IF(R30=Inputs!$D$7,(U30-$U$21)*Z30,(U30-$U$21)*W30) -> 0 | AH30: =IF(R30=Inputs!$D$7,Bonds!T30,W30*U30) -> 0 | AI30: =IF(R30=Inputs!$D$7,Z30*(SUM($AD$23:AD29)),W30*(SUM($AD$23:AD29))) -> 0 | AJ30: =IF(R30=Inputs!$D$7,Z30*Bonds!$U$21,$U$21*W30) -> 0 | AK30: =IF(R30=Inputs!$D$7,Z30*(SUM($AE$23:AE29)),W30*(SUM($AE$22:AE29))) -> 0 | AL30: 0 | AM30: 0 | AN30: =IF(AE30>0,SUM($AE$23:AE30)*Z30,0) -> 0 | AP30: =IF(AN30>0,R30-(MAX($AO$22:AO29)),0) -> 0 | AQ30: 0 | AR30: 0 | AS30: 0 | AT30: 0 | AX30: =K7 -> 7 | AY30: =K30 -> 0 | AZ30: =K31 ->  | BA30: =K21 -> 0 | BB30: =K61 -> 0 | BC30: =#REF! ->  | BD30: =K52 -> 0
D31: Year of Excess | E31: =IF(E25>0,E7,"") ->  | F31: =IF(F25>0,F7,"") ->  | G31: =IF(G25>0,G7,"") ->  | H31: =IF(H25>0,H7,"") ->  | R31: 9 | S31: =IF(R31>Inputs!$D$7,0,Z30) -> 0 | T31: =M21 -> 0 | U31: 0 | V31: =M23+M24 -> 0 | W31: 0 | X31: 0 | Y31: 0 | Z31: 0 | AA31: 0 | AB31: =IF(R31>Inputs!$D$7,0,((S31-W31)*$S$21)+(MAX(0,AC30*AF31))) -> 0 | AC31: 0 | AD31: 0 | AE31: 0 | AF31: =IF(R31>Inputs!$D$7,0,IF(Z31=0,0,Z31/S31)) -> 0 | AG31: =IF(R31=Inputs!$D$7,(U31-$U$21)*Z31,(U31-$U$21)*W31) -> 0 | AH31: =IF(R31=Inputs!$D$7,Bonds!T31,W31*U31) -> 0 | AI31: =IF(R31=Inputs!$D$7,Z31*(SUM($AD$23:AD30)),W31*(SUM($AD$23:AD30))) -> 0 | AJ31: =IF(R31=Inputs!$D$7,Z31*Bonds!$U$21,$U$21*W31) -> 0 | AK31: =IF(R31=Inputs!$D$7,Z31*(SUM($AE$23:AE30)),W31*(SUM($AE$22:AE30))) -> 0 | AL31: 0 | AM31: 0 | AN31: =IF(AE31>0,SUM($AE$23:AE31)*Z31,0) -> 0 | AO31: =IF(AC31<0,R31,"") ->  | AP31: =IF(AN31>0,R31-(MAX($AO$22:AO30)),0) -> 0 | AQ31: 0 | AR31: 0 | AS31: 0 | AT31: 0 | AX31: =L7 -> 8 | AY31: =L30 -> 0 | AZ31: =L31 ->  | BA31: =L21 -> 0 | BB31: =L61 -> 0 | BC31: =#REF! ->  | BD31: =L52 -> 0
D32: Years for slicing | E32: =IF((E26+E27)<>0,E7,IF(E25>0,MAX(1,E7-(MAX($E31:E$31))),0)) -> 0 | F32: =IF((F26+F27)<>0,F7,IF(F25>0,MAX(1,F7-(MAX($E31:F$31))),0)) -> 0 | G32: =IF((G26+G27)<>0,G7,IF(G25>0,MAX(1,G7-(MAX($E31:G$31))),0)) -> 0 | H32: =IF((H26+H27)<>0,H7,IF(H25>0,MAX(1,H7-(MAX($E31:H$31))),0)) -> 0 | I32: =IF((I26+I27)<>0,I7,IF(I25>0,MAX(1,I7-(MAX($E31:I$31))),0)) -> 0 | J32: =IF((J26+J27)<>0,J7,IF(J25>0,MAX(1,J7-(MAX($E31:J$31))),0)) -> 0 | K32: =IF((K26+K27)<>0,K7,IF(K25>0,MAX(1,K7-(MAX($E31:K$31))),0)) -> 0 | L32: =IF((L26+L27)<>0,L7,IF(L25>0,MAX(1,L7-(MAX($E31:L$31))),0)) -> 0 | M32: =IF((M26+M27)<>0,M7,IF(M25>0,MAX(1,M7-(MAX($E31:M$31))),0)) -> 0 | N32: =IF((N26+N27)<>0,N7,IF(N25>0,MAX(1,N7-(MAX($E31:N$31))),0)) -> 0 | O32: =HLOOKUP(Inputs!$D$7,$E$7:$N$33,26,FALSE) ->  | R32: =R31+1 -> 10 | S32: =IF(R32>Inputs!$D$7,0,Z31) -> 0 | T32: =N21 -> 0 | U32: 0 | V32: =N23+N24 -> 0 | W32: 0 | X32: 0 | Y32: 0 | Z32: 0 | AA32: 0 | AB32: =IF(R32>Inputs!$D$7,0,((S32-W32)*$S$21)+(MAX(0,AC31*AF32))) -> 0 | AC32: 0 | AD32: 0 | AE32: 0 | AF32: =IF(R32>Inputs!$D$7,0,IF(Z32=0,0,Z32/S32)) -> 0 | AG32: =IF(R32=Inputs!$D$7,(U32-$U$21)*Z32,(U32-$U$21)*W32) -> 0 | AH32: =IF(R32=Inputs!$D$7,Bonds!T32,W32*U32) -> 0 | AI32: =IF(R32=Inputs!$D$7,Z32*(SUM($AD$23:AD31)),W32*(SUM($AD$23:AD31))) -> 0 | AJ32: =IF(R32=Inputs!$D$7,Z32*Bonds!$U$21,$U$21*W32) -> 0 | AK32: =IF(R32=Inputs!$D$7,Z32*(SUM($AE$23:AE31)),W32*(SUM($AE$22:AE31))) -> 0 | AL32: 0 | AM32: 0 | AN32: =IF(AE32>0,SUM($AE$23:AE32)*Z32,0) -> 0 | AP32: =IF(AN32>0,R32-(MAX($AO$22:AO31)),0) -> 0 | AQ32: 0 | AR32: 0 | AS32: 0 | AT32: 0 | AX32: =M7 -> 9 | AY32: =M30 -> 0 | AZ32: =L34 -> 0 | BA32: =M21 -> 0 | BB32: =M61 -> 0 | BC32: =#REF! ->  | BD32: =M52 -> 0
D33: Slice | E33: =IF(E26+E27>0,(E26+E27)/E7,IF(E25>0,E25/E32,0)) -> 0 | F33: 0 | G33: 0 | H33: 0 | I33: 0 | J33: 0 | K33: 0 | L33: 0 | M33: 0 | N33: =IF(N26+N27>0,(N26+N27)/N7,IF(N25>0,N25/N32,0)) -> 0 | O33: =HLOOKUP(Inputs!$D$7,$E$7:$N$33,26,FALSE) ->  | AX33: =N7 -> 10 | AY33: =N30 -> 0 | AZ33: =L35 -> 0 | BA33: =N21 -> 0 | BB33: =N61 -> 0 | BC33: =#REF! ->  | BD33: =N52 -> 0
R35: OFFSHORE
D36: IRT | E36: =(E11+E17)/(E10+E14+E16) ->  | F36: =(F11+F17)/(F10+F14+F16) -> 
C38: OFFSHORE
R39: 5% Per seg | S39: =IF(E43>0,(E43/S41)*5%,0) -> 0 | T39: Seg Start Value | U39: =E43/100 -> 0 | AH39: Gain Calcs on Full segments | AN39: Gain Calcs on Partials | AR39: Total Gains to be used
C40: Year | E40: Internal Tax | F40: 0 | H40: =E43*(1+(SUM(B43:B47))*(1-F40))^D2 -> 0 | I40: What is this for? | R40: Year | S40: Starting Segments | T40: Closing Value Before ISA | U40: Value Per Segment | V40: SV for ISA | W40: Segs to get Close | X40: Value from Seg Surr | Y40: Seg above SV logic | Z40: Segs Remaining | AA40: Remaining Needed | AB40: 5% for Year | AC40: 5% Remaining | AD40: WD per seg | AE40: Xs gains per seg | AF40: Year End Segmenf Factor | AG40: Gain Per seg surr | AH40: Surrender Val | AI40: Total Withdrawals | AJ40: Total Premiums | AK40: Prev XS Gains | AL40: Gain | AM40: Slice | AN40: XS Gain | AO40: Years of Excess | AP40: Years for Slice | AQ40: Slice | AR40: Total Gains | AS40: Total Slices | AT40: Derived N year 1 set to one
C41: =Inputs!C31 -> ISA Value | R41: 1 | S41: =IF(E43>0,IF(R41>Inputs!$D$7,0,100),0) -> 0 | T41: =E52 -> 0 | U41: =IF(S41>0,T41/S41,0) -> 0 | V41: =E54+E55 -> 0 | W41: =IF(AND(U41>V41,V41>0),1,MIN(S41,IF(S41>0,ROUNDDOWN(V41/U41,0),0))) -> 0 | X41: =U41*W41 -> 0 | Y41: =IF(V41>=X41,0,1) -> 0 | Z41: =S41-W41 -> 0 | AA41: =IF(Z41>0,MAX(0,V41-X41),0) -> 0 | AB41: =(S41-W41)*$S$39 -> 0 | AC41: =AB41-AA41 -> 0 | AD41: =IF(Z41>0,AA41/Z41,0) -> 0 | AE41: =IF(AC41<0,-AC41/Z41,0) -> 0 | AF41: =IF(R41>Inputs!$D$7,0,IF(Z41=0,0,Z41/S41)) -> 0 | AG41: =IF(R41=Inputs!$D$7,(U41-$U$39)*Z41,(U41-$U$39)*W41) -> 0 | AH41: =IF(R41=Inputs!$D$7,Bonds!T41,W41*U41) -> 0 | AI41: 0 | AJ41: =IF(R41=Inputs!$D$7,Z41*Bonds!$U$39,$U$39*W41) -> 0 | AK41: 0 | AL41: =(AH41+AI41)-(AJ41+AK41) -> 0 | AM41: =AL41 -> 0 | AN41: =IF(AE41>0,SUM($AE$41:AE41)*Z41,0) -> 0 | AO41: =IF(AC41<0,R41,"") ->  | AP41: 1 | AQ41: =IF(AN41>0,AN41/AP41,0) -> 0 | AR41: =AL41+AN41 -> 0 | AS41: =AM41+AQ41 -> 0 | AT41: =IF((AL41+AM41+AN41+AQ41)>0,AR41/AS41,0) -> 0
B42: Yield | E42: 1 | F42: 2 | G42: 3 | H42: 4 | I42: 5 | J42: 6 | K42: 7 | L42: 8 | M42: 9 | N42: 10 | R42: =R41+1 -> 2 | S42: =IF(R42>Inputs!$D$7,0,Z41) -> 0 | T42: =F52 -> 0 | U42: =IF(S42>0,T42/S42,0) -> 0 | V42: =F54+F55 -> 0 | W42: =IF(AND(U42>V42,V42>0),1,MIN(S42,IF(S42>0,ROUNDDOWN(V42/U42,0),0))) -> 0 | X42: =U42*W42 -> 0 | Y42: =IF(V42>=X42,0,1) -> 0 | Z42: 0 | AA42: =IF(Z42>0,MAX(0,V42-X42),0) -> 0 | AB42: =IF(R42>Inputs!$D$7,0,((S42-W42)*$S$39)+(MAX(0,AC41*AF42))) -> 0 | AC42: =AB42-AA42 -> 0 | AD42: =IF(Z42>0,AA42/Z42,0) -> 0 | AE42: =IF(AC42<0,-AC42/Z42,0) -> 0 | AF42: =IF(R42>Inputs!$D$7,0,IF(Z42=0,0,Z42/S42)) -> 0 | AG42: =IF(R42=Inputs!$D$7,(U42-$U$39)*Z42,(U42-$U$39)*W42) -> 0 | AH42: =IF(R42=Inputs!$D$7,Bonds!T42,W42*U42) -> 0 | AI42: =IF(R42=Inputs!$D$7,Z42*(SUM($AD$41:AD42)),W42*(SUM($AD$41:AD41))) -> 0 | AJ42: =IF(R42=Inputs!$D$7,Z42*Bonds!$U$39,$U$39*W42) -> 0 | AK42: =IF(R42=Inputs!$D$7,Z42*(SUM($AE$41:AE41)),W42*(SUM($AE$41:AE41))) -> 0 | AL42: =(AH42+AI42)-(AJ42+AK42) -> 0 | AM42: =AL42/R42 -> 0 | AN42: =IF(AE42>0,SUM($AE$41:AE42)*Z42,0) -> 0 | AO42: =IF(AC42<0,R42,"") ->  | AP42: =IF(AN42>0,MAX(1,R42-(MAX($AO$41:AO41))),0) -> 0 | AQ42: =IF(AN42>0,AN42/AP42,0) -> 0 | AR42: =AL42+AN42 -> 0 | AS42: =AM42+AQ42 -> 0 | AT42: =IF((AL42+AM42+AN42+AQ42)>0,AR42/AS42,0) -> 0
B43: =B10 -> 0 | C43: Savings income | E43: =IF(E6=TRUE,0,E8) -> 0 | F43: =IF(F6=TRUE,0,E59) -> 0 | G43: 0 | H43: 0 | I43: 0 | J43: 0 | K43: 0 | L43: 0 | M43: 0 | N43: 0 | R43: =R42+1 -> 3 | S43: =IF(R43>Inputs!$D$7,0,Z42) -> 0 | T43: =G52 -> 0 | U43: 0 | V43: =G54+G55 -> 0 | W43: =IF(AND(U43>V43,V43>0),1,MIN(S43,IF(S43>0,ROUNDDOWN(V43/U43,0),0))) -> 0 | X43: =U43*W43 -> 0 | Y43: 0 | Z43: 0 | AA43: 0 | AB43: =IF(R43>Inputs!$D$7,0,((S43-W43)*$S$39)+(MAX(0,AC42*AF43))) -> 0 | AC43: =AB43-AA43 -> 0 | AD43: 0 | AE43: 0 | AF43: =IF(R43>Inputs!$D$7,0,IF(Z43=0,0,Z43/S43)) -> 0 | AG43: =IF(R43=Inputs!$D$7,(U43-$U$39)*Z43,(U43-$U$39)*W43) -> 0 | AH43: =IF(R43=Inputs!$D$7,Bonds!T43,W43*U43) -> 0 | AI43: =IF(R43=Inputs!$D$7,Z43*(SUM($AD$41:AD43)),W43*(SUM($AD$41:AD42))) -> 0 | AJ43: =IF(R43=Inputs!$D$7,Z43*Bonds!$U$39,$U$39*W43) -> 0 | AK43: =IF(R43=Inputs!$D$7,Z43*(SUM($AE$41:AE42)),W43*(SUM($AE$41:AE42))) -> 0 | AL43: =(AH43+AI43)-(AJ43+AK43) -> 0 | AM43: =AL43/R43 -> 0 | AN43: =IF(AE43>0,SUM($AE$41:AE43)*Z43,0) -> 0 | AO43: =IF(AC43<0,R43,"") ->  | AP43: =IF(AN43>0,MAX(1,R43-(MAX($AO$41:AO42))),0) -> 0 | AQ43: =IF(AN43>0,AN43/AP43,0) -> 0 | AR43: 0 | AS43: =AM43+AQ43 -> 0 | AT43: =IF((AL43+AM43+AN43+AQ43)>0,AR43/AS43,0) -> 0
R44: 4 | S44: =IF(R44>Inputs!$D$7,0,Z43) -> 0 | T44: =H52 -> 0 | U44: 0 | V44: =H54+H55 -> 0 | W44: =IF(AND(U44>V44,V44>0),1,MIN(S44,IF(S44>0,ROUNDDOWN(V44/U44,0),0))) -> 0 | X44: 0 | Y44: 0 | Z44: 0 | AA44: 0 | AB44: =IF(R44>Inputs!$D$7,0,((S44-W44)*$S$39)+(MAX(0,AC43*AF44))) -> 0 | AC44: =AB44-AA44 -> 0 | AD44: =IF(Z44>0,AA44/Z44,0) -> 0 | AE44: =IF(AC44<0,-AC44/Z44,0) -> 0 | AF44: =IF(R44>Inputs!$D$7,0,IF(Z44=0,0,Z44/S44)) -> 0 | AG44: =IF(R44=Inputs!$D$7,(U44-$U$39)*Z44,(U44-$U$39)*W44) -> 0 | AH44: =IF(R44=Inputs!$D$7,Bonds!T44,W44*U44) -> 0 | AI44: =IF(R44=Inputs!$D$7,Z44*(SUM($AD$41:AD44)),W44*(SUM($AD$41:AD43))) -> 0 | AJ44: =IF(R44=Inputs!$D$7,Z44*Bonds!$U$39,$U$39*W44) -> 0 | AK44: =IF(R44=Inputs!$D$7,Z44*(SUM($AE$41:AE43)),W44*(SUM($AE$41:AE43))) -> 0 | AL44: =(AH44+AI44)-(AJ44+AK44) -> 0 | AM44: 0 | AN44: =IF(AE44>0,SUM($AE$41:AE44)*Z44,0) -> 0 | AP44: =IF(AN44>0,MAX(1,R44-(MAX($AO$41:AO43))),0) -> 0 | AQ44: =IF(AN44>0,AN44/AP44,0) -> 0 | AR44: 0 | AS44: 0 | AT44: =IF((AL44+AM44+AN44+AQ44)>0,AR44/AS44,0) -> 0
B45: =B14 -> 0 | C45: Dividend Return | D45: Amt | E45: =E43*$B$10 -> 0 | F45: =F43*$B$10 -> 0 | G45: 0 | H45: 0 | I45: 0 | J45: 0 | K45: 0 | L45: 0 | M45: 0 | N45: 0 | R45: 5 | S45: =IF(R45>Inputs!$D$7,0,Z44) -> 0 | T45: =I52 -> 0 | U45: 0 | V45: =I54+I55 -> 0 | W45: =IF(AND(U45>V45,V45>0),1,MIN(S45,IF(S45>0,ROUNDDOWN(V45/U45,0),0))) -> 0 | X45: 0 | Y45: 0 | Z45: 0 | AA45: 0 | AB45: =IF(R45>Inputs!$D$7,0,((S45-W45)*$S$39)+(MAX(0,AC44*AF45))) -> 0 | AC45: =AB45-AA45 -> 0 | AD45: 0 | AE45: 0 | AF45: =IF(R45>Inputs!$D$7,0,IF(Z45=0,0,Z45/S45)) -> 0 | AG45: =IF(R45=Inputs!$D$7,(U45-$U$39)*Z45,(U45-$U$39)*W45) -> 0 | AH45: =IF(R45=Inputs!$D$7,Bonds!T45,W45*U45) -> 0 | AI45: =IF(R45=Inputs!$D$7,Z45*(SUM($AD$41:AD45)),W45*(SUM($AD$41:AD44))) -> 0 | AJ45: =IF(R45=Inputs!$D$7,Z45*Bonds!$U$39,$U$39*W45) -> 0 | AK45: =IF(R45=Inputs!$D$7,Z45*(SUM($AE$41:AE44)),W45*(SUM($AE$41:AE44))) -> 0 | AL45: 0 | AM45: 0 | AN45: =IF(AE45>0,SUM($AE$41:AE45)*Z45,0) -> 0 | AP45: =IF(AN45>0,MAX(1,R45-(MAX($AO$41:AO44))),0) -> 0 | AQ45: =IF(AN45>0,AN45/AP45,0) -> 0 | AR45: 0 | AS45: 0 | AT45: =IF((AL45+AM45+AN45+AQ45)>0,AR45/AS45,0) -> 0
R46: 6 | S46: =IF(R46>Inputs!$D$7,0,Z45) -> 0 | T46: =J52 -> 0 | U46: 0 | V46: =J54+J55 -> 0 | W46: 0 | X46: 0 | Y46: 0 | Z46: 0 | AA46: 0 | AB46: =IF(R46>Inputs!$D$7,0,((S46-W46)*$S$39)+(MAX(0,AC45*AF46))) -> 0 | AC46: 0 | AD46: 0 | AE46: 0 | AF46: =IF(R46>Inputs!$D$7,0,IF(Z46=0,0,Z46/S46)) -> 0 | AG46: =IF(R46=Inputs!$D$7,(U46-$U$39)*Z46,(U46-$U$39)*W46) -> 0 | AH46: =IF(R46=Inputs!$D$7,Bonds!T46,W46*U46) -> 0 | AI46: =IF(R46=Inputs!$D$7,Z46*(SUM($AD$41:AD46)),W46*(SUM($AD$41:AD45))) -> 0 | AJ46: =IF(R46=Inputs!$D$7,Z46*Bonds!$U$39,$U$39*W46) -> 0 | AK46: =IF(R46=Inputs!$D$7,Z46*(SUM($AE$41:AE45)),W46*(SUM($AE$41:AE45))) -> 0 | AL46: 0 | AM46: 0 | AN46: =IF(AE46>0,SUM($AE$41:AE46)*Z46,0) -> 0 | AP46: =IF(AN46>0,MAX(1,R46-(MAX($AO$41:AO45))),0) -> 0 | AQ46: 0 | AR46: =AL46+AN46 -> 0 | AS46: 0 | AT46: 0
B47: =B16 -> 0 | C47: Capital Gain | D47: Amt | E47: =E43*$B$14 -> 0 | F47: 0 | G47: 0 | H47: 0 | I47: 0 | J47: 0 | K47: 0 | L47: 0 | M47: 0 | N47: 0 | R47: 7 | S47: =IF(R47>Inputs!$D$7,0,Z46) -> 0 | T47: =K52 -> 0 | U47: =IF(S47>0,T47/S47,0) -> 0 | V47: =K54+K55 -> 0 | W47: 0 | X47: 0 | Y47: 0 | Z47: 0 | AA47: 0 | AB47: =IF(R47>Inputs!$D$7,0,((S47-W47)*$S$39)+(MAX(0,AC46*AF47))) -> 0 | AC47: 0 | AD47: 0 | AE47: 0 | AF47: =IF(R47>Inputs!$D$7,0,IF(Z47=0,0,Z47/S47)) -> 0 | AG47: =IF(R47=Inputs!$D$7,(U47-$U$39)*Z47,(U47-$U$39)*W47) -> 0 | AH47: =IF(R47=Inputs!$D$7,Bonds!T47,W47*U47) -> 0 | AI47: =IF(R47=Inputs!$D$7,Z47*(SUM($AD$41:AD47)),W47*(SUM($AD$41:AD46))) -> 0 | AJ47: =IF(R47=Inputs!$D$7,Z47*Bonds!$U$39,$U$39*W47) -> 0 | AK47: =IF(R47=Inputs!$D$7,Z47*(SUM($AE$41:AE46)),W47*(SUM($AE$41:AE46))) -> 0 | AL47: 0 | AM47: 0 | AN47: =IF(AE47>0,SUM($AE$41:AE47)*Z47,0) -> 0 | AP47: =IF(AN47>0,MAX(1,R47-(MAX($AO$41:AO46))),0) -> 0 | AQ47: 0 | AR47: 0 | AS47: 0 | AT47: 0
R48: 8 | S48: =IF(R48>Inputs!$D$7,0,Z47) -> 0 | T48: =L52 -> 0 | U48: 0 | V48: =L54+L55 -> 0 | W48: 0 | X48: 0 | Y48: 0 | Z48: 0 | AA48: 0 | AB48: =IF(R48>Inputs!$D$7,0,((S48-W48)*$S$39)+(MAX(0,AC47*AF48))) -> 0 | AC48: 0 | AD48: 0 | AE48: 0 | AF48: =IF(R48>Inputs!$D$7,0,IF(Z48=0,0,Z48/S48)) -> 0 | AG48: =IF(R48=Inputs!$D$7,(U48-$U$39)*Z48,(U48-$U$39)*W48) -> 0 | AH48: =IF(R48=Inputs!$D$7,Bonds!T48,W48*U48) -> 0 | AI48: =IF(R48=Inputs!$D$7,Z48*(SUM($AD$41:AD48)),W48*(SUM($AD$41:AD47))) -> 0 | AJ48: =IF(R48=Inputs!$D$7,Z48*Bonds!$U$39,$U$39*W48) -> 0 | AK48: =IF(R48=Inputs!$D$7,Z48*(SUM($AE$41:AE47)),W48*(SUM($AE$41:AE47))) -> 0 | AL48: 0 | AM48: 0 | AN48: =IF(AE48>0,SUM($AE$41:AE48)*Z48,0) -> 0 | AP48: =IF(AN48>0,MAX(1,R48-(MAX($AO$41:AO47))),0) -> 0 | AQ48: 0 | AR48: 0 | AS48: 0 | AT48: 0
D49: Amt | E49: =E43*$B$16 -> 0 | F49: 0 | G49: 0 | H49: 0 | I49: 0 | J49: 0 | K49: 0 | L49: 0 | M49: 0 | N49: 0 | R49: 9 | S49: =IF(R49>Inputs!$D$7,0,Z48) -> 0 | T49: =M52 -> 0 | U49: 0 | V49: =M54+M55 -> 0 | W49: 0 | X49: 0 | Y49: 0 | Z49: 0 | AA49: 0 | AB49: =IF(R49>Inputs!$D$7,0,((S49-W49)*$S$39)+(MAX(0,AC48*AF49))) -> 0 | AC49: 0 | AD49: 0 | AE49: 0 | AF49: =IF(R49>Inputs!$D$7,0,IF(Z49=0,0,Z49/S49)) -> 0 | AG49: =IF(R49=Inputs!$D$7,(U49-$U$39)*Z49,(U49-$U$39)*W49) -> 0 | AH49: =IF(R49=Inputs!$D$7,Bonds!T49,W49*U49) -> 0 | AI49: =IF(R49=Inputs!$D$7,Z49*(SUM($AD$41:AD49)),W49*(SUM($AD$41:AD48))) -> 0 | AJ49: =IF(R49=Inputs!$D$7,Z49*Bonds!$U$39,$U$39*W49) -> 0 | AK49: =IF(R49=Inputs!$D$7,Z49*(SUM($AE$41:AE48)),W49*(SUM($AE$41:AE48))) -> 0 | AL49: 0 | AM49: 0 | AN49: =IF(AE49>0,SUM($AE$41:AE49)*Z49,0) -> 0 | AP49: =IF(AN49>0,MAX(1,R49-(MAX($AO$41:AO48))),0) -> 0 | AQ49: 0 | AR49: 0 | AS49: 0 | AT49: 0
R50: =R49+1 -> 10 | S50: =IF(R50>Inputs!$D$7,0,Z49) -> 0 | T50: =N52 -> 0 | U50: 0 | V50: =N54+N55 -> 0 | W50: 0 | X50: 0 | Y50: 0 | Z50: 0 | AA50: 0 | AB50: =IF(R50>Inputs!$D$7,0,((S50-W50)*$S$39)+(MAX(0,AC49*AF50))) -> 0 | AC50: 0 | AD50: 0 | AE50: 0 | AF50: =IF(R50>Inputs!$D$7,0,IF(Z50=0,0,Z50/S50)) -> 0 | AG50: =IF(R50=Inputs!$D$7,(U50-$U$39)*Z50,(U50-$U$39)*W50) -> 0 | AH50: =IF(R50=Inputs!$D$7,Bonds!T50,W50*U50) -> 0 | AI50: =IF(R50=Inputs!$D$7,Z50*(SUM($AD$41:AD50)),W50*(SUM($AD$41:AD49))) -> 0 | AJ50: =IF(R50=Inputs!$D$7,Z50*Bonds!$U$39,$U$39*W50) -> 0 | AK50: =IF(R50=Inputs!$D$7,Z50*(SUM($AE$41:AE49)),W50*(SUM($AE$41:AE49))) -> 0 | AL50: 0 | AM50: 0 | AN50: =IF(AE50>0,SUM($AE$41:AE50)*Z50,0) -> 0 | AP50: =IF(AN50>0,MAX(1,R50-(MAX($AO$41:AO49))),0) -> 0 | AQ50: 0 | AR50: 0 | AS50: 0 | AT50: 0
D51: =D20 -> End Year Value (excl wrapper charge) | E51: =SUM(E43:E49) -> 0 | F51: =SUM(F43:F49) -> 0 | G51: 0 | H51: 0 | I51: 0 | J51: 0 | K51: 0 | L51: 0 | M51: 0 | N51: 0
D52: =D21 -> End Year Value (inc wrapper charge) | E52: =E51*(1-Inputs!$Q$10) -> 0 | F52: =F51*(1-Inputs!$Q$10) -> 0 | G52: =G51*(1-Inputs!$Q$10) -> 0 | H52: =H51*(1-Inputs!$Q$10) -> 0 | I52: =I51*(1-Inputs!$Q$10) -> 0 | J52: =J51*(1-Inputs!$Q$10) -> 0 | K52: =K51*(1-Inputs!$Q$10) -> 0 | L52: =L51*(1-Inputs!$Q$10) -> 0 | M52: =M51*(1-Inputs!$Q$10) -> 0 | N52: =N51*(1-Inputs!$Q$10) -> 0
D53: Tax Deferred Allowance | E53: =E43*5% -> 0 | F53: =E53 -> 0 | G53: =F53 -> 0 | H53: 0 | I53: 0 | J53: 0 | K53: 0 | L53: 0 | M53: 0 | N53: 0
D54: ISA Allowance | E54: =IF(Inputs!$D$7<=Bonds!E42,0,IF(Inputs!$D$12="Yes",IF(E52<'Parameters_Inc Calcs'!$C$13,E52,'Parameters_Inc Calcs'!$C$13),0)) -> 0 | F54: =IF(Inputs!$D$7<=Bonds!F42,0,IF(Inputs!$D$12="Yes",IF(F52<'Parameters_Inc Calcs'!$C$13,F52,'Parameters_Inc Calcs'!$C$13),0)) -> 0 | G54: =IF(Inputs!$D$7<=Bonds!G42,0,IF(Inputs!$D$12="Yes",IF(G52<'Parameters_Inc Calcs'!$C$13,G52,'Parameters_Inc Calcs'!$C$13),0)) -> 0 | H54: =IF(Inputs!$D$7<=Bonds!H42,0,IF(Inputs!$D$12="Yes",IF(H52<'Parameters_Inc Calcs'!$C$13,H52,'Parameters_Inc Calcs'!$C$13),0)) -> 0 | I54: =IF(Inputs!$D$7<=Bonds!I42,0,IF(Inputs!$D$12="Yes",IF(I52<'Parameters_Inc Calcs'!$C$13,I52,'Parameters_Inc Calcs'!$C$13),0)) -> 0 | J54: =IF(Inputs!$D$7<=Bonds!J42,0,IF(Inputs!$D$12="Yes",IF(J52<'Parameters_Inc Calcs'!$C$13,J52,'Parameters_Inc Calcs'!$C$13),0)) -> 0 | K54: =IF(Inputs!$D$7<=Bonds!K42,0,IF(Inputs!$D$12="Yes",IF(K52<'Parameters_Inc Calcs'!$C$13,K52,'Parameters_Inc Calcs'!$C$13),0)) -> 0 | L54: =IF(Inputs!$D$7<=Bonds!L42,0,IF(Inputs!$D$12="Yes",IF(L52<'Parameters_Inc Calcs'!$C$13,L52,'Parameters_Inc Calcs'!$C$13),0)) -> 0 | M54: =IF(Inputs!$D$7<=Bonds!M42,0,IF(Inputs!$D$12="Yes",IF(M52<'Parameters_Inc Calcs'!$C$13,M52,'Parameters_Inc Calcs'!$C$13),0)) -> 0 | N54: =IF(Inputs!$D$7<=Bonds!N42,0,IF(Inputs!$D$12="Yes",IF(N52<'Parameters_Inc Calcs'!$C$13,N52,'Parameters_Inc Calcs'!$C$13),0)) -> 0 | O54: Total W/d
D55: Specified wd | E55: =IF(E42>=Inputs!$D$7,0,IF(Inputs!$D$13="",0,MIN(Inputs!$D$13,Bonds!E52-Bonds!E54))) -> 0 | F55: =IF(F42>=Inputs!$D$7,0,IF(Inputs!$D$13="",0,MIN(Inputs!$D$13,Bonds!F52-Bonds!F54))) -> 0 | G55: =IF(G42>=Inputs!$D$7,0,IF(Inputs!$D$13="",0,MIN(Inputs!$D$13,Bonds!G52-Bonds!G54))) -> 0 | H55: =IF(H42>=Inputs!$D$7,0,IF(Inputs!$D$13="",0,MIN(Inputs!$D$13,Bonds!H52-Bonds!H54))) -> 0 | I55: =IF(I42>=Inputs!$D$7,0,IF(Inputs!$D$13="",0,MIN(Inputs!$D$13,Bonds!I52-Bonds!I54))) -> 0 | J55: =IF(J42>=Inputs!$D$7,0,IF(Inputs!$D$13="",0,MIN(Inputs!$D$13,Bonds!J52-Bonds!J54))) -> 0 | K55: =IF(K42>=Inputs!$D$7,0,IF(Inputs!$D$13="",0,MIN(Inputs!$D$13,Bonds!K52-Bonds!K54))) -> 0 | L55: =IF(L42>=Inputs!$D$7,0,IF(Inputs!$D$13="",0,MIN(Inputs!$D$13,Bonds!L52-Bonds!L54))) -> 0 | M55: =IF(M42>=Inputs!$D$7,0,IF(Inputs!$D$13="",0,MIN(Inputs!$D$13,Bonds!M52-Bonds!M54))) -> 0 | N55: =IF(N42>=Inputs!$D$7,0,IF(Inputs!$D$13="",0,MIN(Inputs!$D$13,Bonds!N52-Bonds!N54))) -> 0 | O55: =SUM(E55:N55) -> 0
D56: IN year Gain | E56: =IF(AND(E53<(E54+E55),E59>0),(E54+E55)-E53,0) -> 0 | F56: =IF(AND(F53<(F54+F55),F59>0),(F54+F55)-F53,0) -> 0 | G56: 0 | H56: 0 | I56: 0 | J56: 0 | K56: 0 | L56: 0 | M56: 0 | N56: 0
D57: Gain on full surrender if bond depletes | E57: =IF(AND(E59=0,D59>0,E6=FALSE),((E52+(SUM(D$54:$E55)))-($E$43+(SUM(D$56:$E56)))),0) -> 0 | F57: =IF(AND(F59=0,E59>0,F6=FALSE),((F52+(SUM(E$54:$E55)))-($E$43+(SUM(E$56:$E56)))),0) -> 0 | G57: =IF(AND(G59=0,F59>0,G6=FALSE),((G52+(SUM($E$54:F55)))-($E$43+(SUM($E$56:F56)))),0) -> 0 | H57: =IF(AND(H59=0,G59>0,H6=FALSE),((H52+(SUM($E$54:G55)))-($E$43+(SUM($E$56:G56)))),0) -> 0 | I57: =IF(AND(I59=0,H59>0,I6=FALSE),((I52+(SUM($E$54:H55)))-($E$43+(SUM($E$56:H56)))),0) -> 0 | J57: =IF(AND(J59=0,I59>0,J6=FALSE),((J52+(SUM($E$54:I55)))-($E$43+(SUM($E$56:I56)))),0) -> 0 | K57: =IF(AND(K59=0,J59>0,K6=FALSE),((K52+(SUM($E$54:J55)))-($E$43+(SUM($E$56:J56)))),0) -> 0 | L57: =IF(AND(L59=0,K59>0,L6=FALSE),((L52+(SUM($E$54:K55)))-($E$43+(SUM($E$56:K56)))),0) -> 0 | M57: =IF(AND(M59=0,L59>0,M6=FALSE),((M52+(SUM($E$54:L55)))-($E$43+(SUM($E$56:L56)))),0) -> 0 | N57: =IF(AND(N59=0,M59>0,N6=FALSE),((N52+(SUM($E$54:M55)))-($E$43+(SUM($E$56:M56)))),0) -> 0
D58: Gain on full surrender if end of term | E58: =IF(AND(Bonds!E52>0,E7=Inputs!$D$7),(E52+(SUM(D$54:$E55)))-($E$43+(SUM(D$56:$E56))),0) -> 0 | F58: =IF(AND(Bonds!F52>0,F7=Inputs!$D$7),(F52+(SUM(E$54:$E55)))-($E$43+(SUM(E$56:$E56))),0) -> 0 | G58: =IF(AND(Bonds!G52>0,G7=Inputs!$D$7),(G52+(SUM($E$54:F55)))-($E$43+(SUM($E$56:F56))),0) -> 0 | H58: =IF(AND(Bonds!H52>0,H7=Inputs!$D$7),(H52+(SUM($E$54:G55)))-($E$43+(SUM($E$56:G56))),0) -> 0 | I58: =IF(AND(Bonds!I52>0,I7=Inputs!$D$7),(I52+(SUM($E$54:H55)))-($E$43+(SUM($E$56:H56))),0) -> 0 | J58: =IF(AND(Bonds!J52>0,J7=Inputs!$D$7),(J52+(SUM($E$54:I55)))-($E$43+(SUM($E$56:I56))),0) -> 0 | K58: =IF(AND(Bonds!K52>0,K7=Inputs!$D$7),(K52+(SUM($E$54:J55)))-($E$43+(SUM($E$56:J56))),0) -> 0 | L58: =IF(AND(Bonds!L52>0,L7=Inputs!$D$7),(L52+(SUM($E$54:K55)))-($E$43+(SUM($E$56:K56))),0) -> 0 | M58: =IF(AND(Bonds!M52>0,M7=Inputs!$D$7),(M52+(SUM($E$54:L55)))-($E$43+(SUM($E$56:L56))),0) -> 0 | N58: =IF(AND(Bonds!N52>0,N7=Inputs!$D$7),(N52+(SUM($E$54:M55)))-($E$43+(SUM($E$56:M56))),0) -> 0 | O58: =MAX(E58:N58) -> 0
D59: Year end after ISA | E59: =E52-E54-E55 -> 0 | F59: =F52-F54-F55 -> 0 | G59: =G52-G54-G55 -> 0 | H59: 0 | I59: 0 | J59: 0 | K59: 0 | L59: 0 | M59: 0 | N59: 0 | O59: =IF(Inputs!D7="",0,HLOOKUP(Inputs!$D$7,$E$42:$N$64,18,FALSE)) -> 0
D61: Gain | E61: =SUM(E56:E58) -> 0 | F61: =SUM(F56:F58) -> 0 | G61: 0 | H61: 0 | I61: 0 | J61: 0 | K61: 0 | L61: 0 | M61: 0 | N61: 0 | O61: =IF(Inputs!D7="",0,HLOOKUP(Inputs!$D$7,$E$42:$N$64,20,FALSE)) -> 0
D62: Year of Excess | E62: =IF(E56>0,E42,"") ->  | F62: =IF(F56>0,F42,"") ->  | G62: =IF(G56>0,G42,"") ->  | H62: =IF(H56>0,H42,"") ->  | I62: =IF(I56>0,I42,"") ->  | J62: =IF(J56>0,J42,"") -> 
D63: Years for slicing | E63: =IF((E57+E58)<>0,E42,IF(E56>0,MAX(1,E42-(MAX($E$62:E62))),0)) -> 0 | F63: =IF((F57+F58)<>0,F42,IF(F56>0,MAX(1,F42-(MAX($E$62:F62))),0)) -> 0 | G63: =IF((G57+G58)<>0,G42,IF(G56>0,MAX(1,G42-(MAX($E$62:G62))),0)) -> 0 | H63: =IF((H57+H58)<>0,H42,IF(H56>0,MAX(1,H42-(MAX($E$62:H62))),0)) -> 0 | I63: =IF((I57+I58)<>0,I42,IF(I56>0,MAX(1,I42-(MAX($E$62:I62))),0)) -> 0 | J63: =IF((J57+J58)<>0,J42,IF(J56>0,MAX(1,J42-(MAX($E$62:J62))),0)) -> 0 | K63: =IF((K57+K58)<>0,K42,IF(K56>0,MAX(1,K42-(MAX($E$62:K62))),0)) -> 0 | L63: =IF((L57+L58)<>0,L42,IF(L56>0,MAX(1,L42-(MAX($E$62:L62))),0)) -> 0 | M63: =IF((M57+M58)<>0,M42,IF(M56>0,MAX(1,M42-(MAX($E$62:M62))),0)) -> 0 | N63: =IF((N57+N58)<>0,N42,IF(N56>0,MAX(1,N42-(MAX($E$62:N62))),0)) -> 0 | O63: =HLOOKUP(Inputs!$D$7,$E$42:$N$64,22,FALSE) -> 
D64: Slice | E64: =IF(E57+E58>0,(E57+E58)/E42,IF(E56>0,E56/E63,0)) -> 0 | F64: =IF(F57+F58>0,(F57+F58)/F42,IF(F56>0,F56/F63,0)) -> 0 | G64: 0 | H64: 0 | I64: 0 | J64: 0 | K64: 0 | L64: 0 | M64: 0 | N64: 0 | O64: =HLOOKUP(Inputs!$D$7,$E$42:$N$64,22,FALSE) -> 
D68: Bond Gains to use for in year and surrender calcs
D69: Onshore
E70: =E42 -> 1 | F70: =F42 -> 2 | G70: 3 | H70: 4 | I70: 5 | J70: 6 | K70: 7 | L70: 8 | M70: 9 | N70: 10
D71: Gain | E71: =IF(Inputs!$D$14=Inputs!W5,Bonds!AR23,Bonds!E30) -> 0 | F71: =IF(Inputs!$D$14=Inputs!W5,Bonds!AR24,Bonds!F30) -> 0 | G71: =IF(Inputs!$D$14=Inputs!W5,Bonds!AR25,Bonds!G30) -> 0 | H71: =IF(Inputs!$D$14=Inputs!W5,Bonds!AR26,Bonds!H30) -> 0 | I71: =IF(Inputs!$D$14=Inputs!W5,Bonds!AR27,Bonds!I30) -> 0 | J71: =IF(Inputs!$D$14=Inputs!W5,Bonds!AR28,Bonds!J30) -> 0 | K71: =IF(Inputs!$D$14=Inputs!W5,Bonds!AR29,Bonds!K30) -> 0 | L71: =IF(Inputs!$D$14=Inputs!W5,Bonds!AR30,Bonds!L30) -> 0 | M71: =IF(Inputs!$D$14=Inputs!W5,Bonds!AR31,Bonds!M30) -> 0 | N71: =IF(Inputs!$D$14=Inputs!W5,Bonds!AR32,Bonds!N30) -> 0 | P71: =IF(Inputs!$D$7="",0,HLOOKUP(Inputs!$D$7,$E$70:$N$79,2,FALSE)) -> 0
D72: Slice | E72: =IF(Inputs!$D$14=Inputs!W5,Bonds!AS23,Bonds!E33) -> 0 | F72: =IF(Inputs!$D$14=Inputs!W5,Bonds!AS24,Bonds!F33) -> 0 | G72: =IF(Inputs!$D$14=Inputs!W5,Bonds!AS25,Bonds!G33) -> 0 | H72: =IF(Inputs!$D$14=Inputs!W5,Bonds!AS26,Bonds!H33) -> 0 | I72: =IF(Inputs!$D$14=Inputs!W5,Bonds!AS27,Bonds!I33) -> 0 | J72: =IF(Inputs!$D$14=Inputs!W5,Bonds!AS28,Bonds!J33) -> 0 | K72: =IF(Inputs!$D$14=Inputs!W5,Bonds!AS29,Bonds!K33) -> 0 | L72: =IF(Inputs!$D$14=Inputs!W5,Bonds!AS30,Bonds!L33) -> 0 | M72: =IF(Inputs!$D$14=Inputs!W5,Bonds!AS31,Bonds!M33) -> 0 | N72: =IF(Inputs!$D$14=Inputs!W5,Bonds!AS32,Bonds!N33) -> 0
D73: N | E73: =IF(Inputs!$D$14=Inputs!W5,Bonds!AT23,Bonds!E32) -> 0 | F73: =IF(Inputs!$D$14=Inputs!W5,Bonds!AT24,Bonds!F32) -> 0 | G73: =IF(Inputs!$D$14=Inputs!W5,Bonds!AT25,Bonds!G32) -> 0 | H73: =IF(Inputs!$D$14=Inputs!W5,Bonds!AT26,Bonds!H32) -> 0 | I73: =IF(Inputs!$D$14=Inputs!W5,Bonds!AT27,Bonds!I32) -> 0 | J73: =IF(Inputs!$D$14=Inputs!W5,Bonds!AT28,Bonds!J32) -> 0 | K73: =IF(Inputs!$D$14=Inputs!W5,Bonds!AT29,Bonds!K32) -> 0 | L73: =IF(Inputs!$D$14=Inputs!W5,Bonds!AT30,Bonds!L32) -> 0 | M73: =IF(Inputs!$D$14=Inputs!W5,Bonds!AT31,Bonds!M32) -> 0 | N73: =IF(Inputs!$D$14=Inputs!W5,Bonds!AT32,Bonds!N32) -> 0
D74: Deficiency previous gains? | E74: =IF(E71>=0,0,IF(Inputs!$D$14=Inputs!W5,SUM($AN$23:AN23),SUM($E$25:E25))) -> 0 | F74: =IF(F71>=0,0,IF(Inputs!$D$14=Inputs!W5,SUM($AN$23:AN24),SUM($E$25:F25))) -> 0 | G74: =IF(G71>=0,0,IF(Inputs!$D$14=Inputs!W5,SUM($AN$23:AN25),SUM($E$25:G25))) -> 0 | H74: =IF(H71>=0,0,IF(Inputs!$D$14=Inputs!W5,SUM($AN$23:AN26),SUM($E$25:H25))) -> 0 | I74: =IF(I71>=0,0,IF(Inputs!$D$14=Inputs!W5,SUM($AN$23:AN27),SUM($E$25:I25))) -> 0 | J74: =IF(J71>=0,0,IF(Inputs!$D$14=Inputs!W5,SUM($AN$23:AN28),SUM($E$25:J25))) -> 0 | K74: =IF(K71>=0,0,IF(Inputs!$D$14=Inputs!W5,SUM($AN$23:AN29),SUM($E$25:K25))) -> 0 | L74: =IF(L71>=0,0,IF(Inputs!$D$14=Inputs!W5,SUM(AM$23:AN30),SUM($E$25:L25))) -> 0 | M74: =IF(M71>=0,0,IF(Inputs!$D$14=Inputs!W5,SUM($AN$23:AN31),SUM($E$25:M25))) -> 0 | N74: =IF(N71>=0,0,IF(Inputs!$D$14=Inputs!W5,SUM($AN$23:AN32),SUM($E$25:N25))) -> 0 | O74: Total | P74: Laat year | Q74: Over term
D75: Tax | E75: ='Yr 1'!$AO$69 -> 0 | F75: ='Yr 2'!$AO$69 -> 0 | G75: ='Yr 3'!$AO$69 -> 0 | H75: ='Yr 4'!$AO$69 -> 0 | I75: ='Yr 5'!$AO$69 -> 0 | J75: ='Yr 6'!$AO$69 -> 0 | K75: ='Yr 7'!$AO$69 -> 0 | L75: ='Yr 8'!$AO$69 -> 0 | M75: ='Yr 9'!$AO$69 -> 0 | N75: ='Yr 10'!$AO$69 -> 0 | O75: =SUM(E75:N75) -> 0 | P75: =IF(Inputs!$D$7="",0,HLOOKUP(Inputs!$D$7,$E$70:$N$79,6,FALSE)) -> 0 | Q75: =O75-P75 -> 0
D77: ISA Investment | E77: =IF(AND(Inputs!$D$12="Yes",Inputs!$D$15="Yes"),'Parameters_Inc Calcs'!$C$13,0) -> 0 | F77: =E23 -> 0 | G77: 0 | H77: 0 | I77: 0 | J77: 0 | K77: 0 | L77: 0 | M77: 0 | N77: 0
D78: ISA Start of Year | E78: =E77 -> 0 | F78: =IF(F42>Inputs!$D$7,0,F77+E79) -> 0 | G78: =IF(G42>Inputs!$D$7,0,G77+F79) -> 0 | H78: =IF(H42>Inputs!$D$7,0,H77+G79) -> 0 | I78: =IF(I42>Inputs!$D$7,0,I77+H79) -> 0 | J78: =IF(J42>Inputs!$D$7,0,J77+I79) -> 0 | K78: =IF(K42>Inputs!$D$7,0,K77+J79) -> 0 | L78: =IF(L42>Inputs!$D$7,0,L77+K79) -> 0 | M78: =IF(M42>Inputs!$D$7,0,M77+L79) -> 0 | N78: =IF(N42>Inputs!$D$7,0,N77+M79) -> 0
D79: ISA End of Year | E79: =IF(E42>Inputs!$D$7,0,E78*(1+(SUM($B$43:$B$47)))) -> 0 | F79: =IF(F42>Inputs!$D$7,0,F78*(1+(SUM($B$43:$B$47)))) -> 0 | G79: =IF(G42>Inputs!$D$7,0,G78*(1+(SUM($B$43:$B$47)))) -> 0 | H79: =IF(H42>Inputs!$D$7,0,H78*(1+(SUM($B$43:$B$47)))) -> 0 | I79: =IF(I42>Inputs!$D$7,0,I78*(1+(SUM($B$43:$B$47)))) -> 0 | J79: =IF(J42>Inputs!$D$7,0,J78*(1+(SUM($B$43:$B$47)))) -> 0 | K79: =IF(K42>Inputs!$D$7,0,K78*(1+(SUM($B$43:$B$47)))) -> 0 | L79: =IF(L42>Inputs!$D$7,0,L78*(1+(SUM($B$43:$B$47)))) -> 0 | M79: =IF(M42>Inputs!$D$7,0,M78*(1+(SUM($B$43:$B$47)))) -> 0 | N79: =IF(N42>Inputs!$D$7,0,N78*(1+(SUM($B$43:$B$47)))) -> 0 | O79: =MAX(E79:N79) -> 0
C80: Full and partials only | D80: Segs W/d | E80: =W23 -> 0 | F80: =W24 -> 0 | G80: =W25 -> 0 | H80: =W26 -> 0 | I80: =W27 -> 0 | J80: =W28 -> 0 | K80: =W29 -> 0 | L80: =W30 -> 0 | M80: =W31 -> 0 | N80: =W32 -> 0
D81: Partial Taken | E81: =AA23 -> 0 | F81: =AA24 -> 0 | G81: =AA25 -> 0 | H81: =AA26 -> 0 | I81: =AA27 -> 0 | J81: =AA28 -> 0 | K81: =AA29 -> 0 | L81: =AA30 -> 0 | M81: =AA31 -> 0 | N81: =AA32 -> 0
D82: Year end value prior to w/d | E82: =E21 -> 0 | F82: =F21 -> 0 | G82: 0 | H82: 0 | I82: 0 | J82: 0 | K82: 0 | L82: 0 | M82: 0 | N82: 0
D83: Offshore
E84: =E7 -> 1 | F84: 2 | G84: 3 | H84: 4 | I84: 5 | J84: 6 | K84: 7 | L84: 8 | M84: 9 | N84: 10
D85: Gain | E85: =IF(Inputs!$D$14=Inputs!W5,Bonds!AR41,Bonds!E61) -> 0 | F85: =IF(Inputs!$D$14=Inputs!W5,Bonds!AR42,Bonds!F61) -> 0 | G85: =IF(Inputs!$D$14=Inputs!W5,Bonds!AR43,Bonds!G61) -> 0 | H85: =IF(Inputs!$D$14=Inputs!W5,Bonds!AR44,Bonds!H61) -> 0 | I85: =IF(Inputs!$D$14=Inputs!W5,Bonds!AR45,Bonds!I61) -> 0 | J85: =IF(Inputs!$D$14=Inputs!W5,Bonds!AR46,Bonds!J61) -> 0 | K85: =IF(Inputs!$D$14=Inputs!W5,Bonds!AR47,Bonds!K61) -> 0 | L85: =IF(Inputs!$D$14=Inputs!W5,Bonds!AR48,Bonds!L61) -> 0 | M85: =IF(Inputs!$D$14=Inputs!W5,Bonds!AR49,Bonds!M61) -> 0 | N85: =IF(Inputs!$D$14=Inputs!W5,Bonds!AR50,Bonds!N61) -> 0 | P85: =IF(Inputs!$D$7="",0,HLOOKUP(Inputs!$D$7,$E$84:$N$93,2,FALSE)) -> 0
D86: Slice | E86: =IF(Inputs!$D$14=Inputs!W5,Bonds!AS41,Bonds!E64) -> 0 | F86: =IF(Inputs!$D$14=Inputs!W5,Bonds!AS42,Bonds!F64) -> 0 | G86: =IF(Inputs!$D$14=Inputs!W5,Bonds!AS43,Bonds!G64) -> 0 | H86: =IF(Inputs!$D$14=Inputs!W5,Bonds!AS44,Bonds!H64) -> 0 | I86: =IF(Inputs!$D$14=Inputs!W5,Bonds!AS45,Bonds!I64) -> 0 | J86: =IF(Inputs!$D$14=Inputs!W5,Bonds!AS46,Bonds!J64) -> 0 | K86: =IF(Inputs!$D$14=Inputs!W5,Bonds!AS47,Bonds!K64) -> 0 | L86: =IF(Inputs!$D$14=Inputs!W5,Bonds!AS48,Bonds!L64) -> 0 | M86: =IF(Inputs!$D$14=Inputs!W5,Bonds!AS49,Bonds!M64) -> 0 | N86: =IF(Inputs!$D$14=Inputs!W5,Bonds!AS50,Bonds!N64) -> 0
D87: N | E87: =IF(Inputs!$D$14=Inputs!W5,Bonds!AT41,Bonds!E63) -> 0 | F87: =IF(Inputs!$D$14=Inputs!W5,Bonds!AT42,Bonds!F63) -> 0 | G87: =IF(Inputs!$D$14=Inputs!W5,Bonds!AT43,Bonds!G63) -> 0 | H87: =IF(Inputs!$D$14=Inputs!W5,Bonds!AT44,Bonds!H63) -> 0 | I87: =IF(Inputs!$D$14=Inputs!W5,Bonds!AT45,Bonds!I63) -> 0 | J87: =IF(Inputs!$D$14=Inputs!W5,Bonds!AT46,Bonds!J63) -> 0 | K87: =IF(Inputs!$D$14=Inputs!W5,Bonds!AT47,Bonds!K63) -> 0 | L87: =IF(Inputs!$D$14=Inputs!W5,Bonds!AT48,Bonds!L63) -> 0 | M87: =IF(Inputs!$D$14=Inputs!W5,Bonds!AT49,Bonds!M63) -> 0 | N87: =IF(Inputs!$D$14=Inputs!W5,Bonds!AT50,Bonds!N63) -> 0
D88: Deficiency previous gains? | E88: =IF(E85>=0,0,IF(Inputs!$D$14=Inputs!W5,SUM($AN$41:AN41),SUM($E$56:E56))) -> 0 | F88: =IF(F85>=0,0,IF(Inputs!$D$14=Inputs!W5,SUM($AN$41:AN42),SUM($E$56:F56))) -> 0 | G88: =IF(G85>=0,0,IF(Inputs!$D$14=Inputs!W5,SUM($AN$41:AN43),SUM($E$56:G56))) -> 0 | H88: =IF(H85>=0,0,IF(Inputs!$D$14=Inputs!W5,SUM($AN$41:AN44),SUM($E$56:H56))) -> 0 | I88: =IF(I85>=0,0,IF(Inputs!$D$14=Inputs!W5,SUM($AN$41:AN45),SUM($E$56:I56))) -> 0 | J88: =IF(J85>=0,0,IF(Inputs!$D$14=Inputs!W5,SUM($AN$41:AN46),SUM($E$56:J56))) -> 0 | K88: =IF(K85>=0,0,IF(Inputs!$D$14=Inputs!W5,SUM($AN$41:AN47),SUM($E$56:K56))) -> 0 | L88: =IF(L85>=0,0,IF(Inputs!$D$14=Inputs!W5,SUM($AN$41:AN48),SUM($E$56:L56))) -> 0 | M88: =IF(M85>=0,0,IF(Inputs!$D$14=Inputs!W5,SUM(AM$41:AN49),SUM($E$56:M56))) -> 0 | N88: =IF(N85>=0,0,IF(Inputs!$D$14=Inputs!W5,SUM($AN$41:AN50),SUM($E$56:N56))) -> 0 | O88: Total | P88: Laat year | Q88: Over term
D89: Tax | E89: ='Yr 1'!$BZ$69 -> 0 | F89: ='Yr 2'!$BZ$69 -> 0 | G89: ='Yr 3'!$BZ$69 -> 0 | H89: ='Yr 4'!$BZ$69 -> 0 | I89: ='Yr 5'!$BZ$69 -> 0 | J89: ='Yr 6'!$BZ$69 -> 0 | K89: ='Yr 7'!$BZ$69 -> 0 | L89: ='Yr 8'!$BZ$69 -> 0 | M89: ='Yr 9'!$BZ$69 -> 0 | N89: ='Yr 10'!$BZ$69 -> 0 | O89: =SUM(E89:N89) -> 0 | P89: =IF(Inputs!$D$7="",0,HLOOKUP(Inputs!$D$7,$E$84:$N$93,6,FALSE)) -> 0 | Q89: =O89-P89 -> 0
D91: ISA Investment | E91: =IF(AND(Inputs!$D$12="Yes",Inputs!$D$15="Yes"),'Parameters_Inc Calcs'!$C$13,0) -> 0 | F91: =E54 -> 0 | G91: =F54 -> 0 | H91: 0 | I91: 0 | J91: 0 | K91: 0 | L91: 0 | M91: 0 | N91: 0
D92: ISA Start of Year | E92: =E91 -> 0 | F92: =IF(F42>Inputs!$D$7,0,F91+E93) -> 0 | G92: =IF(G42>Inputs!$D$7,0,G91+F93) -> 0 | H92: =IF(H42>Inputs!$D$7,0,H91+G93) -> 0 | I92: =IF(I42>Inputs!$D$7,0,I91+H93) -> 0 | J92: =IF(J42>Inputs!$D$7,0,J91+I93) -> 0 | K92: =IF(K42>Inputs!$D$7,0,K91+J93) -> 0 | L92: =IF(L42>Inputs!$D$7,0,L91+K93) -> 0 | M92: =IF(M42>Inputs!$D$7,0,M91+L93) -> 0 | N92: =IF(N42>Inputs!$D$7,0,N91+M93) -> 0
D93: ISA End of Year | E93: =IF(E42>Inputs!$D$7,0,E92*(1+(SUM($B$43:$B$47)))) -> 0 | F93: =IF(F42>Inputs!$D$7,0,F92*(1+(SUM($B$43:$B$47)))) -> 0 | G93: =IF(G42>Inputs!$D$7,0,G92*(1+(SUM($B$43:$B$47)))) -> 0 | H93: =IF(H42>Inputs!$D$7,0,H92*(1+(SUM($B$43:$B$47)))) -> 0 | I93: =IF(I42>Inputs!$D$7,0,I92*(1+(SUM($B$43:$B$47)))) -> 0 | J93: =IF(J42>Inputs!$D$7,0,J92*(1+(SUM($B$43:$B$47)))) -> 0 | K93: =IF(K42>Inputs!$D$7,0,K92*(1+(SUM($B$43:$B$47)))) -> 0 | L93: =IF(L42>Inputs!$D$7,0,L92*(1+(SUM($B$43:$B$47)))) -> 0 | M93: =IF(M42>Inputs!$D$7,0,M92*(1+(SUM($B$43:$B$47)))) -> 0 | N93: =IF(N42>Inputs!$D$7,0,N92*(1+(SUM($B$43:$B$47)))) -> 0 | O93: =MAX(E93:N93) -> 0
D94: Segs W/d | E94: =W41 -> 0 | F94: =W42 -> 0 | G94: =W43 -> 0 | H94: =W44 -> 0 | I94: =W45 -> 0 | J94: =W46 -> 0 | K94: =W47 -> 0 | L94: =W48 -> 0 | M94: =W49 -> 0 | N94: =W50 -> 0
D95: Partial Taken | E95: =AA41 -> 0 | F95: =AA42 -> 0 | G95: =AA43 -> 0 | H95: =AA44 -> 0 | I95: =AA45 -> 0 | J95: =AA46 -> 0 | K95: =AA47 -> 0 | L95: =AA48 -> 0 | M95: =AA49 -> 0 | N95: =AA50 -> 0
D96: Year end value prior to w/d | E96: =E52 -> 0 | F96: =F52 -> 0 | G96: 0 | H96: 0 | I96: 0 | J96: 0 | K96: 0 | L96: 0 | M96: 0 | N96: 0

Sheet Yr 1 (hidden)
I1: Before for All Situations | P1: Collectives After | AF1: Onshore Bond After | BQ1: Offshore Bond After
I2: Before | AF2: Workings | AR2: Workings Top Slicing Full | AY2: Workings Top Slicing Slice | BF2: Slicing Calcs | BQ2: Workings | CC2: Workings Top Slicing Full | CJ2: Workings Top Slicing Slice | CQ2: Slicing Calcs
AF3: Full Bond Gain | AG3: =MAX(0,Bonds!E71) -> 0 | AY3: Slice | AZ3: =Bonds!E72 -> 0 | BQ3: Full Bond Gain | BR3: =MAX(0,Bonds!E85) -> 0 | CJ3: Slice | CK3: =Bonds!E86 -> 0
AF4: NSND in Year of encashment | AG4: =$D$14 -> 0 | AY4: NSND in Year of encashment | AZ4: =$D$14 -> 0 | BQ4: NSND in Year of encashment | BR4: =$D$14 -> 0 | CJ4: NSND in Year of encashment | CK4: =$D$14 -> 0
AF5: Savings in Year of encashment | AG5: =$D$15 -> 0 | AY5: Savings in Year of encashment | AZ5: =$D$15 -> 0 | BQ5: Savings in Year of encashment | BR5: =$D$15 -> 0 | CJ5: Savings in Year of encashment | CK5: =$D$15 -> 0
AF6: Dividend in Year of encashment | AG6: =$D$16 -> 0 | AY6: Dividend in Year of encashment | AZ6: =$D$16 -> 0 | BQ6: Dividend in Year of encashment | BR6: =$D$16 -> 0 | CJ6: Dividend in Year of encashment | CK6: =$D$16 -> 0
B7: Year | C7: 1 | D7: move year on 1 | I7: Allowances: | P7: Allowances: | AF7: Personal Allowance Adjustment | AG7: =IF((AG3+AG4+AG5+AG6)<'Parameters_Inc Calcs'!$C$3,0,MIN(F36,((AG3+AG4+AG5+AG6)-'Parameters_Inc Calcs'!$C$3)/2)) -> 0 | AI7: PA Lost | AY7: Personal Allowance Adjustment | AZ7: =IF((AZ3+AZ4+AZ5+AZ6)<'Parameters_Inc Calcs'!$C$3,0,MIN(F36,((AZ3+AZ4+AZ5+AZ6)-'Parameters_Inc Calcs'!$C$3)/2)) -> 0 | BQ7: Personal Allowance Adjustment | BR7: =IF((BR3+BR4+BR5+BR6)<'Parameters_Inc Calcs'!$C$3,0,MIN(F36,((BR3+BR4+BR5+BR6)-'Parameters_Inc Calcs'!$C$3)/2)) -> 0 | BT7: Personal Allowance Lost | CJ7: Personal Allowance Adjustment | CK7: =IF((CK3+CK4+CK5+CK6)<'Parameters_Inc Calcs'!$C$3,0,MIN(F36,((CK3+CK4+CK5+CK6)-'Parameters_Inc Calcs'!$C$3)/2)) -> 0
B8: Final Year | C8: =IF(C7=Inputs!D7,"Yes","No") -> No | I8: Pers_Allow_Adj | P8: Pers_Allow_Adj | T8: PA Lost | AF8: PA to Use | AG8: =D36-AG7 -> 12570 | AI8: =J9-AG8 -> 0 | AY8: PA to Use - Silver adjustment | AZ8: =F36-AZ7 -> 12570 | BQ8: PA to Use | BR8: =F36-BR7 -> 12570 | BT8: =J9-BR8 -> 0 | CJ8: PA to Use - Silver adjustment | CK8: =F36-CK7 -> 12570
B9: After Final Year | C9: =AND(C7>Inputs!D7) -> TRUE | I9: Tot_Pers_Allow | J9: =D27 -> 12570 | P9: Tot_Pers_Allow | Q9: =F27 -> 12570 | T9: =J9-Q9 -> 0 | AF9: Starter Rate to Use | AG9: =IF(AG4>AG8+'Parameters_Inc Calcs'!$C$12,0,MIN('Parameters_Inc Calcs'!$C$12,AG8+'Parameters_Inc Calcs'!$C$12-AG4)) -> 5000 | AY9: Starter Rate to Use -"gold" adjustment | AZ9: =IF(AZ4>AZ8+'Parameters_Inc Calcs'!$C$12,0,MIN('Parameters_Inc Calcs'!$C$12,AZ8+'Parameters_Inc Calcs'!$C$12-AZ4)) -> 5000 | BQ9: Starter Rate to Use | BR9: =IF(BR4>BR8+'Parameters_Inc Calcs'!$C$12,0,MIN('Parameters_Inc Calcs'!$C$12,BR8+'Parameters_Inc Calcs'!$C$12-BR4)) -> 5000 | CJ9: Starter Rate to Use -"gold" adjustment | CK9: =IF(CK4>CK8+'Parameters_Inc Calcs'!$C$12,0,MIN('Parameters_Inc Calcs'!$C$12,CK8+'Parameters_Inc Calcs'!$C$12-CK4)) -> 5000
B10: Investment | C10: =CGT!G12 -> 0 | D10: move col on 1 | I10: Pers_Sav_Allow | J10: =D45 -> 1000 | P10: Pers_Sav_Allow | Q10: =F45 -> 1000 | AF10: PSA to USE | AG10: =IF(SUM(AG3:AG6)>'Parameters_Inc Calcs'!$C$8,'Parameters_Inc Calcs'!$C$11,IF(SUM(AG3:AG6)>'Parameters_Inc Calcs'!$C$5,'Parameters_Inc Calcs'!$C$10,'Parameters_Inc Calcs'!$C$9)) -> 1000 | AY10: PSA to use - from full calc as no silver adjustment | AZ10: =IF(SUM(AZ3:AZ6)>'Parameters_Inc Calcs'!$C$8,'Parameters_Inc Calcs'!$C$11,IF(SUM(AZ3:AZ6)>'Parameters_Inc Calcs'!$C$5,'Parameters_Inc Calcs'!$C$10,'Parameters_Inc Calcs'!$C$9)) -> 1000 | BQ10: PSA to USE | BR10: =IF(SUM(BR3:BR6)>'Parameters_Inc Calcs'!$C$8,'Parameters_Inc Calcs'!$C$11,IF(SUM(BR3:BR6)>'Parameters_Inc Calcs'!$C$5,'Parameters_Inc Calcs'!$C$10,'Parameters_Inc Calcs'!$C$9)) -> 1000 | CJ10: PSA to use - "gold" adjustment | CK10: =IF(SUM(CK3:CK6)>'Parameters_Inc Calcs'!$C$8,'Parameters_Inc Calcs'!$C$11,IF(SUM(CK3:CK6)>'Parameters_Inc Calcs'!$C$5,'Parameters_Inc Calcs'!$C$10,'Parameters_Inc Calcs'!$C$9)) -> 1000
B11: Cum Gain | C11: =CGT!G17 -> 0 | D11: move col on 1
AP12: Difference to All before | CA12: Difference to All before
B13: Factor | C13: Before | E13: After | I13: Non Savings Income Apportionment | P13: Non Savings Income Apportionment | AF13: Non Savings Income Apportionment | AR13: Non Savings Income Apportionment | AY13: Non Savings Income Apportionment | BQ13: Non Savings Income Apportionment | CC13: Non Savings Income Apportionment | CJ13: Non Savings Income Apportionment
B14: 1 | C14: NSND | D14: =IF(OR($C$8="Yes",$C$9=TRUE),Inputs!I13,Inputs!I6*B14) -> 0 | E14: Total Income | F14: =IF(C8="Yes",Inputs!I13,D14) -> 0
B15: 1 | C15: Savings | D15: =IF(OR($C$8="Yes",$C$9=TRUE),Inputs!I14,Inputs!I7*B15) -> 0 | E15: Savings | F15: =IF(C8="Yes",Inputs!I14,D15) -> 0 | J15: Allowances | K15: Still to tax | L15: Used | M15: Unused | Q15: Allowances | R15: Still to tax | S15: Used | T15: Unused | W15: Before | X15: After | Y15: Amount | Z15: Rate | AA15: Add Tax | AG15: Allowances | AH15: Still to tax | AI15: Used | AJ15: Unused | AL15: Amount | AM15: Rate | AN15: Tax | AS15: Allowances | AT15: Still to tax | AU15: Used | AV15: Unused | AZ15: Allowances | BA15: Still to tax | BB15: Used | BC15: Unused | BJ15: Top Slicing | BR15: Allowances | BS15: Still to tax | BT15: Used | BU15: Unused | BW15: Amount | BX15: Rate | BY15: Tax | CD15: Allowances | CE15: Still to tax | CF15: Used | CG15: Unused | CK15: Allowances | CL15: Still to tax | CM15: Used | CN15: Unused | CU15: Top Slicing
B16: 1 | C16: Divi | D16: =IF(OR($C$8="Yes",$C$9=TRUE),Inputs!I15,Inputs!I8*B16) -> 0 | E16: Divi | F16: =IF(C8="Yes",Inputs!I15,D16) -> 0 | I16: Personal Allowance | J16: =J9 -> 12570 | K16: =D14 -> 0 | L16: =MIN(J16,K16) -> 0 | M16: =MAX(0,J16-L16) -> 12570 | P16: Personal Allowance | Q16: =Q9 -> 12570 | R16: =K16 -> 0 | S16: =MIN(Q16,R16) -> 0 | T16: =MAX(0,Q16-S16) -> 12570 | W16: =$L$16*Z16 -> 0 | X16: =S16*Z16 -> 0 | Y16: =S16-L16 -> 0 | Z16: 0 | AA16: =Y16*Z16 -> 0 | AF16: Personal Allowance | AG16: =AG8 -> 12570 | AH16: =AG4 -> 0 | AI16: =MIN(AG16,AH16) -> 0 | AJ16: =MAX(0,AG16-AI16) -> 12570 | AL16: =AI16 -> 0 | AM16: 0 | AN16: =AL16*AM16 -> 0 | AR16: Personal Allowance | AS16: =AG8 -> 12570 | AT16: =MAX(0,AG4) -> 0 | AU16: =MIN(AS16,AT16) -> 0 | AV16: =MAX(0,AS16-AU16) -> 12570 | AY16: Personal Allowance | AZ16: =AZ8 -> 12570 | BA16: =MAX(0,AZ4) -> 0 | BB16: =MIN(AZ16,BA16) -> 0 | BC16: =MAX(0,AZ16-BB16) -> 12570 | BQ16: Personal Allowance | BR16: =BR8 -> 12570 | BS16: =BR4 -> 0 | BT16: =MIN(BR16,BS16) -> 0 | BU16: =MAX(0,BR16-BT16) -> 12570 | BW16: =BT16 -> 0 | BX16: 0 | BY16: =BW16*BX16 -> 0 | CC16: Personal Allowance | CD16: =BR8 -> 12570 | CE16: =MAX(0,BR4) -> 0 | CF16: =MIN(CD16,CE16) -> 0 | CG16: =MAX(0,CD16-CF16) -> 12570 | CJ16: Personal Allowance | CK16: =CK8 -> 12570 | CL16: =MAX(0,CK4) -> 0 | CM16: =MIN(CK16,CL16) -> 0 | CN16: =MAX(0,CK16-CM16) -> 12570
B17: =Inputs!Q6 -> 0 | E17: New Savings | F17: =IF(C9=TRUE,0,C10*B17) -> 0 | I17: Basic Rate | J17: =$D$31 -> 37700 | K17: =MAX(0,K16-L16) -> 0 | L17: =MIN(J17,K17) -> 0 | M17: =MAX(0,J17-L17) -> 37700 | P17: Basic Rate | Q17: =$F$31 -> 37700 | R17: =MAX(0,R16-S16) -> 0 | S17: =MIN(Q17,R17) -> 0 | T17: =MAX(0,Q17-S17) -> 37700 | W17: =$L$17*Z17 -> 0 | X17: =S17*Z17 -> 0 | Y17: =S17-L17 -> 0 | Z17: ='Parameters_Inc Calcs'!$G$4 -> 0.2 | AA17: =Y17*Z17 -> 0 | AF17: Basic Rate | AG17: =D31 -> 37700 | AH17: =MAX(0,AH16-AI16) -> 0 | AI17: =MIN(AG17,AH17) -> 0 | AJ17: =MAX(0,AG17-AI17) -> 37700 | AL17: =AI17 -> 0 | AM17: ='Parameters_Inc Calcs'!$G$4 -> 0.2 | AN17: =AL17*AM17 -> 0 | AR17: Basic Rate | AS17: =F31 -> 37700 | AT17: =MAX(0,AT16-AU16) -> 0 | AU17: =MIN(AS17,AT17) -> 0 | AV17: =MAX(0,AS17-AU17) -> 37700 | AY17: Basic Rate | AZ17: =AS17 -> 37700 | BA17: =MAX(0,BA16-BB16) -> 0 | BB17: =MIN(AZ17,BA17) -> 0 | BC17: =MAX(0,AZ17-BB17) -> 37700 | BK17: Taxation of full gain | BL17: =AG3 -> 0 | BQ17: Basic Rate | BR17: =F31 -> 37700 | BS17: =MAX(0,BS16-BT16) -> 0 | BT17: =MIN(BR17,BS17) -> 0 | BU17: =MAX(0,BR17-BT17) -> 37700 | BW17: =BT17 -> 0 | BX17: ='Parameters_Inc Calcs'!$G$4 -> 0.2 | BY17: =BW17*BX17 -> 0 | CC17: Basic Rate | CD17: =BR17 -> 37700 | CE17: =MAX(0,CE16-CF16) -> 0 | CF17: =MIN(CD17,CE17) -> 0 | CG17: =MAX(0,CD17-CF17) -> 37700 | CJ17: Basic Rate | CK17: =CD17 -> 37700 | CL17: =MAX(0,CL16-CM16) -> 0 | CM17: =MIN(CK17,CL17) -> 0 | CN17: =MAX(0,CK17-CM17) -> 37700 | CV17: Taxation of full gain | CW17: =BR3 -> 0
B18: =Inputs!Q7 -> 0 | E18: New Divi | F18: =IF(C9=TRUE,0,C10*B18) -> 0 | I18: Higher Rate | J18: =$D$33 -> 87440 | K18: =MAX(0,K17-L17) -> 0 | L18: =MIN(J18,K18) -> 0 | M18: =MAX(0,J18-L18) -> 87440 | P18: Higher Rate | Q18: =$F$33 -> 87440 | R18: =MAX(0,R17-S17) -> 0 | S18: =MIN(Q18,R18) -> 0 | T18: =MAX(0,Q18-S18) -> 87440 | W18: =$L$18*Z18 -> 0 | X18: =S18*Z18 -> 0 | Y18: =S18-L18 -> 0 | Z18: ='Parameters_Inc Calcs'!$G$5 -> 0.4 | AA18: =Y18*Z18 -> 0 | AF18: Higher Rate | AG18: =F33 -> 87440 | AH18: =MAX(0,AH17-AI17) -> 0 | AI18: =MIN(AG18,AH18) -> 0 | AJ18: =MAX(0,AG18-AI18) -> 87440 | AL18: =AI18 -> 0 | AM18: ='Parameters_Inc Calcs'!$G$5 -> 0.4 | AN18: =AL18*AM18 -> 0 | AR18: Higher Rate | AS18: =F33 -> 87440 | AT18: =MAX(0,AT17-AU17) -> 0 | AU18: =MIN(AS18,AT18) -> 0 | AV18: =MAX(0,AS18-AU18) -> 87440 | AY18: Higher Rate | AZ18: =AS18 -> 87440 | BA18: =MAX(0,BA17-BB17) -> 0 | BB18: =MIN(AZ18,BA18) -> 0 | BC18: =MAX(0,AZ18-BB18) -> 87440 | BO18: Tax | BQ18: Higher Rate | BR18: =F33 -> 87440 | BS18: =MAX(0,BS17-BT17) -> 0 | BT18: =MIN(BR18,BS18) -> 0 | BU18: =MAX(0,BR18-BT18) -> 87440 | BW18: =BT18 -> 0 | BX18: ='Parameters_Inc Calcs'!$G$5 -> 0.4 | BY18: =BW18*BX18 -> 0 | CC18: Higher Rate | CD18: =BR18 -> 87440 | CE18: =MAX(0,CE17-CF17) -> 0 | CF18: =MIN(CD18,CE18) -> 0 | CG18: =MAX(0,CD18-CF18) -> 87440 | CJ18: Higher Rate | CK18: =CD18 -> 87440 | CL18: =MAX(0,CL17-CM17) -> 0 | CM18: =MIN(CK18,CL18) -> 0 | CN18: =MAX(0,CK18-CM18) -> 87440 | CZ18: Tax
C19: ANI | D19: =SUM(D14:D18) -> 0 | E19: ANI | F19: =SUM(F14:F18) -> 0 | I19: Additional Rate | K19: =MAX(0,K18-L18) -> 0 | L19: =K19 -> 0 | M19: NA | P19: Additional Rate | R19: =MAX(0,R18-S18) -> 0 | S19: =R19 -> 0 | T19: NA | W19: =$L$19*Z19 -> 0 | X19: =S19*Z19 -> 0 | Y19: =S19-L19 -> 0 | Z19: ='Parameters_Inc Calcs'!$G$8 -> 0.45 | AA19: =Y19*Z19 -> 0 | AF19: Additional Rate | AH19: =MAX(0,AH18-AI18) -> 0 | AI19: =MIN(AG19,AH19) -> 0 | AJ19: NA | AL19: =AI19 -> 0 | AM19: ='Parameters_Inc Calcs'!$G$8 -> 0.45 | AN19: =AL19*AM19 -> 0 | AO19: =SUM(AN16:AN19) -> 0 | AP19: =AO19-W20 -> 0 | AR19: Additional Rate | AT19: =MAX(0,AT18-AU18) -> 0 | AU19: =MIN(AS19,AT19) -> 0 | AY19: Additional Rate | BA19: =MAX(0,BA18-BB18) -> 0 | BB19: =MIN(AZ19,BA19) -> 0 | BJ19: Step 1 | BK19: Personal Allowance | BL19: =AU50 -> 0 | BM19: @ | BN19: =AM25 -> 0 | BO19: =BL19*BN19 -> 0 | BQ19: Additional Rate | BS19: =MAX(0,BS18-BT18) -> 0 | BT19: =MIN(BR19,BS19) -> 0 | BU19: NA | BW19: =BT19 -> 0 | BX19: ='Parameters_Inc Calcs'!$G$8 -> 0.45 | BY19: =BW19*BX19 -> 0 | BZ19: =SUM(BY16:BY19) -> 0 | CA19: =BZ19-W20 -> 0 | CC19: Additional Rate | CE19: =MAX(0,CE18-CF18) -> 0 | CF19: =MIN(CD19,CE19) -> 0 | CJ19: Additional Rate | CL19: =MAX(0,CL18-CM18) -> 0 | CM19: =MIN(CK19,CL19) -> 0 | CU19: Step 1 | CV19: Personal Allowance | CW19: =CF50 -> 0 | CX19: @ | CY19: =BX25 -> 0 | CZ19: =CW19*CY19 -> 0
W20: =SUM(W16:W19) -> 0 | X20: =SUM(X16:X19) -> 0 | AA20: =SUM(AA16:AA19) -> 0 | BK20: Starting Rate | BL20: 0 | BM20: @ | BN20: =AM23 -> 0 | BO20: 0 | CV20: Starting Rate | CW20: 0 | CX20: @ | CY20: =BX23 -> 0 | CZ20: 0
E21: New Gain | F21: =CGT!G16 -> 0 | I21: Savings Income Tax Band Apportionment | P21: Savings Income Tax Band Apportionment | AF21: Savings Income Tax Band Apportionment | AR21: Savings Income Tax Band Apportionment | AY21: Savings Income Tax Band Apportionment | BK21: Personal Savings Allowance | BL21: 0 | BM21: @ | BN21: =AM25 -> 0 | BO21: 0 | BQ21: Savings Income Tax Band Apportionment | CC21: Savings Income Tax Band Apportionment | CJ21: Savings Income Tax Band Apportionment | CV21: Personal Savings Allowance | CW21: 0 | CX21: @ | CY21: =BX25 -> 0 | CZ21: 0
J22: Allowances | K22: Still to tax | L22: Used | M22: Unused | Q22: Allowances | R22: Still to tax | S22: Used | T22: Unused | W22: Before | X22: After | Y22: Amount | Z22: Rate | AA22: Add Tax | AG22: Allowances | AH22: Still to tax | AI22: Used | AJ22: Unused | AL22: Amount | AM22: Rate | AN22: Tax | AS22: Allowances | AT22: Still to tax | AU22: Used | AV22: Unused | BK22: Basic Rate | BL22: 0 | BM22: @ | BN22: 0.2 | BO22: 0 | BR22: Allowances | BS22: Still to tax | BT22: Used | BU22: Unused | BW22: Amount | BX22: Rate | BY22: Tax | CD22: Allowances | CE22: Still to tax | CF22: Used | CG22: Unused | CV22: Basic Rate | CW22: 0 | CX22: @ | CY22: 0.2 | CZ22: 0
C23: ANI Limit | D23: ='Parameters_Inc Calcs'!$C$3 -> 100000 | E23: ANI Limit | F23: ='Parameters_Inc Calcs'!$C$3 -> 100000 | I23: Starting Rate | J23: =$D$43 -> 5000 | K23: =D15 -> 0 | L23: =MIN(J23,K23) -> 0 | M23: =MAX(0,J23-L23) -> 5000 | P23: Starting Rate | Q23: =$F$43 -> 5000 | R23: =F15+F17 -> 0 | S23: =MIN(Q23,R23) -> 0 | T23: =MAX(0,Q23-S23) -> 5000 | W23: =$L$23*Z23 -> 0 | X23: =S23*Z23 -> 0 | Y23: =S23-L23 -> 0 | Z23: 0 | AA23: =Y23*Z23 -> 0 | AF23: Starting Rate | AG23: =AG9 -> 5000 | AH23: =AG5 -> 0 | AI23: =MIN(AG23,AH23) -> 0 | AJ23: =MAX(0,AG23-AI23) -> 5000 | AL23: =AI23 -> 0 | AM23: 0 | AN23: =AL23*AM23 -> 0 | AR23: Personal Allowance | AS23: =AV16 -> 12570 | AT23: =AG5 -> 0 | AU23: =MIN(AS23,AT23) -> 0 | AV23: =MAX(0,AS23-AU23) -> 12570 | AY23: Personal Allowance | AZ23: =BC16 -> 12570 | BA23: =AZ5 -> 0 | BB23: =MIN(AZ23,BA23) -> 0 | BC23: =MAX(0,AZ23-BB23) -> 12570 | BK23: Higher Rate | BL23: 0 | BM23: @ | BN23: 0.4 | BO23: =BL23*BN23 -> 0 | BQ23: Starting Rate | BR23: =BR9 -> 5000 | BS23: =BR5 -> 0 | BT23: =MIN(BR23,BS23) -> 0 | BU23: =MAX(0,BR23-BT23) -> 5000 | BW23: =BT23 -> 0 | BX23: 0 | BY23: =BW23*BX23 -> 0 | CC23: Personal Allowance | CD23: =CG16 -> 12570 | CE23: =BR5 -> 0 | CF23: =MIN(CD23,CE23) -> 0 | CG23: =MAX(0,CD23-CF23) -> 12570 | CJ23: Personal Allowance | CK23: =CN16 -> 12570 | CL23: =CK5 -> 0 | CM23: =MIN(CK23,CL23) -> 0 | CN23: =MAX(0,CK23-CM23) -> 12570 | CV23: Higher Rate | CW23: 0 | CX23: @ | CY23: 0.4 | CZ23: =CW23*CY23 -> 0
C24: ANI Excess | D24: =MAX(0,D19-D23) -> 0 | E24: ANI Excess | F24: =MAX(0,F19-F23) -> 0 | I24: Personal Savings Allowance | J24: =D45 -> 1000 | K24: =MAX(0,K23-L23) -> 0 | L24: 0 | M24: =MAX(0,J24-L24) -> 1000 | N24: Higher Rate Adjustment for PSA and SRS Bands | P24: Personal Savings Allowance | Q24: =$F$45 -> 1000 | R24: =MAX(0,R23-S23) -> 0 | S24: 0 | T24: =MAX(0,Q24-S24) -> 1000 | U24: Higher Rate Adjustment for PSA and SRS Bands | W24: =$L$24*Z24 -> 0 | X24: 0 | Y24: 0 | Z24: 0 | AA24: 0 | AF24: Personal Savings Allowance | AG24: =AG10 -> 1000 | AH24: =MAX(0,AH23-AI23) -> 0 | AI24: 0 | AJ24: =MAX(0,AG24-AI24) -> 1000 | AL24: 0 | AM24: 0 | AN24: 0 | AR24: Starting Rate | AS24: =AG9 -> 5000 | AT24: =MAX(0,AT23-AU23) -> 0 | AU24: 0 | AV24: =MAX(0,AS24-AU24) -> 5000 | AY24: Starting Rate | AZ24: =AZ9 -> 5000 | BA24: =MAX(0,BA23-BB23) -> 0 | BB24: 0 | BC24: =MAX(0,AZ24-BB24) -> 5000 | BK24: Additional Rate | BL24: 0 | BM24: @ | BN24: 0.45 | BO24: 0 | BQ24: Personal Savings Allowance | BR24: =BR10 -> 1000 | BS24: =MAX(0,BS23-BT23) -> 0 | BT24: 0 | BU24: =MAX(0,BR24-BT24) -> 1000 | BW24: 0 | BX24: 0 | BY24: 0 | CC24: Starting Rate | CD24: =BR9 -> 5000 | CE24: =MAX(0,CE23-CF23) -> 0 | CF24: 0 | CG24: =MAX(0,CD24-CF24) -> 5000 | CJ24: Starting Rate | CK24: =CK9 -> 5000 | CL24: =MAX(0,CL23-CM23) -> 0 | CM24: 0 | CN24: =MAX(0,CK24-CM24) -> 5000 | CV24: Additional Rate | CW24: 0 | CX24: @ | CY24: 0.45 | CZ24: =CW24*CY24 -> 0
C25: PA adjustment | D25: =D24/2 -> 0 | E25: PA adjustment | F25: =F24/2 -> 0 | I25: Personal Allowance | J25: =M16 -> 12570 | K25: =MAX(0,K24-L24) -> 0 | L25: 0 | M25: =MAX(0,J25-L25) -> 12570 | P25: Personal Allowance | Q25: =T16 -> 12570 | R25: =MAX(0,R24-S24) -> 0 | S25: 0 | T25: =MAX(0,Q25-S25) -> 12570 | W25: =$L$25*Z25 -> 0 | X25: 0 | Y25: 0 | Z25: 0 | AA25: 0 | AF25: Personal Allowance | AG25: =AJ16 -> 12570 | AH25: =MAX(0,AH24-AI24) -> 0 | AI25: 0 | AJ25: =MAX(0,AG25-AI25) -> 12570 | AL25: 0 | AM25: 0 | AN25: 0 | AR25: Personal Savings Allowance | AS25: =AG10 -> 1000 | AT25: =MAX(0,AT24-AU24) -> 0 | AU25: 0 | AV25: =MAX(0,AS25-AU25) -> 1000 | AY25: Personal Savings Allowance | AZ25: =AZ10 -> 1000 | BA25: =MAX(0,BA24-BB24) -> 0 | BB25: 0 | BC25: =MAX(0,AZ25-BB25) -> 1000 | BK25: Total Liability | BO25: =SUM(BO19:BO24) -> 0 | BQ25: Personal Allowance | BR25: =BU16 -> 12570 | BS25: =MAX(0,BS24-BT24) -> 0 | BT25: 0 | BU25: =MAX(0,BR25-BT25) -> 12570 | BW25: 0 | BX25: 0 | BY25: 0 | CC25: Personal Savings Allowance | CD25: =BR10 -> 1000 | CE25: =MAX(0,CE24-CF24) -> 0 | CF25: 0 | CG25: =MAX(0,CD25-CF25) -> 1000 | CJ25: Personal Savings Allowance | CK25: =CK10 -> 1000 | CL25: =MAX(0,CL24-CM24) -> 0 | CM25: 0 | CN25: =MAX(0,CK25-CM25) -> 1000 | CV25: Total Liability | CZ25: =SUM(CZ19:CZ24) -> 0
I26: Basic Rate | J26: =MAX(0,M17-SUM(L23:L24)) -> 37700 | K26: =MAX(0,K25-L25) -> 0 | L26: 0 | M26: =MAX(0,J26-L26) -> 37700 | P26: Basic Rate | Q26: =MAX(0,T17-SUM(S23:S24)) -> 37700 | R26: =MAX(0,R25-S25) -> 0 | S26: 0 | T26: =MAX(0,Q26-S26) -> 37700 | W26: =$L$26*Z26 -> 0 | X26: 0 | Y26: 0 | Z26: 0.2 | AA26: 0 | AC26: Investment income | AD26: =Y29+Y47 -> 0 | AF26: Basic Rate | AG26: =MAX(0,AJ17-SUM(AI23:AI24)) -> 37700 | AH26: =MAX(0,AH25-AI25) -> 0 | AI26: 0 | AJ26: =MAX(0,AG26-AI26) -> 37700 | AK26: =MIN(AJ18,MAX(0,AI24-AJ17)) -> 0 | AL26: 0 | AM26: 0.2 | AN26: 0 | AR26: Basic Rate | AS26: =MAX(0,AV17-SUM(AU24:AU25)) -> 37700 | AT26: =MAX(0,AT25-AU25) -> 0 | AU26: 0 | AV26: =MAX(0,AS26-AU26) -> 37700 | AY26: Basic Rate | AZ26: =MAX(0,BC17-SUM(BB24:BB25)) -> 37700 | BA26: =MAX(0,BA25-BB25) -> 0 | BB26: 0 | BC26: =MAX(0,AZ26-BB26) -> 37700 | BJ26: Step 2 | BK26: Tax Credit | BO26: =(BL17-BL19)*BN22 -> 0 | BQ26: Basic Rate | BR26: =MAX(0,BU17-SUM(BT23:BT24)) -> 37700 | BS26: =MAX(0,BS25-BT25) -> 0 | BT26: 0 | BU26: =MAX(0,BR26-BT26) -> 37700 | BV26: =MIN(BU18,MAX(0,BT24-BU17)) -> 0 | BW26: 0 | BX26: 0.2 | BY26: 0 | CC26: Basic Rate | CD26: =MAX(0,CG17-SUM(CF24:CF25)) -> 37700 | CE26: =MAX(0,CE25-CF25) -> 0 | CF26: 0 | CG26: =MAX(0,CD26-CF26) -> 37700 | CJ26: Basic Rate | CK26: =MAX(0,CN17-SUM(CM24:CM25)) -> 37700 | CL26: =MAX(0,CL25-CM25) -> 0 | CM26: 0 | CN26: =MAX(0,CK26-CM26) -> 37700 | CU26: Step 2 | CV26: Tax Credit | CZ26: =(CW17-CW19)*CY22 -> 0
C27: Personal Allowance | D27: =MAX(0,D36-D25) -> 12570 | E27: Personal Allowance | F27: =MAX(0,F36-F25) -> 12570 | I27: Higher Rate | J27: =M18-N27 -> 87440 | K27: =MAX(0,K26-L26) -> 0 | L27: 0 | M27: =MAX(0,J27-L27) -> 87440 | N27: =MIN(M18,MAX(L24-M17,0)) -> 0 | P27: Higher Rate | Q27: =T18-U27 -> 87440 | R27: =MAX(0,R26-S26) -> 0 | S27: 0 | T27: =MAX(0,Q27-S27) -> 87440 | U27: =MIN(T18,MAX(S24-T17,0)) -> 0 | W27: =$L$27*Z27 -> 0 | X27: 0 | Y27: 0 | Z27: 0.4 | AA27: 0 | AC27: Tax | AD27: =AA20+AA29+AA47 -> 0 | AF27: Higher Rate | AG27: =AJ18-AK26 -> 87440 | AH27: =MAX(0,AH26-AI26) -> 0 | AI27: 0 | AJ27: =MAX(0,AG27-AI27) -> 87440 | AL27: 0 | AM27: 0.4 | AN27: 0 | AR27: Higher Rate | AS27: =AV18-AW27 -> 87440 | AT27: =MAX(0,AT26-AU26) -> 0 | AU27: 0 | AV27: =MAX(0,AS27-AU27) -> 87440 | AW27: =MIN(AV18,MAX(0,AU25-AV17)) -> 0 | AY27: Higher Rate | AZ27: =BC18-BD27 -> 87440 | BA27: =MAX(0,BA26-BB26) -> 0 | BB27: 0 | BC27: =MAX(0,AZ27-BB27) -> 87440 | BD27: =MIN(BC18,MAX(0,BB25-BC17)) -> 0 | BK27: Relieved liability on gain | BO27: =MAX(0,BO25-BO26) -> 0 | BQ27: Higher Rate | BR27: =BU18-BV26 -> 87440 | BS27: =MAX(0,BS26-BT26) -> 0 | BT27: 0 | BU27: =MAX(0,BR27-BT27) -> 87440 | BW27: 0 | BX27: 0.4 | BY27: 0 | CC27: Higher Rate | CD27: =CG18-CH27 -> 87440 | CE27: =MAX(0,CE26-CF26) -> 0 | CF27: 0 | CG27: =MAX(0,CD27-CF27) -> 87440 | CH27: =MIN(CG18,MAX(0,CF25-CG17)) -> 0 | CJ27: Higher Rate | CK27: =CN18-CO27 -> 87440 | CL27: =MAX(0,CL26-CM26) -> 0 | CM27: 0 | CN27: =MAX(0,CK27-CM27) -> 87440 | CO27: =MIN(CN18,MAX(0,CM25-CN17)) -> 0 | CV27: Relieved liability on gain | CZ27: =MAX(0,CZ25-CZ26) -> 0
I28: Additional Rate | K28: =MAX(0,K27-L27) -> 0 | L28: 0 | M28: NA | P28: Additional Rate | R28: =MAX(0,R27-S27) -> 0 | S28: 0 | T28: NA | W28: =$L$28*Z28 -> 0 | X28: 0 | Y28: 0 | Z28: 0.45 | AA28: 0 | AC28: Net Income Reinvested | AD28: =MAX(0,AD26-AD27) -> 0 | AF28: Additional Rate | AH28: =MAX(0,AH27-AI27) -> 0 | AI28: 0 | AJ28: NA | AL28: 0 | AM28: 0.45 | AN28: 0 | AO28: =SUM(AN23:AN28) -> 0 | AP28: =AO28-W29 -> 0 | AR28: Additional Rate | AT28: =MAX(0,AT27-AU27) -> 0 | AU28: 0 | AY28: Additional Rate | BA28: =MAX(0,BA27-BB27) -> 0 | BB28: 0 | BQ28: Additional Rate | BS28: =MAX(0,BS27-BT27) -> 0 | BT28: 0 | BU28: NA | BW28: 0 | BX28: 0.45 | BY28: 0 | BZ28: =SUM(BY23:BY28) -> 0 | CA28: =BZ28-W29 -> 0 | CC28: Additional Rate | CE28: =MAX(0,CE27-CF27) -> 0 | CF28: 0 | CJ28: Additional Rate | CL28: =MAX(0,CL27-CM27) -> 0 | CM28: 0
C29: Taxable Income | D29: =D14-D27 -> -12570 | E29: Taxable Income | F29: =F14-F27 -> -12570 | I29: Nil Rate available | J29: =SUM(J23:J25) -> 18570 | P29: Nil Rate available | Q29: =SUM(Q23:Q25) -> 18570 | W29: =SUM(W23:W28) -> 0 | X29: =SUM(X23:X28) -> 0 | Y29: =SUM(Y23:Y28) -> 0 | AA29: =SUM(AA23:AA28) -> 0 | AD29: =AD27/AD26 -> 
AR30: Offshore Bond Gain Tax Band Apportionment - set to £0 as included at total gain below | AY30: Offshore Bond Gain Tax Band Apportionment - set to £0 as included at total gain below | BJ30: Step 3 | BK30: Taxation of slice | BL30: =AZ3 -> 0 | CC30: Offshore Bond Gain Tax Band Apportionment - set to £0 as included at total gain below | CJ30: Offshore Bond Gain Tax Band Apportionment - set to £0 as included at total gain below | CU30: Step 3 | CV30: Taxation of slice | CW30: =CK3 -> 0
C31: Basic Rate Band | D31: ='Parameters_Inc Calcs'!C26 -> 37700 | E31: Basic Rate Band | F31: =D31 -> 37700 | I31: Offshore Bond Tax Band Apportionment | P31: Offshore Bond Tax Band Apportionment | AF31: Offshore Bond Gain Tax Band Apportionment | AS31: Allowances | AT31: Still to tax | AU31: Used | AV31: Unused | AZ31: Allowances | BA31: Still to tax | BB31: Used | BC31: Unused | BO31: Tax | BQ31: Offshore Bond Gain Tax Band Apportionment | CD31: Allowances | CE31: Still to tax | CF31: Used | CG31: Unused | CK31: Allowances | CL31: Still to tax | CM31: Used | CN31: Unused | CZ31: Tax
C32: Higher Threshold | D32: ='Parameters_Inc Calcs'!C27 -> 50270 | E32: Higher Threshold | F32: =D32 -> 50270 | W32: Before | X32: After | Y32: Amount | Z32: Rate | AA32: Add Tax | AG32: Allowances | AH32: Still to tax | AI32: Used | AJ32: Unused | AL32: Amount | AM32: Rate | AN32: Tax | AR32: Personal Allowance | AS32: =AV23 -> 12570 | AT32: 0 | AU32: =MIN(AS32,AT32) -> 0 | AV32: =MAX(0,AS32-AU32) -> 12570 | AY32: Personal Allowance | AZ32: =BC23 -> 12570 | BA32: 0 | BB32: =MIN(AZ32,BA32) -> 0 | BC32: =MAX(0,AZ32-BB32) -> 12570 | BJ32: Step 4 | BK32: Personal Allowance | BL32: =BB50 -> 0 | BM32: @ | BN32: =BN19 -> 0 | BO32: =BN32*BL32 -> 0 | BR32: Allowances | BS32: Still to tax | BT32: Used | BU32: Unused | BW32: Amount | BX32: Rate | BY32: Tax | CC32: Personal Allowance | CD32: =CG23 -> 12570 | CE32: 0 | CF32: =MIN(CD32,CE32) -> 0 | CG32: =MAX(0,CD32-CF32) -> 12570 | CJ32: Personal Allowance | CK32: =CN23 -> 12570 | CL32: 0 | CM32: =MIN(CK32,CL32) -> 0 | CN32: =MAX(0,CK32-CM32) -> 12570 | CU32: Step 4 | CV32: Personal Allowance | CW32: =CM50 -> 0 | CX32: @ | CY32: =CY19 -> 0 | CZ32: =CY32*CW32 -> 0
C33: Higher Rate Band | D33: ='Parameters_Inc Calcs'!C28 -> 87440 | E33: Higher Rate Band | F33: =D33 -> 87440 | I33: Starting Rate | J33: =M23 -> 5000 | K33: 0 | L33: =MIN(K33,J33) -> 0 | M33: =MAX(0,J33-L33) -> 5000 | P33: Starting Rate | Q33: =T23 -> 5000 | R33: 0 | S33: =MIN(R33,Q33) -> 0 | T33: =MAX(0,Q33-S33) -> 5000 | W33: =$L$33*Z33 -> 0 | X33: =S33*Z33 -> 0 | Y33: =S33-L33 -> 0 | Z33: 0 | AA33: =Y33*Z33 -> 0 | AF33: Starting Rate | AG33: =AJ23 -> 5000 | AH33: 0 | AI33: 0 | AJ33: =MAX(0,AG33-AI33) -> 5000 | AL33: =AI33 -> 0 | AM33: 0 | AN33: =AL33*AM33 -> 0 | AR33: Starting Rate | AS33: =AV24 -> 5000 | AT33: =MAX(0,AT32-AU32) -> 0 | AU33: 0 | AV33: =MAX(0,AS33-AU33) -> 5000 | AY33: Starting Rate | AZ33: =BC24 -> 5000 | BA33: =MAX(0,BA32-BB32) -> 0 | BB33: 0 | BC33: =MAX(0,AZ33-BB33) -> 5000 | BK33: Starting Rate | BL33: 0 | BM33: @ | BN33: 0 | BO33: 0 | BQ33: Starting Rate | BR33: =BU23 -> 5000 | BS33: =BR3 -> 0 | BT33: =MIN(BR33,BS33) -> 0 | BU33: =MAX(0,BR33-BT33) -> 5000 | BW33: =BT33 -> 0 | BX33: 0 | BY33: =BW33*BX33 -> 0 | CC33: Starting Rate | CD33: =CG24 -> 5000 | CE33: =MAX(0,CE32-CF32) -> 0 | CF33: 0 | CG33: =MAX(0,CD33-CF33) -> 5000 | CJ33: Starting Rate | CK33: =CN24 -> 5000 | CL33: =MAX(0,CL32-CM32) -> 0 | CM33: 0 | CN33: =MAX(0,CK33-CM33) -> 5000 | CV33: Starting Rate | CW33: 0 | CX33: @ | CY33: 0 | CZ33: 0
C34: Additional Threshold | D34: ='Parameters_Inc Calcs'!C29 -> 125140 | E34: Additional Threshold | F34: =D34 -> 125140 | I34: Personal Savings Allowance | J34: =M24 -> 1000 | K34: =MAX(0,K33-L33) -> 0 | L34: 0 | M34: =MAX(0,J34-L34) -> 1000 | P34: Personal Savings Allowance | Q34: =T24 -> 1000 | R34: =MAX(0,R33-S33) -> 0 | S34: 0 | T34: =MAX(0,Q34-S34) -> 1000 | W34: =$L$34*Z34 -> 0 | X34: 0 | Y34: 0 | Z34: 0 | AA34: 0 | AF34: Personal Savings Allowance | AG34: =AJ24 -> 1000 | AH34: =MAX(0,AH33-AI33) -> 0 | AI34: 0 | AJ34: =MAX(0,AG34-AI34) -> 1000 | AL34: 0 | AM34: 0 | AN34: 0 | AR34: Personal Savings Allowance | AS34: =AV25 -> 1000 | AT34: =MAX(0,AT33-AU33) -> 0 | AU34: 0 | AV34: =MAX(0,AS34-AU34) -> 1000 | AY34: Personal Savings Allowance | AZ34: =BC25 -> 1000 | BA34: =MAX(0,BA33-BB33) -> 0 | BB34: 0 | BC34: =MAX(0,AZ34-BB34) -> 1000 | BK34: Personal Savings Allowance | BL34: 0 | BM34: @ | BN34: 0 | BO34: 0 | BQ34: Personal Savings Allowance | BR34: =BU24 -> 1000 | BS34: =MAX(0,BS33-BT33) -> 0 | BT34: 0 | BU34: =MAX(0,BR34-BT34) -> 1000 | BW34: 0 | BX34: 0 | BY34: 0 | CC34: Personal Savings Allowance | CD34: =CG25 -> 1000 | CE34: =MAX(0,CE33-CF33) -> 0 | CF34: 0 | CG34: =MAX(0,CD34-CF34) -> 1000 | CJ34: Personal Savings Allowance | CK34: =CN25 -> 1000 | CL34: =MAX(0,CL33-CM33) -> 0 | CM34: 0 | CN34: =MAX(0,CK34-CM34) -> 1000 | CV34: Personal Savings Allowance | CW34: 0 | CX34: @ | CY34: 0 | CZ34: 0
I35: Personal Allowance | J35: =M25 -> 12570 | K35: =MAX(0,K34-L34) -> 0 | L35: 0 | M35: =MAX(0,J35-L35) -> 12570 | P35: Personal Allowance | Q35: =T25 -> 12570 | R35: =MAX(0,R34-S34) -> 0 | S35: 0 | T35: =MAX(0,Q35-S35) -> 12570 | W35: =$L$35*Z35 -> 0 | X35: 0 | Y35: 0 | Z35: 0 | AA35: 0 | AF35: Personal Allowance | AG35: =AJ25 -> 12570 | AH35: =MAX(0,AH34-AI34) -> 0 | AI35: 0 | AJ35: =MAX(0,AG35-AI35) -> 12570 | AL35: 0 | AM35: 0 | AN35: 0 | AR35: Basic Rate | AS35: =MAX(0,AV26-SUM(AU33:AU34)) -> 37700 | AT35: =MAX(0,AT34-AU34) -> 0 | AU35: 0 | AV35: =MAX(0,AS35-AU35) -> 37700 | AY35: Basic Rate | AZ35: =MAX(0,BC26-SUM(BB33:BB34)) -> 37700 | BA35: =MAX(0,BA34-BB34) -> 0 | BB35: 0 | BC35: =MAX(0,AZ35-BB35) -> 37700 | BK35: Basic Rate | BL35: 0 | BM35: @ | BN35: 0.2 | BO35: 0 | BQ35: Personal Allowance | BR35: =BU25 -> 12570 | BS35: =MAX(0,BS34-BT34) -> 0 | BT35: 0 | BU35: =MAX(0,BR35-BT35) -> 12570 | BW35: 0 | BX35: 0 | BY35: 0 | CC35: Basic Rate | CD35: =MAX(0,CG26-SUM(CF33:CF34)) -> 37700 | CE35: =MAX(0,CE34-CF34) -> 0 | CF35: 0 | CG35: =MAX(0,CD35-CF35) -> 37700 | CJ35: Basic Rate | CK35: =MAX(0,CN26-SUM(CM33:CM34)) -> 37700 | CL35: =MAX(0,CL34-CM34) -> 0 | CM35: 0 | CN35: =MAX(0,CK35-CM35) -> 37700 | CV35: Basic Rate | CW35: 0 | CX35: @ | CY35: 0.2 | CZ35: 0
C36: PA standard | D36: ='Parameters_Inc Calcs'!C25 -> 12570 | E36: PA standard | F36: =D36 -> 12570 | I36: Basic Rate | J36: =MAX(0,M26-SUM(L33:L34)) -> 37700 | K36: =MAX(0,K35-L35) -> 0 | L36: 0 | M36: =MAX(0,J36-L36) -> 37700 | P36: Basic Rate | Q36: =MAX(0,T26-SUM(S33:S34)) -> 37700 | R36: =MAX(0,R35-S35) -> 0 | S36: 0 | T36: =MAX(0,Q36-S36) -> 37700 | W36: =$L$36*Z36 -> 0 | X36: 0 | Y36: 0 | Z36: 0.2 | AA36: 0 | AF36: Basic Rate | AG36: =MAX(0,AJ26-SUM(AI33:AI34)) -> 37700 | AH36: =MAX(0,AH35-AI35) -> 0 | AI36: 0 | AJ36: =MAX(0,AG36-AI36) -> 37700 | AK36: =MIN(AJ27,MAX(0,AI34-AJ26)) -> 0 | AL36: 0 | AM36: 0.2 | AN36: 0 | AR36: Higher Rate | AS36: =AV27-AW36 -> 87440 | AT36: =MAX(0,AT35-AU35) -> 0 | AU36: 0 | AV36: =MAX(0,AS36-AU36) -> 87440 | AW36: =MIN(AV27,MAX(0,AU34-AV26)) -> 0 | AY36: Higher Rate | AZ36: =BC27-BD36 -> 87440 | BA36: =MAX(0,BA35-BB35) -> 0 | BB36: 0 | BC36: =MAX(0,AZ36-BB36) -> 87440 | BD36: =MIN(BC27,MAX(0,BB34-BC26)) -> 0 | BK36: Higher Rate | BL36: 0 | BM36: @ | BN36: 0.4 | BO36: 0 | BQ36: Basic Rate | BR36: =MAX(0,BU26-SUM(BT33:BT34)) -> 37700 | BS36: =MAX(0,BS35-BT35) -> 0 | BT36: 0 | BU36: =MAX(0,BR36-BT36) -> 37700 | BV36: =MIN(BU27,MAX(0,BT34-BU26)) -> 0 | BW36: 0 | BX36: 0.2 | BY36: 0 | CC36: Higher Rate | CD36: =CG27-CH36 -> 87440 | CE36: =MAX(0,CE35-CF35) -> 0 | CF36: 0 | CG36: =MAX(0,CD36-CF36) -> 87440 | CH36: =MIN(CG27,MAX(0,CF34-CG26)) -> 0 | CJ36: Higher Rate | CK36: =CN27-CO36 -> 87440 | CL36: =MAX(0,CL35-CM35) -> 0 | CM36: 0 | CN36: =MAX(0,CK36-CM36) -> 87440 | CO36: =MIN(CN27,MAX(0,CM34-CN26)) -> 0 | CV36: Higher Rate | CW36: 0 | CX36: @ | CY36: 0.4 | CZ36: 0
I37: Higher Rate | J37: =M27-N37 -> 87440 | K37: =MAX(0,K36-L36) -> 0 | L37: 0 | M37: =MAX(0,J37-L37) -> 87440 | N37: =MIN(M27,MAX(0,L34-M26)) -> 0 | P37: Higher Rate | Q37: =T27-U37 -> 87440 | R37: =MAX(0,R36-S36) -> 0 | S37: 0 | T37: =MAX(0,Q37-S37) -> 87440 | U37: =MIN(T27,MAX(0,S34-T26)) -> 0 | W37: =$L$37*Z37 -> 0 | X37: 0 | Y37: 0 | Z37: 0.4 | AA37: 0 | AF37: Higher Rate | AG37: =AJ27-AK36 -> 87440 | AH37: =MAX(0,AH36-AI36) -> 0 | AI37: 0 | AJ37: =MAX(0,AG37-AI37) -> 87440 | AL37: 0 | AM37: 0.4 | AN37: 0 | AR37: Additional Rate | AT37: =MAX(0,AT36-AU36) -> 0 | AU37: 0 | AY37: Additional Rate | BA37: =MAX(0,BA36-BB36) -> 0 | BB37: 0 | BK37: Additional Rate | BL37: 0 | BM37: @ | BN37: 0.45 | BO37: 0 | BQ37: Higher Rate | BR37: =BU27-BV36 -> 87440 | BS37: =MAX(0,BS36-BT36) -> 0 | BT37: 0 | BU37: =MAX(0,BR37-BT37) -> 87440 | BW37: 0 | BX37: 0.4 | BY37: 0 | CC37: Additional Rate | CE37: =MAX(0,CE36-CF36) -> 0 | CF37: 0 | CJ37: Additional Rate | CL37: =MAX(0,CL36-CM36) -> 0 | CM37: 0 | CV37: Additional Rate | CW37: 0 | CX37: @ | CY37: 0.45 | CZ37: 0
C38: PSA Basic | D38: ='Parameters_Inc Calcs'!$C$9 -> 1000 | E38: PSA Basic | F38: ='Parameters_Inc Calcs'!$C$9 -> 1000 | I38: Additional Rate | K38: =MAX(0,K37-L37) -> 0 | L38: 0 | P38: Additional Rate | R38: =MAX(0,R37-S37) -> 0 | S38: 0 | W38: =$L$38*Z38 -> 0 | X38: 0 | Y38: 0 | Z38: 0.45 | AA38: 0 | AF38: Additional Rate | AH38: =MAX(0,AH37-AI37) -> 0 | AI38: 0 | AJ38: NA | AL38: 0 | AM38: 0.45 | AN38: 0 | AO38: =SUM(AN32:AN38) -> 0 | AP38: =AO38-W39 -> 0 | BK38: Total Liability | BO38: =SUM(BO33:BO37) -> 0 | BQ38: Additional Rate | BS38: =MAX(0,BS37-BT37) -> 0 | BT38: 0 | BU38: NA | BW38: 0 | BX38: 0.45 | BY38: 0 | BZ38: =SUM(BY33:BY38) -> 0 | CA38: =BZ38-W39 -> 0 | CV38: Total Liability | CZ38: =SUM(CZ33:CZ37) -> 0
C39: PSA Higher | D39: ='Parameters_Inc Calcs'!$C$10 -> 500 | E39: PSA Higher | F39: ='Parameters_Inc Calcs'!$C$10 -> 500 | W39: =SUM(W33:W38) -> 0 | X39: =SUM(X33:X38) -> 0 | Y39: =SUM(Y33:Y38) -> 0 | AA39: =SUM(AA33:AA38) -> 0 | BK39: Tax Credit | BO39: =(BL30-BL32)*BN35 -> 0 | CV39: Tax Credit | CZ39: =(CW30-CW32)*CY35 -> 0
C40: PSA Add | D40: ='Parameters_Inc Calcs'!$C$11 -> 0 | E40: PSA Add | F40: ='Parameters_Inc Calcs'!$C$11 -> 0 | I40: Dividend Income Tax Band Apportionment | P40: Dividend Income Tax Band Apportionment | AF40: Dividend Income Tax Band Apportionment | AR40: Dividend Income Tax Band Apportionment | AY40: Dividend Income Tax Band Apportionment | BK40: Relieved Liability on Slice | BO40: =MAX(0,BO38-BO39) -> 0 | BQ40: Dividend Income Tax Band Apportionment | CC40: Dividend Income Tax Band Apportionment | CJ40: Dividend Income Tax Band Apportionment | CV40: Relieved Liability on Slice | CZ40: =MAX(0,CZ38-CZ39) -> 0
J41: Allowances | K41: Still to tax | L41: Used | M41: Unused | Q41: Allowances | R41: Still to tax | S41: Used | T41: Unused | W41: Before | X41: After | Y41: Amount | Z41: Rate | AA41: Add Tax | AG41: Allowances | AH41: Still to tax | AI41: Used | AJ41: Unused | AL41: Amount | AM41: Rate | AN41: Tax | AS41: Allowances | AT41: Still to tax | AU41: Used | AV41: Unused | AZ41: Allowances | BA41: Still to tax | BB41: Used | BC41: Unused | BK41: Derived years (N) | BO41: =IF(BL17=0,0,BL17/BL30) -> 0 | BR41: Allowances | BS41: Still to tax | BT41: Used | BU41: Unused | BW41: Amount | BX41: Rate | BY41: Tax | CD41: Allowances | CE41: Still to tax | CF41: Used | CG41: Unused | CK41: Allowances | CL41: Still to tax | CM41: Used | CN41: Unused | CV41: Derived years (N) | CZ41: =IF(CW17=0,0,CW17/CW30) -> 0
C42: Starting Rate for Savings | D42: ='Parameters_Inc Calcs'!C12 -> 5000 | E42: Starting Rate for Savings | F42: ='Parameters_Inc Calcs'!C12 -> 5000 | I42: Dividend Allowance | J42: =D47 -> 500 | K42: =D16 -> 0 | L42: =MIN(J42,K42) -> 0 | M42: =MAX(0,J42-L42) -> 500 | N42: Higher Rate Adjustment for PSA and SRS Bands | P42: Dividend Allowance | Q42: =D47 -> 500 | R42: =F16+F18 -> 0 | S42: =MIN(Q42,R42) -> 0 | T42: =MAX(0,Q42-S42) -> 500 | U42: Higher Rate Adjustment for PSA and SRS Bands | W42: =$L$42*Z42 -> 0 | X42: =S42*Z42 -> 0 | Y42: =S42-L42 -> 0 | Z42: 0 | AA42: =Y42*Z42 -> 0 | AF42: Dividend Allowance | AG42: ='Parameters_Inc Calcs'!$C$15 -> 500 | AH42: =AG6 -> 0 | AI42: =MIN(AG42,AH42) -> 0 | AJ42: =MAX(0,AG42-AI42) -> 500 | AL42: =AI42 -> 0 | AM42: 0 | AN42: =AL42*AM42 -> 0 | AR42: Personal Allowance | AS42: =AV32 -> 12570 | AT42: =AG6 -> 0 | AU42: =MIN(AS42,AT42) -> 0 | AV42: =MAX(0,AS42-AU42) -> 12570 | AY42: Personal Allowance | AZ42: =BC32 -> 12570 | BA42: =AZ6 -> 0 | BB42: =MIN(AZ42,BA42) -> 0 | BC42: =MAX(0,AZ42-BB42) -> 12570 | BK42: Relieved Liability on Slice x N | BO42: =BO40*BO41 -> 0 | BQ42: Dividend Allowance | BR42: ='Parameters_Inc Calcs'!$C$15 -> 500 | BS42: =BR6 -> 0 | BT42: =MIN(BR42,BS42) -> 0 | BU42: =MAX(0,BR42-BT42) -> 500 | BW42: =BT42 -> 0 | BX42: 0 | BY42: =BW42*BX42 -> 0 | CC42: Personal Allowance | CD42: =CG32 -> 12570 | CE42: =BR6 -> 0 | CF42: =MIN(CD42,CE42) -> 0 | CG42: =MAX(0,CD42-CF42) -> 12570 | CJ42: Personal Allowance | CK42: =CN32 -> 12570 | CL42: =CK6 -> 0 | CM42: =MIN(CK42,CL42) -> 0 | CN42: =MAX(0,CK42-CM42) -> 12570 | CV42: Relieved Liability on Slice x N | CZ42: =CZ40*CZ41 -> 0
C43: Available | D43: =MAX(0,MIN(D42,(D27+D42)-D14)) -> 5000 | E43: Available | F43: =MAX(0,MIN(F42,(F27+F42)-F14)) -> 5000 | I43: Personal Allowance | J43: =M35 -> 12570 | K43: =MAX(0,K42-L42) -> 0 | L43: =MIN(J43,K43) -> 0 | M43: =MAX(0,J43-L43) -> 12570 | P43: Personal Allowance | Q43: =T35 -> 12570 | R43: =MAX(0,R42-S42) -> 0 | S43: =MIN(Q43,R43) -> 0 | T43: =MAX(0,Q43-S43) -> 12570 | W43: =$L$43*Z43 -> 0 | X43: =S43*Z43 -> 0 | Y43: =S43-L43 -> 0 | Z43: 0 | AA43: =Y43*Z43 -> 0 | AF43: Personal Allowance | AG43: =AJ35 -> 12570 | AH43: =MAX(0,AH42-AI42) -> 0 | AI43: =MIN(AG43,AH43) -> 0 | AJ43: =MAX(0,AG43-AI43) -> 12570 | AL43: =AI43 -> 0 | AM43: 0 | AN43: =AL43*AM43 -> 0 | AR43: Dividend Allowance | AS43: ='Parameters_Inc Calcs'!$C$15 -> 500 | AT43: =MAX(0,AT42-AU42) -> 0 | AU43: =MIN(AS43,AT43) -> 0 | AV43: =MAX(0,AS43-AU43) -> 500 | AY43: Dividend Allowance | AZ43: ='Parameters_Inc Calcs'!$C$15 -> 500 | BA43: =MAX(0,BA42-BB42) -> 0 | BB43: =MIN(AZ43,BA43) -> 0 | BC43: =MAX(0,AZ43-BB43) -> 500 | BQ43: Personal Allowance | BR43: =BU35 -> 12570 | BS43: =MAX(0,BS42-BT42) -> 0 | BT43: =MIN(BR43,BS43) -> 0 | BU43: =MAX(0,BR43-BT43) -> 12570 | BW43: =BT43 -> 0 | BX43: 0 | BY43: =BW43*BX43 -> 0 | CC43: Dividend Allowance | CD43: ='Parameters_Inc Calcs'!$C$15 -> 500 | CE43: =MAX(0,CE42-CF42) -> 0 | CF43: =MIN(CD43,CE43) -> 0 | CG43: =MAX(0,CD43-CF43) -> 500 | CJ43: Dividend Allowance | CK43: ='Parameters_Inc Calcs'!$C$15 -> 500 | CL43: =MAX(0,CL42-CM42) -> 0 | CM43: =MIN(CK43,CL43) -> 0 | CN43: =MAX(0,CK43-CM43) -> 500
I44: Basic Rate | J44: =MAX(0,M36-L42) -> 37700 | K44: =MAX(0,K43-L43) -> 0 | L44: =MIN(J44,K44) -> 0 | M44: =MAX(0,J44-L44) -> 37700 | P44: Basic Rate | Q44: =MAX(0,T36-S42) -> 37700 | R44: =MAX(0,R43-S43) -> 0 | S44: =MIN(Q44,R44) -> 0 | T44: =MAX(0,Q44-S44) -> 37700 | W44: =$L$44*Z44 -> 0 | X44: =S44*Z44 -> 0 | Y44: =S44-L44 -> 0 | Z44: ='Parameters_Inc Calcs'!$D$4 -> 0.1075 | AA44: =Y44*Z44 -> 0 | AF44: Basic Rate | AG44: =MAX(0,AJ36-AI42) -> 37700 | AH44: =MAX(0,AH43-AI43) -> 0 | AI44: =MIN(AG44,AH44) -> 0 | AJ44: =MAX(0,AG44-AI44) -> 37700 | AK44: =MIN(AJ37,MAX(0,AI42-AJ36)) -> 0 | AL44: =AI44 -> 0 | AM44: ='Parameters_Inc Calcs'!$D$4 -> 0.1075 | AN44: =AL44*AM44 -> 0 | AR44: Basic Rate | AS44: =MAX(0,AV35-AU43) -> 37700 | AT44: =MAX(0,AT43-AU43) -> 0 | AU44: =MIN(AS44,AT44) -> 0 | AV44: =MAX(0,AS44-AU44) -> 37700 | AY44: Basic Rate | AZ44: =MAX(0,BC35-BB43) -> 37700 | BA44: =MAX(0,BA43-BB43) -> 0 | BB44: =MIN(AZ44,BA44) -> 0 | BC44: =MAX(0,AZ44-BB44) -> 37700 | BK44: Top Slicing Relief | BQ44: Basic Rate | BR44: =MAX(0,BU36-BT42) -> 37700 | BS44: =MAX(0,BS43-BT43) -> 0 | BT44: =MIN(BR44,BS44) -> 0 | BU44: =MAX(0,BR44-BT44) -> 37700 | BV44: =MIN(BU37,MAX(0,BT42-BU36)) -> 0 | BW44: =BT44 -> 0 | BX44: ='Parameters_Inc Calcs'!$D$4 -> 0.1075 | BY44: =BW44*BX44 -> 0 | CC44: Basic Rate | CD44: =MAX(0,CG35-CF43) -> 37700 | CE44: =MAX(0,CE43-CF43) -> 0 | CF44: =MIN(CD44,CE44) -> 0 | CG44: =MAX(0,CD44-CF44) -> 37700 | CJ44: Basic Rate | CK44: =MAX(0,CN35-CM43) -> 37700 | CL44: =MAX(0,CL43-CM43) -> 0 | CM44: =MIN(CK44,CL44) -> 0 | CN44: =MAX(0,CK44-CM44) -> 37700 | CV44: Top Slicing Relief
C45: PSA | D45: =IF(D19>D34,D40,IF(D19>D32,D39,D38)) -> 1000 | E45: PSA | F45: =IF(F19>F34,F40,IF(F19>F32,F39,F38)) -> 1000 | I45: Higher Rate | J45: =M37-N45 -> 87440 | K45: =MAX(0,K44-L44) -> 0 | L45: =MIN(J45,K45) -> 0 | M45: =MAX(0,J45-L45) -> 87440 | N45: =MIN(M27,MAX(L42-M26,0)) -> 0 | P45: Higher Rate | Q45: =T37-U45 -> 87440 | R45: =MAX(0,R44-S44) -> 0 | S45: =MIN(Q45,R45) -> 0 | T45: =MAX(0,Q45-S45) -> 87440 | U45: =MIN(T27,MAX(S42-T26,0)) -> 0 | W45: =$L$45*Z45 -> 0 | X45: =S45*Z45 -> 0 | Y45: =S45-L45 -> 0 | Z45: ='Parameters_Inc Calcs'!$D$5 -> 0.3575 | AA45: =Y45*Z45 -> 0 | AF45: Higher Rate | AG45: =AJ37-AK44 -> 87440 | AH45: =MAX(0,AH44-AI44) -> 0 | AI45: =MIN(AG45,AH45) -> 0 | AJ45: =MAX(0,AG45-AI45) -> 87440 | AL45: =AI45 -> 0 | AM45: ='Parameters_Inc Calcs'!$D$5 -> 0.3575 | AN45: =AL45*AM45 -> 0 | AR45: Higher Rate | AS45: =AV36-AW45 -> 87440 | AT45: =MAX(0,AT44-AU44) -> 0 | AU45: =MIN(AS45,AT45) -> 0 | AV45: =MAX(0,AS45-AU45) -> 87440 | AW45: =MIN(AV36,MAX(0,AU43-AV35)) -> 0 | AY45: Higher Rate | AZ45: =BC36-BD45 -> 87440 | BA45: =MAX(0,BA44-BB44) -> 0 | BB45: =MIN(AZ45,BA45) -> 0 | BC45: =MAX(0,AZ45-BB45) -> 87440 | BD45: =MIN(BC36,MAX(0,BB43-BC35)) -> 0 | BJ45: Step 5 | BK45: Relieved liability on full gain | BO45: =BO27 -> 0 | BP45: a | BQ45: Higher Rate | BR45: =BU37-BV44 -> 87440 | BS45: =MAX(0,BS44-BT44) -> 0 | BT45: =MIN(BR45,BS45) -> 0 | BU45: =MAX(0,BR45-BT45) -> 87440 | BW45: =BT45 -> 0 | BX45: ='Parameters_Inc Calcs'!$D$5 -> 0.3575 | BY45: =BW45*BX45 -> 0 | CC45: Higher Rate | CD45: =CG36-CH45 -> 87440 | CE45: =MAX(0,CE44-CF44) -> 0 | CF45: =MIN(CD45,CE45) -> 0 | CG45: =MAX(0,CD45-CF45) -> 87440 | CH45: =MIN(CG36,MAX(0,CF43-CG35)) -> 0 | CJ45: Higher Rate | CK45: =CN36-CO45 -> 87440 | CL45: =MAX(0,CL44-CM44) -> 0 | CM45: =MIN(CK45,CL45) -> 0 | CN45: =MAX(0,CK45-CM45) -> 87440 | CO45: =MIN(CN36,MAX(0,CM43-CN35)) -> 0 | CU45: Step 5 | CV45: Relieved liability on full gain | CZ45: =CZ27 -> 0 | DA45: a
I46: Additional Rate | K46: =MAX(0,K45-L45) -> 0 | L46: =MIN(J46,K46) -> 0 | M46: NA | P46: Additional Rate | R46: =MAX(0,R45-S45) -> 0 | S46: =MIN(Q46,R46) -> 0 | T46: NA | W46: =$L$46*Z46 -> 0 | X46: =S46*Z46 -> 0 | Y46: =S46-L46 -> 0 | Z46: ='Parameters_Inc Calcs'!$D$8 -> 0.3935 | AA46: =Y46*Z46 -> 0 | AF46: Additional Rate | AH46: =MAX(0,AH45-AI45) -> 0 | AI46: =MIN(AG46,AH46) -> 0 | AJ46: NA | AL46: =AI46 -> 0 | AM46: ='Parameters_Inc Calcs'!$D$8 -> 0.3935 | AN46: =AL46*AM46 -> 0 | AO46: =SUM(AN42:AN46) -> 0 | AP46: =AO46-W47 -> 0 | AR46: Additional Rate | AT46: =MAX(0,AT45-AU45) -> 0 | AU46: =MIN(AS46,AT46) -> 0 | AY46: Additional Rate | BA46: =MAX(0,BA45-BB45) -> 0 | BB46: =MIN(AZ46,BA46) -> 0 | BK46: =BK42 -> Relieved Liability on Slice x N | BO46: =BO42 -> 0 | BP46: b | BQ46: Additional Rate | BS46: =MAX(0,BS45-BT45) -> 0 | BT46: =MIN(BR46,BS46) -> 0 | BU46: NA | BW46: =BT46 -> 0 | BX46: ='Parameters_Inc Calcs'!$D$8 -> 0.3935 | BY46: =BW46*BX46 -> 0 | BZ46: =SUM(BY42:BY46) -> 0 | CA46: =BZ46-W47 -> 0 | CC46: Additional Rate | CE46: =MAX(0,CE45-CF45) -> 0 | CF46: =MIN(CD46,CE46) -> 0 | CJ46: Additional Rate | CL46: =MAX(0,CL45-CM45) -> 0 | CM46: =MIN(CK46,CL46) -> 0 | CV46: =CV42 -> Relieved Liability on Slice x N | CZ46: =CZ42 -> 0 | DA46: b
C47: Div All | D47: 500 | I47: Nil Rate available | J47: =J42+J43 -> 13070 | P47: Nil Rate available | Q47: =Q42+Q43 -> 13070 | W47: =SUM(W42:W46) -> 0 | X47: =SUM(X42:X46) -> 0 | Y47: =SUM(Y42:Y46) -> 0 | AA47: =SUM(AA42:AA46) -> 0 | AC47: External Tax Rate | BK47: Top Slice Relief (a-b) | BO47: =MAX(0,BO45-BO46) -> 0 | CV47: Top Slice Relief (a-b) | CZ47: =MAX(0,CZ45-CZ46) -> 0
C48: CGT All | D48: 3000 | AR48: Total Gain Tax Band Apportionment | AY48: Total Gain Tax Band Apportionment | CC48: Total Gain Tax Band Apportionment | CJ48: Total Gain Tax Band Apportionment
I49: Onshore Bond Gain Tax Band Apportionment | P49: Onshore Bond Gain Tax Band Apportionment | AF49: Onshore Bond Gain Tax Band Apportionment | AS49: Allowances | AT49: Still to tax | AU49: Used | AV49: Unused | AZ49: Allowances | BA49: Still to tax | BB49: Used | BC49: Unused | BQ49: Onshore Bond Gain Tax Band Apportionment | CD49: Allowances | CE49: Still to tax | CF49: Used | CG49: Unused | CK49: Allowances | CL49: Still to tax | CM49: Used | CN49: Unused
W50: Before | X50: After | Y50: Amount | Z50: Rate | AA50: Add Tax | AG50: Allowances | AH50: Still to tax | AI50: Used | AJ50: Unused | AL50: Amount | AM50: Rate | AN50: Tax | AR50: Personal Allowance | AS50: =AV42 -> 12570 | AT50: =AG3 -> 0 | AU50: =MIN(AS50,AT50) -> 0 | AV50: =MAX(0,AS50-AU50) -> 12570 | AY50: Personal Allowance | AZ50: =BC42 -> 12570 | BA50: =AZ3 -> 0 | BB50: =MIN(AZ50,BA50) -> 0 | BC50: =MAX(0,AZ50-BB50) -> 12570 | BR50: Allowances | BS50: Still to tax | BT50: Used | BU50: Unused | BW50: Amount | BX50: Rate | BY50: Tax | CC50: Personal Allowance | CD50: =CG42 -> 12570 | CE50: =BR3 -> 0 | CF50: =MIN(CD50,CE50) -> 0 | CG50: =MAX(0,CD50-CF50) -> 12570 | CJ50: Personal Allowance | CK50: =CN42 -> 12570 | CL50: =CK3 -> 0 | CM50: =MIN(CK50,CL50) -> 0 | CN50: =MAX(0,CK50-CM50) -> 12570
I51: Starting Rate | J51: =MAX(0,M33-N51) -> 5000 | K51: 0 | L51: =MIN(K51,J51) -> 0 | M51: =MAX(0,J51-L51) -> 5000 | N51: =L42+L44 -> 0 | P51: Starting Rate | Q51: =MAX(0,T33-U51) -> 5000 | R51: 0 | S51: =MIN(R51,Q51) -> 0 | T51: =MAX(0,Q51-S51) -> 5000 | U51: =S42+S44 -> 0 | W51: =$L$51*Z51 -> 0 | X51: =S51*Z51 -> 0 | Y51: =S51-L51 -> 0 | Z51: 0 | AA51: =Y51*Z51 -> 0 | AF51: Starting Rate | AG51: =MAX(0,AJ33-AK51) -> 5000 | AH51: =AG3 -> 0 | AI51: =MIN(AH51,AG51) -> 0 | AJ51: =MAX(0,AG51-AI51) -> 5000 | AK51: =AI42+AI44 -> 0 | AL51: =AI51 -> 0 | AM51: 0 | AN51: =AL51*AM51 -> 0 | AR51: Starting Rate | AS51: =MAX(0,AV33-AW51) -> 5000 | AT51: =MAX(0,AT50-AU50) -> 0 | AU51: 0 | AV51: =MAX(0,AS51-AU51) -> 5000 | AW51: =AU43+AU44 -> 0 | AY51: Starting Rate | AZ51: =MAX(0,BC33-BD51) -> 5000 | BA51: =MAX(0,BA50-BB50) -> 0 | BB51: 0 | BC51: =MAX(0,AZ51-BB51) -> 5000 | BD51: =BB43+BB44 -> 0 | BQ51: Starting Rate | BR51: =MAX(0,BU33-BV51) -> 5000 | BS51: 0 | BT51: =MIN(BS51,BR51) -> 0 | BU51: =MAX(0,BR51-BT51) -> 5000 | BV51: =BT42+BT44 -> 0 | BW51: =BT51 -> 0 | BX51: 0 | BY51: =BW51*BX51 -> 0 | CC51: Starting Rate | CD51: =MAX(0,CG33-CH51) -> 5000 | CE51: =MAX(0,CE50-CF50) -> 0 | CF51: 0 | CG51: =MAX(0,CD51-CF51) -> 5000 | CH51: =CF43+CF44 -> 0 | CJ51: Starting Rate | CK51: =MAX(0,CN33-CO51) -> 5000 | CL51: =MAX(0,CL50-CM50) -> 0 | CM51: 0 | CN51: =MAX(0,CK51-CM51) -> 5000 | CO51: =CM43+CM44 -> 0
I52: Personal Savings Allowance | J52: =M34 -> 1000 | K52: =MAX(0,K51-L51) -> 0 | L52: 0 | M52: =MAX(0,J52-L52) -> 1000 | P52: Personal Savings Allowance | Q52: =T34 -> 1000 | R52: =MAX(0,R51-S51) -> 0 | S52: 0 | T52: =MAX(0,Q52-S52) -> 1000 | W52: =$L$52*Z52 -> 0 | X52: 0 | Y52: 0 | Z52: 0 | AA52: 0 | AF52: Personal Savings Allowance | AG52: =AJ34 -> 1000 | AH52: =MAX(0,AH51-AI51) -> 0 | AI52: 0 | AJ52: =MAX(0,AG52-AI52) -> 1000 | AL52: 0 | AM52: 0 | AN52: 0 | AR52: Personal Savings Allowance | AS52: =AV34 -> 1000 | AT52: =MAX(0,AT51-AU51) -> 0 | AU52: 0 | AV52: =MAX(0,AS52-AU52) -> 1000 | AY52: Personal Savings Allowance | AZ52: =BC34 -> 1000 | BA52: =MAX(0,BA51-BB51) -> 0 | BB52: 0 | BC52: =MAX(0,AZ52-BB52) -> 1000 | BQ52: Personal Savings Allowance | BR52: =BU34 -> 1000 | BS52: =MAX(0,BS51-BT51) -> 0 | BT52: 0 | BU52: =MAX(0,BR52-BT52) -> 1000 | BW52: 0 | BX52: 0 | BY52: 0 | CC52: Personal Savings Allowance | CD52: =CG34 -> 1000 | CE52: =MAX(0,CE51-CF51) -> 0 | CF52: 0 | CG52: =MAX(0,CD52-CF52) -> 1000 | CJ52: Personal Savings Allowance | CK52: =CN34 -> 1000 | CL52: =MAX(0,CL51-CM51) -> 0 | CM52: 0 | CN52: =MAX(0,CK52-CM52) -> 1000
I53: Personal Allowance | J53: =M43 -> 12570 | K53: =MAX(0,K52-L52) -> 0 | L53: 0 | M53: =MAX(0,J53-L53) -> 12570 | P53: Personal Allowance | Q53: =T43 -> 12570 | R53: =MAX(0,R52-S52) -> 0 | S53: 0 | T53: =MAX(0,Q53-S53) -> 12570 | W53: =$L$53*Z53 -> 0 | X53: 0 | Y53: 0 | Z53: 0 | AA53: 0 | AF53: Personal Allowance | AG53: =AJ43 -> 12570 | AH53: =MAX(0,AH52-AI52) -> 0 | AI53: 0 | AJ53: =MAX(0,AG53-AI53) -> 12570 | AL53: 0 | AM53: 0 | AN53: 0 | AR53: Basic Rate | AS53: =MAX(0,AV44-SUM(AU51:AU52)) -> 37700 | AT53: =MAX(0,AT52-AU52) -> 0 | AU53: 0 | AV53: =MAX(0,AS53-AU53) -> 37700 | AY53: Basic Rate | AZ53: =MAX(0,BC44-SUM(BB51:BB52)) -> 37700 | BA53: =MAX(0,BA52-BB52) -> 0 | BB53: 0 | BC53: =MAX(0,AZ53-BB53) -> 37700 | BQ53: Personal Allowance | BR53: =BU43 -> 12570 | BS53: =MAX(0,BS52-BT52) -> 0 | BT53: 0 | BU53: =MAX(0,BR53-BT53) -> 12570 | BW53: 0 | BX53: 0 | BY53: 0 | CC53: Basic Rate | CD53: =MAX(0,CG44-SUM(CF51:CF52)) -> 37700 | CE53: =MAX(0,CE52-CF52) -> 0 | CF53: 0 | CG53: =MAX(0,CD53-CF53) -> 37700 | CJ53: Basic Rate | CK53: =MAX(0,CN44-SUM(CM51:CM52)) -> 37700 | CL53: =MAX(0,CL52-CM52) -> 0 | CM53: 0 | CN53: =MAX(0,CK53-CM53) -> 37700
I54: Basic Rate | J54: =MAX(0,M44-SUM(L51:L52)) -> 37700 | K54: =MAX(0,K53-L53) -> 0 | L54: 0 | M54: =MAX(0,J54-L54) -> 37700 | P54: Basic Rate | Q54: =MAX(0,T44-SUM(S51:S52)) -> 37700 | R54: =MAX(0,R53-S53) -> 0 | S54: 0 | T54: =MAX(0,Q54-S54) -> 37700 | W54: =$L$54*Z54 -> 0 | X54: 0 | Y54: 0 | Z54: 0.2 | AA54: 0 | AF54: Basic Rate | AG54: =MAX(0,AJ44-SUM(AI51:AI52)) -> 37700 | AH54: =MAX(0,AH53-AI53) -> 0 | AI54: 0 | AJ54: =MAX(0,AG54-AI54) -> 37700 | AL54: 0 | AM54: 0.2 | AN54: 0 | AR54: Higher Rate | AS54: =AV45-AW54 -> 87440 | AT54: =MAX(0,AT53-AU53) -> 0 | AU54: 0 | AV54: =MAX(0,AS54-AU54) -> 87440 | AW54: =MIN(AV45,MAX(0,AU52-AV44)) -> 0 | AY54: Higher Rate | AZ54: =BC45-BD54 -> 87440 | BA54: =MAX(0,BA53-BB53) -> 0 | BB54: 0 | BC54: =MAX(0,AZ54-BB54) -> 87440 | BD54: =MIN(BC45,MAX(0,BB52-BC44)) -> 0 | BQ54: Basic Rate | BR54: =MAX(0,BU44-SUM(BT51:BT52)) -> 37700 | BS54: =MAX(0,BS53-BT53) -> 0 | BT54: 0 | BU54: =MAX(0,BR54-BT54) -> 37700 | BW54: 0 | BX54: 0.2 | BY54: 0 | CC54: Higher Rate | CD54: =CG45-CH54 -> 87440 | CE54: =MAX(0,CE53-CF53) -> 0 | CF54: 0 | CG54: =MAX(0,CD54-CF54) -> 87440 | CH54: =MIN(CG45,MAX(0,CF52-CG44)) -> 0 | CJ54: Higher Rate | CK54: =CN45-CO54 -> 87440 | CL54: =MAX(0,CL53-CM53) -> 0 | CM54: 0 | CN54: =MAX(0,CK54-CM54) -> 87440 | CO54: =MIN(CN45,MAX(0,CM52-CN44)) -> 0
I55: Higher Rate | J55: =M45-N55 -> 87440 | K55: =MAX(0,K54-L54) -> 0 | L55: 0 | M55: =MAX(0,J55-L55) -> 87440 | N55: =MIN(M45,MAX(0,L52-M44)) -> 0 | P55: Higher Rate | Q55: =T45-U55 -> 87440 | R55: =MAX(0,R54-S54) -> 0 | S55: 0 | T55: =MAX(0,Q55-S55) -> 87440 | U55: =MIN(T45,MAX(0,S52-T44)) -> 0 | W55: =$L$55*Z55 -> 0 | X55: 0 | Y55: 0 | Z55: 0.4 | AA55: 0 | AF55: Higher Rate | AG55: =AJ45-AK55 -> 87440 | AH55: =MAX(0,AH54-AI54) -> 0 | AI55: 0 | AJ55: =MAX(0,AG55-AI55) -> 87440 | AK55: =MIN(AJ45,MAX(0,AI52-AJ44)) -> 0 | AL55: 0 | AM55: 0.4 | AN55: =AL55*AM55 -> 0 | AR55: Additional Rate | AT55: =MAX(0,AT54-AU54) -> 0 | AU55: 0 | AY55: Additional Rate | BA55: =MAX(0,BA54-BB54) -> 0 | BB55: 0 | BQ55: Higher Rate | BR55: =BU45-BV55 -> 87440 | BS55: =MAX(0,BS54-BT54) -> 0 | BT55: 0 | BU55: =MAX(0,BR55-BT55) -> 87440 | BV55: =MIN(BU45,MAX(0,BT52-BU44)) -> 0 | BW55: 0 | BX55: 0.4 | BY55: 0 | CC55: Additional Rate | CE55: =MAX(0,CE54-CF54) -> 0 | CF55: 0 | CJ55: Additional Rate | CL55: =MAX(0,CL54-CM54) -> 0 | CM55: 0
I56: Additional Rate | K56: =MAX(0,K55-L55) -> 0 | L56: 0 | P56: Additional Rate | R56: =MAX(0,R55-S55) -> 0 | S56: 0 | W56: =$L$56*Z56 -> 0 | X56: 0 | Y56: 0 | Z56: 0.45 | AA56: 0 | AF56: Additional Rate | AH56: =MAX(0,AH55-AI55) -> 0 | AI56: 0 | AL56: 0 | AM56: 0.45 | AN56: 0 | AO56: =SUM(AN51:AN56) -> 0 | AP56: =AO56-W57 -> 0 | BQ56: Additional Rate | BS56: =MAX(0,BS55-BT55) -> 0 | BT56: 0 | BW56: 0 | BX56: 0.45 | BY56: 0 | BZ56: =SUM(BY51:BY56) -> 0 | CA56: =BZ56-W57 -> 0
W57: =SUM(W51:W56) -> 0 | X57: =SUM(X51:X56) -> 0 | Y57: =SUM(Y51:Y56) -> 0 | AA57: =SUM(AA51:AA56) -> 0
I58: CGT allowances set to zero here as used in CGT calcs | AF58: Deficiency Calcs | AM58: Step 5 Total | AO58: =SUM(AO19:AO57) -> 0 | BQ58: Deficiency Calcs | BX58: Step 5 Total | BZ58: =SUM(BZ19:BZ57) -> 0
I59: Capital Gains Tax Band Apportionment | P59: Capital Gains Tax Band Apportionment | W59: Before | X59: After | Y59: Amount | Z59: Rate | AA59: Add Tax | AC59: Growth | AD59: =Y29+Y47+Y63 -> 0 | AF59: Is gain negative? | AG59: =IF(Bonds!E71<0,Bonds!E71,0) -> 0 | BQ59: Is gain negative? | BR59: =IF(Bonds!E85<0,Bonds!E85,0) -> 0
I60: Annual Exemption | J60: 0 | K60: 0 | L60: =MIN(J60,K60) -> 0 | M60: =MAX(0,J60-L60) -> 0 | P60: Annual Exemption | Q60: =IF(Inputs!D11="No",0,'Parameters_Inc Calcs'!D16) -> 3000 | R60: =CGT!G47 -> 0 | S60: =MIN(Q60,R60) -> 0 | T60: =MAX(0,Q60-S60) -> 3000 | W60: =$L$60*Z60 -> 0 | X60: =S60*Z60 -> 0 | Y60: =S60-L60 -> 0 | Z60: 0 | AA60: =Y60*Z60 -> 0 | AC60: Tax inc CGT | AD60: =AA63+AA47+AA29 -> 0 | AF60: Max previous gains? | AG60: =Bonds!E74 -> 0 | AL60: Less Onshore Bond Tax Credit | AO60: =(AH51-AI53)*'Parameters_Inc Calcs'!E4 -> 0 | BQ60: Max previous gains? | BR60: =Bonds!E88 -> 0 | BW60: Less Onshore Bond Tax Credit | BZ60: =(BS51-BT53)*'Parameters_Inc Calcs'!AO4 -> 0
I61: Basic Rate | J61: =M44 -> 37700 | K61: =MAX(0,K60-L60) -> 0 | L61: =MIN(J61,K61) -> 0 | M61: =MAX(0,J61-L61) -> 37700 | P61: Basic Rate | Q61: =T44 -> 37700 | R61: =MAX(0,R60-S60) -> 0 | S61: =MIN(Q61,R61) -> 0 | T61: =MAX(0,Q61-S61) -> 37700 | W61: =$L$61*Z61 -> 0 | X61: =S61*Z61 -> 0 | Y61: =S61-L61 -> 0 | Z61: ='Parameters_Inc Calcs'!$F$4 -> 0.18 | AA61: =Y61*Z61 -> 0 | AC61: Tax Exc CGT | AD61: =AD27 -> 0 | AF61: Max Deficiency | AG61: =MIN(-AG59,AG60) -> 0 | AL61: Less Top Slicing Relief | AO61: =BO47 -> 0 | BQ61: Max Deficiency | BR61: =MIN(-BR59,BR60) -> 0 | BW61: Less Top Slicing Relief | BZ61: =CZ47 -> 0
I62: Higher Rate | K62: =K61-L61 -> 0 | L62: =MIN(J62,K62) -> 0 | M62: =MAX(0,J62-L62) -> 0 | P62: Higher Rate | R62: =R61-S61 -> 0 | S62: =MIN(Q62,R62) -> 0 | T62: =MAX(0,Q62-S62) -> 0 | W62: =$L$62*Z62 -> 0 | X62: =S62*Z62 -> 0 | Y62: =S62-L62 -> 0 | Z62: ='Parameters_Inc Calcs'!$F$5 -> 0.24 | AA62: =Y62*Z62 -> 0 | AG62: Allowances | AH62: Still to tax | AI62: Used | AJ62: Unused | AK62: Value | AL62: Less Deficiency Relief | AO62: =AK63+AK64 -> 0 | BR62: Allowances | BS62: Still to tax | BT62: Used | BU62: Unused | BV62: Value | BW62: Less Deficiency Relief | BZ62: =BV63+BV64 -> 0
I63: Nil Rate available | J63: =J60 -> 0 | P63: Nil Rate available | Q63: =Q60 -> 3000 | W63: =SUM(W60:W62) -> 0 | X63: =SUM(X60:X62) -> 0 | Y63: =SUM(Y60:Y62) -> 0 | AA63: =SUM(AA60:AA62) -> 0 | AC63: Inc CGT rate | AD63: =AD60/AD59 ->  | AF63: Divis in HRT | AG63: =AG61 -> 0 | AH63: =L45 -> 0 | AI63: =MIN(AH63,AG63) -> 0 | AJ63: =MAX(0,AG63-AI63) -> 0 | AK63: =AI63*('Parameters_Inc Calcs'!$D$5-'Parameters_Inc Calcs'!$D$4) -> 0 | AO63: =SUM(AO60:AO62) -> 0 | BQ63: Divis in HRT | BR63: =BR61 -> 0 | BS63: =L45 -> 0 | BT63: =MIN(BS63,BR63) -> 0 | BU63: =MAX(0,BR63-BT63) -> 0 | BV63: =BT63*('Parameters_Inc Calcs'!$D$5-'Parameters_Inc Calcs'!$D$4) -> 0 | BZ63: =SUM(BZ60:BZ62) -> 0
AC64: Exc CGT rate | AD64: =AD61/AD59 ->  | AF64: Savings and NSND in HRT | AG64: =AJ63 -> 0 | AH64: =L27+L18 -> 0 | AI64: =MIN(AH64,AG64) -> 0 | AJ64: =MAX(0,AG64-AI64) -> 0 | AK64: =AI64*('Parameters_Inc Calcs'!$E$5-'Parameters_Inc Calcs'!$E$4) -> 0 | BQ64: Savings and NSND in HRT | BR64: =BU63 -> 0 | BS64: =L27+L18 -> 0 | BT64: =MIN(BS64,BR64) -> 0 | BU64: =MAX(0,BR64-BT64) -> 0 | BV64: =BT64*('Parameters_Inc Calcs'!$E$5-'Parameters_Inc Calcs'!$E$4) -> 0
W66: Total Tax Before | AM66: Income Tax payable | AO66: =MAX(0,AO58-AO63) -> 0 | BX66: Income Tax payable | BZ66: =MAX(0,BZ58-BZ63) -> 0
W67: =W20+W29+W39+W47+W57+W63 -> 0 | X67: =X20+X29+X39+X47+X57+X63 -> 0
AK69: Change in Tax Bill | AO69: =AO66-$W$67 -> 0 | BV69: Change in Tax Bill | BZ69: =BZ66-$W$67 -> 0

Sheet Yr 2 (hidden)
I1: Before for All Situations | P1: Collectives After | AF1: Onshore Bond After | BQ1: Offshore Bond After
I2: Before | AF2: Workings | AR2: Workings Top Slicing Full | AY2: Workings Top Slicing Slice | BF2: Slicing Calcs | BQ2: Workings | CC2: Workings Top Slicing Full | CJ2: Workings Top Slicing Slice | CQ2: Slicing Calcs
AF3: Full Bond Gain | AG3: =MAX(0,Bonds!F71) -> 0 | AY3: Slice | AZ3: =Bonds!F72 -> 0 | BQ3: Full Bond Gain | BR3: =MAX(0,Bonds!F85) -> 0 | CJ3: Slice | CK3: =Bonds!F86 -> 0
AF4: NSND in Year of encashment | AG4: =$D$14 -> 0 | AY4: NSND in Year of encashment | AZ4: =$D$14 -> 0 | BQ4: NSND in Year of encashment | BR4: =$D$14 -> 0 | CJ4: NSND in Year of encashment | CK4: =$D$14 -> 0
AF5: Savings in Year of encashment | AG5: =$D$15 -> 0 | AY5: Savings in Year of encashment | AZ5: =$D$15 -> 0 | BQ5: Savings in Year of encashment | BR5: =$D$15 -> 0 | CJ5: Savings in Year of encashment | CK5: =$D$15 -> 0
AF6: Dividend in Year of encashment | AG6: =$D$16 -> 0 | AY6: Dividend in Year of encashment | AZ6: =$D$16 -> 0 | BQ6: Dividend in Year of encashment | BR6: =$D$16 -> 0 | CJ6: Dividend in Year of encashment | CK6: =$D$16 -> 0
B7: Year | C7: 2 | D7: move year on 1 | I7: Allowances: | P7: Allowances: | AF7: Personal Allowance Adjustment | AG7: =IF((AG3+AG4+AG5+AG6)<'Parameters_Inc Calcs'!$C$3,0,MIN(F36,((AG3+AG4+AG5+AG6)-'Parameters_Inc Calcs'!$C$3)/2)) -> 0 | AI7: PA Lost | AY7: Personal Allowance Adjustment | AZ7: =IF((AZ3+AZ4+AZ5+AZ6)<'Parameters_Inc Calcs'!$C$3,0,MIN(F36,((AZ3+AZ4+AZ5+AZ6)-'Parameters_Inc Calcs'!$C$3)/2)) -> 0 | BQ7: Personal Allowance Adjustment | BR7: =IF((BR3+BR4+BR5+BR6)<'Parameters_Inc Calcs'!$C$3,0,MIN(F36,((BR3+BR4+BR5+BR6)-'Parameters_Inc Calcs'!$C$3)/2)) -> 0 | BT7: Personal Allowance Lost | CJ7: Personal Allowance Adjustment | CK7: =IF((CK3+CK4+CK5+CK6)<'Parameters_Inc Calcs'!$C$3,0,MIN(F36,((CK3+CK4+CK5+CK6)-'Parameters_Inc Calcs'!$C$3)/2)) -> 0
B8: Final Year | C8: =IF(C7=Inputs!D7,"Yes","No") -> No | I8: Pers_Allow_Adj | P8: Pers_Allow_Adj | T8: PA Lost | AF8: PA to Use | AG8: =D36-AG7 -> 12570 | AI8: =J9-AG8 -> 0 | AY8: PA to Use - Silver adjustment | AZ8: =F36-AZ7 -> 12570 | BQ8: PA to Use | BR8: =F36-BR7 -> 12570 | BT8: =J9-BR8 -> 0 | CJ8: PA to Use - Silver adjustment | CK8: =F36-CK7 -> 12570
B9: After Final Year | C9: =AND(C7>Inputs!D7) -> TRUE | I9: Tot_Pers_Allow | J9: =D27 -> 12570 | P9: Tot_Pers_Allow | Q9: =F27 -> 12570 | T9: =J9-Q9 -> 0 | AF9: Starter Rate to Use | AG9: =IF(AG4>AG8+'Parameters_Inc Calcs'!$C$12,0,MIN('Parameters_Inc Calcs'!$C$12,AG8+'Parameters_Inc Calcs'!$C$12-AG4)) -> 5000 | AY9: Starter Rate to Use -"gold" adjustment | AZ9: =IF(AZ4>AZ8+'Parameters_Inc Calcs'!$C$12,0,MIN('Parameters_Inc Calcs'!$C$12,AZ8+'Parameters_Inc Calcs'!$C$12-AZ4)) -> 5000 | BQ9: Starter Rate to Use | BR9: =IF(BR4>BR8+'Parameters_Inc Calcs'!$C$12,0,MIN('Parameters_Inc Calcs'!$C$12,BR8+'Parameters_Inc Calcs'!$C$12-BR4)) -> 5000 | CJ9: Starter Rate to Use -"gold" adjustment | CK9: =IF(CK4>CK8+'Parameters_Inc Calcs'!$C$12,0,MIN('Parameters_Inc Calcs'!$C$12,CK8+'Parameters_Inc Calcs'!$C$12-CK4)) -> 5000
B10: Investment | C10: =CGT!H12 -> 0 | D10: move col on 1 | I10: Pers_Sav_Allow | J10: =D45 -> 1000 | P10: Pers_Sav_Allow | Q10: =F45 -> 1000 | AF10: PSA to USE | AG10: =IF(SUM(AG3:AG6)>'Parameters_Inc Calcs'!$C$8,'Parameters_Inc Calcs'!$C$11,IF(SUM(AG3:AG6)>'Parameters_Inc Calcs'!$C$5,'Parameters_Inc Calcs'!$C$10,'Parameters_Inc Calcs'!$C$9)) -> 1000 | AY10: PSA to use - from full calc as no silver adjustment | AZ10: =IF(SUM(AZ3:AZ6)>'Parameters_Inc Calcs'!$C$8,'Parameters_Inc Calcs'!$C$11,IF(SUM(AZ3:AZ6)>'Parameters_Inc Calcs'!$C$5,'Parameters_Inc Calcs'!$C$10,'Parameters_Inc Calcs'!$C$9)) -> 1000 | BQ10: PSA to USE | BR10: =IF(SUM(BR3:BR6)>'Parameters_Inc Calcs'!$C$8,'Parameters_Inc Calcs'!$C$11,IF(SUM(BR3:BR6)>'Parameters_Inc Calcs'!$C$5,'Parameters_Inc Calcs'!$C$10,'Parameters_Inc Calcs'!$C$9)) -> 1000 | CJ10: PSA to use - "gold" adjustment | CK10: =IF(SUM(CK3:CK6)>'Parameters_Inc Calcs'!$C$8,'Parameters_Inc Calcs'!$C$11,IF(SUM(CK3:CK6)>'Parameters_Inc Calcs'!$C$5,'Parameters_Inc Calcs'!$C$10,'Parameters_Inc Calcs'!$C$9)) -> 1000
B11: Cum Gain | C11: =CGT!H17 -> 0 | D11: move col on 1
AP12: Difference to All before | CA12: Difference to All before | CC12: Non Savings Income Apportionment
B13: Factor | C13: Before | E13: After | I13: Non Savings Income Apportionment | P13: Non Savings Income Apportionment | AF13: Non Savings Income Apportionment | AR13: Non Savings Income Apportionment | AY13: Non Savings Income Apportionment | BQ13: Non Savings Income Apportionment | CJ13: Non Savings Income Apportionment
B14: =1+Inputs!K6 -> 1 | C14: NSND | D14: =IF(C9=TRUE,0,IF(OR($C$8="Yes",$C$9=TRUE),Inputs!I13,'Yr 1'!D14*B14)) -> 0 | E14: Total Income | F14: =IF(C8="Yes",Inputs!I13,D14) -> 0
B15: =1+Inputs!K7 -> 1 | C15: Savings | D15: =IF(C9=TRUE,0,IF(OR($C$8="Yes",$C$9=TRUE),Inputs!I14,'Yr 1'!D15*B15)) -> 0 | E15: Savings | F15: =IF(C8="Yes",Inputs!I14,D15) -> 0 | J15: Allowances | K15: Still to tax | L15: Used | M15: Unused | Q15: Allowances | R15: Still to tax | S15: Used | T15: Unused | W15: Before | X15: After | Y15: Amount | Z15: Rate | AA15: Add Tax | AG15: Allowances | AH15: Still to tax | AI15: Used | AJ15: Unused | AL15: Amount | AM15: Rate | AN15: Tax | AS15: Allowances | AT15: Still to tax | AU15: Used | AV15: Unused | AZ15: Allowances | BA15: Still to tax | BB15: Used | BC15: Unused | BJ15: Top Slicing | BR15: Allowances | BS15: Still to tax | BT15: Used | BU15: Unused | BW15: Amount | BX15: Rate | BY15: Tax | CD15: Allowances | CE15: Still to tax | CF15: Used | CG15: Unused | CK15: Allowances | CL15: Still to tax | CM15: Used | CN15: Unused | CU15: Top Slicing
B16: =1+Inputs!K8 -> 1 | C16: Divi | D16: =IF(C9=TRUE,0,IF(OR($C$8="Yes",$C$9=TRUE),Inputs!I15,'Yr 1'!D16*B16)) -> 0 | E16: Divi | F16: =IF(C8="Yes",Inputs!I15,D16) -> 0 | I16: Personal Allowance | J16: =J9 -> 12570 | K16: =D14 -> 0 | L16: =MIN(J16,K16) -> 0 | M16: =MAX(0,J16-L16) -> 12570 | P16: Personal Allowance | Q16: =Q9 -> 12570 | R16: =K16 -> 0 | S16: =MIN(Q16,R16) -> 0 | T16: =MAX(0,Q16-S16) -> 12570 | W16: =$L$16*Z16 -> 0 | X16: =S16*Z16 -> 0 | Y16: =S16-L16 -> 0 | Z16: 0 | AA16: =Y16*Z16 -> 0 | AF16: Personal Allowance | AG16: =AG8 -> 12570 | AH16: =AG4 -> 0 | AI16: =MIN(AG16,AH16) -> 0 | AJ16: =MAX(0,AG16-AI16) -> 12570 | AL16: =AI16 -> 0 | AM16: 0 | AN16: =AL16*AM16 -> 0 | AR16: Personal Allowance | AS16: =AG8 -> 12570 | AT16: =MAX(0,AG4) -> 0 | AU16: =MIN(AS16,AT16) -> 0 | AV16: =MAX(0,AS16-AU16) -> 12570 | AY16: Personal Allowance | AZ16: =AZ8 -> 12570 | BA16: =MAX(0,AZ4) -> 0 | BB16: =MIN(AZ16,BA16) -> 0 | BC16: =MAX(0,AZ16-BB16) -> 12570 | BQ16: Personal Allowance | BR16: =BR8 -> 12570 | BS16: =BR4 -> 0 | BT16: =MIN(BR16,BS16) -> 0 | BU16: =MAX(0,BR16-BT16) -> 12570 | BW16: =BT16 -> 0 | BX16: 0 | BY16: =BW16*BX16 -> 0 | CC16: Personal Allowance | CD16: =BR8 -> 12570 | CE16: =MAX(0,BR4) -> 0 | CF16: =MIN(CD16,CE16) -> 0 | CG16: =MAX(0,CD16-CF16) -> 12570 | CJ16: Personal Allowance | CK16: =CK8 -> 12570 | CL16: =MAX(0,CK4) -> 0 | CM16: =MIN(CK16,CL16) -> 0 | CN16: =MAX(0,CK16-CM16) -> 12570
B17: =Inputs!Q6 -> 0 | E17: New Savings | F17: =IF(C9=TRUE,0,C10*B17) -> 0 | I17: Basic Rate | J17: =$D$31 -> 37700 | K17: =MAX(0,K16-L16) -> 0 | L17: =MIN(J17,K17) -> 0 | M17: =MAX(0,J17-L17) -> 37700 | P17: Basic Rate | Q17: =$F$31 -> 37700 | R17: =MAX(0,R16-S16) -> 0 | S17: =MIN(Q17,R17) -> 0 | T17: =MAX(0,Q17-S17) -> 37700 | W17: =$L$17*Z17 -> 0 | X17: =S17*Z17 -> 0 | Y17: =S17-L17 -> 0 | Z17: ='Parameters_Inc Calcs'!$G$4 -> 0.2 | AA17: =Y17*Z17 -> 0 | AF17: Basic Rate | AG17: =D31 -> 37700 | AH17: =MAX(0,AH16-AI16) -> 0 | AI17: =MIN(AG17,AH17) -> 0 | AJ17: =MAX(0,AG17-AI17) -> 37700 | AL17: =AI17 -> 0 | AM17: ='Parameters_Inc Calcs'!$G$4 -> 0.2 | AN17: =AL17*AM17 -> 0 | AR17: Basic Rate | AS17: =F31 -> 37700 | AT17: =MAX(0,AT16-AU16) -> 0 | AU17: =MIN(AS17,AT17) -> 0 | AV17: =MAX(0,AS17-AU17) -> 37700 | AY17: Basic Rate | AZ17: =AS17 -> 37700 | BA17: =MAX(0,BA16-BB16) -> 0 | BB17: =MIN(AZ17,BA17) -> 0 | BC17: =MAX(0,AZ17-BB17) -> 37700 | BK17: Taxation of full gain | BL17: =AG3 -> 0 | BQ17: Basic Rate | BR17: =F31 -> 37700 | BS17: =MAX(0,BS16-BT16) -> 0 | BT17: =MIN(BR17,BS17) -> 0 | BU17: =MAX(0,BR17-BT17) -> 37700 | BW17: =BT17 -> 0 | BX17: ='Parameters_Inc Calcs'!$G$4 -> 0.2 | BY17: =BW17*BX17 -> 0 | CC17: Basic Rate | CD17: =BR17 -> 37700 | CE17: =MAX(0,CE16-CF16) -> 0 | CF17: =MIN(CD17,CE17) -> 0 | CG17: =MAX(0,CD17-CF17) -> 37700 | CJ17: Basic Rate | CK17: =CD17 -> 37700 | CL17: =MAX(0,CL16-CM16) -> 0 | CM17: =MIN(CK17,CL17) -> 0 | CN17: =MAX(0,CK17-CM17) -> 37700 | CV17: Taxation of full gain | CW17: =BR3 -> 0
B18: =Inputs!Q7 -> 0 | E18: New Divi | F18: =IF(C9=TRUE,0,C10*B18) -> 0 | I18: Higher Rate | J18: =$D$33 -> 87440 | K18: =MAX(0,K17-L17) -> 0 | L18: =MIN(J18,K18) -> 0 | M18: =MAX(0,J18-L18) -> 87440 | P18: Higher Rate | Q18: =$F$33 -> 87440 | R18: =MAX(0,R17-S17) -> 0 | S18: =MIN(Q18,R18) -> 0 | T18: =MAX(0,Q18-S18) -> 87440 | W18: =$L$18*Z18 -> 0 | X18: =S18*Z18 -> 0 | Y18: =S18-L18 -> 0 | Z18: ='Parameters_Inc Calcs'!$G$5 -> 0.4 | AA18: =Y18*Z18 -> 0 | AF18: Higher Rate | AG18: =F33 -> 87440 | AH18: =MAX(0,AH17-AI17) -> 0 | AI18: =MIN(AG18,AH18) -> 0 | AJ18: =MAX(0,AG18-AI18) -> 87440 | AL18: =AI18 -> 0 | AM18: ='Parameters_Inc Calcs'!$G$5 -> 0.4 | AN18: =AL18*AM18 -> 0 | AR18: Higher Rate | AS18: =F33 -> 87440 | AT18: =MAX(0,AT17-AU17) -> 0 | AU18: =MIN(AS18,AT18) -> 0 | AV18: =MAX(0,AS18-AU18) -> 87440 | AY18: Higher Rate | AZ18: =AS18 -> 87440 | BA18: =MAX(0,BA17-BB17) -> 0 | BB18: =MIN(AZ18,BA18) -> 0 | BC18: =MAX(0,AZ18-BB18) -> 87440 | BO18: Tax | BQ18: Higher Rate | BR18: =F33 -> 87440 | BS18: =MAX(0,BS17-BT17) -> 0 | BT18: =MIN(BR18,BS18) -> 0 | BU18: =MAX(0,BR18-BT18) -> 87440 | BW18: =BT18 -> 0 | BX18: ='Parameters_Inc Calcs'!$G$5 -> 0.4 | BY18: =BW18*BX18 -> 0 | CC18: Higher Rate | CD18: =BR18 -> 87440 | CE18: =MAX(0,CE17-CF17) -> 0 | CF18: =MIN(CD18,CE18) -> 0 | CG18: =MAX(0,CD18-CF18) -> 87440 | CJ18: Higher Rate | CK18: =CD18 -> 87440 | CL18: =MAX(0,CL17-CM17) -> 0 | CM18: =MIN(CK18,CL18) -> 0 | CN18: =MAX(0,CK18-CM18) -> 87440 | CZ18: Tax
C19: ANI | D19: =SUM(D14:D18) -> 0 | E19: ANI | F19: =SUM(F14:F18) -> 0 | I19: Additional Rate | K19: =MAX(0,K18-L18) -> 0 | L19: =K19 -> 0 | M19: NA | P19: Additional Rate | R19: =MAX(0,R18-S18) -> 0 | S19: =R19 -> 0 | T19: NA | W19: =$L$19*Z19 -> 0 | X19: =S19*Z19 -> 0 | Y19: =S19-L19 -> 0 | Z19: ='Parameters_Inc Calcs'!$G$8 -> 0.45 | AA19: =Y19*Z19 -> 0 | AF19: Additional Rate | AH19: =MAX(0,AH18-AI18) -> 0 | AI19: =MIN(AG19,AH19) -> 0 | AJ19: NA | AL19: =AI19 -> 0 | AM19: ='Parameters_Inc Calcs'!$G$8 -> 0.45 | AN19: =AL19*AM19 -> 0 | AO19: =SUM(AN16:AN19) -> 0 | AP19: =AO19-W20 -> 0 | AR19: Additional Rate | AT19: =MAX(0,AT18-AU18) -> 0 | AU19: =MIN(AS19,AT19) -> 0 | AY19: Additional Rate | BA19: =MAX(0,BA18-BB18) -> 0 | BB19: =MIN(AZ19,BA19) -> 0 | BJ19: Step 1 | BK19: Personal Allowance | BL19: =AU50 -> 0 | BM19: @ | BN19: =AM25 -> 0 | BO19: =BL19*BN19 -> 0 | BQ19: Additional Rate | BS19: =MAX(0,BS18-BT18) -> 0 | BT19: =MIN(BR19,BS19) -> 0 | BU19: NA | BW19: =BT19 -> 0 | BX19: ='Parameters_Inc Calcs'!$G$8 -> 0.45 | BY19: =BW19*BX19 -> 0 | BZ19: =SUM(BY16:BY19) -> 0 | CA19: =BZ19-W20 -> 0 | CC19: Additional Rate | CE19: =MAX(0,CE18-CF18) -> 0 | CF19: =MIN(CD19,CE19) -> 0 | CJ19: Additional Rate | CL19: =MAX(0,CL18-CM18) -> 0 | CM19: =MIN(CK19,CL19) -> 0 | CU19: Step 1 | CV19: Personal Allowance | CW19: =CF50 -> 0 | CX19: @ | CY19: =BX25 -> 0 | CZ19: =CW19*CY19 -> 0
W20: =SUM(W16:W19) -> 0 | X20: =SUM(X16:X19) -> 0 | AA20: =SUM(AA16:AA19) -> 0 | BK20: Starting Rate | BL20: 0 | BM20: @ | BN20: =AM23 -> 0 | BO20: 0 | CV20: Starting Rate | CW20: 0 | CX20: @ | CY20: =BX23 -> 0 | CZ20: 0
E21: New Gain | F21: =CGT!H16 -> 0 | I21: Savings Income Tax Band Apportionment | P21: Savings Income Tax Band Apportionment | AF21: Savings Income Tax Band Apportionment | AR21: Savings Income Tax Band Apportionment | AY21: Savings Income Tax Band Apportionment | BK21: Personal Savings Allowance | BL21: 0 | BM21: @ | BN21: =AM25 -> 0 | BO21: 0 | BQ21: Savings Income Tax Band Apportionment | CC21: Savings Income Tax Band Apportionment | CJ21: Savings Income Tax Band Apportionment | CV21: Personal Savings Allowance | CW21: 0 | CX21: @ | CY21: =BX25 -> 0 | CZ21: 0
J22: Allowances | K22: Still to tax | L22: Used | M22: Unused | Q22: Allowances | R22: Still to tax | S22: Used | T22: Unused | W22: Before | X22: After | Y22: Amount | Z22: Rate | AA22: Add Tax | AG22: Allowances | AH22: Still to tax | AI22: Used | AJ22: Unused | AL22: Amount | AM22: Rate | AN22: Tax | AS22: Allowances | AT22: Still to tax | AU22: Used | AV22: Unused | BK22: Basic Rate | BL22: 0 | BM22: @ | BN22: ='Parameters_Inc Calcs'!$E$4 -> 0.22 | BO22: 0 | BR22: Allowances | BS22: Still to tax | BT22: Used | BU22: Unused | BW22: Amount | BX22: Rate | BY22: Tax | CD22: Allowances | CE22: Still to tax | CF22: Used | CG22: Unused | CV22: Basic Rate | CW22: 0 | CX22: @ | CY22: ='Parameters_Inc Calcs'!$E$4 -> 0.22 | CZ22: 0
C23: ANI Limit | D23: ='Parameters_Inc Calcs'!$C$3 -> 100000 | E23: ANI Limit | F23: ='Parameters_Inc Calcs'!$C$3 -> 100000 | I23: Starting Rate | J23: =$D$43 -> 5000 | K23: =D15 -> 0 | L23: =MIN(J23,K23) -> 0 | M23: =MAX(0,J23-L23) -> 5000 | P23: Starting Rate | Q23: =$F$43 -> 5000 | R23: =F15+F17 -> 0 | S23: =MIN(Q23,R23) -> 0 | T23: =MAX(0,Q23-S23) -> 5000 | W23: =$L$23*Z23 -> 0 | X23: =S23*Z23 -> 0 | Y23: =S23-L23 -> 0 | Z23: 0 | AA23: =Y23*Z23 -> 0 | AF23: Starting Rate | AG23: =AG9 -> 5000 | AH23: =AG5 -> 0 | AI23: =MIN(AG23,AH23) -> 0 | AJ23: =MAX(0,AG23-AI23) -> 5000 | AL23: =AI23 -> 0 | AM23: 0 | AN23: =AL23*AM23 -> 0 | AR23: Personal Allowance | AS23: =AV16 -> 12570 | AT23: =AG5 -> 0 | AU23: =MIN(AS23,AT23) -> 0 | AV23: =MAX(0,AS23-AU23) -> 12570 | AY23: Personal Allowance | AZ23: =BC16 -> 12570 | BA23: =AZ5 -> 0 | BB23: =MIN(AZ23,BA23) -> 0 | BC23: =MAX(0,AZ23-BB23) -> 12570 | BK23: Higher Rate | BL23: 0 | BM23: @ | BN23: ='Parameters_Inc Calcs'!$E$5 -> 0.42 | BO23: =BL23*BN23 -> 0 | BQ23: Starting Rate | BR23: =BR9 -> 5000 | BS23: =BR5 -> 0 | BT23: =MIN(BR23,BS23) -> 0 | BU23: =MAX(0,BR23-BT23) -> 5000 | BW23: =BT23 -> 0 | BX23: 0 | BY23: =BW23*BX23 -> 0 | CC23: Personal Allowance | CD23: =CG16 -> 12570 | CE23: =BR5 -> 0 | CF23: =MIN(CD23,CE23) -> 0 | CG23: =MAX(0,CD23-CF23) -> 12570 | CJ23: Personal Allowance | CK23: =CN16 -> 12570 | CL23: =CK5 -> 0 | CM23: =MIN(CK23,CL23) -> 0 | CN23: =MAX(0,CK23-CM23) -> 12570 | CV23: Higher Rate | CW23: 0 | CX23: @ | CY23: ='Parameters_Inc Calcs'!$E$5 -> 0.42 | CZ23: =CW23*CY23 -> 0
C24: ANI Excess | D24: =MAX(0,D19-D23) -> 0 | E24: ANI Excess | F24: =MAX(0,F19-F23) -> 0 | I24: Personal Savings Allowance | J24: =D45 -> 1000 | K24: =MAX(0,K23-L23) -> 0 | L24: 0 | M24: =MAX(0,J24-L24) -> 1000 | N24: Higher Rate Adjustment for PSA and SRS Bands | P24: Personal Savings Allowance | Q24: =$F$45 -> 1000 | R24: =MAX(0,R23-S23) -> 0 | S24: 0 | T24: =MAX(0,Q24-S24) -> 1000 | U24: Higher Rate Adjustment for PSA and SRS Bands | W24: =$L$24*Z24 -> 0 | X24: 0 | Y24: 0 | Z24: 0 | AA24: 0 | AF24: Personal Savings Allowance | AG24: =AG10 -> 1000 | AH24: =MAX(0,AH23-AI23) -> 0 | AI24: 0 | AJ24: =MAX(0,AG24-AI24) -> 1000 | AL24: 0 | AM24: 0 | AN24: 0 | AR24: Starting Rate | AS24: =AG9 -> 5000 | AT24: =MAX(0,AT23-AU23) -> 0 | AU24: 0 | AV24: =MAX(0,AS24-AU24) -> 5000 | AY24: Starting Rate | AZ24: =AZ9 -> 5000 | BA24: =MAX(0,BA23-BB23) -> 0 | BB24: 0 | BC24: =MAX(0,AZ24-BB24) -> 5000 | BK24: Additional Rate | BL24: 0 | BM24: @ | BN24: ='Parameters_Inc Calcs'!$E$8 -> 0.47 | BO24: 0 | BQ24: Personal Savings Allowance | BR24: =BR10 -> 1000 | BS24: =MAX(0,BS23-BT23) -> 0 | BT24: 0 | BU24: =MAX(0,BR24-BT24) -> 1000 | BW24: 0 | BX24: 0 | BY24: 0 | CC24: Starting Rate | CD24: =BR9 -> 5000 | CE24: =MAX(0,CE23-CF23) -> 0 | CF24: 0 | CG24: =MAX(0,CD24-CF24) -> 5000 | CJ24: Starting Rate | CK24: =CK9 -> 5000 | CL24: =MAX(0,CL23-CM23) -> 0 | CM24: 0 | CN24: =MAX(0,CK24-CM24) -> 5000 | CV24: Additional Rate | CW24: 0 | CX24: @ | CY24: ='Parameters_Inc Calcs'!$E$8 -> 0.47 | CZ24: =CW24*CY24 -> 0
C25: PA adjustment | D25: =D24/2 -> 0 | E25: PA adjustment | F25: =F24/2 -> 0 | I25: Personal Allowance | J25: =M16 -> 12570 | K25: =MAX(0,K24-L24) -> 0 | L25: 0 | M25: =MAX(0,J25-L25) -> 12570 | P25: Personal Allowance | Q25: =T16 -> 12570 | R25: =MAX(0,R24-S24) -> 0 | S25: 0 | T25: =MAX(0,Q25-S25) -> 12570 | W25: =$L$25*Z25 -> 0 | X25: 0 | Y25: 0 | Z25: 0 | AA25: 0 | AF25: Personal Allowance | AG25: =AJ16 -> 12570 | AH25: =MAX(0,AH24-AI24) -> 0 | AI25: 0 | AJ25: =MAX(0,AG25-AI25) -> 12570 | AL25: 0 | AM25: 0 | AN25: 0 | AR25: Personal Savings Allowance | AS25: =AG10 -> 1000 | AT25: =MAX(0,AT24-AU24) -> 0 | AU25: 0 | AV25: =MAX(0,AS25-AU25) -> 1000 | AY25: Personal Savings Allowance | AZ25: =AZ10 -> 1000 | BA25: =MAX(0,BA24-BB24) -> 0 | BB25: 0 | BC25: =MAX(0,AZ25-BB25) -> 1000 | BK25: Total Liability | BO25: =SUM(BO19:BO24) -> 0 | BQ25: Personal Allowance | BR25: =BU16 -> 12570 | BS25: =MAX(0,BS24-BT24) -> 0 | BT25: 0 | BU25: =MAX(0,BR25-BT25) -> 12570 | BW25: 0 | BX25: 0 | BY25: 0 | CC25: Personal Savings Allowance | CD25: =BR10 -> 1000 | CE25: =MAX(0,CE24-CF24) -> 0 | CF25: 0 | CG25: =MAX(0,CD25-CF25) -> 1000 | CJ25: Personal Savings Allowance | CK25: =CK10 -> 1000 | CL25: =MAX(0,CL24-CM24) -> 0 | CM25: 0 | CN25: =MAX(0,CK25-CM25) -> 1000 | CV25: Total Liability | CZ25: =SUM(CZ19:CZ24) -> 0
I26: Basic Rate | J26: =MAX(0,M17-SUM(L23:L24)) -> 37700 | K26: =MAX(0,K25-L25) -> 0 | L26: 0 | M26: =MAX(0,J26-L26) -> 37700 | P26: Basic Rate | Q26: =MAX(0,T17-SUM(S23:S24)) -> 37700 | R26: =MAX(0,R25-S25) -> 0 | S26: 0 | T26: =MAX(0,Q26-S26) -> 37700 | W26: =$L$26*Z26 -> 0 | X26: 0 | Y26: 0 | Z26: ='Parameters_Inc Calcs'!$E$4 -> 0.22 | AA26: 0 | AC26: Investment income | AD26: =Y29+Y47 -> 0 | AF26: Basic Rate | AG26: =MAX(0,AJ17-SUM(AI23:AI24)) -> 37700 | AH26: =MAX(0,AH25-AI25) -> 0 | AI26: 0 | AJ26: =MAX(0,AG26-AI26) -> 37700 | AK26: =MIN(AJ18,MAX(0,AI24-AJ17)) -> 0 | AL26: 0 | AM26: ='Parameters_Inc Calcs'!$E$4 -> 0.22 | AN26: 0 | AR26: Basic Rate | AS26: =MAX(0,AV17-SUM(AU24:AU25)) -> 37700 | AT26: =MAX(0,AT25-AU25) -> 0 | AU26: 0 | AV26: =MAX(0,AS26-AU26) -> 37700 | AY26: Basic Rate | AZ26: =MAX(0,BC17-SUM(BB24:BB25)) -> 37700 | BA26: =MAX(0,BA25-BB25) -> 0 | BB26: 0 | BC26: =MAX(0,AZ26-BB26) -> 37700 | BJ26: Step 2 | BK26: Tax Credit | BO26: =(BL17-BL19)*BN22 -> 0 | BQ26: Basic Rate | BR26: =MAX(0,BU17-SUM(BT23:BT24)) -> 37700 | BS26: =MAX(0,BS25-BT25) -> 0 | BT26: 0 | BU26: =MAX(0,BR26-BT26) -> 37700 | BV26: =MIN(BU18,MAX(0,BT24-BU17)) -> 0 | BW26: 0 | BX26: ='Parameters_Inc Calcs'!$E$4 -> 0.22 | BY26: 0 | CC26: Basic Rate | CD26: =MAX(0,CG17-SUM(CF24:CF25)) -> 37700 | CE26: =MAX(0,CE25-CF25) -> 0 | CF26: 0 | CG26: =MAX(0,CD26-CF26) -> 37700 | CJ26: Basic Rate | CK26: =MAX(0,CN17-SUM(CM24:CM25)) -> 37700 | CL26: =MAX(0,CL25-CM25) -> 0 | CM26: 0 | CN26: =MAX(0,CK26-CM26) -> 37700 | CU26: Step 2 | CV26: Tax Credit | CZ26: =(CW17-CW19)*CY22 -> 0
C27: Personal Allowance | D27: =MAX(0,D36-D25) -> 12570 | E27: Personal Allowance | F27: =MAX(0,F36-F25) -> 12570 | I27: Higher Rate | J27: =M18-N27 -> 87440 | K27: =MAX(0,K26-L26) -> 0 | L27: 0 | M27: =MAX(0,J27-L27) -> 87440 | N27: =MIN(M18,MAX(L24-M17,0)) -> 0 | P27: Higher Rate | Q27: =T18-U27 -> 87440 | R27: =MAX(0,R26-S26) -> 0 | S27: 0 | T27: =MAX(0,Q27-S27) -> 87440 | U27: =MIN(T18,MAX(S24-T17,0)) -> 0 | W27: =$L$27*Z27 -> 0 | X27: 0 | Y27: 0 | Z27: ='Parameters_Inc Calcs'!$E$5 -> 0.42 | AA27: 0 | AC27: Tax | AD27: =AA20+AA29+AA47 -> 0 | AF27: Higher Rate | AG27: =AJ18-AK26 -> 87440 | AH27: =MAX(0,AH26-AI26) -> 0 | AI27: 0 | AJ27: =MAX(0,AG27-AI27) -> 87440 | AL27: 0 | AM27: ='Parameters_Inc Calcs'!$E$5 -> 0.42 | AN27: 0 | AR27: Higher Rate | AS27: =AV18-AW27 -> 87440 | AT27: =MAX(0,AT26-AU26) -> 0 | AU27: 0 | AV27: =MAX(0,AS27-AU27) -> 87440 | AW27: =MIN(AV18,MAX(0,AU25-AV17)) -> 0 | AY27: Higher Rate | AZ27: =BC18-BD27 -> 87440 | BA27: =MAX(0,BA26-BB26) -> 0 | BB27: 0 | BC27: =MAX(0,AZ27-BB27) -> 87440 | BD27: =MIN(BC18,MAX(0,BB25-BC17)) -> 0 | BK27: Relieved liability on gain | BO27: =MAX(0,BO25-BO26) -> 0 | BQ27: Higher Rate | BR27: =BU18-BV26 -> 87440 | BS27: =MAX(0,BS26-BT26) -> 0 | BT27: 0 | BU27: =MAX(0,BR27-BT27) -> 87440 | BW27: 0 | BX27: ='Parameters_Inc Calcs'!$E$5 -> 0.42 | BY27: 0 | CC27: Higher Rate | CD27: =CG18-CH27 -> 87440 | CE27: =MAX(0,CE26-CF26) -> 0 | CF27: 0 | CG27: =MAX(0,CD27-CF27) -> 87440 | CH27: =MIN(CG18,MAX(0,CF25-CG17)) -> 0 | CJ27: Higher Rate | CK27: =CN18-CO27 -> 87440 | CL27: =MAX(0,CL26-CM26) -> 0 | CM27: 0 | CN27: =MAX(0,CK27-CM27) -> 87440 | CO27: =MIN(CN18,MAX(0,CM25-CN17)) -> 0 | CV27: Relieved liability on gain | CZ27: =MAX(0,CZ25-CZ26) -> 0
I28: Additional Rate | K28: =MAX(0,K27-L27) -> 0 | L28: 0 | M28: NA | P28: Additional Rate | R28: =MAX(0,R27-S27) -> 0 | S28: 0 | T28: NA | W28: =$L$28*Z28 -> 0 | X28: 0 | Y28: 0 | Z28: ='Parameters_Inc Calcs'!$E$8 -> 0.47 | AA28: 0 | AC28: Net Income Reinvested | AD28: =MAX(0,AD26-AD27) -> 0 | AF28: Additional Rate | AH28: =MAX(0,AH27-AI27) -> 0 | AI28: 0 | AJ28: NA | AL28: 0 | AM28: ='Parameters_Inc Calcs'!$E$8 -> 0.47 | AN28: 0 | AO28: =SUM(AN23:AN28) -> 0 | AP28: =AO28-W29 -> 0 | AR28: Additional Rate | AT28: =MAX(0,AT27-AU27) -> 0 | AU28: 0 | AY28: Additional Rate | BA28: =MAX(0,BA27-BB27) -> 0 | BB28: 0 | BQ28: Additional Rate | BS28: =MAX(0,BS27-BT27) -> 0 | BT28: 0 | BU28: NA | BW28: 0 | BX28: ='Parameters_Inc Calcs'!$E$8 -> 0.47 | BY28: 0 | BZ28: =SUM(BY23:BY28) -> 0 | CA28: =BZ28-W29 -> 0 | CC28: Additional Rate | CE28: =MAX(0,CE27-CF27) -> 0 | CF28: 0 | CJ28: Additional Rate | CL28: =MAX(0,CL27-CM27) -> 0 | CM28: 0
C29: Taxable Income | D29: =D14-D27 -> -12570 | E29: Taxable Income | F29: =F14-F27 -> -12570 | I29: Nil Rate available | J29: =SUM(J23:J25) -> 18570 | P29: Nil Rate available | Q29: =SUM(Q23:Q25) -> 18570 | W29: =SUM(W23:W28) -> 0 | X29: =SUM(X23:X28) -> 0 | Y29: =SUM(Y23:Y28) -> 0 | AA29: =SUM(AA23:AA28) -> 0 | AD29: =AD27/AD26 -> 
AR30: Offshore Bond Gain Tax Band Apportionment - set to £0 as included at total gain below | AY30: Offshore Bond Gain Tax Band Apportionment - set to £0 as included at total gain below | BJ30: Step 3 | BK30: Taxation of slice | BL30: =AZ3 -> 0 | CC30: Offshore Bond Gain Tax Band Apportionment - set to £0 as included at total gain below | CJ30: Offshore Bond Gain Tax Band Apportionment - set to £0 as included at total gain below | CU30: Step 3 | CV30: Taxation of slice | CW30: =CK3 -> 0
C31: Basic Rate Band | D31: ='Parameters_Inc Calcs'!D26 -> 37700 | E31: Basic Rate Band | F31: =D31 -> 37700 | I31: Offshore Bond Tax Band Apportionment | P31: Offshore Bond Tax Band Apportionment | AF31: Offshore Bond Gain Tax Band Apportionment | AS31: Allowances | AT31: Still to tax | AU31: Used | AV31: Unused | AZ31: Allowances | BA31: Still to tax | BB31: Used | BC31: Unused | BO31: Tax | BQ31: Offshore Bond Gain Tax Band Apportionment | CD31: Allowances | CE31: Still to tax | CF31: Used | CG31: Unused | CK31: Allowances | CL31: Still to tax | CM31: Used | CN31: Unused | CZ31: Tax
C32: Higher Threshold | D32: ='Parameters_Inc Calcs'!D27 -> 50270 | E32: Higher Threshold | F32: =D32 -> 50270 | W32: Before | X32: After | Y32: Amount | Z32: Rate | AA32: Add Tax | AG32: Allowances | AH32: Still to tax | AI32: Used | AJ32: Unused | AL32: Amount | AM32: Rate | AN32: Tax | AR32: Personal Allowance | AS32: =AV23 -> 12570 | AT32: 0 | AU32: =MIN(AS32,AT32) -> 0 | AV32: =MAX(0,AS32-AU32) -> 12570 | AY32: Personal Allowance | AZ32: =BC23 -> 12570 | BA32: 0 | BB32: =MIN(AZ32,BA32) -> 0 | BC32: =MAX(0,AZ32-BB32) -> 12570 | BJ32: Step 4 | BK32: Personal Allowance | BL32: =BB50 -> 0 | BM32: @ | BN32: =BN19 -> 0 | BO32: =BN32*BL32 -> 0 | BR32: Allowances | BS32: Still to tax | BT32: Used | BU32: Unused | BW32: Amount | BX32: Rate | BY32: Tax | CC32: Personal Allowance | CD32: =CG23 -> 12570 | CE32: 0 | CF32: =MIN(CD32,CE32) -> 0 | CG32: =MAX(0,CD32-CF32) -> 12570 | CJ32: Personal Allowance | CK32: =CN23 -> 12570 | CL32: 0 | CM32: =MIN(CK32,CL32) -> 0 | CN32: =MAX(0,CK32-CM32) -> 12570 | CU32: Step 4 | CV32: Personal Allowance | CW32: =CM50 -> 0 | CX32: @ | CY32: =CY19 -> 0 | CZ32: =CY32*CW32 -> 0
C33: Higher Rate Band | D33: ='Parameters_Inc Calcs'!D28 -> 87440 | E33: Higher Rate Band | F33: =D33 -> 87440 | I33: Starting Rate | J33: =M23 -> 5000 | K33: 0 | L33: =MIN(K33,J33) -> 0 | M33: =MAX(0,J33-L33) -> 5000 | P33: Starting Rate | Q33: =T23 -> 5000 | R33: 0 | S33: =MIN(R33,Q33) -> 0 | T33: =MAX(0,Q33-S33) -> 5000 | W33: =$L$33*Z33 -> 0 | X33: =S33*Z33 -> 0 | Y33: =S33-L33 -> 0 | Z33: 0 | AA33: =Y33*Z33 -> 0 | AF33: Starting Rate | AG33: =AJ23 -> 5000 | AH33: 0 | AI33: 0 | AJ33: =MAX(0,AG33-AI33) -> 5000 | AL33: =AI33 -> 0 | AM33: 0 | AN33: =AL33*AM33 -> 0 | AR33: Starting Rate | AS33: =AV24 -> 5000 | AT33: =MAX(0,AT32-AU32) -> 0 | AU33: 0 | AV33: =MAX(0,AS33-AU33) -> 5000 | AY33: Starting Rate | AZ33: =BC24 -> 5000 | BA33: =MAX(0,BA32-BB32) -> 0 | BB33: 0 | BC33: =MAX(0,AZ33-BB33) -> 5000 | BK33: Starting Rate | BL33: 0 | BM33: @ | BN33: 0 | BO33: 0 | BQ33: Starting Rate | BR33: =BU23 -> 5000 | BS33: =BR3 -> 0 | BT33: =MIN(BR33,BS33) -> 0 | BU33: =MAX(0,BR33-BT33) -> 5000 | BW33: =BT33 -> 0 | BX33: 0 | BY33: =BW33*BX33 -> 0 | CC33: Starting Rate | CD33: =CG24 -> 5000 | CE33: =MAX(0,CE32-CF32) -> 0 | CF33: 0 | CG33: =MAX(0,CD33-CF33) -> 5000 | CJ33: Starting Rate | CK33: =CN24 -> 5000 | CL33: =MAX(0,CL32-CM32) -> 0 | CM33: 0 | CN33: =MAX(0,CK33-CM33) -> 5000 | CV33: Starting Rate | CW33: 0 | CX33: @ | CY33: 0 | CZ33: 0
C34: Additional Threshold | D34: ='Parameters_Inc Calcs'!D29 -> 125140 | E34: Additional Threshold | F34: =D34 -> 125140 | I34: Personal Savings Allowance | J34: =M24 -> 1000 | K34: =MAX(0,K33-L33) -> 0 | L34: 0 | M34: =MAX(0,J34-L34) -> 1000 | P34: Personal Savings Allowance | Q34: =T24 -> 1000 | R34: =MAX(0,R33-S33) -> 0 | S34: 0 | T34: =MAX(0,Q34-S34) -> 1000 | W34: =$L$34*Z34 -> 0 | X34: 0 | Y34: 0 | Z34: 0 | AA34: 0 | AF34: Personal Savings Allowance | AG34: =AJ24 -> 1000 | AH34: =MAX(0,AH33-AI33) -> 0 | AI34: 0 | AJ34: =MAX(0,AG34-AI34) -> 1000 | AL34: 0 | AM34: 0 | AN34: 0 | AR34: Personal Savings Allowance | AS34: =AV25 -> 1000 | AT34: =MAX(0,AT33-AU33) -> 0 | AU34: 0 | AV34: =MAX(0,AS34-AU34) -> 1000 | AY34: Personal Savings Allowance | AZ34: =BC25 -> 1000 | BA34: =MAX(0,BA33-BB33) -> 0 | BB34: 0 | BC34: =MAX(0,AZ34-BB34) -> 1000 | BK34: Personal Savings Allowance | BL34: 0 | BM34: @ | BN34: 0 | BO34: 0 | BQ34: Personal Savings Allowance | BR34: =BU24 -> 1000 | BS34: =MAX(0,BS33-BT33) -> 0 | BT34: 0 | BU34: =MAX(0,BR34-BT34) -> 1000 | BW34: 0 | BX34: 0 | BY34: 0 | CC34: Personal Savings Allowance | CD34: =CG25 -> 1000 | CE34: =MAX(0,CE33-CF33) -> 0 | CF34: 0 | CG34: =MAX(0,CD34-CF34) -> 1000 | CJ34: Personal Savings Allowance | CK34: =CN25 -> 1000 | CL34: =MAX(0,CL33-CM33) -> 0 | CM34: 0 | CN34: =MAX(0,CK34-CM34) -> 1000 | CV34: Personal Savings Allowance | CW34: 0 | CX34: @ | CY34: 0 | CZ34: 0
I35: Personal Allowance | J35: =M25 -> 12570 | K35: =MAX(0,K34-L34) -> 0 | L35: 0 | M35: =MAX(0,J35-L35) -> 12570 | P35: Personal Allowance | Q35: =T25 -> 12570 | R35: =MAX(0,R34-S34) -> 0 | S35: 0 | T35: =MAX(0,Q35-S35) -> 12570 | W35: =$L$35*Z35 -> 0 | X35: 0 | Y35: 0 | Z35: 0 | AA35: 0 | AF35: Personal Allowance | AG35: =AJ25 -> 12570 | AH35: =MAX(0,AH34-AI34) -> 0 | AI35: 0 | AJ35: =MAX(0,AG35-AI35) -> 12570 | AL35: 0 | AM35: 0 | AN35: 0 | AR35: Basic Rate | AS35: =MAX(0,AV26-SUM(AU33:AU34)) -> 37700 | AT35: =MAX(0,AT34-AU34) -> 0 | AU35: 0 | AV35: =MAX(0,AS35-AU35) -> 37700 | AY35: Basic Rate | AZ35: =MAX(0,BC26-SUM(BB33:BB34)) -> 37700 | BA35: =MAX(0,BA34-BB34) -> 0 | BB35: 0 | BC35: =MAX(0,AZ35-BB35) -> 37700 | BK35: Basic Rate | BL35: 0 | BM35: @ | BN35: 0.22 | BO35: 0 | BQ35: Personal Allowance | BR35: =BU25 -> 12570 | BS35: =MAX(0,BS34-BT34) -> 0 | BT35: 0 | BU35: =MAX(0,BR35-BT35) -> 12570 | BW35: 0 | BX35: 0 | BY35: 0 | CC35: Basic Rate | CD35: =MAX(0,CG26-SUM(CF33:CF34)) -> 37700 | CE35: =MAX(0,CE34-CF34) -> 0 | CF35: 0 | CG35: =MAX(0,CD35-CF35) -> 37700 | CJ35: Basic Rate | CK35: =MAX(0,CN26-SUM(CM33:CM34)) -> 37700 | CL35: =MAX(0,CL34-CM34) -> 0 | CM35: 0 | CN35: =MAX(0,CK35-CM35) -> 37700 | CV35: Basic Rate | CW35: 0 | CX35: @ | CY35: 0.22 | CZ35: 0
C36: PA standard | D36: ='Parameters_Inc Calcs'!D25 -> 12570 | E36: PA standard | F36: =D36 -> 12570 | I36: Basic Rate | J36: =MAX(0,M26-SUM(L33:L34)) -> 37700 | K36: =MAX(0,K35-L35) -> 0 | L36: 0 | M36: =MAX(0,J36-L36) -> 37700 | P36: Basic Rate | Q36: =MAX(0,T26-SUM(S33:S34)) -> 37700 | R36: =MAX(0,R35-S35) -> 0 | S36: 0 | T36: =MAX(0,Q36-S36) -> 37700 | W36: =$L$36*Z36 -> 0 | X36: 0 | Y36: 0 | Z36: ='Parameters_Inc Calcs'!$E$4 -> 0.22 | AA36: 0 | AF36: Basic Rate | AG36: =MAX(0,AJ26-SUM(AI33:AI34)) -> 37700 | AH36: =MAX(0,AH35-AI35) -> 0 | AI36: 0 | AJ36: =MAX(0,AG36-AI36) -> 37700 | AK36: =MIN(AJ27,MAX(0,AI34-AJ26)) -> 0 | AL36: 0 | AM36: ='Parameters_Inc Calcs'!$E$4 -> 0.22 | AN36: 0 | AR36: Higher Rate | AS36: =AV27-AW36 -> 87440 | AT36: =MAX(0,AT35-AU35) -> 0 | AU36: 0 | AV36: =MAX(0,AS36-AU36) -> 87440 | AW36: =MIN(AV27,MAX(0,AU34-AV26)) -> 0 | AY36: Higher Rate | AZ36: =BC27-BD36 -> 87440 | BA36: =MAX(0,BA35-BB35) -> 0 | BB36: 0 | BC36: =MAX(0,AZ36-BB36) -> 87440 | BD36: =MIN(BC27,MAX(0,BB34-BC26)) -> 0 | BK36: Higher Rate | BL36: 0 | BM36: @ | BN36: 0.42 | BO36: 0 | BQ36: Basic Rate | BR36: =MAX(0,BU26-SUM(BT33:BT34)) -> 37700 | BS36: =MAX(0,BS35-BT35) -> 0 | BT36: 0 | BU36: =MAX(0,BR36-BT36) -> 37700 | BV36: =MIN(BU27,MAX(0,BT34-BU26)) -> 0 | BW36: 0 | BX36: ='Parameters_Inc Calcs'!$E$4 -> 0.22 | BY36: 0 | CC36: Higher Rate | CD36: =CG27-CH36 -> 87440 | CE36: =MAX(0,CE35-CF35) -> 0 | CF36: 0 | CG36: =MAX(0,CD36-CF36) -> 87440 | CH36: =MIN(CG27,MAX(0,CF34-CG26)) -> 0 | CJ36: Higher Rate | CK36: =CN27-CO36 -> 87440 | CL36: =MAX(0,CL35-CM35) -> 0 | CM36: 0 | CN36: =MAX(0,CK36-CM36) -> 87440 | CO36: =MIN(CN27,MAX(0,CM34-CN26)) -> 0 | CV36: Higher Rate | CW36: 0 | CX36: @ | CY36: 0.42 | CZ36: 0
I37: Higher Rate | J37: =M27-N37 -> 87440 | K37: =MAX(0,K36-L36) -> 0 | L37: 0 | M37: =MAX(0,J37-L37) -> 87440 | N37: =MIN(M27,MAX(0,L34-M26)) -> 0 | P37: Higher Rate | Q37: =T27-U37 -> 87440 | R37: =MAX(0,R36-S36) -> 0 | S37: 0 | T37: =MAX(0,Q37-S37) -> 87440 | U37: =MIN(T27,MAX(0,S34-T26)) -> 0 | W37: =$L$37*Z37 -> 0 | X37: 0 | Y37: 0 | Z37: ='Parameters_Inc Calcs'!$E$5 -> 0.42 | AA37: 0 | AF37: Higher Rate | AG37: =AJ27-AK36 -> 87440 | AH37: =MAX(0,AH36-AI36) -> 0 | AI37: 0 | AJ37: =MAX(0,AG37-AI37) -> 87440 | AL37: 0 | AM37: ='Parameters_Inc Calcs'!$E$5 -> 0.42 | AN37: 0 | AR37: Additional Rate | AT37: =MAX(0,AT36-AU36) -> 0 | AU37: 0 | AY37: Additional Rate | BA37: =MAX(0,BA36-BB36) -> 0 | BB37: 0 | BK37: Additional Rate | BL37: 0 | BM37: @ | BN37: 0.47 | BO37: 0 | BQ37: Higher Rate | BR37: =BU27-BV36 -> 87440 | BS37: =MAX(0,BS36-BT36) -> 0 | BT37: 0 | BU37: =MAX(0,BR37-BT37) -> 87440 | BW37: 0 | BX37: ='Parameters_Inc Calcs'!$E$5 -> 0.42 | BY37: 0 | CC37: Additional Rate | CE37: =MAX(0,CE36-CF36) -> 0 | CF37: 0 | CJ37: Additional Rate | CL37: =MAX(0,CL36-CM36) -> 0 | CM37: 0 | CV37: Additional Rate | CW37: 0 | CX37: @ | CY37: 0.47 | CZ37: 0
C38: PSA Basic | D38: ='Parameters_Inc Calcs'!$C$9 -> 1000 | E38: PSA Basic | F38: ='Parameters_Inc Calcs'!$C$9 -> 1000 | I38: Additional Rate | K38: =MAX(0,K37-L37) -> 0 | L38: 0 | P38: Additional Rate | R38: =MAX(0,R37-S37) -> 0 | S38: 0 | W38: =$L$38*Z38 -> 0 | X38: 0 | Y38: 0 | Z38: ='Parameters_Inc Calcs'!$E$8 -> 0.47 | AA38: 0 | AF38: Additional Rate | AH38: =MAX(0,AH37-AI37) -> 0 | AI38: 0 | AJ38: NA | AL38: 0 | AM38: ='Parameters_Inc Calcs'!$E$8 -> 0.47 | AN38: 0 | AO38: =SUM(AN32:AN38) -> 0 | AP38: =AO38-W39 -> 0 | BK38: Total Liability | BO38: =SUM(BO33:BO37) -> 0 | BQ38: Additional Rate | BS38: =MAX(0,BS37-BT37) -> 0 | BT38: 0 | BU38: NA | BW38: 0 | BX38: ='Parameters_Inc Calcs'!$E$8 -> 0.47 | BY38: 0 | BZ38: =SUM(BY33:BY38) -> 0 | CA38: =BZ38-W39 -> 0 | CV38: Total Liability | CZ38: =SUM(CZ33:CZ37) -> 0
C39: PSA Higher | D39: ='Parameters_Inc Calcs'!$C$10 -> 500 | E39: PSA Higher | F39: ='Parameters_Inc Calcs'!$C$10 -> 500 | W39: =SUM(W33:W38) -> 0 | X39: =SUM(X33:X38) -> 0 | Y39: =SUM(Y33:Y38) -> 0 | AA39: =SUM(AA33:AA38) -> 0 | BK39: Tax Credit | BO39: =(BL30-BL32)*BN35 -> 0 | CV39: Tax Credit | CZ39: =(CW30-CW32)*CY35 -> 0
C40: PSA Add | D40: ='Parameters_Inc Calcs'!$C$11 -> 0 | E40: PSA Add | F40: ='Parameters_Inc Calcs'!$C$11 -> 0 | I40: Dividend Income Tax Band Apportionment | P40: Dividend Income Tax Band Apportionment | AF40: Dividend Income Tax Band Apportionment | AR40: Dividend Income Tax Band Apportionment | AY40: Dividend Income Tax Band Apportionment | BK40: Relieved Liability on Slice | BO40: =MAX(0,BO38-BO39) -> 0 | BQ40: Dividend Income Tax Band Apportionment | CC40: Dividend Income Tax Band Apportionment | CJ40: Dividend Income Tax Band Apportionment | CV40: Relieved Liability on Slice | CZ40: =MAX(0,CZ38-CZ39) -> 0
J41: Allowances | K41: Still to tax | L41: Used | M41: Unused | Q41: Allowances | R41: Still to tax | S41: Used | T41: Unused | W41: Before | X41: After | Y41: Amount | Z41: Rate | AA41: Add Tax | AG41: Allowances | AH41: Still to tax | AI41: Used | AJ41: Unused | AL41: Amount | AM41: Rate | AN41: Tax | AS41: Allowances | AT41: Still to tax | AU41: Used | AV41: Unused | AZ41: Allowances | BA41: Still to tax | BB41: Used | BC41: Unused | BK41: Derived years (N) | BO41: =IF(BL17=0,0,BL17/BL30) -> 0 | BR41: Allowances | BS41: Still to tax | BT41: Used | BU41: Unused | BW41: Amount | BX41: Rate | BY41: Tax | CD41: Allowances | CE41: Still to tax | CF41: Used | CG41: Unused | CK41: Allowances | CL41: Still to tax | CM41: Used | CN41: Unused | CV41: Derived years (N) | CZ41: =IF(CW17=0,0,CW17/CW30) -> 0
C42: Starting Rate for Savings | D42: ='Parameters_Inc Calcs'!C12 -> 5000 | E42: Starting Rate for Savings | F42: ='Parameters_Inc Calcs'!C12 -> 5000 | I42: Dividend Allowance | J42: =D47 -> 500 | K42: =D16 -> 0 | L42: =MIN(J42,K42) -> 0 | M42: =MAX(0,J42-L42) -> 500 | N42: Higher Rate Adjustment for PSA and SRS Bands | P42: Dividend Allowance | Q42: =D47 -> 500 | R42: =F16+F18 -> 0 | S42: =MIN(Q42,R42) -> 0 | T42: =MAX(0,Q42-S42) -> 500 | U42: Higher Rate Adjustment for PSA and SRS Bands | W42: =$L$42*Z42 -> 0 | X42: =S42*Z42 -> 0 | Y42: =S42-L42 -> 0 | Z42: 0 | AA42: =Y42*Z42 -> 0 | AF42: Dividend Allowance | AG42: ='Parameters_Inc Calcs'!$C$15 -> 500 | AH42: =AG6 -> 0 | AI42: =MIN(AG42,AH42) -> 0 | AJ42: =MAX(0,AG42-AI42) -> 500 | AL42: =AI42 -> 0 | AM42: 0 | AN42: =AL42*AM42 -> 0 | AR42: Personal Allowance | AS42: =AV32 -> 12570 | AT42: =AG6 -> 0 | AU42: =MIN(AS42,AT42) -> 0 | AV42: =MAX(0,AS42-AU42) -> 12570 | AY42: Personal Allowance | AZ42: =BC32 -> 12570 | BA42: =AZ6 -> 0 | BB42: =MIN(AZ42,BA42) -> 0 | BC42: =MAX(0,AZ42-BB42) -> 12570 | BK42: Relieved Liability on Slice x N | BO42: =BO40*BO41 -> 0 | BQ42: Dividend Allowance | BR42: ='Parameters_Inc Calcs'!$C$15 -> 500 | BS42: =BR6 -> 0 | BT42: =MIN(BR42,BS42) -> 0 | BU42: =MAX(0,BR42-BT42) -> 500 | BW42: =BT42 -> 0 | BX42: 0 | BY42: =BW42*BX42 -> 0 | CC42: Personal Allowance | CD42: =CG32 -> 12570 | CE42: =BR6 -> 0 | CF42: =MIN(CD42,CE42) -> 0 | CG42: =MAX(0,CD42-CF42) -> 12570 | CJ42: Personal Allowance | CK42: =CN32 -> 12570 | CL42: =CK6 -> 0 | CM42: =MIN(CK42,CL42) -> 0 | CN42: =MAX(0,CK42-CM42) -> 12570 | CV42: Relieved Liability on Slice x N | CZ42: =CZ40*CZ41 -> 0
C43: Available | D43: =MAX(0,MIN(D42,(D27+D42)-D14)) -> 5000 | E43: Available | F43: =MAX(0,MIN(F42,(F27+F42)-F14)) -> 5000 | I43: Personal Allowance | J43: =M35 -> 12570 | K43: =MAX(0,K42-L42) -> 0 | L43: =MIN(J43,K43) -> 0 | M43: =MAX(0,J43-L43) -> 12570 | P43: Personal Allowance | Q43: =T35 -> 12570 | R43: =MAX(0,R42-S42) -> 0 | S43: =MIN(Q43,R43) -> 0 | T43: =MAX(0,Q43-S43) -> 12570 | W43: =$L$43*Z43 -> 0 | X43: =S43*Z43 -> 0 | Y43: =S43-L43 -> 0 | Z43: 0 | AA43: =Y43*Z43 -> 0 | AF43: Personal Allowance | AG43: =AJ35 -> 12570 | AH43: =MAX(0,AH42-AI42) -> 0 | AI43: =MIN(AG43,AH43) -> 0 | AJ43: =MAX(0,AG43-AI43) -> 12570 | AL43: =AI43 -> 0 | AM43: 0 | AN43: =AL43*AM43 -> 0 | AR43: Dividend Allowance | AS43: ='Parameters_Inc Calcs'!$C$15 -> 500 | AT43: =MAX(0,AT42-AU42) -> 0 | AU43: =MIN(AS43,AT43) -> 0 | AV43: =MAX(0,AS43-AU43) -> 500 | AY43: Dividend Allowance | AZ43: ='Parameters_Inc Calcs'!$C$15 -> 500 | BA43: =MAX(0,BA42-BB42) -> 0 | BB43: =MIN(AZ43,BA43) -> 0 | BC43: =MAX(0,AZ43-BB43) -> 500 | BQ43: Personal Allowance | BR43: =BU35 -> 12570 | BS43: =MAX(0,BS42-BT42) -> 0 | BT43: =MIN(BR43,BS43) -> 0 | BU43: =MAX(0,BR43-BT43) -> 12570 | BW43: =BT43 -> 0 | BX43: 0 | BY43: =BW43*BX43 -> 0 | CC43: Dividend Allowance | CD43: ='Parameters_Inc Calcs'!$C$15 -> 500 | CE43: =MAX(0,CE42-CF42) -> 0 | CF43: =MIN(CD43,CE43) -> 0 | CG43: =MAX(0,CD43-CF43) -> 500 | CJ43: Dividend Allowance | CK43: ='Parameters_Inc Calcs'!$C$15 -> 500 | CL43: =MAX(0,CL42-CM42) -> 0 | CM43: =MIN(CK43,CL43) -> 0 | CN43: =MAX(0,CK43-CM43) -> 500
I44: Basic Rate | J44: =MAX(0,M36-L42) -> 37700 | K44: =MAX(0,K43-L43) -> 0 | L44: =MIN(J44,K44) -> 0 | M44: =MAX(0,J44-L44) -> 37700 | P44: Basic Rate | Q44: =MAX(0,T36-S42) -> 37700 | R44: =MAX(0,R43-S43) -> 0 | S44: =MIN(Q44,R44) -> 0 | T44: =MAX(0,Q44-S44) -> 37700 | W44: =$L$44*Z44 -> 0 | X44: =S44*Z44 -> 0 | Y44: =S44-L44 -> 0 | Z44: ='Parameters_Inc Calcs'!$D$4 -> 0.1075 | AA44: =Y44*Z44 -> 0 | AF44: Basic Rate | AG44: =MAX(0,AJ36-AI42) -> 37700 | AH44: =MAX(0,AH43-AI43) -> 0 | AI44: =MIN(AG44,AH44) -> 0 | AJ44: =MAX(0,AG44-AI44) -> 37700 | AK44: =MIN(AJ37,MAX(0,AI42-AJ36)) -> 0 | AL44: =AI44 -> 0 | AM44: ='Parameters_Inc Calcs'!$D$4 -> 0.1075 | AN44: =AL44*AM44 -> 0 | AR44: Basic Rate | AS44: =MAX(0,AV35-AU43) -> 37700 | AT44: =MAX(0,AT43-AU43) -> 0 | AU44: =MIN(AS44,AT44) -> 0 | AV44: =MAX(0,AS44-AU44) -> 37700 | AY44: Basic Rate | AZ44: =MAX(0,BC35-BB43) -> 37700 | BA44: =MAX(0,BA43-BB43) -> 0 | BB44: =MIN(AZ44,BA44) -> 0 | BC44: =MAX(0,AZ44-BB44) -> 37700 | BK44: Top Slicing Relief | BQ44: Basic Rate | BR44: =MAX(0,BU36-BT42) -> 37700 | BS44: =MAX(0,BS43-BT43) -> 0 | BT44: =MIN(BR44,BS44) -> 0 | BU44: =MAX(0,BR44-BT44) -> 37700 | BV44: =MIN(BU37,MAX(0,BT42-BU36)) -> 0 | BW44: =BT44 -> 0 | BX44: ='Parameters_Inc Calcs'!$D$4 -> 0.1075 | BY44: =BW44*BX44 -> 0 | CC44: Basic Rate | CD44: =MAX(0,CG35-CF43) -> 37700 | CE44: =MAX(0,CE43-CF43) -> 0 | CF44: =MIN(CD44,CE44) -> 0 | CG44: =MAX(0,CD44-CF44) -> 37700 | CJ44: Basic Rate | CK44: =MAX(0,CN35-CM43) -> 37700 | CL44: =MAX(0,CL43-CM43) -> 0 | CM44: =MIN(CK44,CL44) -> 0 | CN44: =MAX(0,CK44-CM44) -> 37700 | CV44: Top Slicing Relief
C45: PSA | D45: =IF(D19>D34,D40,IF(D19>D32,D39,D38)) -> 1000 | E45: PSA | F45: =IF(F19>F34,F40,IF(F19>F32,F39,F38)) -> 1000 | I45: Higher Rate | J45: =M37-N45 -> 87440 | K45: =MAX(0,K44-L44) -> 0 | L45: =MIN(J45,K45) -> 0 | M45: =MAX(0,J45-L45) -> 87440 | N45: =MIN(M27,MAX(L42-M26,0)) -> 0 | P45: Higher Rate | Q45: =T37-U45 -> 87440 | R45: =MAX(0,R44-S44) -> 0 | S45: =MIN(Q45,R45) -> 0 | T45: =MAX(0,Q45-S45) -> 87440 | U45: =MIN(T27,MAX(S42-T26,0)) -> 0 | W45: =$L$45*Z45 -> 0 | X45: =S45*Z45 -> 0 | Y45: =S45-L45 -> 0 | Z45: ='Parameters_Inc Calcs'!$D$5 -> 0.3575 | AA45: =Y45*Z45 -> 0 | AF45: Higher Rate | AG45: =AJ37-AK44 -> 87440 | AH45: =MAX(0,AH44-AI44) -> 0 | AI45: =MIN(AG45,AH45) -> 0 | AJ45: =MAX(0,AG45-AI45) -> 87440 | AL45: =AI45 -> 0 | AM45: ='Parameters_Inc Calcs'!$D$5 -> 0.3575 | AN45: =AL45*AM45 -> 0 | AR45: Higher Rate | AS45: =AV36-AW45 -> 87440 | AT45: =MAX(0,AT44-AU44) -> 0 | AU45: =MIN(AS45,AT45) -> 0 | AV45: =MAX(0,AS45-AU45) -> 87440 | AW45: =MIN(AV36,MAX(0,AU43-AV35)) -> 0 | AY45: Higher Rate | AZ45: =BC36-BD45 -> 87440 | BA45: =MAX(0,BA44-BB44) -> 0 | BB45: =MIN(AZ45,BA45) -> 0 | BC45: =MAX(0,AZ45-BB45) -> 87440 | BD45: =MIN(BC36,MAX(0,BB43-BC35)) -> 0 | BJ45: Step 5 | BK45: Relieved liability on full gain | BO45: =BO27 -> 0 | BP45: a | BQ45: Higher Rate | BR45: =BU37-BV44 -> 87440 | BS45: =MAX(0,BS44-BT44) -> 0 | BT45: =MIN(BR45,BS45) -> 0 | BU45: =MAX(0,BR45-BT45) -> 87440 | BW45: =BT45 -> 0 | BX45: ='Parameters_Inc Calcs'!$D$5 -> 0.3575 | BY45: =BW45*BX45 -> 0 | CC45: Higher Rate | CD45: =CG36-CH45 -> 87440 | CE45: =MAX(0,CE44-CF44) -> 0 | CF45: =MIN(CD45,CE45) -> 0 | CG45: =MAX(0,CD45-CF45) -> 87440 | CH45: =MIN(CG36,MAX(0,CF43-CG35)) -> 0 | CJ45: Higher Rate | CK45: =CN36-CO45 -> 87440 | CL45: =MAX(0,CL44-CM44) -> 0 | CM45: =MIN(CK45,CL45) -> 0 | CN45: =MAX(0,CK45-CM45) -> 87440 | CO45: =MIN(CN36,MAX(0,CM43-CN35)) -> 0 | CU45: Step 5 | CV45: Relieved liability on full gain | CZ45: =CZ27 -> 0 | DA45: a
I46: Additional Rate | K46: =MAX(0,K45-L45) -> 0 | L46: =MIN(J46,K46) -> 0 | M46: NA | P46: Additional Rate | R46: =MAX(0,R45-S45) -> 0 | S46: =MIN(Q46,R46) -> 0 | T46: NA | W46: =$L$46*Z46 -> 0 | X46: =S46*Z46 -> 0 | Y46: =S46-L46 -> 0 | Z46: ='Parameters_Inc Calcs'!$D$8 -> 0.3935 | AA46: =Y46*Z46 -> 0 | AF46: Additional Rate | AH46: =MAX(0,AH45-AI45) -> 0 | AI46: =MIN(AG46,AH46) -> 0 | AJ46: NA | AL46: =AI46 -> 0 | AM46: ='Parameters_Inc Calcs'!$D$8 -> 0.3935 | AN46: =AL46*AM46 -> 0 | AO46: =SUM(AN42:AN46) -> 0 | AP46: =AO46-W47 -> 0 | AR46: Additional Rate | AT46: =MAX(0,AT45-AU45) -> 0 | AU46: =MIN(AS46,AT46) -> 0 | AY46: Additional Rate | BA46: =MAX(0,BA45-BB45) -> 0 | BB46: =MIN(AZ46,BA46) -> 0 | BK46: =BK42 -> Relieved Liability on Slice x N | BO46: =BO42 -> 0 | BP46: b | BQ46: Additional Rate | BS46: =MAX(0,BS45-BT45) -> 0 | BT46: =MIN(BR46,BS46) -> 0 | BU46: NA | BW46: =BT46 -> 0 | BX46: ='Parameters_Inc Calcs'!$D$8 -> 0.3935 | BY46: =BW46*BX46 -> 0 | BZ46: =SUM(BY42:BY46) -> 0 | CA46: =BZ46-W47 -> 0 | CC46: Additional Rate | CE46: =MAX(0,CE45-CF45) -> 0 | CF46: =MIN(CD46,CE46) -> 0 | CJ46: Additional Rate | CL46: =MAX(0,CL45-CM45) -> 0 | CM46: =MIN(CK46,CL46) -> 0 | CV46: =CV42 -> Relieved Liability on Slice x N | CZ46: =CZ42 -> 0 | DA46: b
C47: Div All | D47: ='Parameters_Inc Calcs'!C15 -> 500 | I47: Nil Rate available | J47: =J42+J43 -> 13070 | P47: Nil Rate available | Q47: =Q42+Q43 -> 13070 | W47: =SUM(W42:W46) -> 0 | X47: =SUM(X42:X46) -> 0 | Y47: =SUM(Y42:Y46) -> 0 | AA47: =SUM(AA42:AA46) -> 0 | AC47: External Tax Rate | BK47: Top Slice Relief (a-b) | BO47: =MAX(0,BO45-BO46) -> 0 | CV47: Top Slice Relief (a-b) | CZ47: =MAX(0,CZ45-CZ46) -> 0
C48: CGT All | D48: ='Parameters_Inc Calcs'!D16 -> 3000 | AR48: Total Gain Tax Band Apportionment | AY48: Total Gain Tax Band Apportionment | CC48: Total Gain Tax Band Apportionment | CJ48: Total Gain Tax Band Apportionment
I49: Onshore Bond Gain Tax Band Apportionment | P49: Onshore Bond Gain Tax Band Apportionment | AF49: Onshore Bond Gain Tax Band Apportionment | AS49: Allowances | AT49: Still to tax | AU49: Used | AV49: Unused | AZ49: Allowances | BA49: Still to tax | BB49: Used | BC49: Unused | BQ49: Onshore Bond Gain Tax Band Apportionment | CD49: Allowances | CE49: Still to tax | CF49: Used | CG49: Unused | CK49: Allowances | CL49: Still to tax | CM49: Used | CN49: Unused
W50: Before | X50: After | Y50: Amount | Z50: Rate | AA50: Add Tax | AG50: Allowances | AH50: Still to tax | AI50: Used | AJ50: Unused | AL50: Amount | AM50: Rate | AN50: Tax | AR50: Personal Allowance | AS50: =AV42 -> 12570 | AT50: =AG3 -> 0 | AU50: =MIN(AS50,AT50) -> 0 | AV50: =MAX(0,AS50-AU50) -> 12570 | AY50: Personal Allowance | AZ50: =BC42 -> 12570 | BA50: =AZ3 -> 0 | BB50: =MIN(AZ50,BA50) -> 0 | BC50: =MAX(0,AZ50-BB50) -> 12570 | BR50: Allowances | BS50: Still to tax | BT50: Used | BU50: Unused | BW50: Amount | BX50: Rate | BY50: Tax | CC50: Personal Allowance | CD50: =CG42 -> 12570 | CE50: =BR3 -> 0 | CF50: =MIN(CD50,CE50) -> 0 | CG50: =MAX(0,CD50-CF50) -> 12570 | CJ50: Personal Allowance | CK50: =CN42 -> 12570 | CL50: =CK3 -> 0 | CM50: =MIN(CK50,CL50) -> 0 | CN50: =MAX(0,CK50-CM50) -> 12570
I51: Starting Rate | J51: =MAX(0,M33-N51) -> 5000 | K51: 0 | L51: =MIN(K51,J51) -> 0 | M51: =MAX(0,J51-L51) -> 5000 | N51: =L42+L44 -> 0 | P51: Starting Rate | Q51: =MAX(0,T33-U51) -> 5000 | R51: 0 | S51: =MIN(R51,Q51) -> 0 | T51: =MAX(0,Q51-S51) -> 5000 | U51: =S42+S44 -> 0 | W51: =$L$51*Z51 -> 0 | X51: =S51*Z51 -> 0 | Y51: =S51-L51 -> 0 | Z51: 0 | AA51: =Y51*Z51 -> 0 | AF51: Starting Rate | AG51: =MAX(0,AJ33-AK51) -> 5000 | AH51: =AG3 -> 0 | AI51: =MIN(AH51,AG51) -> 0 | AJ51: =MAX(0,AG51-AI51) -> 5000 | AK51: =AI42+AI44 -> 0 | AL51: =AI51 -> 0 | AM51: 0 | AN51: =AL51*AM51 -> 0 | AR51: Starting Rate | AS51: =MAX(0,AV33-AW51) -> 5000 | AT51: =MAX(0,AT50-AU50) -> 0 | AU51: 0 | AV51: =MAX(0,AS51-AU51) -> 5000 | AW51: =AU43+AU44 -> 0 | AY51: Starting Rate | AZ51: =MAX(0,BC33-BD51) -> 5000 | BA51: =MAX(0,BA50-BB50) -> 0 | BB51: 0 | BC51: =MAX(0,AZ51-BB51) -> 5000 | BD51: =BB43+BB44 -> 0 | BQ51: Starting Rate | BR51: =MAX(0,BU33-BV51) -> 5000 | BS51: 0 | BT51: =MIN(BS51,BR51) -> 0 | BU51: =MAX(0,BR51-BT51) -> 5000 | BV51: =BT42+BT44 -> 0 | BW51: =BT51 -> 0 | BX51: 0 | BY51: =BW51*BX51 -> 0 | CC51: Starting Rate | CD51: =MAX(0,CG33-CH51) -> 5000 | CE51: =MAX(0,CE50-CF50) -> 0 | CF51: 0 | CG51: =MAX(0,CD51-CF51) -> 5000 | CH51: =CF43+CF44 -> 0 | CJ51: Starting Rate | CK51: =MAX(0,CN33-CO51) -> 5000 | CL51: =MAX(0,CL50-CM50) -> 0 | CM51: 0 | CN51: =MAX(0,CK51-CM51) -> 5000 | CO51: =CM43+CM44 -> 0
I52: Personal Savings Allowance | J52: =M34 -> 1000 | K52: =MAX(0,K51-L51) -> 0 | L52: 0 | M52: =MAX(0,J52-L52) -> 1000 | P52: Personal Savings Allowance | Q52: =T34 -> 1000 | R52: =MAX(0,R51-S51) -> 0 | S52: 0 | T52: =MAX(0,Q52-S52) -> 1000 | W52: =$L$52*Z52 -> 0 | X52: 0 | Y52: 0 | Z52: 0 | AA52: 0 | AF52: Personal Savings Allowance | AG52: =AJ34 -> 1000 | AH52: =MAX(0,AH51-AI51) -> 0 | AI52: 0 | AJ52: =MAX(0,AG52-AI52) -> 1000 | AL52: 0 | AM52: 0 | AN52: 0 | AR52: Personal Savings Allowance | AS52: =AV34 -> 1000 | AT52: =MAX(0,AT51-AU51) -> 0 | AU52: 0 | AV52: =MAX(0,AS52-AU52) -> 1000 | AY52: Personal Savings Allowance | AZ52: =BC34 -> 1000 | BA52: =MAX(0,BA51-BB51) -> 0 | BB52: 0 | BC52: =MAX(0,AZ52-BB52) -> 1000 | BQ52: Personal Savings Allowance | BR52: =BU34 -> 1000 | BS52: =MAX(0,BS51-BT51) -> 0 | BT52: 0 | BU52: =MAX(0,BR52-BT52) -> 1000 | BW52: 0 | BX52: 0 | BY52: 0 | CC52: Personal Savings Allowance | CD52: =CG34 -> 1000 | CE52: =MAX(0,CE51-CF51) -> 0 | CF52: 0 | CG52: =MAX(0,CD52-CF52) -> 1000 | CJ52: Personal Savings Allowance | CK52: =CN34 -> 1000 | CL52: =MAX(0,CL51-CM51) -> 0 | CM52: 0 | CN52: =MAX(0,CK52-CM52) -> 1000
I53: Personal Allowance | J53: =M43 -> 12570 | K53: =MAX(0,K52-L52) -> 0 | L53: 0 | M53: =MAX(0,J53-L53) -> 12570 | P53: Personal Allowance | Q53: =T43 -> 12570 | R53: =MAX(0,R52-S52) -> 0 | S53: 0 | T53: =MAX(0,Q53-S53) -> 12570 | W53: =$L$53*Z53 -> 0 | X53: 0 | Y53: 0 | Z53: 0 | AA53: 0 | AF53: Personal Allowance | AG53: =AJ43 -> 12570 | AH53: =MAX(0,AH52-AI52) -> 0 | AI53: 0 | AJ53: =MAX(0,AG53-AI53) -> 12570 | AL53: 0 | AM53: 0 | AN53: 0 | AR53: Basic Rate | AS53: =MAX(0,AV44-SUM(AU51:AU52)) -> 37700 | AT53: =MAX(0,AT52-AU52) -> 0 | AU53: 0 | AV53: =MAX(0,AS53-AU53) -> 37700 | AY53: Basic Rate | AZ53: =MAX(0,BC44-SUM(BB51:BB52)) -> 37700 | BA53: =MAX(0,BA52-BB52) -> 0 | BB53: 0 | BC53: =MAX(0,AZ53-BB53) -> 37700 | BQ53: Personal Allowance | BR53: =BU43 -> 12570 | BS53: =MAX(0,BS52-BT52) -> 0 | BT53: 0 | BU53: =MAX(0,BR53-BT53) -> 12570 | BW53: 0 | BX53: 0 | BY53: 0 | CC53: Basic Rate | CD53: =MAX(0,CG44-SUM(CF51:CF52)) -> 37700 | CE53: =MAX(0,CE52-CF52) -> 0 | CF53: 0 | CG53: =MAX(0,CD53-CF53) -> 37700 | CJ53: Basic Rate | CK53: =MAX(0,CN44-SUM(CM51:CM52)) -> 37700 | CL53: =MAX(0,CL52-CM52) -> 0 | CM53: 0 | CN53: =MAX(0,CK53-CM53) -> 37700
I54: Basic Rate | J54: =MAX(0,M44-SUM(L51:L52)) -> 37700 | K54: =MAX(0,K53-L53) -> 0 | L54: 0 | M54: =MAX(0,J54-L54) -> 37700 | P54: Basic Rate | Q54: =MAX(0,T44-SUM(S51:S52)) -> 37700 | R54: =MAX(0,R53-S53) -> 0 | S54: 0 | T54: =MAX(0,Q54-S54) -> 37700 | W54: =$L$54*Z54 -> 0 | X54: 0 | Y54: 0 | Z54: ='Parameters_Inc Calcs'!$E$4 -> 0.22 | AA54: 0 | AF54: Basic Rate | AG54: =MAX(0,AJ44-SUM(AI51:AI52)) -> 37700 | AH54: =MAX(0,AH53-AI53) -> 0 | AI54: 0 | AJ54: =MAX(0,AG54-AI54) -> 37700 | AL54: 0 | AM54: ='Parameters_Inc Calcs'!$E$4 -> 0.22 | AN54: 0 | AR54: Higher Rate | AS54: =AV45-AW54 -> 87440 | AT54: =MAX(0,AT53-AU53) -> 0 | AU54: 0 | AV54: =MAX(0,AS54-AU54) -> 87440 | AW54: =MIN(AV45,MAX(0,AU52-AV44)) -> 0 | AY54: Higher Rate | AZ54: =BC45-BD54 -> 87440 | BA54: =MAX(0,BA53-BB53) -> 0 | BB54: 0 | BC54: =MAX(0,AZ54-BB54) -> 87440 | BD54: =MIN(BC45,MAX(0,BB52-BC44)) -> 0 | BQ54: Basic Rate | BR54: =MAX(0,BU44-SUM(BT51:BT52)) -> 37700 | BS54: =MAX(0,BS53-BT53) -> 0 | BT54: 0 | BU54: =MAX(0,BR54-BT54) -> 37700 | BW54: 0 | BX54: ='Parameters_Inc Calcs'!$E$4 -> 0.22 | BY54: 0 | CC54: Higher Rate | CD54: =CG45-CH54 -> 87440 | CE54: =MAX(0,CE53-CF53) -> 0 | CF54: 0 | CG54: =MAX(0,CD54-CF54) -> 87440 | CH54: =MIN(CG45,MAX(0,CF52-CG44)) -> 0 | CJ54: Higher Rate | CK54: =CN45-CO54 -> 87440 | CL54: =MAX(0,CL53-CM53) -> 0 | CM54: 0 | CN54: =MAX(0,CK54-CM54) -> 87440 | CO54: =MIN(CN45,MAX(0,CM52-CN44)) -> 0
I55: Higher Rate | J55: =M45-N55 -> 87440 | K55: =MAX(0,K54-L54) -> 0 | L55: 0 | M55: =MAX(0,J55-L55) -> 87440 | N55: =MIN(M45,MAX(0,L52-M44)) -> 0 | P55: Higher Rate | Q55: =T45-U55 -> 87440 | R55: =MAX(0,R54-S54) -> 0 | S55: 0 | T55: =MAX(0,Q55-S55) -> 87440 | U55: =MIN(T45,MAX(0,S52-T44)) -> 0 | W55: =$L$55*Z55 -> 0 | X55: 0 | Y55: 0 | Z55: ='Parameters_Inc Calcs'!$E$5 -> 0.42 | AA55: 0 | AF55: Higher Rate | AG55: =AJ45-AK55 -> 87440 | AH55: =MAX(0,AH54-AI54) -> 0 | AI55: 0 | AJ55: =MAX(0,AG55-AI55) -> 87440 | AK55: =MIN(AJ45,MAX(0,AI52-AJ44)) -> 0 | AL55: 0 | AM55: ='Parameters_Inc Calcs'!$E$5 -> 0.42 | AN55: 0 | AR55: Additional Rate | AT55: =MAX(0,AT54-AU54) -> 0 | AU55: 0 | AY55: Additional Rate | BA55: =MAX(0,BA54-BB54) -> 0 | BB55: 0 | BQ55: Higher Rate | BR55: =BU45-BV55 -> 87440 | BS55: =MAX(0,BS54-BT54) -> 0 | BT55: 0 | BU55: =MAX(0,BR55-BT55) -> 87440 | BV55: =MIN(BU45,MAX(0,BT52-BU44)) -> 0 | BW55: 0 | BX55: ='Parameters_Inc Calcs'!$E$5 -> 0.42 | BY55: 0 | CC55: Additional Rate | CE55: =MAX(0,CE54-CF54) -> 0 | CF55: 0 | CJ55: Additional Rate | CL55: =MAX(0,CL54-CM54) -> 0 | CM55: 0
I56: Additional Rate | K56: =MAX(0,K55-L55) -> 0 | L56: 0 | P56: Additional Rate | R56: =MAX(0,R55-S55) -> 0 | S56: 0 | W56: =$L$56*Z56 -> 0 | X56: 0 | Y56: 0 | Z56: ='Parameters_Inc Calcs'!$E$8 -> 0.47 | AA56: 0 | AF56: Additional Rate | AH56: =MAX(0,AH55-AI55) -> 0 | AI56: 0 | AL56: 0 | AM56: ='Parameters_Inc Calcs'!$E$8 -> 0.47 | AN56: 0 | AO56: =SUM(AN51:AN56) -> 0 | AP56: =AO56-W57 -> 0 | BQ56: Additional Rate | BS56: =MAX(0,BS55-BT55) -> 0 | BT56: 0 | BW56: 0 | BX56: ='Parameters_Inc Calcs'!$E$8 -> 0.47 | BY56: 0 | BZ56: =SUM(BY51:BY56) -> 0 | CA56: =BZ56-W57 -> 0
W57: =SUM(W51:W56) -> 0 | X57: =SUM(X51:X56) -> 0 | Y57: =SUM(Y51:Y56) -> 0 | AA57: =SUM(AA51:AA56) -> 0
I58: CGT allowances set to zero here as used in CGT calcs | AF58: Deficiency Calcs | AM58: Step 5 Total | AO58: =SUM(AO19:AO57) -> 0 | BQ58: Deficiency Calcs | BX58: Step 5 Total | BZ58: =SUM(BZ19:BZ57) -> 0
I59: Capital Gains Tax Band Apportionment | P59: Capital Gains Tax Band Apportionment | W59: Before | X59: After | Y59: Amount | Z59: Rate | AA59: Add Tax | AC59: Growth | AD59: =Y29+Y47+Y63 -> 0 | AG59: =IF(Bonds!F71<0,Bonds!F71,0) -> 0 | BQ59: Is gain negative? | BR59: =IF(Bonds!F85<0,Bonds!F85,0) -> 0
I60: Annual Exemption | J60: 0 | K60: 0 | L60: =MIN(J60,K60) -> 0 | M60: =MAX(0,J60-L60) -> 0 | P60: Annual Exemption | Q60: =IF(Inputs!D11="No",0,'Parameters_Inc Calcs'!D16) -> 3000 | R60: =CGT!H47 -> 0 | S60: =MIN(Q60,R60) -> 0 | T60: =MAX(0,Q60-S60) -> 3000 | W60: =$L$60*Z60 -> 0 | X60: =S60*Z60 -> 0 | Y60: =S60-L60 -> 0 | Z60: 0 | AA60: =Y60*Z60 -> 0 | AC60: Tax inc CGT | AD60: =AA63+AA47+AA29 -> 0 | AG60: =Bonds!F74 -> 0 | AL60: Less Onshore Bond Tax Credit | AO60: =(AH51-AI53)*'Parameters_Inc Calcs'!E4 -> 0 | BQ60: Max previous gains? | BR60: =Bonds!F88 -> 0 | BW60: Less Onshore Bond Tax Credit | BZ60: =(BS51-BT53)*'Parameters_Inc Calcs'!AO4 -> 0
I61: Basic Rate | J61: =M44 -> 37700 | K61: =MAX(0,K60-L60) -> 0 | L61: =MIN(J61,K61) -> 0 | M61: =MAX(0,J61-L61) -> 37700 | P61: Basic Rate | Q61: =T44 -> 37700 | R61: =MAX(0,R60-S60) -> 0 | S61: =MIN(Q61,R61) -> 0 | T61: =MAX(0,Q61-S61) -> 37700 | W61: =$L$61*Z61 -> 0 | X61: =S61*Z61 -> 0 | Y61: =S61-L61 -> 0 | Z61: ='Parameters_Inc Calcs'!$F$4 -> 0.18 | AA61: =Y61*Z61 -> 0 | AC61: Tax Exc CGT | AD61: =AD27 -> 0 | AF61: Max Deficiency | AG61: =MIN(-AG59,AG60) -> 0 | AL61: Less Top Slicing Relief | AO61: =BO47 -> 0 | BQ61: Max Deficiency | BR61: =MIN(-BR59,BR60) -> 0 | BW61: Less Top Slicing Relief | BZ61: =CZ47 -> 0
I62: Higher Rate | K62: =K61-L61 -> 0 | L62: =MIN(J62,K62) -> 0 | M62: =MAX(0,J62-L62) -> 0 | P62: Higher Rate | R62: =R61-S61 -> 0 | S62: =MIN(Q62,R62) -> 0 | T62: =MAX(0,Q62-S62) -> 0 | W62: =$L$62*Z62 -> 0 | X62: =S62*Z62 -> 0 | Y62: =S62-L62 -> 0 | Z62: ='Parameters_Inc Calcs'!$F$5 -> 0.24 | AA62: =Y62*Z62 -> 0 | AG62: Allowances | AH62: Still to tax | AI62: Used | AJ62: Unused | AK62: Value | AL62: Less Deficiency Relief | AO62: =AK63+AK64 -> 0 | BR62: Allowances | BS62: Still to tax | BT62: Used | BU62: Unused | BV62: Value | BW62: Less Deficiency Relief | BZ62: =BV63+BV64 -> 0
I63: Nil Rate available | J63: =J60 -> 0 | P63: Nil Rate available | Q63: =Q60 -> 3000 | W63: =SUM(W60:W62) -> 0 | X63: =SUM(X60:X62) -> 0 | Y63: =SUM(Y60:Y62) -> 0 | AA63: =SUM(AA60:AA62) -> 0 | AC63: Inc CGT rate | AD63: =AD60/AD59 ->  | AF63: Divis in HRT | AG63: =AG61 -> 0 | AH63: =L45 -> 0 | AI63: =MIN(AH63,AG63) -> 0 | AJ63: =MAX(0,AG63-AI63) -> 0 | AK63: =AI63*('Parameters_Inc Calcs'!$D$5-'Parameters_Inc Calcs'!$D$4) -> 0 | AO63: =SUM(AO60:AO62) -> 0 | BQ63: Divis in HRT | BR63: =BR61 -> 0 | BS63: =L45 -> 0 | BT63: =MIN(BS63,BR63) -> 0 | BU63: =MAX(0,BR63-BT63) -> 0 | BV63: =BT63*('Parameters_Inc Calcs'!$D$5-'Parameters_Inc Calcs'!$D$4) -> 0 | BZ63: =SUM(BZ60:BZ62) -> 0
AC64: Exc CGT rate | AD64: =AD61/AD59 ->  | AF64: Savings and NSND in HRT | AG64: =AJ63 -> 0 | AH64: =L27+L18 -> 0 | AI64: =MIN(AH64,AG64) -> 0 | AJ64: =MAX(0,AG64-AI64) -> 0 | AK64: =AI64*('Parameters_Inc Calcs'!$E$5-'Parameters_Inc Calcs'!$E$4) -> 0 | BQ64: Savings and NSND in HRT | BR64: =BU63 -> 0 | BS64: =L27+L18 -> 0 | BT64: =MIN(BS64,BR64) -> 0 | BU64: =MAX(0,BR64-BT64) -> 0 | BV64: =BT64*('Parameters_Inc Calcs'!$E$5-'Parameters_Inc Calcs'!$E$4) -> 0
W66: Total Tax Before | AM66: Income Tax payable | AO66: =MAX(0,AO58-AO63) -> 0 | BX66: Income Tax payable | BZ66: =MAX(0,BZ58-BZ63) -> 0
W67: =W20+W29+W39+W47+W57+W63 -> 0
AK69: Change in Tax Bill | AO69: =AO66-$W$67 -> 0 | BV69: Change in Tax Bill | BZ69: =BZ66-$W$67 -> 0

Sheet Yr 3 (hidden)
I1: Before for All Situations | P1: Collectives After | AF1: Onshore Bond After | BQ1: Offshore Bond After
I2: Before | AF2: Workings | AR2: Workings Top Slicing Full | AY2: Workings Top Slicing Slice | BF2: Slicing Calcs | BQ2: Workings | CC2: Workings Top Slicing Full | CJ2: Workings Top Slicing Slice | CQ2: Slicing Calcs
AF3: Full Bond Gain | AG3: =MAX(0,Bonds!G71) -> 0 | AY3: Slice | AZ3: =Bonds!G72 -> 0 | BQ3: Full Bond Gain | BR3: =MAX(0,Bonds!G85) -> 0 | CJ3: Slice | CK3: =Bonds!G86 -> 0
AF4: NSND in Year of encashment | AG4: =$D$14 -> 0 | AY4: NSND in Year of encashment | AZ4: =$D$14 -> 0 | BQ4: NSND in Year of encashment | BR4: =$D$14 -> 0 | CJ4: NSND in Year of encashment | CK4: =$D$14 -> 0
AF5: Savings in Year of encashment | AG5: =$D$15 -> 0 | AY5: Savings in Year of encashment | AZ5: =$D$15 -> 0 | BQ5: Savings in Year of encashment | BR5: =$D$15 -> 0 | CJ5: Savings in Year of encashment | CK5: =$D$15 -> 0
AF6: Dividend in Year of encashment | AG6: =$D$16 -> 0 | AY6: Dividend in Year of encashment | AZ6: =$D$16 -> 0 | BQ6: Dividend in Year of encashment | BR6: =$D$16 -> 0 | CJ6: Dividend in Year of encashment | CK6: =$D$16 -> 0
B7: Year | C7: 3 | E7: Amber needs amended when new sheet created | I7: Allowances: | P7: Allowances: | AF7: Personal Allowance Adjustment | AG7: =IF((AG3+AG4+AG5+AG6)<'Parameters_Inc Calcs'!$C$3,0,MIN(F36,((AG3+AG4+AG5+AG6)-'Parameters_Inc Calcs'!$C$3)/2)) -> 0 | AI7: PA Lost | AY7: Personal Allowance Adjustment | AZ7: =IF((AZ3+AZ4+AZ5+AZ6)<'Parameters_Inc Calcs'!$C$3,0,MIN(F36,((AZ3+AZ4+AZ5+AZ6)-'Parameters_Inc Calcs'!$C$3)/2)) -> 0 | BQ7: Personal Allowance Adjustment | BR7: =IF((BR3+BR4+BR5+BR6)<'Parameters_Inc Calcs'!$C$3,0,MIN(F36,((BR3+BR4+BR5+BR6)-'Parameters_Inc Calcs'!$C$3)/2)) -> 0 | BT7: Personal Allowance Lost | CJ7: Personal Allowance Adjustment | CK7: =IF((CK3+CK4+CK5+CK6)<'Parameters_Inc Calcs'!$C$3,0,MIN(F36,((CK3+CK4+CK5+CK6)-'Parameters_Inc Calcs'!$C$3)/2)) -> 0
B8: Final Year | C8: =IF(C7=Inputs!D7,"Yes","No") -> No | I8: Pers_Allow_Adj | P8: Pers_Allow_Adj | T8: PA Lost | AF8: PA to Use | AG8: =D36-AG7 -> 12570 | AI8: =J9-AG8 -> 0 | AY8: PA to Use - Silver adjustment | AZ8: =F36-AZ7 -> 12570 | BQ8: PA to Use | BR8: =F36-BR7 -> 12570 | BT8: =J9-BR8 -> 0 | CJ8: PA to Use - Silver adjustment | CK8: =F36-CK7 -> 12570
B9: After Final Year | C9: =AND(C7>Inputs!D7) -> TRUE | I9: Tot_Pers_Allow | J9: =D27 -> 12570 | P9: Tot_Pers_Allow | Q9: =F27 -> 12570 | T9: =J9-Q9 -> 0 | AF9: Starter Rate to Use | AG9: =IF(AG4>AG8+'Parameters_Inc Calcs'!$C$12,0,MIN('Parameters_Inc Calcs'!$C$12,AG8+'Parameters_Inc Calcs'!$C$12-AG4)) -> 5000 | AY9: Starter Rate to Use -"gold" adjustment | AZ9: =IF(AZ4>AZ8+'Parameters_Inc Calcs'!$C$12,0,MIN('Parameters_Inc Calcs'!$C$12,AZ8+'Parameters_Inc Calcs'!$C$12-AZ4)) -> 5000 | BQ9: Starter Rate to Use | BR9: =IF(BR4>BR8+'Parameters_Inc Calcs'!$C$12,0,MIN('Parameters_Inc Calcs'!$C$12,BR8+'Parameters_Inc Calcs'!$C$12-BR4)) -> 5000 | CJ9: Starter Rate to Use -"gold" adjustment | CK9: =IF(CK4>CK8+'Parameters_Inc Calcs'!$C$12,0,MIN('Parameters_Inc Calcs'!$C$12,CK8+'Parameters_Inc Calcs'!$C$12-CK4)) -> 5000
B10: Investment | C10: =CGT!I12 -> 0 | I10: Pers_Sav_Allow | J10: =D45 -> 1000 | P10: Pers_Sav_Allow | Q10: =F45 -> 1000 | AF10: PSA to USE | AG10: =IF(SUM(AG3:AG6)>'Parameters_Inc Calcs'!$C$8,'Parameters_Inc Calcs'!$C$11,IF(SUM(AG3:AG6)>'Parameters_Inc Calcs'!$C$5,'Parameters_Inc Calcs'!$C$10,'Parameters_Inc Calcs'!$C$9)) -> 1000 | AY10: PSA to use - from full calc as no silver adjustment | AZ10: =IF(SUM(AZ3:AZ6)>'Parameters_Inc Calcs'!$C$8,'Parameters_Inc Calcs'!$C$11,IF(SUM(AZ3:AZ6)>'Parameters_Inc Calcs'!$C$5,'Parameters_Inc Calcs'!$C$10,'Parameters_Inc Calcs'!$C$9)) -> 1000 | BQ10: PSA to USE | BR10: =IF(SUM(BR3:BR6)>'Parameters_Inc Calcs'!$C$8,'Parameters_Inc Calcs'!$C$11,IF(SUM(BR3:BR6)>'Parameters_Inc Calcs'!$C$5,'Parameters_Inc Calcs'!$C$10,'Parameters_Inc Calcs'!$C$9)) -> 1000 | CJ10: PSA to use - "gold" adjustment | CK10: =IF(SUM(CK3:CK6)>'Parameters_Inc Calcs'!$C$8,'Parameters_Inc Calcs'!$C$11,IF(SUM(CK3:CK6)>'Parameters_Inc Calcs'!$C$5,'Parameters_Inc Calcs'!$C$10,'Parameters_Inc Calcs'!$C$9)) -> 1000
B11: Cum Gain | C11: =CGT!I17 -> 0
AP12: Difference to All before | CA12: Difference to All before | CC12: Non Savings Income Apportionment
B13: Factor | C13: Before | E13: After | I13: Non Savings Income Apportionment | P13: Non Savings Income Apportionment | AF13: Non Savings Income Apportionment | AR13: Non Savings Income Apportionment | AY13: Non Savings Income Apportionment | BQ13: Non Savings Income Apportionment | CJ13: Non Savings Income Apportionment
B14: =1+Inputs!K6 -> 1 | C14: NSND | D14: =IF(C9=TRUE,0,IF(OR($C$8="Yes",$C$9=TRUE),Inputs!I13,'Yr 2'!D14*B14)) -> 0 | E14: Total Income | F14: =IF(C8="Yes",Inputs!I13,D14) -> 0
B15: =1+Inputs!K7 -> 1 | C15: Savings | D15: =IF(C9=TRUE,0,IF(OR($C$8="Yes",$C$9=TRUE),Inputs!I14,'Yr 2'!D15*B15)) -> 0 | E15: Savings | F15: =IF(C8="Yes",Inputs!I14,D15) -> 0 | J15: Allowances | K15: Still to tax | L15: Used | M15: Unused | Q15: Allowances | R15: Still to tax | S15: Used | T15: Unused | W15: Before | X15: After | Y15: Amount | Z15: Rate | AA15: Add Tax | AG15: Allowances | AH15: Still to tax | AI15: Used | AJ15: Unused | AL15: Amount | AM15: Rate | AN15: Tax | AS15: Allowances | AT15: Still to tax | AU15: Used | AV15: Unused | AZ15: Allowances | BA15: Still to tax | BB15: Used | BC15: Unused | BJ15: Top Slicing | BR15: Allowances | BS15: Still to tax | BT15: Used | BU15: Unused | BW15: Amount | BX15: Rate | BY15: Tax | CD15: Allowances | CE15: Still to tax | CF15: Used | CG15: Unused | CK15: Allowances | CL15: Still to tax | CM15: Used | CN15: Unused | CU15: Top Slicing
B16: =1+Inputs!K8 -> 1 | C16: Divi | D16: =IF(C9=TRUE,0,IF(OR($C$8="Yes",$C$9=TRUE),Inputs!I15,'Yr 2'!D16*B16)) -> 0 | E16: Divi | F16: =IF(C8="Yes",Inputs!I15,D16) -> 0 | I16: Personal Allowance | J16: =J9 -> 12570 | K16: =D14 -> 0 | L16: =MIN(J16,K16) -> 0 | M16: =MAX(0,J16-L16) -> 12570 | P16: Personal Allowance | Q16: =Q9 -> 12570 | R16: =K16 -> 0 | S16: =MIN(Q16,R16) -> 0 | T16: =MAX(0,Q16-S16) -> 12570 | W16: =$L$16*Z16 -> 0 | X16: =S16*Z16 -> 0 | Y16: =S16-L16 -> 0 | Z16: 0 | AA16: =Y16*Z16 -> 0 | AF16: Personal Allowance | AG16: =AG8 -> 12570 | AH16: =AG4 -> 0 | AI16: =MIN(AG16,AH16) -> 0 | AJ16: =MAX(0,AG16-AI16) -> 12570 | AL16: =AI16 -> 0 | AM16: 0 | AN16: =AL16*AM16 -> 0 | AR16: Personal Allowance | AS16: =AG8 -> 12570 | AT16: =MAX(0,AG4) -> 0 | AU16: =MIN(AS16,AT16) -> 0 | AV16: =MAX(0,AS16-AU16) -> 12570 | AY16: Personal Allowance | AZ16: =AZ8 -> 12570 | BA16: =MAX(0,AZ4) -> 0 | BB16: =MIN(AZ16,BA16) -> 0 | BC16: =MAX(0,AZ16-BB16) -> 12570 | BQ16: Personal Allowance | BR16: =BR8 -> 12570 | BS16: =BR4 -> 0 | BT16: =MIN(BR16,BS16) -> 0 | BU16: =MAX(0,BR16-BT16) -> 12570 | BW16: =BT16 -> 0 | BX16: 0 | BY16: =BW16*BX16 -> 0 | CC16: Personal Allowance | CD16: =BR8 -> 12570 | CE16: =MAX(0,BR4) -> 0 | CF16: =MIN(CD16,CE16) -> 0 | CG16: =MAX(0,CD16-CF16) -> 12570 | CJ16: Personal Allowance | CK16: =CK8 -> 12570 | CL16: =MAX(0,CK4) -> 0 | CM16: =MIN(CK16,CL16) -> 0 | CN16: =MAX(0,CK16-CM16) -> 12570
B17: =Inputs!Q6 -> 0 | E17: New Savings | F17: =IF(C9=TRUE,0,C10*B17) -> 0 | I17: Basic Rate | J17: =$D$31 -> 37700 | K17: =MAX(0,K16-L16) -> 0 | L17: =MIN(J17,K17) -> 0 | M17: =MAX(0,J17-L17) -> 37700 | P17: Basic Rate | Q17: =$F$31 -> 37700 | R17: =MAX(0,R16-S16) -> 0 | S17: =MIN(Q17,R17) -> 0 | T17: =MAX(0,Q17-S17) -> 37700 | W17: =$L$17*Z17 -> 0 | X17: =S17*Z17 -> 0 | Y17: =S17-L17 -> 0 | Z17: ='Parameters_Inc Calcs'!$G$4 -> 0.2 | AA17: =Y17*Z17 -> 0 | AF17: Basic Rate | AG17: =D31 -> 37700 | AH17: =MAX(0,AH16-AI16) -> 0 | AI17: =MIN(AG17,AH17) -> 0 | AJ17: =MAX(0,AG17-AI17) -> 37700 | AL17: =AI17 -> 0 | AM17: ='Parameters_Inc Calcs'!$G$4 -> 0.2 | AN17: =AL17*AM17 -> 0 | AR17: Basic Rate | AS17: =F31 -> 37700 | AT17: =MAX(0,AT16-AU16) -> 0 | AU17: =MIN(AS17,AT17) -> 0 | AV17: =MAX(0,AS17-AU17) -> 37700 | AY17: Basic Rate | AZ17: =AS17 -> 37700 | BA17: =MAX(0,BA16-BB16) -> 0 | BB17: =MIN(AZ17,BA17) -> 0 | BC17: =MAX(0,AZ17-BB17) -> 37700 | BK17: Taxation of full gain | BL17: =AG3 -> 0 | BQ17: Basic Rate | BR17: =F31 -> 37700 | BS17: =MAX(0,BS16-BT16) -> 0 | BT17: =MIN(BR17,BS17) -> 0 | BU17: =MAX(0,BR17-BT17) -> 37700 | BW17: =BT17 -> 0 | BX17: ='Parameters_Inc Calcs'!$G$4 -> 0.2 | BY17: =BW17*BX17 -> 0 | CC17: Basic Rate | CD17: =BR17 -> 37700 | CE17: =MAX(0,CE16-CF16) -> 0 | CF17: =MIN(CD17,CE17) -> 0 | CG17: =MAX(0,CD17-CF17) -> 37700 | CJ17: Basic Rate | CK17: =CD17 -> 37700 | CL17: =MAX(0,CL16-CM16) -> 0 | CM17: =MIN(CK17,CL17) -> 0 | CN17: =MAX(0,CK17-CM17) -> 37700 | CV17: Taxation of full gain | CW17: =BR3 -> 0
B18: =Inputs!Q7 -> 0 | E18: New Divi | F18: =IF(C9=TRUE,0,C10*B18) -> 0 | I18: Higher Rate | J18: =$D$33 -> 87440 | K18: =MAX(0,K17-L17) -> 0 | L18: =MIN(J18,K18) -> 0 | M18: =MAX(0,J18-L18) -> 87440 | P18: Higher Rate | Q18: =$F$33 -> 87440 | R18: =MAX(0,R17-S17) -> 0 | S18: =MIN(Q18,R18) -> 0 | T18: =MAX(0,Q18-S18) -> 87440 | W18: =$L$18*Z18 -> 0 | X18: =S18*Z18 -> 0 | Y18: =S18-L18 -> 0 | Z18: ='Parameters_Inc Calcs'!$G$5 -> 0.4 | AA18: =Y18*Z18 -> 0 | AF18: Higher Rate | AG18: =F33 -> 87440 | AH18: =MAX(0,AH17-AI17) -> 0 | AI18: =MIN(AG18,AH18) -> 0 | AJ18: =MAX(0,AG18-AI18) -> 87440 | AL18: =AI18 -> 0 | AM18: ='Parameters_Inc Calcs'!$G$5 -> 0.4 | AN18: =AL18*AM18 -> 0 | AR18: Higher Rate | AS18: =F33 -> 87440 | AT18: =MAX(0,AT17-AU17) -> 0 | AU18: =MIN(AS18,AT18) -> 0 | AV18: =MAX(0,AS18-AU18) -> 87440 | AY18: Higher Rate | AZ18: =AS18 -> 87440 | BA18: =MAX(0,BA17-BB17) -> 0 | BB18: =MIN(AZ18,BA18) -> 0 | BC18: =MAX(0,AZ18-BB18) -> 87440 | BO18: Tax | BQ18: Higher Rate | BR18: =F33 -> 87440 | BS18: =MAX(0,BS17-BT17) -> 0 | BT18: =MIN(BR18,BS18) -> 0 | BU18: =MAX(0,BR18-BT18) -> 87440 | BW18: =BT18 -> 0 | BX18: ='Parameters_Inc Calcs'!$G$5 -> 0.4 | BY18: =BW18*BX18 -> 0 | CC18: Higher Rate | CD18: =BR18 -> 87440 | CE18: =MAX(0,CE17-CF17) -> 0 | CF18: =MIN(CD18,CE18) -> 0 | CG18: =MAX(0,CD18-CF18) -> 87440 | CJ18: Higher Rate | CK18: =CD18 -> 87440 | CL18: =MAX(0,CL17-CM17) -> 0 | CM18: =MIN(CK18,CL18) -> 0 | CN18: =MAX(0,CK18-CM18) -> 87440 | CZ18: Tax
C19: ANI | D19: =SUM(D14:D18) -> 0 | E19: ANI | F19: =SUM(F14:F18) -> 0 | I19: Additional Rate | K19: =MAX(0,K18-L18) -> 0 | L19: =K19 -> 0 | M19: NA | P19: Additional Rate | R19: =MAX(0,R18-S18) -> 0 | S19: =R19 -> 0 | T19: NA | W19: =$L$19*Z19 -> 0 | X19: =S19*Z19 -> 0 | Y19: =S19-L19 -> 0 | Z19: ='Parameters_Inc Calcs'!$G$8 -> 0.45 | AA19: =Y19*Z19 -> 0 | AF19: Additional Rate | AH19: =MAX(0,AH18-AI18) -> 0 | AI19: =MIN(AG19,AH19) -> 0 | AJ19: NA | AL19: =AI19 -> 0 | AM19: ='Parameters_Inc Calcs'!$G$8 -> 0.45 | AN19: =AL19*AM19 -> 0 | AO19: =SUM(AN16:AN19) -> 0 | AP19: =AO19-W20 -> 0 | AR19: Additional Rate | AT19: =MAX(0,AT18-AU18) -> 0 | AU19: =MIN(AS19,AT19) -> 0 | AY19: Additional Rate | BA19: =MAX(0,BA18-BB18) -> 0 | BB19: =MIN(AZ19,BA19) -> 0 | BJ19: Step 1 | BK19: Personal Allowance | BL19: =AU50 -> 0 | BM19: @ | BN19: =AM25 -> 0 | BO19: =BL19*BN19 -> 0 | BQ19: Additional Rate | BS19: =MAX(0,BS18-BT18) -> 0 | BT19: =MIN(BR19,BS19) -> 0 | BU19: NA | BW19: =BT19 -> 0 | BX19: ='Parameters_Inc Calcs'!$G$8 -> 0.45 | BY19: =BW19*BX19 -> 0 | BZ19: =SUM(BY16:BY19) -> 0 | CA19: =BZ19-W20 -> 0 | CC19: Additional Rate | CE19: =MAX(0,CE18-CF18) -> 0 | CF19: =MIN(CD19,CE19) -> 0 | CJ19: Additional Rate | CL19: =MAX(0,CL18-CM18) -> 0 | CM19: =MIN(CK19,CL19) -> 0 | CU19: Step 1 | CV19: Personal Allowance | CW19: =CF50 -> 0 | CX19: @ | CY19: =BX25 -> 0 | CZ19: =CW19*CY19 -> 0
W20: =SUM(W16:W19) -> 0 | X20: =SUM(X16:X19) -> 0 | AA20: =SUM(AA16:AA19) -> 0 | BK20: Starting Rate | BL20: 0 | BM20: @ | BN20: =AM23 -> 0 | BO20: 0 | CV20: Starting Rate | CW20: 0 | CX20: @ | CY20: =BX23 -> 0 | CZ20: 0
E21: New Gain | F21: =CGT!I16 -> 0 | I21: Savings Income Tax Band Apportionment | P21: Savings Income Tax Band Apportionment | AF21: Savings Income Tax Band Apportionment | AR21: Savings Income Tax Band Apportionment | AY21: Savings Income Tax Band Apportionment | BK21: Personal Savings Allowance | BL21: 0 | BM21: @ | BN21: =AM25 -> 0 | BO21: 0 | BQ21: Savings Income Tax Band Apportionment | CC21: Savings Income Tax Band Apportionment | CJ21: Savings Income Tax Band Apportionment | CV21: Personal Savings Allowance | CW21: 0 | CX21: @ | CY21: =BX25 -> 0 | CZ21: 0
J22: Allowances | K22: Still to tax | L22: Used | M22: Unused | Q22: Allowances | R22: Still to tax | S22: Used | T22: Unused | W22: Before | X22: After | Y22: Amount | Z22: Rate | AA22: Add Tax | AG22: Allowances | AH22: Still to tax | AI22: Used | AJ22: Unused | AL22: Amount | AM22: Rate | AN22: Tax | AS22: Allowances | AT22: Still to tax | AU22: Used | AV22: Unused | BK22: Basic Rate | BL22: 0 | BM22: @ | BN22: ='Parameters_Inc Calcs'!$E$4 -> 0.22 | BO22: 0 | BR22: Allowances | BS22: Still to tax | BT22: Used | BU22: Unused | BW22: Amount | BX22: Rate | BY22: Tax | CD22: Allowances | CE22: Still to tax | CF22: Used | CG22: Unused | CV22: Basic Rate | CW22: 0 | CX22: @ | CY22: ='Parameters_Inc Calcs'!$E$4 -> 0.22 | CZ22: 0
C23: ANI Limit | D23: ='Parameters_Inc Calcs'!$C$3 -> 100000 | E23: ANI Limit | F23: ='Parameters_Inc Calcs'!$C$3 -> 100000 | I23: Starting Rate | J23: =$D$43 -> 5000 | K23: =D15 -> 0 | L23: =MIN(J23,K23) -> 0 | M23: =MAX(0,J23-L23) -> 5000 | P23: Starting Rate | Q23: =$F$43 -> 5000 | R23: =F15+F17 -> 0 | S23: =MIN(Q23,R23) -> 0 | T23: =MAX(0,Q23-S23) -> 5000 | W23: =$L$23*Z23 -> 0 | X23: =S23*Z23 -> 0 | Y23: =S23-L23 -> 0 | Z23: 0 | AA23: =Y23*Z23 -> 0 | AF23: Starting Rate | AG23: =AG9 -> 5000 | AH23: =AG5 -> 0 | AI23: =MIN(AG23,AH23) -> 0 | AJ23: =MAX(0,AG23-AI23) -> 5000 | AL23: =AI23 -> 0 | AM23: 0 | AN23: =AL23*AM23 -> 0 | AR23: Personal Allowance | AS23: =AV16 -> 12570 | AT23: =AG5 -> 0 | AU23: =MIN(AS23,AT23) -> 0 | AV23: =MAX(0,AS23-AU23) -> 12570 | AY23: Personal Allowance | AZ23: =BC16 -> 12570 | BA23: =AZ5 -> 0 | BB23: =MIN(AZ23,BA23) -> 0 | BC23: =MAX(0,AZ23-BB23) -> 12570 | BK23: Higher Rate | BL23: 0 | BM23: @ | BN23: ='Parameters_Inc Calcs'!$E$5 -> 0.42 | BO23: =BL23*BN23 -> 0 | BQ23: Starting Rate | BR23: =BR9 -> 5000 | BS23: =BR5 -> 0 | BT23: =MIN(BR23,BS23) -> 0 | BU23: =MAX(0,BR23-BT23) -> 5000 | BW23: =BT23 -> 0 | BX23: 0 | BY23: =BW23*BX23 -> 0 | CC23: Personal Allowance | CD23: =CG16 -> 12570 | CE23: =BR5 -> 0 | CF23: =MIN(CD23,CE23) -> 0 | CG23: =MAX(0,CD23-CF23) -> 12570 | CJ23: Personal Allowance | CK23: =CN16 -> 12570 | CL23: =CK5 -> 0 | CM23: =MIN(CK23,CL23) -> 0 | CN23: =MAX(0,CK23-CM23) -> 12570 | CV23: Higher Rate | CW23: 0 | CX23: @ | CY23: ='Parameters_Inc Calcs'!$E$5 -> 0.42 | CZ23: =CW23*CY23 -> 0
C24: ANI Excess | D24: =MAX(0,D19-D23) -> 0 | E24: ANI Excess | F24: =MAX(0,F19-F23) -> 0 | I24: Personal Savings Allowance | J24: =D45 -> 1000 | K24: =MAX(0,K23-L23) -> 0 | L24: 0 | M24: =MAX(0,J24-L24) -> 1000 | N24: Higher Rate Adjustment for PSA and SRS Bands | P24: Personal Savings Allowance | Q24: =$F$45 -> 1000 | R24: =MAX(0,R23-S23) -> 0 | S24: 0 | T24: =MAX(0,Q24-S24) -> 1000 | U24: Higher Rate Adjustment for PSA and SRS Bands | W24: =$L$24*Z24 -> 0 | X24: 0 | Y24: 0 | Z24: 0 | AA24: 0 | AF24: Personal Savings Allowance | AG24: =AG10 -> 1000 | AH24: =MAX(0,AH23-AI23) -> 0 | AI24: 0 | AJ24: =MAX(0,AG24-AI24) -> 1000 | AL24: 0 | AM24: 0 | AN24: 0 | AR24: Starting Rate | AS24: =AG9 -> 5000 | AT24: =MAX(0,AT23-AU23) -> 0 | AU24: 0 | AV24: =MAX(0,AS24-AU24) -> 5000 | AY24: Starting Rate | AZ24: =AZ9 -> 5000 | BA24: =MAX(0,BA23-BB23) -> 0 | BB24: 0 | BC24: =MAX(0,AZ24-BB24) -> 5000 | BK24: Additional Rate | BL24: 0 | BM24: @ | BN24: ='Parameters_Inc Calcs'!$E$8 -> 0.47 | BO24: 0 | BQ24: Personal Savings Allowance | BR24: =BR10 -> 1000 | BS24: =MAX(0,BS23-BT23) -> 0 | BT24: 0 | BU24: =MAX(0,BR24-BT24) -> 1000 | BW24: 0 | BX24: 0 | BY24: 0 | CC24: Starting Rate | CD24: =BR9 -> 5000 | CE24: =MAX(0,CE23-CF23) -> 0 | CF24: 0 | CG24: =MAX(0,CD24-CF24) -> 5000 | CJ24: Starting Rate | CK24: =CK9 -> 5000 | CL24: =MAX(0,CL23-CM23) -> 0 | CM24: 0 | CN24: =MAX(0,CK24-CM24) -> 5000 | CV24: Additional Rate | CW24: 0 | CX24: @ | CY24: ='Parameters_Inc Calcs'!$E$8 -> 0.47 | CZ24: =CW24*CY24 -> 0
C25: PA adjustment | D25: =D24/2 -> 0 | E25: PA adjustment | F25: =F24/2 -> 0 | I25: Personal Allowance | J25: =M16 -> 12570 | K25: =MAX(0,K24-L24) -> 0 | L25: 0 | M25: =MAX(0,J25-L25) -> 12570 | P25: Personal Allowance | Q25: =T16 -> 12570 | R25: =MAX(0,R24-S24) -> 0 | S25: 0 | T25: =MAX(0,Q25-S25) -> 12570 | W25: =$L$25*Z25 -> 0 | X25: 0 | Y25: 0 | Z25: 0 | AA25: 0 | AF25: Personal Allowance | AG25: =AJ16 -> 12570 | AH25: =MAX(0,AH24-AI24) -> 0 | AI25: 0 | AJ25: =MAX(0,AG25-AI25) -> 12570 | AL25: 0 | AM25: 0 | AN25: 0 | AR25: Personal Savings Allowance | AS25: =AG10 -> 1000 | AT25: =MAX(0,AT24-AU24) -> 0 | AU25: 0 | AV25: =MAX(0,AS25-AU25) -> 1000 | AY25: Personal Savings Allowance | AZ25: =AZ10 -> 1000 | BA25: =MAX(0,BA24-BB24) -> 0 | BB25: 0 | BC25: =MAX(0,AZ25-BB25) -> 1000 | BK25: Total Liability | BO25: =SUM(BO19:BO24) -> 0 | BQ25: Personal Allowance | BR25: =BU16 -> 12570 | BS25: =MAX(0,BS24-BT24) -> 0 | BT25: 0 | BU25: =MAX(0,BR25-BT25) -> 12570 | BW25: 0 | BX25: 0 | BY25: 0 | CC25: Personal Savings Allowance | CD25: =BR10 -> 1000 | CE25: =MAX(0,CE24-CF24) -> 0 | CF25: 0 | CG25: =MAX(0,CD25-CF25) -> 1000 | CJ25: Personal Savings Allowance | CK25: =CK10 -> 1000 | CL25: =MAX(0,CL24-CM24) -> 0 | CM25: 0 | CN25: =MAX(0,CK25-CM25) -> 1000 | CV25: Total Liability | CZ25: =SUM(CZ19:CZ24) -> 0
I26: Basic Rate | J26: =MAX(0,M17-SUM(L23:L24)) -> 37700 | K26: =MAX(0,K25-L25) -> 0 | L26: 0 | M26: =MAX(0,J26-L26) -> 37700 | P26: Basic Rate | Q26: =MAX(0,T17-SUM(S23:S24)) -> 37700 | R26: =MAX(0,R25-S25) -> 0 | S26: 0 | T26: =MAX(0,Q26-S26) -> 37700 | W26: =$L$26*Z26 -> 0 | X26: 0 | Y26: 0 | Z26: ='Parameters_Inc Calcs'!$E$4 -> 0.22 | AA26: 0 | AC26: Investment income | AD26: =Y29+Y47 -> 0 | AF26: Basic Rate | AG26: =MAX(0,AJ17-SUM(AI23:AI24)) -> 37700 | AH26: =MAX(0,AH25-AI25) -> 0 | AI26: 0 | AJ26: =MAX(0,AG26-AI26) -> 37700 | AK26: =MIN(AJ18,MAX(0,AI24-AJ17)) -> 0 | AL26: 0 | AM26: ='Parameters_Inc Calcs'!$E$4 -> 0.22 | AN26: 0 | AR26: Basic Rate | AS26: =MAX(0,AV17-SUM(AU24:AU25)) -> 37700 | AT26: =MAX(0,AT25-AU25) -> 0 | AU26: 0 | AV26: =MAX(0,AS26-AU26) -> 37700 | AY26: Basic Rate | AZ26: =MAX(0,BC17-SUM(BB24:BB25)) -> 37700 | BA26: =MAX(0,BA25-BB25) -> 0 | BB26: 0 | BC26: =MAX(0,AZ26-BB26) -> 37700 | BJ26: Step 2 | BK26: Tax Credit | BO26: =(BL17-BL19)*BN22 -> 0 | BQ26: Basic Rate | BR26: =MAX(0,BU17-SUM(BT23:BT24)) -> 37700 | BS26: =MAX(0,BS25-BT25) -> 0 | BT26: 0 | BU26: =MAX(0,BR26-BT26) -> 37700 | BV26: =MIN(BU18,MAX(0,BT24-BU17)) -> 0 | BW26: 0 | BX26: ='Parameters_Inc Calcs'!$E$4 -> 0.22 | BY26: 0 | CC26: Basic Rate | CD26: =MAX(0,CG17-SUM(CF24:CF25)) -> 37700 | CE26: =MAX(0,CE25-CF25) -> 0 | CF26: 0 | CG26: =MAX(0,CD26-CF26) -> 37700 | CJ26: Basic Rate | CK26: =MAX(0,CN17-SUM(CM24:CM25)) -> 37700 | CL26: =MAX(0,CL25-CM25) -> 0 | CM26: 0 | CN26: =MAX(0,CK26-CM26) -> 37700 | CU26: Step 2 | CV26: Tax Credit | CZ26: =(CW17-CW19)*CY22 -> 0
C27: Personal Allowance | D27: =MAX(0,D36-D25) -> 12570 | E27: Personal Allowance | F27: =MAX(0,F36-F25) -> 12570 | I27: Higher Rate | J27: =M18-N27 -> 87440 | K27: =MAX(0,K26-L26) -> 0 | L27: 0 | M27: =MAX(0,J27-L27) -> 87440 | N27: =MIN(M18,MAX(L24-M17,0)) -> 0 | P27: Higher Rate | Q27: =T18-U27 -> 87440 | R27: =MAX(0,R26-S26) -> 0 | S27: 0 | T27: =MAX(0,Q27-S27) -> 87440 | U27: =MIN(T18,MAX(S24-T17,0)) -> 0 | W27: =$L$27*Z27 -> 0 | X27: 0 | Y27: 0 | Z27: ='Parameters_Inc Calcs'!$E$5 -> 0.42 | AA27: 0 | AC27: Tax | AD27: =AA20+AA29+AA47 -> 0 | AF27: Higher Rate | AG27: =AJ18-AK26 -> 87440 | AH27: =MAX(0,AH26-AI26) -> 0 | AI27: 0 | AJ27: =MAX(0,AG27-AI27) -> 87440 | AL27: 0 | AM27: ='Parameters_Inc Calcs'!$E$5 -> 0.42 | AN27: 0 | AR27: Higher Rate | AS27: =AV18-AW27 -> 87440 | AT27: =MAX(0,AT26-AU26) -> 0 | AU27: 0 | AV27: =MAX(0,AS27-AU27) -> 87440 | AW27: =MIN(AV18,MAX(0,AU25-AV17)) -> 0 | AY27: Higher Rate | AZ27: =BC18-BD27 -> 87440 | BA27: =MAX(0,BA26-BB26) -> 0 | BB27: 0 | BC27: =MAX(0,AZ27-BB27) -> 87440 | BD27: =MIN(BC18,MAX(0,BB25-BC17)) -> 0 | BK27: Relieved liability on gain | BO27: =MAX(0,BO25-BO26) -> 0 | BQ27: Higher Rate | BR27: =BU18-BV26 -> 87440 | BS27: =MAX(0,BS26-BT26) -> 0 | BT27: 0 | BU27: =MAX(0,BR27-BT27) -> 87440 | BW27: 0 | BX27: ='Parameters_Inc Calcs'!$E$5 -> 0.42 | BY27: 0 | CC27: Higher Rate | CD27: =CG18-CH27 -> 87440 | CE27: =MAX(0,CE26-CF26) -> 0 | CF27: 0 | CG27: =MAX(0,CD27-CF27) -> 87440 | CH27: =MIN(CG18,MAX(0,CF25-CG17)) -> 0 | CJ27: Higher Rate | CK27: =CN18-CO27 -> 87440 | CL27: =MAX(0,CL26-CM26) -> 0 | CM27: 0 | CN27: =MAX(0,CK27-CM27) -> 87440 | CO27: =MIN(CN18,MAX(0,CM25-CN17)) -> 0 | CV27: Relieved liability on gain | CZ27: =MAX(0,CZ25-CZ26) -> 0
I28: Additional Rate | K28: =MAX(0,K27-L27) -> 0 | L28: 0 | M28: NA | P28: Additional Rate | R28: =MAX(0,R27-S27) -> 0 | S28: 0 | T28: NA | W28: =$L$28*Z28 -> 0 | X28: 0 | Y28: 0 | Z28: ='Parameters_Inc Calcs'!$E$8 -> 0.47 | AA28: 0 | AC28: Net Income Reinvested | AD28: =MAX(0,AD26-AD27) -> 0 | AF28: Additional Rate | AH28: =MAX(0,AH27-AI27) -> 0 | AI28: 0 | AJ28: NA | AL28: 0 | AM28: ='Parameters_Inc Calcs'!$E$8 -> 0.47 | AN28: 0 | AO28: =SUM(AN23:AN28) -> 0 | AP28: =AO28-W29 -> 0 | AR28: Additional Rate | AT28: =MAX(0,AT27-AU27) -> 0 | AU28: 0 | AY28: Additional Rate | BA28: =MAX(0,BA27-BB27) -> 0 | BB28: 0 | BQ28: Additional Rate | BS28: =MAX(0,BS27-BT27) -> 0 | BT28: 0 | BU28: NA | BW28: 0 | BX28: ='Parameters_Inc Calcs'!$E$8 -> 0.47 | BY28: 0 | BZ28: =SUM(BY23:BY28) -> 0 | CA28: =BZ28-W29 -> 0 | CC28: Additional Rate | CE28: =MAX(0,CE27-CF27) -> 0 | CF28: 0 | CJ28: Additional Rate | CL28: =MAX(0,CL27-CM27) -> 0 | CM28: 0
C29: Taxable Income | D29: =D14-D27 -> -12570 | E29: Taxable Income | F29: =F14-F27 -> -12570 | I29: Nil Rate available | J29: =SUM(J23:J25) -> 18570 | P29: Nil Rate available | Q29: =SUM(Q23:Q25) -> 18570 | W29: =SUM(W23:W28) -> 0 | X29: =SUM(X23:X28) -> 0 | Y29: =SUM(Y23:Y28) -> 0 | AA29: =SUM(AA23:AA28) -> 0 | AD29: =AD27/AD26 -> 
AR30: Offshore Bond Gain Tax Band Apportionment - set to £0 as included at total gain below | AY30: Offshore Bond Gain Tax Band Apportionment - set to £0 as included at total gain below | BJ30: Step 3 | BK30: Taxation of slice | BL30: =AZ3 -> 0 | CC30: Offshore Bond Gain Tax Band Apportionment - set to £0 as included at total gain below | CJ30: Offshore Bond Gain Tax Band Apportionment - set to £0 as included at total gain below | CU30: Step 3 | CV30: Taxation of slice | CW30: =CK3 -> 0
C31: Basic Rate Band | D31: ='Parameters_Inc Calcs'!E26 -> 37700 | E31: Basic Rate Band | F31: =D31 -> 37700 | I31: Offshore Bond Tax Band Apportionment | P31: Offshore Bond Tax Band Apportionment | AF31: Offshore Bond Gain Tax Band Apportionment | AS31: Allowances | AT31: Still to tax | AU31: Used | AV31: Unused | AZ31: Allowances | BA31: Still to tax | BB31: Used | BC31: Unused | BO31: Tax | BQ31: Offshore Bond Gain Tax Band Apportionment | CD31: Allowances | CE31: Still to tax | CF31: Used | CG31: Unused | CK31: Allowances | CL31: Still to tax | CM31: Used | CN31: Unused | CZ31: Tax
C32: Higher Threshold | D32: ='Parameters_Inc Calcs'!E27 -> 50270 | E32: Higher Threshold | F32: =D32 -> 50270 | W32: Before | X32: After | Y32: Amount | Z32: Rate | AA32: Add Tax | AG32: Allowances | AH32: Still to tax | AI32: Used | AJ32: Unused | AL32: Amount | AM32: Rate | AN32: Tax | AR32: Personal Allowance | AS32: =AV23 -> 12570 | AT32: 0 | AU32: =MIN(AS32,AT32) -> 0 | AV32: =MAX(0,AS32-AU32) -> 12570 | AY32: Personal Allowance | AZ32: =BC23 -> 12570 | BA32: 0 | BB32: =MIN(AZ32,BA32) -> 0 | BC32: =MAX(0,AZ32-BB32) -> 12570 | BJ32: Step 4 | BK32: Personal Allowance | BL32: =BB50 -> 0 | BM32: @ | BN32: =BN19 -> 0 | BO32: =BN32*BL32 -> 0 | BR32: Allowances | BS32: Still to tax | BT32: Used | BU32: Unused | BW32: Amount | BX32: Rate | BY32: Tax | CC32: Personal Allowance | CD32: =CG23 -> 12570 | CE32: 0 | CF32: =MIN(CD32,CE32) -> 0 | CG32: =MAX(0,CD32-CF32) -> 12570 | CJ32: Personal Allowance | CK32: =CN23 -> 12570 | CL32: 0 | CM32: =MIN(CK32,CL32) -> 0 | CN32: =MAX(0,CK32-CM32) -> 12570 | CU32: Step 4 | CV32: Personal Allowance | CW32: =CM50 -> 0 | CX32: @ | CY32: =CY19 -> 0 | CZ32: =CY32*CW32 -> 0
C33: Higher Rate Band | D33: ='Parameters_Inc Calcs'!E28 -> 87440 | E33: Higher Rate Band | F33: =D33 -> 87440 | I33: Starting Rate | J33: =M23 -> 5000 | K33: 0 | L33: =MIN(K33,J33) -> 0 | M33: =MAX(0,J33-L33) -> 5000 | P33: Starting Rate | Q33: =T23 -> 5000 | R33: 0 | S33: =MIN(R33,Q33) -> 0 | T33: =MAX(0,Q33-S33) -> 5000 | W33: =$L$33*Z33 -> 0 | X33: =S33*Z33 -> 0 | Y33: =S33-L33 -> 0 | Z33: 0 | AA33: =Y33*Z33 -> 0 | AF33: Starting Rate | AG33: =AJ23 -> 5000 | AH33: 0 | AI33: 0 | AJ33: =MAX(0,AG33-AI33) -> 5000 | AL33: =AI33 -> 0 | AM33: 0 | AN33: =AL33*AM33 -> 0 | AR33: Starting Rate | AS33: =AV24 -> 5000 | AT33: =MAX(0,AT32-AU32) -> 0 | AU33: 0 | AV33: =MAX(0,AS33-AU33) -> 5000 | AY33: Starting Rate | AZ33: =BC24 -> 5000 | BA33: =MAX(0,BA32-BB32) -> 0 | BB33: 0 | BC33: =MAX(0,AZ33-BB33) -> 5000 | BK33: Starting Rate | BL33: 0 | BM33: @ | BN33: 0 | BO33: 0 | BQ33: Starting Rate | BR33: =BU23 -> 5000 | BS33: =BR3 -> 0 | BT33: =MIN(BR33,BS33) -> 0 | BU33: =MAX(0,BR33-BT33) -> 5000 | BW33: =BT33 -> 0 | BX33: 0 | BY33: =BW33*BX33 -> 0 | CC33: Starting Rate | CD33: =CG24 -> 5000 | CE33: =MAX(0,CE32-CF32) -> 0 | CF33: 0 | CG33: =MAX(0,CD33-CF33) -> 5000 | CJ33: Starting Rate | CK33: =CN24 -> 5000 | CL33: =MAX(0,CL32-CM32) -> 0 | CM33: 0 | CN33: =MAX(0,CK33-CM33) -> 5000 | CV33: Starting Rate | CW33: 0 | CX33: @ | CY33: 0 | CZ33: 0
C34: Additional Threshold | D34: ='Parameters_Inc Calcs'!E29 -> 125140 | E34: Additional Threshold | F34: =D34 -> 125140 | I34: Personal Savings Allowance | J34: =M24 -> 1000 | K34: =MAX(0,K33-L33) -> 0 | L34: 0 | M34: =MAX(0,J34-L34) -> 1000 | P34: Personal Savings Allowance | Q34: =T24 -> 1000 | R34: =MAX(0,R33-S33) -> 0 | S34: 0 | T34: =MAX(0,Q34-S34) -> 1000 | W34: =$L$34*Z34 -> 0 | X34: 0 | Y34: 0 | Z34: 0 | AA34: 0 | AF34: Personal Savings Allowance | AG34: =AJ24 -> 1000 | AH34: =MAX(0,AH33-AI33) -> 0 | AI34: 0 | AJ34: =MAX(0,AG34-AI34) -> 1000 | AL34: 0 | AM34: 0 | AN34: 0 | AR34: Personal Savings Allowance | AS34: =AV25 -> 1000 | AT34: =MAX(0,AT33-AU33) -> 0 | AU34: 0 | AV34: =MAX(0,AS34-AU34) -> 1000 | AY34: Personal Savings Allowance | AZ34: =BC25 -> 1000 | BA34: =MAX(0,BA33-BB33) -> 0 | BB34: 0 | BC34: =MAX(0,AZ34-BB34) -> 1000 | BK34: Personal Savings Allowance | BL34: 0 | BM34: @ | BN34: 0 | BO34: 0 | BQ34: Personal Savings Allowance | BR34: =BU24 -> 1000 | BS34: =MAX(0,BS33-BT33) -> 0 | BT34: 0 | BU34: =MAX(0,BR34-BT34) -> 1000 | BW34: 0 | BX34: 0 | BY34: 0 | CC34: Personal Savings Allowance | CD34: =CG25 -> 1000 | CE34: =MAX(0,CE33-CF33) -> 0 | CF34: 0 | CG34: =MAX(0,CD34-CF34) -> 1000 | CJ34: Personal Savings Allowance | CK34: =CN25 -> 1000 | CL34: =MAX(0,CL33-CM33) -> 0 | CM34: 0 | CN34: =MAX(0,CK34-CM34) -> 1000 | CV34: Personal Savings Allowance | CW34: 0 | CX34: @ | CY34: 0 | CZ34: 0
I35: Personal Allowance | J35: =M25 -> 12570 | K35: =MAX(0,K34-L34) -> 0 | L35: 0 | M35: =MAX(0,J35-L35) -> 12570 | P35: Personal Allowance | Q35: =T25 -> 12570 | R35: =MAX(0,R34-S34) -> 0 | S35: 0 | T35: =MAX(0,Q35-S35) -> 12570 | W35: =$L$35*Z35 -> 0 | X35: 0 | Y35: 0 | Z35: 0 | AA35: 0 | AF35: Personal Allowance | AG35: =AJ25 -> 12570 | AH35: =MAX(0,AH34-AI34) -> 0 | AI35: 0 | AJ35: =MAX(0,AG35-AI35) -> 12570 | AL35: 0 | AM35: 0 | AN35: 0 | AR35: Basic Rate | AS35: =MAX(0,AV26-SUM(AU33:AU34)) -> 37700 | AT35: =MAX(0,AT34-AU34) -> 0 | AU35: 0 | AV35: =MAX(0,AS35-AU35) -> 37700 | AY35: Basic Rate | AZ35: =MAX(0,BC26-SUM(BB33:BB34)) -> 37700 | BA35: =MAX(0,BA34-BB34) -> 0 | BB35: 0 | BC35: =MAX(0,AZ35-BB35) -> 37700 | BK35: Basic Rate | BL35: 0 | BM35: @ | BN35: 0.22 | BO35: 0 | BQ35: Personal Allowance | BR35: =BU25 -> 12570 | BS35: =MAX(0,BS34-BT34) -> 0 | BT35: 0 | BU35: =MAX(0,BR35-BT35) -> 12570 | BW35: 0 | BX35: 0 | BY35: 0 | CC35: Basic Rate | CD35: =MAX(0,CG26-SUM(CF33:CF34)) -> 37700 | CE35: =MAX(0,CE34-CF34) -> 0 | CF35: 0 | CG35: =MAX(0,CD35-CF35) -> 37700 | CJ35: Basic Rate | CK35: =MAX(0,CN26-SUM(CM33:CM34)) -> 37700 | CL35: =MAX(0,CL34-CM34) -> 0 | CM35: 0 | CN35: =MAX(0,CK35-CM35) -> 37700 | CV35: Basic Rate | CW35: 0 | CX35: @ | CY35: 0.22 | CZ35: 0
C36: PA standard | D36: ='Parameters_Inc Calcs'!E25 -> 12570 | E36: PA standard | F36: =D36 -> 12570 | I36: Basic Rate | J36: =MAX(0,M26-SUM(L33:L34)) -> 37700 | K36: =MAX(0,K35-L35) -> 0 | L36: 0 | M36: =MAX(0,J36-L36) -> 37700 | P36: Basic Rate | Q36: =MAX(0,T26-SUM(S33:S34)) -> 37700 | R36: =MAX(0,R35-S35) -> 0 | S36: 0 | T36: =MAX(0,Q36-S36) -> 37700 | W36: =$L$36*Z36 -> 0 | X36: 0 | Y36: 0 | Z36: ='Parameters_Inc Calcs'!$E$4 -> 0.22 | AA36: 0 | AF36: Basic Rate | AG36: =MAX(0,AJ26-SUM(AI33:AI34)) -> 37700 | AH36: =MAX(0,AH35-AI35) -> 0 | AI36: 0 | AJ36: =MAX(0,AG36-AI36) -> 37700 | AK36: =MIN(AJ27,MAX(0,AI34-AJ26)) -> 0 | AL36: 0 | AM36: ='Parameters_Inc Calcs'!$E$4 -> 0.22 | AN36: 0 | AR36: Higher Rate | AS36: =AV27-AW36 -> 87440 | AT36: =MAX(0,AT35-AU35) -> 0 | AU36: 0 | AV36: =MAX(0,AS36-AU36) -> 87440 | AW36: =MIN(AV27,MAX(0,AU34-AV26)) -> 0 | AY36: Higher Rate | AZ36: =BC27-BD36 -> 87440 | BA36: =MAX(0,BA35-BB35) -> 0 | BB36: 0 | BC36: =MAX(0,AZ36-BB36) -> 87440 | BD36: =MIN(BC27,MAX(0,BB34-BC26)) -> 0 | BK36: Higher Rate | BL36: 0 | BM36: @ | BN36: 0.42 | BO36: 0 | BQ36: Basic Rate | BR36: =MAX(0,BU26-SUM(BT33:BT34)) -> 37700 | BS36: =MAX(0,BS35-BT35) -> 0 | BT36: 0 | BU36: =MAX(0,BR36-BT36) -> 37700 | BV36: =MIN(BU27,MAX(0,BT34-BU26)) -> 0 | BW36: 0 | BX36: ='Parameters_Inc Calcs'!$E$4 -> 0.22 | BY36: 0 | CC36: Higher Rate | CD36: =CG27-CH36 -> 87440 | CE36: =MAX(0,CE35-CF35) -> 0 | CF36: 0 | CG36: =MAX(0,CD36-CF36) -> 87440 | CH36: =MIN(CG27,MAX(0,CF34-CG26)) -> 0 | CJ36: Higher Rate | CK36: =CN27-CO36 -> 87440 | CL36: =MAX(0,CL35-CM35) -> 0 | CM36: 0 | CN36: =MAX(0,CK36-CM36) -> 87440 | CO36: =MIN(CN27,MAX(0,CM34-CN26)) -> 0 | CV36: Higher Rate | CW36: 0 | CX36: @ | CY36: 0.42 | CZ36: 0
I37: Higher Rate | J37: =M27-N37 -> 87440 | K37: =MAX(0,K36-L36) -> 0 | L37: 0 | M37: =MAX(0,J37-L37) -> 87440 | N37: =MIN(M27,MAX(0,L34-M26)) -> 0 | P37: Higher Rate | Q37: =T27-U37 -> 87440 | R37: =MAX(0,R36-S36) -> 0 | S37: 0 | T37: =MAX(0,Q37-S37) -> 87440 | U37: =MIN(T27,MAX(0,S34-T26)) -> 0 | W37: =$L$37*Z37 -> 0 | X37: 0 | Y37: 0 | Z37: ='Parameters_Inc Calcs'!$E$5 -> 0.42 | AA37: 0 | AF37: Higher Rate | AG37: =AJ27-AK36 -> 87440 | AH37: =MAX(0,AH36-AI36) -> 0 | AI37: 0 | AJ37: =MAX(0,AG37-AI37) -> 87440 | AL37: 0 | AM37: ='Parameters_Inc Calcs'!$E$5 -> 0.42 | AN37: 0 | AR37: Additional Rate | AT37: =MAX(0,AT36-AU36) -> 0 | AU37: 0 | AY37: Additional Rate | BA37: =MAX(0,BA36-BB36) -> 0 | BB37: 0 | BK37: Additional Rate | BL37: 0 | BM37: @ | BN37: 0.47 | BO37: 0 | BQ37: Higher Rate | BR37: =BU27-BV36 -> 87440 | BS37: =MAX(0,BS36-BT36) -> 0 | BT37: 0 | BU37: =MAX(0,BR37-BT37) -> 87440 | BW37: 0 | BX37: ='Parameters_Inc Calcs'!$E$5 -> 0.42 | BY37: 0 | CC37: Additional Rate | CE37: =MAX(0,CE36-CF36) -> 0 | CF37: 0 | CJ37: Additional Rate | CL37: =MAX(0,CL36-CM36) -> 0 | CM37: 0 | CV37: Additional Rate | CW37: 0 | CX37: @ | CY37: 0.47 | CZ37: 0
C38: PSA Basic | D38: ='Parameters_Inc Calcs'!$C$9 -> 1000 | E38: PSA Basic | F38: ='Parameters_Inc Calcs'!$C$9 -> 1000 | I38: Additional Rate | K38: =MAX(0,K37-L37) -> 0 | L38: 0 | P38: Additional Rate | R38: =MAX(0,R37-S37) -> 0 | S38: 0 | W38: =$L$38*Z38 -> 0 | X38: 0 | Y38: 0 | Z38: ='Parameters_Inc Calcs'!$E$8 -> 0.47 | AA38: 0 | AF38: Additional Rate | AH38: =MAX(0,AH37-AI37) -> 0 | AI38: 0 | AJ38: NA | AL38: 0 | AM38: ='Parameters_Inc Calcs'!$E$8 -> 0.47 | AN38: 0 | AO38: =SUM(AN32:AN38) -> 0 | AP38: =AO38-W39 -> 0 | BK38: Total Liability | BO38: =SUM(BO33:BO37) -> 0 | BQ38: Additional Rate | BS38: =MAX(0,BS37-BT37) -> 0 | BT38: 0 | BU38: NA | BW38: 0 | BX38: ='Parameters_Inc Calcs'!$E$8 -> 0.47 | BY38: 0 | BZ38: =SUM(BY33:BY38) -> 0 | CA38: =BZ38-W39 -> 0 | CV38: Total Liability | CZ38: =SUM(CZ33:CZ37) -> 0
C39: PSA Higher | D39: ='Parameters_Inc Calcs'!$C$10 -> 500 | E39: PSA Higher | F39: ='Parameters_Inc Calcs'!$C$10 -> 500 | W39: =SUM(W33:W38) -> 0 | X39: =SUM(X33:X38) -> 0 | Y39: =SUM(Y33:Y38) -> 0 | AA39: =SUM(AA33:AA38) -> 0 | BK39: Tax Credit | BO39: =(BL30-BL32)*BN35 -> 0 | CV39: Tax Credit | CZ39: =(CW30-CW32)*CY35 -> 0
C40: PSA Add | D40: ='Parameters_Inc Calcs'!$C$11 -> 0 | E40: PSA Add | F40: ='Parameters_Inc Calcs'!$C$11 -> 0 | I40: Dividend Income Tax Band Apportionment | P40: Dividend Income Tax Band Apportionment | AF40: Dividend Income Tax Band Apportionment | AR40: Dividend Income Tax Band Apportionment | AY40: Dividend Income Tax Band Apportionment | BK40: Relieved Liability on Slice | BO40: =MAX(0,BO38-BO39) -> 0 | BQ40: Dividend Income Tax Band Apportionment | CC40: Dividend Income Tax Band Apportionment | CJ40: Dividend Income Tax Band Apportionment | CV40: Relieved Liability on Slice | CZ40: =MAX(0,CZ38-CZ39) -> 0
J41: Allowances | K41: Still to tax | L41: Used | M41: Unused | Q41: Allowances | R41: Still to tax | S41: Used | T41: Unused | W41: Before | X41: After | Y41: Amount | Z41: Rate | AA41: Add Tax | AG41: Allowances | AH41: Still to tax | AI41: Used | AJ41: Unused | AL41: Amount | AM41: Rate | AN41: Tax | AS41: Allowances | AT41: Still to tax | AU41: Used | AV41: Unused | AZ41: Allowances | BA41: Still to tax | BB41: Used | BC41: Unused | BK41: Derived years (N) | BO41: =IF(BL17=0,0,BL17/BL30) -> 0 | BR41: Allowances | BS41: Still to tax | BT41: Used | BU41: Unused | BW41: Amount | BX41: Rate | BY41: Tax | CD41: Allowances | CE41: Still to tax | CF41: Used | CG41: Unused | CK41: Allowances | CL41: Still to tax | CM41: Used | CN41: Unused | CV41: Derived years (N) | CZ41: =IF(CW17=0,0,CW17/CW30) -> 0
C42: Starting Rate for Savings | D42: ='Parameters_Inc Calcs'!C12 -> 5000 | E42: Starting Rate for Savings | F42: ='Parameters_Inc Calcs'!C12 -> 5000 | I42: Dividend Allowance | J42: =D47 -> 500 | K42: =D16 -> 0 | L42: =MIN(J42,K42) -> 0 | M42: =MAX(0,J42-L42) -> 500 | N42: Higher Rate Adjustment for PSA and SRS Bands | P42: Dividend Allowance | Q42: =D47 -> 500 | R42: =F16+F18 -> 0 | S42: =MIN(Q42,R42) -> 0 | T42: =MAX(0,Q42-S42) -> 500 | U42: Higher Rate Adjustment for PSA and SRS Bands | W42: =$L$42*Z42 -> 0 | X42: =S42*Z42 -> 0 | Y42: =S42-L42 -> 0 | Z42: 0 | AA42: =Y42*Z42 -> 0 | AF42: Dividend Allowance | AG42: ='Parameters_Inc Calcs'!$C$15 -> 500 | AH42: =AG6 -> 0 | AI42: =MIN(AG42,AH42) -> 0 | AJ42: =MAX(0,AG42-AI42) -> 500 | AL42: =AI42 -> 0 | AM42: 0 | AN42: =AL42*AM42 -> 0 | AR42: Personal Allowance | AS42: =AV32 -> 12570 | AT42: =AG6 -> 0 | AU42: =MIN(AS42,AT42) -> 0 | AV42: =MAX(0,AS42-AU42) -> 12570 | AY42: Personal Allowance | AZ42: =BC32 -> 12570 | BA42: =AZ6 -> 0 | BB42: =MIN(AZ42,BA42) -> 0 | BC42: =MAX(0,AZ42-BB42) -> 12570 | BK42: Relieved Liability on Slice x N | BO42: =BO40*BO41 -> 0 | BQ42: Dividend Allowance | BR42: ='Parameters_Inc Calcs'!$C$15 -> 500 | BS42: =BR6 -> 0 | BT42: =MIN(BR42,BS42) -> 0 | BU42: =MAX(0,BR42-BT42) -> 500 | BW42: =BT42 -> 0 | BX42: 0 | BY42: =BW42*BX42 -> 0 | CC42: Personal Allowance | CD42: =CG32 -> 12570 | CE42: =BR6 -> 0 | CF42: =MIN(CD42,CE42) -> 0 | CG42: =MAX(0,CD42-CF42) -> 12570 | CJ42: Personal Allowance | CK42: =CN32 -> 12570 | CL42: =CK6 -> 0 | CM42: =MIN(CK42,CL42) -> 0 | CN42: =MAX(0,CK42-CM42) -> 12570 | CV42: Relieved Liability on Slice x N | CZ42: =CZ40*CZ41 -> 0
C43: Available | D43: =MAX(0,MIN(D42,(D27+D42)-D14)) -> 5000 | E43: Available | F43: =MAX(0,MIN(F42,(F27+F42)-F14)) -> 5000 | I43: Personal Allowance | J43: =M35 -> 12570 | K43: =MAX(0,K42-L42) -> 0 | L43: =MIN(J43,K43) -> 0 | M43: =MAX(0,J43-L43) -> 12570 | P43: Personal Allowance | Q43: =T35 -> 12570 | R43: =MAX(0,R42-S42) -> 0 | S43: =MIN(Q43,R43) -> 0 | T43: =MAX(0,Q43-S43) -> 12570 | W43: =$L$43*Z43 -> 0 | X43: =S43*Z43 -> 0 | Y43: =S43-L43 -> 0 | Z43: 0 | AA43: =Y43*Z43 -> 0 | AF43: Personal Allowance | AG43: =AJ35 -> 12570 | AH43: =MAX(0,AH42-AI42) -> 0 | AI43: =MIN(AG43,AH43) -> 0 | AJ43: =MAX(0,AG43-AI43) -> 12570 | AL43: =AI43 -> 0 | AM43: 0 | AN43: =AL43*AM43 -> 0 | AR43: Dividend Allowance | AS43: ='Parameters_Inc Calcs'!$C$15 -> 500 | AT43: =MAX(0,AT42-AU42) -> 0 | AU43: =MIN(AS43,AT43) -> 0 | AV43: =MAX(0,AS43-AU43) -> 500 | AY43: Dividend Allowance | AZ43: ='Parameters_Inc Calcs'!$C$15 -> 500 | BA43: =MAX(0,BA42-BB42) -> 0 | BB43: =MIN(AZ43,BA43) -> 0 | BC43: =MAX(0,AZ43-BB43) -> 500 | BQ43: Personal Allowance | BR43: =BU35 -> 12570 | BS43: =MAX(0,BS42-BT42) -> 0 | BT43: =MIN(BR43,BS43) -> 0 | BU43: =MAX(0,BR43-BT43) -> 12570 | BW43: =BT43 -> 0 | BX43: 0 | BY43: =BW43*BX43 -> 0 | CC43: Dividend Allowance | CD43: ='Parameters_Inc Calcs'!$C$15 -> 500 | CE43: =MAX(0,CE42-CF42) -> 0 | CF43: =MIN(CD43,CE43) -> 0 | CG43: =MAX(0,CD43-CF43) -> 500 | CJ43: Dividend Allowance | CK43: ='Parameters_Inc Calcs'!$C$15 -> 500 | CL43: =MAX(0,CL42-CM42) -> 0 | CM43: =MIN(CK43,CL43) -> 0 | CN43: =MAX(0,CK43-CM43) -> 500
I44: Basic Rate | J44: =MAX(0,M36-L42) -> 37700 | K44: =MAX(0,K43-L43) -> 0 | L44: =MIN(J44,K44) -> 0 | M44: =MAX(0,J44-L44) -> 37700 | P44: Basic Rate | Q44: =MAX(0,T36-S42) -> 37700 | R44: =MAX(0,R43-S43) -> 0 | S44: =MIN(Q44,R44) -> 0 | T44: =MAX(0,Q44-S44) -> 37700 | W44: =$L$44*Z44 -> 0 | X44: =S44*Z44 -> 0 | Y44: =S44-L44 -> 0 | Z44: ='Parameters_Inc Calcs'!$D$4 -> 0.1075 | AA44: =Y44*Z44 -> 0 | AF44: Basic Rate | AG44: =MAX(0,AJ36-AI42) -> 37700 | AH44: =MAX(0,AH43-AI43) -> 0 | AI44: =MIN(AG44,AH44) -> 0 | AJ44: =MAX(0,AG44-AI44) -> 37700 | AK44: =MIN(AJ37,MAX(0,AI42-AJ36)) -> 0 | AL44: =AI44 -> 0 | AM44: ='Parameters_Inc Calcs'!$D$4 -> 0.1075 | AN44: =AL44*AM44 -> 0 | AR44: Basic Rate | AS44: =MAX(0,AV35-AU43) -> 37700 | AT44: =MAX(0,AT43-AU43) -> 0 | AU44: =MIN(AS44,AT44) -> 0 | AV44: =MAX(0,AS44-AU44) -> 37700 | AY44: Basic Rate | AZ44: =MAX(0,BC35-BB43) -> 37700 | BA44: =MAX(0,BA43-BB43) -> 0 | BB44: =MIN(AZ44,BA44) -> 0 | BC44: =MAX(0,AZ44-BB44) -> 37700 | BK44: Top Slicing Relief | BQ44: Basic Rate | BR44: =MAX(0,BU36-BT42) -> 37700 | BS44: =MAX(0,BS43-BT43) -> 0 | BT44: =MIN(BR44,BS44) -> 0 | BU44: =MAX(0,BR44-BT44) -> 37700 | BV44: =MIN(BU37,MAX(0,BT42-BU36)) -> 0 | BW44: =BT44 -> 0 | BX44: ='Parameters_Inc Calcs'!$D$4 -> 0.1075 | BY44: =BW44*BX44 -> 0 | CC44: Basic Rate | CD44: =MAX(0,CG35-CF43) -> 37700 | CE44: =MAX(0,CE43-CF43) -> 0 | CF44: =MIN(CD44,CE44) -> 0 | CG44: =MAX(0,CD44-CF44) -> 37700 | CJ44: Basic Rate | CK44: =MAX(0,CN35-CM43) -> 37700 | CL44: =MAX(0,CL43-CM43) -> 0 | CM44: =MIN(CK44,CL44) -> 0 | CN44: =MAX(0,CK44-CM44) -> 37700 | CV44: Top Slicing Relief
C45: PSA | D45: =IF(D19>D34,D40,IF(D19>D32,D39,D38)) -> 1000 | E45: PSA | F45: =IF(F19>F34,F40,IF(F19>F32,F39,F38)) -> 1000 | I45: Higher Rate | J45: =M37-N45 -> 87440 | K45: =MAX(0,K44-L44) -> 0 | L45: =MIN(J45,K45) -> 0 | M45: =MAX(0,J45-L45) -> 87440 | N45: =MIN(M27,MAX(L42-M26,0)) -> 0 | P45: Higher Rate | Q45: =T37-U45 -> 87440 | R45: =MAX(0,R44-S44) -> 0 | S45: =MIN(Q45,R45) -> 0 | T45: =MAX(0,Q45-S45) -> 87440 | U45: =MIN(T27,MAX(S42-T26,0)) -> 0 | W45: =$L$45*Z45 -> 0 | X45: =S45*Z45 -> 0 | Y45: =S45-L45 -> 0 | Z45: ='Parameters_Inc Calcs'!$D$5 -> 0.3575 | AA45: =Y45*Z45 -> 0 | AF45: Higher Rate | AG45: =AJ37-AK44 -> 87440 | AH45: =MAX(0,AH44-AI44) -> 0 | AI45: =MIN(AG45,AH45) -> 0 | AJ45: =MAX(0,AG45-AI45) -> 87440 | AL45: =AI45 -> 0 | AM45: ='Parameters_Inc Calcs'!$D$5 -> 0.3575 | AN45: =AL45*AM45 -> 0 | AR45: Higher Rate | AS45: =AV36-AW45 -> 87440 | AT45: =MAX(0,AT44-AU44) -> 0 | AU45: =MIN(AS45,AT45) -> 0 | AV45: =MAX(0,AS45-AU45) -> 87440 | AW45: =MIN(AV36,MAX(0,AU43-AV35)) -> 0 | AY45: Higher Rate | AZ45: =BC36-BD45 -> 87440 | BA45: =MAX(0,BA44-BB44) -> 0 | BB45: =MIN(AZ45,BA45) -> 0 | BC45: =MAX(0,AZ45-BB45) -> 87440 | BD45: =MIN(BC36,MAX(0,BB43-BC35)) -> 0 | BJ45: Step 5 | BK45: Relieved liability on full gain | BO45: =BO27 -> 0 | BP45: a | BQ45: Higher Rate | BR45: =BU37-BV44 -> 87440 | BS45: =MAX(0,BS44-BT44) -> 0 | BT45: =MIN(BR45,BS45) -> 0 | BU45: =MAX(0,BR45-BT45) -> 87440 | BW45: =BT45 -> 0 | BX45: ='Parameters_Inc Calcs'!$D$5 -> 0.3575 | BY45: =BW45*BX45 -> 0 | CC45: Higher Rate | CD45: =CG36-CH45 -> 87440 | CE45: =MAX(0,CE44-CF44) -> 0 | CF45: =MIN(CD45,CE45) -> 0 | CG45: =MAX(0,CD45-CF45) -> 87440 | CH45: =MIN(CG36,MAX(0,CF43-CG35)) -> 0 | CJ45: Higher Rate | CK45: =CN36-CO45 -> 87440 | CL45: =MAX(0,CL44-CM44) -> 0 | CM45: =MIN(CK45,CL45) -> 0 | CN45: =MAX(0,CK45-CM45) -> 87440 | CO45: =MIN(CN36,MAX(0,CM43-CN35)) -> 0 | CU45: Step 5 | CV45: Relieved liability on full gain | CZ45: =CZ27 -> 0 | DA45: a
I46: Additional Rate | K46: =MAX(0,K45-L45) -> 0 | L46: =MIN(J46,K46) -> 0 | M46: NA | P46: Additional Rate | R46: =MAX(0,R45-S45) -> 0 | S46: =MIN(Q46,R46) -> 0 | T46: NA | W46: =$L$46*Z46 -> 0 | X46: =S46*Z46 -> 0 | Y46: =S46-L46 -> 0 | Z46: ='Parameters_Inc Calcs'!$D$8 -> 0.3935 | AA46: =Y46*Z46 -> 0 | AF46: Additional Rate | AH46: =MAX(0,AH45-AI45) -> 0 | AI46: =MIN(AG46,AH46) -> 0 | AJ46: NA | AL46: =AI46 -> 0 | AM46: ='Parameters_Inc Calcs'!$D$8 -> 0.3935 | AN46: =AL46*AM46 -> 0 | AO46: =SUM(AN42:AN46) -> 0 | AP46: =AO46-W47 -> 0 | AR46: Additional Rate | AT46: =MAX(0,AT45-AU45) -> 0 | AU46: =MIN(AS46,AT46) -> 0 | AY46: Additional Rate | BA46: =MAX(0,BA45-BB45) -> 0 | BB46: =MIN(AZ46,BA46) -> 0 | BK46: =BK42 -> Relieved Liability on Slice x N | BO46: =BO42 -> 0 | BP46: b | BQ46: Additional Rate | BS46: =MAX(0,BS45-BT45) -> 0 | BT46: =MIN(BR46,BS46) -> 0 | BU46: NA | BW46: =BT46 -> 0 | BX46: ='Parameters_Inc Calcs'!$D$8 -> 0.3935 | BY46: =BW46*BX46 -> 0 | BZ46: =SUM(BY42:BY46) -> 0 | CA46: =BZ46-W47 -> 0 | CC46: Additional Rate | CE46: =MAX(0,CE45-CF45) -> 0 | CF46: =MIN(CD46,CE46) -> 0 | CJ46: Additional Rate | CL46: =MAX(0,CL45-CM45) -> 0 | CM46: =MIN(CK46,CL46) -> 0 | CV46: =CV42 -> Relieved Liability on Slice x N | CZ46: =CZ42 -> 0 | DA46: b
C47: Div All | D47: ='Parameters_Inc Calcs'!C15 -> 500 | I47: Nil Rate available | J47: =J42+J43 -> 13070 | P47: Nil Rate available | Q47: =Q42+Q43 -> 13070 | W47: =SUM(W42:W46) -> 0 | X47: =SUM(X42:X46) -> 0 | Y47: =SUM(Y42:Y46) -> 0 | AA47: =SUM(AA42:AA46) -> 0 | AC47: External Tax Rate | BK47: Top Slice Relief (a-b) | BO47: =MAX(0,BO45-BO46) -> 0 | CV47: Top Slice Relief (a-b) | CZ47: =MAX(0,CZ45-CZ46) -> 0
C48: CGT All | D48: ='Parameters_Inc Calcs'!D16 -> 3000 | AR48: Total Gain Tax Band Apportionment | AY48: Total Gain Tax Band Apportionment | CC48: Total Gain Tax Band Apportionment | CJ48: Total Gain Tax Band Apportionment
I49: Onshore Bond Gain Tax Band Apportionment | P49: Onshore Bond Gain Tax Band Apportionment | AF49: Onshore Bond Gain Tax Band Apportionment | AS49: Allowances | AT49: Still to tax | AU49: Used | AV49: Unused | AZ49: Allowances | BA49: Still to tax | BB49: Used | BC49: Unused | BQ49: Onshore Bond Gain Tax Band Apportionment | CD49: Allowances | CE49: Still to tax | CF49: Used | CG49: Unused | CK49: Allowances | CL49: Still to tax | CM49: Used | CN49: Unused
W50: Before | X50: After | Y50: Amount | Z50: Rate | AA50: Add Tax | AG50: Allowances | AH50: Still to tax | AI50: Used | AJ50: Unused | AL50: Amount | AM50: Rate | AN50: Tax | AR50: Personal Allowance | AS50: =AV42 -> 12570 | AT50: =AG3 -> 0 | AU50: =MIN(AS50,AT50) -> 0 | AV50: =MAX(0,AS50-AU50) -> 12570 | AY50: Personal Allowance | AZ50: =BC42 -> 12570 | BA50: =AZ3 -> 0 | BB50: =MIN(AZ50,BA50) -> 0 | BC50: =MAX(0,AZ50-BB50) -> 12570 | BR50: Allowances | BS50: Still to tax | BT50: Used | BU50: Unused | BW50: Amount | BX50: Rate | BY50: Tax | CC50: Personal Allowance | CD50: =CG42 -> 12570 | CE50: =BR3 -> 0 | CF50: =MIN(CD50,CE50) -> 0 | CG50: =MAX(0,CD50-CF50) -> 12570 | CJ50: Personal Allowance | CK50: =CN42 -> 12570 | CL50: =CK3 -> 0 | CM50: =MIN(CK50,CL50) -> 0 | CN50: =MAX(0,CK50-CM50) -> 12570
I51: Starting Rate | J51: =MAX(0,M33-N51) -> 5000 | K51: 0 | L51: =MIN(K51,J51) -> 0 | M51: =MAX(0,J51-L51) -> 5000 | N51: =L42+L44 -> 0 | P51: Starting Rate | Q51: =MAX(0,T33-U51) -> 5000 | R51: 0 | S51: =MIN(R51,Q51) -> 0 | T51: =MAX(0,Q51-S51) -> 5000 | U51: =S42+S44 -> 0 | W51: =$L$51*Z51 -> 0 | X51: =S51*Z51 -> 0 | Y51: =S51-L51 -> 0 | Z51: 0 | AA51: =Y51*Z51 -> 0 | AF51: Starting Rate | AG51: =MAX(0,AJ33-AK51) -> 5000 | AH51: =AG3 -> 0 | AI51: =MIN(AH51,AG51) -> 0 | AJ51: =MAX(0,AG51-AI51) -> 5000 | AK51: =AI42+AI44 -> 0 | AL51: =AI51 -> 0 | AM51: 0 | AN51: =AL51*AM51 -> 0 | AR51: Starting Rate | AS51: =MAX(0,AV33-AW51) -> 5000 | AT51: =MAX(0,AT50-AU50) -> 0 | AU51: 0 | AV51: =MAX(0,AS51-AU51) -> 5000 | AW51: =AU43+AU44 -> 0 | AY51: Starting Rate | AZ51: =MAX(0,BC33-BD51) -> 5000 | BA51: =MAX(0,BA50-BB50) -> 0 | BB51: 0 | BC51: =MAX(0,AZ51-BB51) -> 5000 | BD51: =BB43+BB44 -> 0 | BQ51: Starting Rate | BR51: =MAX(0,BU33-BV51) -> 5000 | BS51: 0 | BT51: =MIN(BS51,BR51) -> 0 | BU51: =MAX(0,BR51-BT51) -> 5000 | BV51: =BT42+BT44 -> 0 | BW51: =BT51 -> 0 | BX51: 0 | BY51: =BW51*BX51 -> 0 | CC51: Starting Rate | CD51: =MAX(0,CG33-CH51) -> 5000 | CE51: =MAX(0,CE50-CF50) -> 0 | CF51: 0 | CG51: =MAX(0,CD51-CF51) -> 5000 | CH51: =CF43+CF44 -> 0 | CJ51: Starting Rate | CK51: =MAX(0,CN33-CO51) -> 5000 | CL51: =MAX(0,CL50-CM50) -> 0 | CM51: 0 | CN51: =MAX(0,CK51-CM51) -> 5000 | CO51: =CM43+CM44 -> 0
I52: Personal Savings Allowance | J52: =M34 -> 1000 | K52: =MAX(0,K51-L51) -> 0 | L52: 0 | M52: =MAX(0,J52-L52) -> 1000 | P52: Personal Savings Allowance | Q52: =T34 -> 1000 | R52: =MAX(0,R51-S51) -> 0 | S52: 0 | T52: =MAX(0,Q52-S52) -> 1000 | W52: =$L$52*Z52 -> 0 | X52: 0 | Y52: 0 | Z52: 0 | AA52: 0 | AF52: Personal Savings Allowance | AG52: =AJ34 -> 1000 | AH52: =MAX(0,AH51-AI51) -> 0 | AI52: 0 | AJ52: =MAX(0,AG52-AI52) -> 1000 | AL52: 0 | AM52: 0 | AN52: 0 | AR52: Personal Savings Allowance | AS52: =AV34 -> 1000 | AT52: =MAX(0,AT51-AU51) -> 0 | AU52: 0 | AV52: =MAX(0,AS52-AU52) -> 1000 | AY52: Personal Savings Allowance | AZ52: =BC34 -> 1000 | BA52: =MAX(0,BA51-BB51) -> 0 | BB52: 0 | BC52: =MAX(0,AZ52-BB52) -> 1000 | BQ52: Personal Savings Allowance | BR52: =BU34 -> 1000 | BS52: =MAX(0,BS51-BT51) -> 0 | BT52: 0 | BU52: =MAX(0,BR52-BT52) -> 1000 | BW52: 0 | BX52: 0 | BY52: 0 | CC52: Personal Savings Allowance | CD52: =CG34 -> 1000 | CE52: =MAX(0,CE51-CF51) -> 0 | CF52: 0 | CG52: =MAX(0,CD52-CF52) -> 1000 | CJ52: Personal Savings Allowance | CK52: =CN34 -> 1000 | CL52: =MAX(0,CL51-CM51) -> 0 | CM52: 0 | CN52: =MAX(0,CK52-CM52) -> 1000
I53: Personal Allowance | J53: =M43 -> 12570 | K53: =MAX(0,K52-L52) -> 0 | L53: 0 | M53: =MAX(0,J53-L53) -> 12570 | P53: Personal Allowance | Q53: =T43 -> 12570 | R53: =MAX(0,R52-S52) -> 0 | S53: 0 | T53: =MAX(0,Q53-S53) -> 12570 | W53: =$L$53*Z53 -> 0 | X53: 0 | Y53: 0 | Z53: 0 | AA53: 0 | AF53: Personal Allowance | AG53: =AJ43 -> 12570 | AH53: =MAX(0,AH52-AI52) -> 0 | AI53: 0 | AJ53: =MAX(0,AG53-AI53) -> 12570 | AL53: 0 | AM53: 0 | AN53: 0 | AR53: Basic Rate | AS53: =MAX(0,AV44-SUM(AU51:AU52)) -> 37700 | AT53: =MAX(0,AT52-AU52) -> 0 | AU53: 0 | AV53: =MAX(0,AS53-AU53) -> 37700 | AY53: Basic Rate | AZ53: =MAX(0,BC44-SUM(BB51:BB52)) -> 37700 | BA53: =MAX(0,BA52-BB52) -> 0 | BB53: 0 | BC53: =MAX(0,AZ53-BB53) -> 37700 | BQ53: Personal Allowance | BR53: =BU43 -> 12570 | BS53: =MAX(0,BS52-BT52) -> 0 | BT53: 0 | BU53: =MAX(0,BR53-BT53) -> 12570 | BW53: 0 | BX53: 0 | BY53: 0 | CC53: Basic Rate | CD53: =MAX(0,CG44-SUM(CF51:CF52)) -> 37700 | CE53: =MAX(0,CE52-CF52) -> 0 | CF53: 0 | CG53: =MAX(0,CD53-CF53) -> 37700 | CJ53: Basic Rate | CK53: =MAX(0,CN44-SUM(CM51:CM52)) -> 37700 | CL53: =MAX(0,CL52-CM52) -> 0 | CM53: 0 | CN53: =MAX(0,CK53-CM53) -> 37700
I54: Basic Rate | J54: =MAX(0,M44-SUM(L51:L52)) -> 37700 | K54: =MAX(0,K53-L53) -> 0 | L54: 0 | M54: =MAX(0,J54-L54) -> 37700 | P54: Basic Rate | Q54: =MAX(0,T44-SUM(S51:S52)) -> 37700 | R54: =MAX(0,R53-S53) -> 0 | S54: 0 | T54: =MAX(0,Q54-S54) -> 37700 | W54: =$L$54*Z54 -> 0 | X54: 0 | Y54: 0 | Z54: ='Parameters_Inc Calcs'!$E$4 -> 0.22 | AA54: 0 | AF54: Basic Rate | AG54: =MAX(0,AJ44-SUM(AI51:AI52)) -> 37700 | AH54: =MAX(0,AH53-AI53) -> 0 | AI54: 0 | AJ54: =MAX(0,AG54-AI54) -> 37700 | AL54: 0 | AM54: ='Parameters_Inc Calcs'!$E$4 -> 0.22 | AN54: 0 | AR54: Higher Rate | AS54: =AV45-AW54 -> 87440 | AT54: =MAX(0,AT53-AU53) -> 0 | AU54: 0 | AV54: =MAX(0,AS54-AU54) -> 87440 | AW54: =MIN(AV45,MAX(0,AU52-AV44)) -> 0 | AY54: Higher Rate | AZ54: =BC45-BD54 -> 87440 | BA54: =MAX(0,BA53-BB53) -> 0 | BB54: 0 | BC54: =MAX(0,AZ54-BB54) -> 87440 | BD54: =MIN(BC45,MAX(0,BB52-BC44)) -> 0 | BQ54: Basic Rate | BR54: =MAX(0,BU44-SUM(BT51:BT52)) -> 37700 | BS54: =MAX(0,BS53-BT53) -> 0 | BT54: 0 | BU54: =MAX(0,BR54-BT54) -> 37700 | BW54: 0 | BX54: ='Parameters_Inc Calcs'!$E$4 -> 0.22 | BY54: 0 | CC54: Higher Rate | CD54: =CG45-CH54 -> 87440 | CE54: =MAX(0,CE53-CF53) -> 0 | CF54: 0 | CG54: =MAX(0,CD54-CF54) -> 87440 | CH54: =MIN(CG45,MAX(0,CF52-CG44)) -> 0 | CJ54: Higher Rate | CK54: =CN45-CO54 -> 87440 | CL54: =MAX(0,CL53-CM53) -> 0 | CM54: 0 | CN54: =MAX(0,CK54-CM54) -> 87440 | CO54: =MIN(CN45,MAX(0,CM52-CN44)) -> 0
I55: Higher Rate | J55: =M45-N55 -> 87440 | K55: =MAX(0,K54-L54) -> 0 | L55: 0 | M55: =MAX(0,J55-L55) -> 87440 | N55: =MIN(M45,MAX(0,L52-M44)) -> 0 | P55: Higher Rate | Q55: =T45-U55 -> 87440 | R55: =MAX(0,R54-S54) -> 0 | S55: 0 | T55: =MAX(0,Q55-S55) -> 87440 | U55: =MIN(T45,MAX(0,S52-T44)) -> 0 | W55: =$L$55*Z55 -> 0 | X55: 0 | Y55: 0 | Z55: ='Parameters_Inc Calcs'!$E$5 -> 0.42 | AA55: 0 | AF55: Higher Rate | AG55: =AJ45-AK55 -> 87440 | AH55: =MAX(0,AH54-AI54) -> 0 | AI55: 0 | AJ55: =MAX(0,AG55-AI55) -> 87440 | AK55: =MIN(AJ45,MAX(0,AI52-AJ44)) -> 0 | AL55: 0 | AM55: ='Parameters_Inc Calcs'!$E$5 -> 0.42 | AN55: 0 | AR55: Additional Rate | AT55: =MAX(0,AT54-AU54) -> 0 | AU55: 0 | AY55: Additional Rate | BA55: =MAX(0,BA54-BB54) -> 0 | BB55: 0 | BQ55: Higher Rate | BR55: =BU45-BV55 -> 87440 | BS55: =MAX(0,BS54-BT54) -> 0 | BT55: 0 | BU55: =MAX(0,BR55-BT55) -> 87440 | BV55: =MIN(BU45,MAX(0,BT52-BU44)) -> 0 | BW55: 0 | BX55: ='Parameters_Inc Calcs'!$E$5 -> 0.42 | BY55: 0 | CC55: Additional Rate | CE55: =MAX(0,CE54-CF54) -> 0 | CF55: 0 | CJ55: Additional Rate | CL55: =MAX(0,CL54-CM54) -> 0 | CM55: 0
I56: Additional Rate | K56: =MAX(0,K55-L55) -> 0 | L56: 0 | P56: Additional Rate | R56: =MAX(0,R55-S55) -> 0 | S56: 0 | W56: =$L$56*Z56 -> 0 | X56: 0 | Y56: 0 | Z56: ='Parameters_Inc Calcs'!$E$8 -> 0.47 | AA56: 0 | AF56: Additional Rate | AH56: =MAX(0,AH55-AI55) -> 0 | AI56: 0 | AL56: 0 | AM56: ='Parameters_Inc Calcs'!$E$8 -> 0.47 | AN56: 0 | AO56: =SUM(AN51:AN56) -> 0 | AP56: =AO56-W57 -> 0 | BQ56: Additional Rate | BS56: =MAX(0,BS55-BT55) -> 0 | BT56: 0 | BW56: 0 | BX56: ='Parameters_Inc Calcs'!$E$8 -> 0.47 | BY56: 0 | BZ56: =SUM(BY51:BY56) -> 0 | CA56: =BZ56-W57 -> 0
W57: =SUM(W51:W56) -> 0 | X57: =SUM(X51:X56) -> 0 | Y57: =SUM(Y51:Y56) -> 0 | AA57: =SUM(AA51:AA56) -> 0
I58: CGT allowances set to zero here as used in CGT calcs | AF58: Deficiency Calcs | AM58: Step 5 Total | AO58: =SUM(AO19:AO57) -> 0 | BQ58: Deficiency Calcs | BX58: Step 5 Total | BZ58: =SUM(BZ19:BZ57) -> 0
I59: Capital Gains Tax Band Apportionment | P59: Capital Gains Tax Band Apportionment | W59: Before | X59: After | Y59: Amount | Z59: Rate | AA59: Add Tax | AC59: Growth | AD59: =Y29+Y47+Y63 -> 0 | AG59: =IF(Bonds!G71<0,Bonds!G71,0) -> 0 | BQ59: Is gain negative? | BR59: =IF(Bonds!G85<0,Bonds!G85,0) -> 0
I60: Annual Exemption | J60: 0 | K60: 0 | L60: =MIN(J60,K60) -> 0 | M60: =MAX(0,J60-L60) -> 0 | P60: Annual Exemption | Q60: =IF(Inputs!D11="No",0,'Parameters_Inc Calcs'!D16) -> 3000 | R60: =CGT!I47 -> 0 | S60: =MIN(Q60,R60) -> 0 | T60: =MAX(0,Q60-S60) -> 3000 | W60: =$L$60*Z60 -> 0 | X60: =S60*Z60 -> 0 | Y60: =S60-L60 -> 0 | Z60: 0 | AA60: =Y60*Z60 -> 0 | AC60: Tax inc CGT | AD60: =AA63+AA47+AA29 -> 0 | AG60: =Bonds!G74 -> 0 | AL60: Less Onshore Bond Tax Credit | AO60: =(AH51-AI53)*'Parameters_Inc Calcs'!E4 -> 0 | BQ60: Max previous gains? | BR60: =Bonds!G88 -> 0 | BW60: Less Onshore Bond Tax Credit | BZ60: =(BS51-BT53)*'Parameters_Inc Calcs'!AO4 -> 0
I61: Basic Rate | J61: =M44 -> 37700 | K61: =MAX(0,K60-L60) -> 0 | L61: =MIN(J61,K61) -> 0 | M61: =MAX(0,J61-L61) -> 37700 | P61: Basic Rate | Q61: =T44 -> 37700 | R61: =MAX(0,R60-S60) -> 0 | S61: =MIN(Q61,R61) -> 0 | T61: =MAX(0,Q61-S61) -> 37700 | W61: =$L$61*Z61 -> 0 | X61: =S61*Z61 -> 0 | Y61: =S61-L61 -> 0 | Z61: ='Parameters_Inc Calcs'!$F$4 -> 0.18 | AA61: =Y61*Z61 -> 0 | AC61: Tax Exc CGT | AD61: =AD27 -> 0 | AF61: Max Deficiency | AG61: =MIN(-AG59,AG60) -> 0 | AL61: Less Top Slicing Relief | AO61: =BO47 -> 0 | BQ61: Max Deficiency | BR61: =MIN(-BR59,BR60) -> 0 | BW61: Less Top Slicing Relief | BZ61: =CZ47 -> 0
I62: Higher Rate | K62: =K61-L61 -> 0 | L62: =MIN(J62,K62) -> 0 | M62: =MAX(0,J62-L62) -> 0 | P62: Higher Rate | R62: =R61-S61 -> 0 | S62: =MIN(Q62,R62) -> 0 | T62: =MAX(0,Q62-S62) -> 0 | W62: =$L$62*Z62 -> 0 | X62: =S62*Z62 -> 0 | Y62: =S62-L62 -> 0 | Z62: ='Parameters_Inc Calcs'!$F$5 -> 0.24 | AA62: =Y62*Z62 -> 0 | AG62: Allowances | AH62: Still to tax | AI62: Used | AJ62: Unused | AK62: Value | AL62: Less Deficiency Relief | AO62: =AK63+AK64 -> 0 | BR62: Allowances | BS62: Still to tax | BT62: Used | BU62: Unused | BV62: Value | BW62: Less Deficiency Relief | BZ62: =BV63+BV64 -> 0
I63: Nil Rate available | J63: =J60 -> 0 | P63: Nil Rate available | Q63: =Q60 -> 3000 | W63: =SUM(W60:W62) -> 0 | X63: =SUM(X60:X62) -> 0 | Y63: =SUM(Y60:Y62) -> 0 | AA63: =SUM(AA60:AA62) -> 0 | AC63: Inc CGT rate | AD63: =AD60/AD59 ->  | AF63: Divis in HRT | AG63: =AG61 -> 0 | AH63: =L45 -> 0 | AI63: =MIN(AH63,AG63) -> 0 | AJ63: =MAX(0,AG63-AI63) -> 0 | AK63: =AI63*('Parameters_Inc Calcs'!$D$5-'Parameters_Inc Calcs'!$D$4) -> 0 | AO63: =SUM(AO60:AO62) -> 0 | BQ63: Divis in HRT | BR63: =BR61 -> 0 | BS63: =L45 -> 0 | BT63: =MIN(BS63,BR63) -> 0 | BU63: =MAX(0,BR63-BT63) -> 0 | BV63: =BT63*('Parameters_Inc Calcs'!$D$5-'Parameters_Inc Calcs'!$D$4) -> 0 | BZ63: =SUM(BZ60:BZ62) -> 0
AC64: Exc CGT rate | AD64: =AD61/AD59 ->  | AF64: Savings and NSND in HRT | AG64: =AJ63 -> 0 | AH64: =L27+L18 -> 0 | AI64: =MIN(AH64,AG64) -> 0 | AJ64: =MAX(0,AG64-AI64) -> 0 | AK64: =AI64*('Parameters_Inc Calcs'!$E$5-'Parameters_Inc Calcs'!$E$4) -> 0 | BQ64: Savings and NSND in HRT | BR64: =BU63 -> 0 | BS64: =L27+L18 -> 0 | BT64: =MIN(BS64,BR64) -> 0 | BU64: =MAX(0,BR64-BT64) -> 0 | BV64: =BT64*('Parameters_Inc Calcs'!$E$5-'Parameters_Inc Calcs'!$E$4) -> 0
W66: Total Tax Before for bonds | AM66: Income Tax payable | AO66: =MAX(0,AO58-AO63) -> 0 | BX66: Income Tax payable | BZ66: =MAX(0,BZ58-BZ63) -> 0
W67: =W20+W29+W39+W47+W57+W63 -> 0
AK69: Change in Tax Bill | AO69: =AO66-$W$67 -> 0 | BV69: Change in Tax Bill | BZ69: =BZ66-$W$67 -> 0

Sheet Yr 4 (hidden)
I1: Before for All Situations | P1: Collectives After | AF1: Onshore Bond After | BQ1: Offshore Bond After
I2: Before | AF2: Workings | AR2: Workings Top Slicing Full | AY2: Workings Top Slicing Slice | BF2: Slicing Calcs | BQ2: Workings | CC2: Workings Top Slicing Full | CJ2: Workings Top Slicing Slice | CQ2: Slicing Calcs
AF3: Full Bond Gain | AG3: =MAX(0,Bonds!H71) -> 0 | AY3: Slice | AZ3: =Bonds!H72 -> 0 | BQ3: Full Bond Gain | BR3: =MAX(0,Bonds!H85) -> 0 | CJ3: Slice | CK3: =Bonds!H86 -> 0
AF4: NSND in Year of encashment | AG4: =$D$14 -> 0 | AY4: NSND in Year of encashment | AZ4: =$D$14 -> 0 | BQ4: NSND in Year of encashment | BR4: =$D$14 -> 0 | CJ4: NSND in Year of encashment | CK4: =$D$14 -> 0
AF5: Savings in Year of encashment | AG5: =$D$15 -> 0 | AY5: Savings in Year of encashment | AZ5: =$D$15 -> 0 | BQ5: Savings in Year of encashment | BR5: =$D$15 -> 0 | CJ5: Savings in Year of encashment | CK5: =$D$15 -> 0
AF6: Dividend in Year of encashment | AG6: =$D$16 -> 0 | AY6: Dividend in Year of encashment | AZ6: =$D$16 -> 0 | BQ6: Dividend in Year of encashment | BR6: =$D$16 -> 0 | CJ6: Dividend in Year of encashment | CK6: =$D$16 -> 0
B7: Year | C7: 4 | E7: Amber needs amended when new sheet created | I7: Allowances: | P7: Allowances: | AF7: Personal Allowance Adjustment | AG7: =IF((AG3+AG4+AG5+AG6)<'Parameters_Inc Calcs'!$C$3,0,MIN(F36,((AG3+AG4+AG5+AG6)-'Parameters_Inc Calcs'!$C$3)/2)) -> 0 | AI7: PA Lost | AY7: Personal Allowance Adjustment | AZ7: =IF((AZ3+AZ4+AZ5+AZ6)<'Parameters_Inc Calcs'!$C$3,0,MIN(F36,((AZ3+AZ4+AZ5+AZ6)-'Parameters_Inc Calcs'!$C$3)/2)) -> 0 | BQ7: Personal Allowance Adjustment | BR7: =IF((BR3+BR4+BR5+BR6)<'Parameters_Inc Calcs'!$C$3,0,MIN(F36,((BR3+BR4+BR5+BR6)-'Parameters_Inc Calcs'!$C$3)/2)) -> 0 | BT7: Personal Allowance Lost | CJ7: Personal Allowance Adjustment | CK7: =IF((CK3+CK4+CK5+CK6)<'Parameters_Inc Calcs'!$C$3,0,MIN(F36,((CK3+CK4+CK5+CK6)-'Parameters_Inc Calcs'!$C$3)/2)) -> 0
B8: Final Year | C8: =IF(C7=Inputs!D7,"Yes","No") -> No | I8: Pers_Allow_Adj | P8: Pers_Allow_Adj | T8: PA Lost | AF8: PA to Use | AG8: =D36-AG7 -> 12570 | AI8: =J9-AG8 -> 0 | AY8: PA to Use - Silver adjustment | AZ8: =F36-AZ7 -> 12570 | BQ8: PA to Use | BR8: =F36-BR7 -> 12570 | BT8: =J9-BR8 -> 0 | CJ8: PA to Use - Silver adjustment | CK8: =F36-CK7 -> 12570
B9: After Final Year | C9: =AND(C7>Inputs!D7) -> TRUE | I9: Tot_Pers_Allow | J9: =D27 -> 12570 | P9: Tot_Pers_Allow | Q9: =F27 -> 12570 | T9: =J9-Q9 -> 0 | AF9: Starter Rate to Use | AG9: =IF(AG4>AG8+'Parameters_Inc Calcs'!$C$12,0,MIN('Parameters_Inc Calcs'!$C$12,AG8+'Parameters_Inc Calcs'!$C$12-AG4)) -> 5000 | AY9: Starter Rate to Use -"gold" adjustment | AZ9: =IF(AZ4>AZ8+'Parameters_Inc Calcs'!$C$12,0,MIN('Parameters_Inc Calcs'!$C$12,AZ8+'Parameters_Inc Calcs'!$C$12-AZ4)) -> 5000 | BQ9: Starter Rate to Use | BR9: =IF(BR4>BR8+'Parameters_Inc Calcs'!$C$12,0,MIN('Parameters_Inc Calcs'!$C$12,BR8+'Parameters_Inc Calcs'!$C$12-BR4)) -> 5000 | CJ9: Starter Rate to Use -"gold" adjustment | CK9: =IF(CK4>CK8+'Parameters_Inc Calcs'!$C$12,0,MIN('Parameters_Inc Calcs'!$C$12,CK8+'Parameters_Inc Calcs'!$C$12-CK4)) -> 5000
B10: Investment | C10: =CGT!J12 -> 0 | I10: Pers_Sav_Allow | J10: =D45 -> 1000 | P10: Pers_Sav_Allow | Q10: =F45 -> 1000 | AF10: PSA to USE | AG10: =IF(SUM(AG3:AG6)>'Parameters_Inc Calcs'!$C$8,'Parameters_Inc Calcs'!$C$11,IF(SUM(AG3:AG6)>'Parameters_Inc Calcs'!$C$5,'Parameters_Inc Calcs'!$C$10,'Parameters_Inc Calcs'!$C$9)) -> 1000 | AY10: PSA to use - from full calc as no silver adjustment | AZ10: =IF(SUM(AZ3:AZ6)>'Parameters_Inc Calcs'!$C$8,'Parameters_Inc Calcs'!$C$11,IF(SUM(AZ3:AZ6)>'Parameters_Inc Calcs'!$C$5,'Parameters_Inc Calcs'!$C$10,'Parameters_Inc Calcs'!$C$9)) -> 1000 | BQ10: PSA to USE | BR10: =IF(SUM(BR3:BR6)>'Parameters_Inc Calcs'!$C$8,'Parameters_Inc Calcs'!$C$11,IF(SUM(BR3:BR6)>'Parameters_Inc Calcs'!$C$5,'Parameters_Inc Calcs'!$C$10,'Parameters_Inc Calcs'!$C$9)) -> 1000 | CJ10: PSA to use - "gold" adjustment | CK10: =IF(SUM(CK3:CK6)>'Parameters_Inc Calcs'!$C$8,'Parameters_Inc Calcs'!$C$11,IF(SUM(CK3:CK6)>'Parameters_Inc Calcs'!$C$5,'Parameters_Inc Calcs'!$C$10,'Parameters_Inc Calcs'!$C$9)) -> 1000
B11: Cum Gain | C11: =CGT!J17 -> 0
AP12: Difference to All before | CA12: Difference to All before | CC12: Non Savings Income Apportionment
B13: Factor | C13: Before | E13: After | I13: Non Savings Income Apportionment | P13: Non Savings Income Apportionment | AF13: Non Savings Income Apportionment | AR13: Non Savings Income Apportionment | AY13: Non Savings Income Apportionment | BQ13: Non Savings Income Apportionment | CJ13: Non Savings Income Apportionment
B14: =1+Inputs!K6 -> 1 | C14: NSND | D14: =IF(C9=TRUE,0,IF(OR($C$8="Yes",$C$9=TRUE),Inputs!I13,'Yr 3'!D14*B14)) -> 0 | E14: Total Income | F14: =IF(C8="Yes",Inputs!I13,D14) -> 0
B15: =1+Inputs!K7 -> 1 | C15: Savings | D15: =IF(C9=TRUE,0,IF(OR($C$8="Yes",$C$9=TRUE),Inputs!I14,'Yr 3'!D15*B15)) -> 0 | E15: Savings | F15: =IF(C8="Yes",Inputs!I14,D15) -> 0 | J15: Allowances | K15: Still to tax | L15: Used | M15: Unused | Q15: Allowances | R15: Still to tax | S15: Used | T15: Unused | W15: Before | X15: After | Y15: Amount | Z15: Rate | AA15: Add Tax | AG15: Allowances | AH15: Still to tax | AI15: Used | AJ15: Unused | AL15: Amount | AM15: Rate | AN15: Tax | AS15: Allowances | AT15: Still to tax | AU15: Used | AV15: Unused | AZ15: Allowances | BA15: Still to tax | BB15: Used | BC15: Unused | BJ15: Top Slicing | BR15: Allowances | BS15: Still to tax | BT15: Used | BU15: Unused | BW15: Amount | BX15: Rate | BY15: Tax | CD15: Allowances | CE15: Still to tax | CF15: Used | CG15: Unused | CK15: Allowances | CL15: Still to tax | CM15: Used | CN15: Unused | CU15: Top Slicing
B16: =1+Inputs!K8 -> 1 | C16: Divi | D16: =IF(C9=TRUE,0,IF(OR($C$8="Yes",$C$9=TRUE),Inputs!I15,'Yr 3'!D16*B16)) -> 0 | E16: Divi | F16: =IF(C8="Yes",Inputs!I15,D16) -> 0 | I16: Personal Allowance | J16: =J9 -> 12570 | K16: =D14 -> 0 | L16: =MIN(J16,K16) -> 0 | M16: =MAX(0,J16-L16) -> 12570 | P16: Personal Allowance | Q16: =Q9 -> 12570 | R16: =K16 -> 0 | S16: =MIN(Q16,R16) -> 0 | T16: =MAX(0,Q16-S16) -> 12570 | W16: =$L$16*Z16 -> 0 | X16: =S16*Z16 -> 0 | Y16: =S16-L16 -> 0 | Z16: 0 | AA16: =Y16*Z16 -> 0 | AF16: Personal Allowance | AG16: =AG8 -> 12570 | AH16: =AG4 -> 0 | AI16: =MIN(AG16,AH16) -> 0 | AJ16: =MAX(0,AG16-AI16) -> 12570 | AL16: =AI16 -> 0 | AM16: 0 | AN16: =AL16*AM16 -> 0 | AR16: Personal Allowance | AS16: =AG8 -> 12570 | AT16: =MAX(0,AG4) -> 0 | AU16: =MIN(AS16,AT16) -> 0 | AV16: =MAX(0,AS16-AU16) -> 12570 | AY16: Personal Allowance | AZ16: =AZ8 -> 12570 | BA16: =MAX(0,AZ4) -> 0 | BB16: =MIN(AZ16,BA16) -> 0 | BC16: =MAX(0,AZ16-BB16) -> 12570 | BQ16: Personal Allowance | BR16: =BR8 -> 12570 | BS16: =BR4 -> 0 | BT16: =MIN(BR16,BS16) -> 0 | BU16: =MAX(0,BR16-BT16) -> 12570 | BW16: =BT16 -> 0 | BX16: 0 | BY16: =BW16*BX16 -> 0 | CC16: Personal Allowance | CD16: =BR8 -> 12570 | CE16: =MAX(0,BR4) -> 0 | CF16: =MIN(CD16,CE16) -> 0 | CG16: =MAX(0,CD16-CF16) -> 12570 | CJ16: Personal Allowance | CK16: =CK8 -> 12570 | CL16: =MAX(0,CK4) -> 0 | CM16: =MIN(CK16,CL16) -> 0 | CN16: =MAX(0,CK16-CM16) -> 12570
B17: =Inputs!Q6 -> 0 | E17: New Savings | F17: =IF(C9=TRUE,0,C10*B17) -> 0 | I17: Basic Rate | J17: =$D$31 -> 37700 | K17: =MAX(0,K16-L16) -> 0 | L17: =MIN(J17,K17) -> 0 | M17: =MAX(0,J17-L17) -> 37700 | P17: Basic Rate | Q17: =$F$31 -> 37700 | R17: =MAX(0,R16-S16) -> 0 | S17: =MIN(Q17,R17) -> 0 | T17: =MAX(0,Q17-S17) -> 37700 | W17: =$L$17*Z17 -> 0 | X17: =S17*Z17 -> 0 | Y17: =S17-L17 -> 0 | Z17: ='Parameters_Inc Calcs'!$G$4 -> 0.2 | AA17: =Y17*Z17 -> 0 | AF17: Basic Rate | AG17: =D31 -> 37700 | AH17: =MAX(0,AH16-AI16) -> 0 | AI17: =MIN(AG17,AH17) -> 0 | AJ17: =MAX(0,AG17-AI17) -> 37700 | AL17: =AI17 -> 0 | AM17: ='Parameters_Inc Calcs'!$G$4 -> 0.2 | AN17: =AL17*AM17 -> 0 | AR17: Basic Rate | AS17: =F31 -> 37700 | AT17: =MAX(0,AT16-AU16) -> 0 | AU17: =MIN(AS17,AT17) -> 0 | AV17: =MAX(0,AS17-AU17) -> 37700 | AY17: Basic Rate | AZ17: =AS17 -> 37700 | BA17: =MAX(0,BA16-BB16) -> 0 | BB17: =MIN(AZ17,BA17) -> 0 | BC17: =MAX(0,AZ17-BB17) -> 37700 | BK17: Taxation of full gain | BL17: =AG3 -> 0 | BQ17: Basic Rate | BR17: =F31 -> 37700 | BS17: =MAX(0,BS16-BT16) -> 0 | BT17: =MIN(BR17,BS17) -> 0 | BU17: =MAX(0,BR17-BT17) -> 37700 | BW17: =BT17 -> 0 | BX17: ='Parameters_Inc Calcs'!$G$4 -> 0.2 | BY17: =BW17*BX17 -> 0 | CC17: Basic Rate | CD17: =BR17 -> 37700 | CE17: =MAX(0,CE16-CF16) -> 0 | CF17: =MIN(CD17,CE17) -> 0 | CG17: =MAX(0,CD17-CF17) -> 37700 | CJ17: Basic Rate | CK17: =CD17 -> 37700 | CL17: =MAX(0,CL16-CM16) -> 0 | CM17: =MIN(CK17,CL17) -> 0 | CN17: =MAX(0,CK17-CM17) -> 37700 | CV17: Taxation of full gain | CW17: =BR3 -> 0
B18: =Inputs!Q7 -> 0 | E18: New Divi | F18: =IF(C9=TRUE,0,C10*B18) -> 0 | I18: Higher Rate | J18: =$D$33 -> 87440 | K18: =MAX(0,K17-L17) -> 0 | L18: =MIN(J18,K18) -> 0 | M18: =MAX(0,J18-L18) -> 87440 | P18: Higher Rate | Q18: =$F$33 -> 87440 | R18: =MAX(0,R17-S17) -> 0 | S18: =MIN(Q18,R18) -> 0 | T18: =MAX(0,Q18-S18) -> 87440 | W18: =$L$18*Z18 -> 0 | X18: =S18*Z18 -> 0 | Y18: =S18-L18 -> 0 | Z18: ='Parameters_Inc Calcs'!$G$5 -> 0.4 | AA18: =Y18*Z18 -> 0 | AF18: Higher Rate | AG18: =F33 -> 87440 | AH18: =MAX(0,AH17-AI17) -> 0 | AI18: =MIN(AG18,AH18) -> 0 | AJ18: =MAX(0,AG18-AI18) -> 87440 | AL18: =AI18 -> 0 | AM18: ='Parameters_Inc Calcs'!$G$5 -> 0.4 | AN18: =AL18*AM18 -> 0 | AR18: Higher Rate | AS18: =F33 -> 87440 | AT18: =MAX(0,AT17-AU17) -> 0 | AU18: =MIN(AS18,AT18) -> 0 | AV18: =MAX(0,AS18-AU18) -> 87440 | AY18: Higher Rate | AZ18: =AS18 -> 87440 | BA18: =MAX(0,BA17-BB17) -> 0 | BB18: =MIN(AZ18,BA18) -> 0 | BC18: =MAX(0,AZ18-BB18) -> 87440 | BO18: Tax | BQ18: Higher Rate | BR18: =F33 -> 87440 | BS18: =MAX(0,BS17-BT17) -> 0 | BT18: =MIN(BR18,BS18) -> 0 | BU18: =MAX(0,BR18-BT18) -> 87440 | BW18: =BT18 -> 0 | BX18: ='Parameters_Inc Calcs'!$G$5 -> 0.4 | BY18: =BW18*BX18 -> 0 | CC18: Higher Rate | CD18: =BR18 -> 87440 | CE18: =MAX(0,CE17-CF17) -> 0 | CF18: =MIN(CD18,CE18) -> 0 | CG18: =MAX(0,CD18-CF18) -> 87440 | CJ18: Higher Rate | CK18: =CD18 -> 87440 | CL18: =MAX(0,CL17-CM17) -> 0 | CM18: =MIN(CK18,CL18) -> 0 | CN18: =MAX(0,CK18-CM18) -> 87440 | CZ18: Tax
C19: ANI | D19: =SUM(D14:D18) -> 0 | E19: ANI | F19: =SUM(F14:F18) -> 0 | I19: Additional Rate | K19: =MAX(0,K18-L18) -> 0 | L19: =K19 -> 0 | M19: NA | P19: Additional Rate | R19: =MAX(0,R18-S18) -> 0 | S19: =R19 -> 0 | T19: NA | W19: =$L$19*Z19 -> 0 | X19: =S19*Z19 -> 0 | Y19: =S19-L19 -> 0 | Z19: ='Parameters_Inc Calcs'!$G$8 -> 0.45 | AA19: =Y19*Z19 -> 0 | AF19: Additional Rate | AH19: =MAX(0,AH18-AI18) -> 0 | AI19: =MIN(AG19,AH19) -> 0 | AJ19: NA | AL19: =AI19 -> 0 | AM19: ='Parameters_Inc Calcs'!$G$8 -> 0.45 | AN19: =AL19*AM19 -> 0 | AO19: =SUM(AN16:AN19) -> 0 | AP19: =AO19-W20 -> 0 | AR19: Additional Rate | AT19: =MAX(0,AT18-AU18) -> 0 | AU19: =MIN(AS19,AT19) -> 0 | AY19: Additional Rate | BA19: =MAX(0,BA18-BB18) -> 0 | BB19: =MIN(AZ19,BA19) -> 0 | BJ19: Step 1 | BK19: Personal Allowance | BL19: =AU50 -> 0 | BM19: @ | BN19: =AM25 -> 0 | BO19: =BL19*BN19 -> 0 | BQ19: Additional Rate | BS19: =MAX(0,BS18-BT18) -> 0 | BT19: =MIN(BR19,BS19) -> 0 | BU19: NA | BW19: =BT19 -> 0 | BX19: ='Parameters_Inc Calcs'!$G$8 -> 0.45 | BY19: =BW19*BX19 -> 0 | BZ19: =SUM(BY16:BY19) -> 0 | CA19: =BZ19-W20 -> 0 | CC19: Additional Rate | CE19: =MAX(0,CE18-CF18) -> 0 | CF19: =MIN(CD19,CE19) -> 0 | CJ19: Additional Rate | CL19: =MAX(0,CL18-CM18) -> 0 | CM19: =MIN(CK19,CL19) -> 0 | CU19: Step 1 | CV19: Personal Allowance | CW19: =CF50 -> 0 | CX19: @ | CY19: =BX25 -> 0 | CZ19: =CW19*CY19 -> 0
W20: =SUM(W16:W19) -> 0 | X20: =SUM(X16:X19) -> 0 | AA20: =SUM(AA16:AA19) -> 0 | BK20: Starting Rate | BL20: 0 | BM20: @ | BN20: =AM23 -> 0 | BO20: 0 | CV20: Starting Rate | CW20: 0 | CX20: @ | CY20: =BX23 -> 0 | CZ20: 0
E21: New Gain | F21: =CGT!J16 -> 0 | I21: Savings Income Tax Band Apportionment | P21: Savings Income Tax Band Apportionment | AF21: Savings Income Tax Band Apportionment | AR21: Savings Income Tax Band Apportionment | AY21: Savings Income Tax Band Apportionment | BK21: Personal Savings Allowance | BL21: 0 | BM21: @ | BN21: =AM25 -> 0 | BO21: 0 | BQ21: Savings Income Tax Band Apportionment | CC21: Savings Income Tax Band Apportionment | CJ21: Savings Income Tax Band Apportionment | CV21: Personal Savings Allowance | CW21: 0 | CX21: @ | CY21: =BX25 -> 0 | CZ21: 0
J22: Allowances | K22: Still to tax | L22: Used | M22: Unused | Q22: Allowances | R22: Still to tax | S22: Used | T22: Unused | W22: Before | X22: After | Y22: Amount | Z22: Rate | AA22: Add Tax | AG22: Allowances | AH22: Still to tax | AI22: Used | AJ22: Unused | AL22: Amount | AM22: Rate | AN22: Tax | AS22: Allowances | AT22: Still to tax | AU22: Used | AV22: Unused | BK22: Basic Rate | BL22: 0 | BM22: @ | BN22: ='Parameters_Inc Calcs'!$E$4 -> 0.22 | BO22: 0 | BR22: Allowances | BS22: Still to tax | BT22: Used | BU22: Unused | BW22: Amount | BX22: Rate | BY22: Tax | CD22: Allowances | CE22: Still to tax | CF22: Used | CG22: Unused | CV22: Basic Rate | CW22: 0 | CX22: @ | CY22: ='Parameters_Inc Calcs'!$E$4 -> 0.22 | CZ22: 0
C23: ANI Limit | D23: ='Parameters_Inc Calcs'!$C$3 -> 100000 | E23: ANI Limit | F23: ='Parameters_Inc Calcs'!$C$3 -> 100000 | I23: Starting Rate | J23: =$D$43 -> 5000 | K23: =D15 -> 0 | L23: =MIN(J23,K23) -> 0 | M23: =MAX(0,J23-L23) -> 5000 | P23: Starting Rate | Q23: =$F$43 -> 5000 | R23: =F15+F17 -> 0 | S23: =MIN(Q23,R23) -> 0 | T23: =MAX(0,Q23-S23) -> 5000 | W23: =$L$23*Z23 -> 0 | X23: =S23*Z23 -> 0 | Y23: =S23-L23 -> 0 | Z23: 0 | AA23: =Y23*Z23 -> 0 | AF23: Starting Rate | AG23: =AG9 -> 5000 | AH23: =AG5 -> 0 | AI23: =MIN(AG23,AH23) -> 0 | AJ23: =MAX(0,AG23-AI23) -> 5000 | AL23: =AI23 -> 0 | AM23: 0 | AN23: =AL23*AM23 -> 0 | AR23: Personal Allowance | AS23: =AV16 -> 12570 | AT23: =AG5 -> 0 | AU23: =MIN(AS23,AT23) -> 0 | AV23: =MAX(0,AS23-AU23) -> 12570 | AY23: Personal Allowance | AZ23: =BC16 -> 12570 | BA23: =AZ5 -> 0 | BB23: =MIN(AZ23,BA23) -> 0 | BC23: =MAX(0,AZ23-BB23) -> 12570 | BK23: Higher Rate | BL23: 0 | BM23: @ | BN23: ='Parameters_Inc Calcs'!$E$5 -> 0.42 | BO23: =BL23*BN23 -> 0 | BQ23: Starting Rate | BR23: =BR9 -> 5000 | BS23: =BR5 -> 0 | BT23: =MIN(BR23,BS23) -> 0 | BU23: =MAX(0,BR23-BT23) -> 5000 | BW23: =BT23 -> 0 | BX23: 0 | BY23: =BW23*BX23 -> 0 | CC23: Personal Allowance | CD23: =CG16 -> 12570 | CE23: =BR5 -> 0 | CF23: =MIN(CD23,CE23) -> 0 | CG23: =MAX(0,CD23-CF23) -> 12570 | CJ23: Personal Allowance | CK23: =CN16 -> 12570 | CL23: =CK5 -> 0 | CM23: =MIN(CK23,CL23) -> 0 | CN23: =MAX(0,CK23-CM23) -> 12570 | CV23: Higher Rate | CW23: 0 | CX23: @ | CY23: ='Parameters_Inc Calcs'!$E$5 -> 0.42 | CZ23: =CW23*CY23 -> 0
C24: ANI Excess | D24: =MAX(0,D19-D23) -> 0 | E24: ANI Excess | F24: =MAX(0,F19-F23) -> 0 | I24: Personal Savings Allowance | J24: =D45 -> 1000 | K24: =MAX(0,K23-L23) -> 0 | L24: 0 | M24: =MAX(0,J24-L24) -> 1000 | N24: Higher Rate Adjustment for PSA and SRS Bands | P24: Personal Savings Allowance | Q24: =$F$45 -> 1000 | R24: =MAX(0,R23-S23) -> 0 | S24: 0 | T24: =MAX(0,Q24-S24) -> 1000 | U24: Higher Rate Adjustment for PSA and SRS Bands | W24: =$L$24*Z24 -> 0 | X24: 0 | Y24: 0 | Z24: 0 | AA24: 0 | AF24: Personal Savings Allowance | AG24: =AG10 -> 1000 | AH24: =MAX(0,AH23-AI23) -> 0 | AI24: 0 | AJ24: =MAX(0,AG24-AI24) -> 1000 | AL24: 0 | AM24: 0 | AN24: 0 | AR24: Starting Rate | AS24: =AG9 -> 5000 | AT24: =MAX(0,AT23-AU23) -> 0 | AU24: 0 | AV24: =MAX(0,AS24-AU24) -> 5000 | AY24: Starting Rate | AZ24: =AZ9 -> 5000 | BA24: =MAX(0,BA23-BB23) -> 0 | BB24: 0 | BC24: =MAX(0,AZ24-BB24) -> 5000 | BK24: Additional Rate | BL24: 0 | BM24: @ | BN24: ='Parameters_Inc Calcs'!$E$8 -> 0.47 | BO24: 0 | BQ24: Personal Savings Allowance | BR24: =BR10 -> 1000 | BS24: =MAX(0,BS23-BT23) -> 0 | BT24: 0 | BU24: =MAX(0,BR24-BT24) -> 1000 | BW24: 0 | BX24: 0 | BY24: 0 | CC24: Starting Rate | CD24: =BR9 -> 5000 | CE24: =MAX(0,CE23-CF23) -> 0 | CF24: 0 | CG24: =MAX(0,CD24-CF24) -> 5000 | CJ24: Starting Rate | CK24: =CK9 -> 5000 | CL24: =MAX(0,CL23-CM23) -> 0 | CM24: 0 | CN24: =MAX(0,CK24-CM24) -> 5000 | CV24: Additional Rate | CW24: 0 | CX24: @ | CY24: ='Parameters_Inc Calcs'!$E$8 -> 0.47 | CZ24: =CW24*CY24 -> 0
C25: PA adjustment | D25: =D24/2 -> 0 | E25: PA adjustment | F25: =F24/2 -> 0 | I25: Personal Allowance | J25: =M16 -> 12570 | K25: =MAX(0,K24-L24) -> 0 | L25: 0 | M25: =MAX(0,J25-L25) -> 12570 | P25: Personal Allowance | Q25: =T16 -> 12570 | R25: =MAX(0,R24-S24) -> 0 | S25: 0 | T25: =MAX(0,Q25-S25) -> 12570 | W25: =$L$25*Z25 -> 0 | X25: 0 | Y25: 0 | Z25: 0 | AA25: 0 | AF25: Personal Allowance | AG25: =AJ16 -> 12570 | AH25: =MAX(0,AH24-AI24) -> 0 | AI25: 0 | AJ25: =MAX(0,AG25-AI25) -> 12570 | AL25: 0 | AM25: 0 | AN25: 0 | AR25: Personal Savings Allowance | AS25: =AG10 -> 1000 | AT25: =MAX(0,AT24-AU24) -> 0 | AU25: 0 | AV25: =MAX(0,AS25-AU25) -> 1000 | AY25: Personal Savings Allowance | AZ25: =AZ10 -> 1000 | BA25: =MAX(0,BA24-BB24) -> 0 | BB25: 0 | BC25: =MAX(0,AZ25-BB25) -> 1000 | BK25: Total Liability | BO25: =SUM(BO19:BO24) -> 0 | BQ25: Personal Allowance | BR25: =BU16 -> 12570 | BS25: =MAX(0,BS24-BT24) -> 0 | BT25: 0 | BU25: =MAX(0,BR25-BT25) -> 12570 | BW25: 0 | BX25: 0 | BY25: 0 | CC25: Personal Savings Allowance | CD25: =BR10 -> 1000 | CE25: =MAX(0,CE24-CF24) -> 0 | CF25: 0 | CG25: =MAX(0,CD25-CF25) -> 1000 | CJ25: Personal Savings Allowance | CK25: =CK10 -> 1000 | CL25: =MAX(0,CL24-CM24) -> 0 | CM25: 0 | CN25: =MAX(0,CK25-CM25) -> 1000 | CV25: Total Liability | CZ25: =SUM(CZ19:CZ24) -> 0
I26: Basic Rate | J26: =MAX(0,M17-SUM(L23:L24)) -> 37700 | K26: =MAX(0,K25-L25) -> 0 | L26: 0 | M26: =MAX(0,J26-L26) -> 37700 | P26: Basic Rate | Q26: =MAX(0,T17-SUM(S23:S24)) -> 37700 | R26: =MAX(0,R25-S25) -> 0 | S26: 0 | T26: =MAX(0,Q26-S26) -> 37700 | W26: =$L$26*Z26 -> 0 | X26: 0 | Y26: 0 | Z26: ='Parameters_Inc Calcs'!$E$4 -> 0.22 | AA26: 0 | AC26: Investment income | AD26: =Y29+Y47 -> 0 | AF26: Basic Rate | AG26: =MAX(0,AJ17-SUM(AI23:AI24)) -> 37700 | AH26: =MAX(0,AH25-AI25) -> 0 | AI26: 0 | AJ26: =MAX(0,AG26-AI26) -> 37700 | AK26: =MIN(AJ18,MAX(0,AI24-AJ17)) -> 0 | AL26: 0 | AM26: ='Parameters_Inc Calcs'!$E$4 -> 0.22 | AN26: 0 | AR26: Basic Rate | AS26: =MAX(0,AV17-SUM(AU24:AU25)) -> 37700 | AT26: =MAX(0,AT25-AU25) -> 0 | AU26: 0 | AV26: =MAX(0,AS26-AU26) -> 37700 | AY26: Basic Rate | AZ26: =MAX(0,BC17-SUM(BB24:BB25)) -> 37700 | BA26: =MAX(0,BA25-BB25) -> 0 | BB26: 0 | BC26: =MAX(0,AZ26-BB26) -> 37700 | BJ26: Step 2 | BK26: Tax Credit | BO26: =(BL17-BL19)*BN22 -> 0 | BQ26: Basic Rate | BR26: =MAX(0,BU17-SUM(BT23:BT24)) -> 37700 | BS26: =MAX(0,BS25-BT25) -> 0 | BT26: 0 | BU26: =MAX(0,BR26-BT26) -> 37700 | BV26: =MIN(BU18,MAX(0,BT24-BU17)) -> 0 | BW26: 0 | BX26: ='Parameters_Inc Calcs'!$E$4 -> 0.22 | BY26: 0 | CC26: Basic Rate | CD26: =MAX(0,CG17-SUM(CF24:CF25)) -> 37700 | CE26: =MAX(0,CE25-CF25) -> 0 | CF26: 0 | CG26: =MAX(0,CD26-CF26) -> 37700 | CJ26: Basic Rate | CK26: =MAX(0,CN17-SUM(CM24:CM25)) -> 37700 | CL26: =MAX(0,CL25-CM25) -> 0 | CM26: 0 | CN26: =MAX(0,CK26-CM26) -> 37700 | CU26: Step 2 | CV26: Tax Credit | CZ26: =(CW17-CW19)*CY22 -> 0
C27: Personal Allowance | D27: =MAX(0,D36-D25) -> 12570 | E27: Personal Allowance | F27: =MAX(0,F36-F25) -> 12570 | I27: Higher Rate | J27: =M18-N27 -> 87440 | K27: =MAX(0,K26-L26) -> 0 | L27: 0 | M27: =MAX(0,J27-L27) -> 87440 | N27: =MIN(M18,MAX(L24-M17,0)) -> 0 | P27: Higher Rate | Q27: =T18-U27 -> 87440 | R27: =MAX(0,R26-S26) -> 0 | S27: 0 | T27: =MAX(0,Q27-S27) -> 87440 | U27: =MIN(T18,MAX(S24-T17,0)) -> 0 | W27: =$L$27*Z27 -> 0 | X27: 0 | Y27: 0 | Z27: ='Parameters_Inc Calcs'!$E$5 -> 0.42 | AA27: 0 | AC27: Tax | AD27: =AA20+AA29+AA47 -> 0 | AF27: Higher Rate | AG27: =AJ18-AK26 -> 87440 | AH27: =MAX(0,AH26-AI26) -> 0 | AI27: 0 | AJ27: =MAX(0,AG27-AI27) -> 87440 | AL27: 0 | AM27: ='Parameters_Inc Calcs'!$E$5 -> 0.42 | AN27: 0 | AR27: Higher Rate | AS27: =AV18-AW27 -> 87440 | AT27: =MAX(0,AT26-AU26) -> 0 | AU27: 0 | AV27: =MAX(0,AS27-AU27) -> 87440 | AW27: =MIN(AV18,MAX(0,AU25-AV17)) -> 0 | AY27: Higher Rate | AZ27: =BC18-BD27 -> 87440 | BA27: =MAX(0,BA26-BB26) -> 0 | BB27: 0 | BC27: =MAX(0,AZ27-BB27) -> 87440 | BD27: =MIN(BC18,MAX(0,BB25-BC17)) -> 0 | BK27: Relieved liability on gain | BO27: =MAX(0,BO25-BO26) -> 0 | BQ27: Higher Rate | BR27: =BU18-BV26 -> 87440 | BS27: =MAX(0,BS26-BT26) -> 0 | BT27: 0 | BU27: =MAX(0,BR27-BT27) -> 87440 | BW27: 0 | BX27: ='Parameters_Inc Calcs'!$E$5 -> 0.42 | BY27: 0 | CC27: Higher Rate | CD27: =CG18-CH27 -> 87440 | CE27: =MAX(0,CE26-CF26) -> 0 | CF27: 0 | CG27: =MAX(0,CD27-CF27) -> 87440 | CH27: =MIN(CG18,MAX(0,CF25-CG17)) -> 0 | CJ27: Higher Rate | CK27: =CN18-CO27 -> 87440 | CL27: =MAX(0,CL26-CM26) -> 0 | CM27: 0 | CN27: =MAX(0,CK27-CM27) -> 87440 | CO27: =MIN(CN18,MAX(0,CM25-CN17)) -> 0 | CV27: Relieved liability on gain | CZ27: =MAX(0,CZ25-CZ26) -> 0
I28: Additional Rate | K28: =MAX(0,K27-L27) -> 0 | L28: 0 | M28: NA | P28: Additional Rate | R28: =MAX(0,R27-S27) -> 0 | S28: 0 | T28: NA | W28: =$L$28*Z28 -> 0 | X28: 0 | Y28: 0 | Z28: ='Parameters_Inc Calcs'!$E$8 -> 0.47 | AA28: 0 | AC28: Net Income Reinvested | AD28: =MAX(0,AD26-AD27) -> 0 | AF28: Additional Rate | AH28: =MAX(0,AH27-AI27) -> 0 | AI28: 0 | AJ28: NA | AL28: 0 | AM28: ='Parameters_Inc Calcs'!$E$8 -> 0.47 | AN28: 0 | AO28: =SUM(AN23:AN28) -> 0 | AP28: =AO28-W29 -> 0 | AR28: Additional Rate | AT28: =MAX(0,AT27-AU27) -> 0 | AU28: 0 | AY28: Additional Rate | BA28: =MAX(0,BA27-BB27) -> 0 | BB28: 0 | BQ28: Additional Rate | BS28: =MAX(0,BS27-BT27) -> 0 | BT28: 0 | BU28: NA | BW28: 0 | BX28: ='Parameters_Inc Calcs'!$E$8 -> 0.47 | BY28: 0 | BZ28: =SUM(BY23:BY28) -> 0 | CA28: =BZ28-W29 -> 0 | CC28: Additional Rate | CE28: =MAX(0,CE27-CF27) -> 0 | CF28: 0 | CJ28: Additional Rate | CL28: =MAX(0,CL27-CM27) -> 0 | CM28: 0
C29: Taxable Income | D29: =D14-D27 -> -12570 | E29: Taxable Income | F29: =F14-F27 -> -12570 | I29: Nil Rate available | J29: =SUM(J23:J25) -> 18570 | P29: Nil Rate available | Q29: =SUM(Q23:Q25) -> 18570 | W29: =SUM(W23:W28) -> 0 | X29: =SUM(X23:X28) -> 0 | Y29: =SUM(Y23:Y28) -> 0 | AA29: =SUM(AA23:AA28) -> 0 | AD29: =AD27/AD26 -> 
AR30: Offshore Bond Gain Tax Band Apportionment - set to £0 as included at total gain below | AY30: Offshore Bond Gain Tax Band Apportionment - set to £0 as included at total gain below | BJ30: Step 3 | BK30: Taxation of slice | BL30: =AZ3 -> 0 | CC30: Offshore Bond Gain Tax Band Apportionment - set to £0 as included at total gain below | CJ30: Offshore Bond Gain Tax Band Apportionment - set to £0 as included at total gain below | CU30: Step 3 | CV30: Taxation of slice | CW30: =CK3 -> 0
C31: Basic Rate Band | D31: ='Parameters_Inc Calcs'!F26 -> 37700 | E31: Basic Rate Band | F31: =D31 -> 37700 | I31: Offshore Bond Tax Band Apportionment | P31: Offshore Bond Tax Band Apportionment | AF31: Offshore Bond Gain Tax Band Apportionment | AS31: Allowances | AT31: Still to tax | AU31: Used | AV31: Unused | AZ31: Allowances | BA31: Still to tax | BB31: Used | BC31: Unused | BO31: Tax | BQ31: Offshore Bond Gain Tax Band Apportionment | CD31: Allowances | CE31: Still to tax | CF31: Used | CG31: Unused | CK31: Allowances | CL31: Still to tax | CM31: Used | CN31: Unused | CZ31: Tax
C32: Higher Threshold | D32: ='Parameters_Inc Calcs'!F27 -> 50270 | E32: Higher Threshold | F32: =D32 -> 50270 | W32: Before | X32: After | Y32: Amount | Z32: Rate | AA32: Add Tax | AG32: Allowances | AH32: Still to tax | AI32: Used | AJ32: Unused | AL32: Amount | AM32: Rate | AN32: Tax | AR32: Personal Allowance | AS32: =AV23 -> 12570 | AT32: 0 | AU32: =MIN(AS32,AT32) -> 0 | AV32: =MAX(0,AS32-AU32) -> 12570 | AY32: Personal Allowance | AZ32: =BC23 -> 12570 | BA32: 0 | BB32: =MIN(AZ32,BA32) -> 0 | BC32: =MAX(0,AZ32-BB32) -> 12570 | BJ32: Step 4 | BK32: Personal Allowance | BL32: =BB50 -> 0 | BM32: @ | BN32: =BN19 -> 0 | BO32: =BN32*BL32 -> 0 | BR32: Allowances | BS32: Still to tax | BT32: Used | BU32: Unused | BW32: Amount | BX32: Rate | BY32: Tax | CC32: Personal Allowance | CD32: =CG23 -> 12570 | CE32: 0 | CF32: =MIN(CD32,CE32) -> 0 | CG32: =MAX(0,CD32-CF32) -> 12570 | CJ32: Personal Allowance | CK32: =CN23 -> 12570 | CL32: 0 | CM32: =MIN(CK32,CL32) -> 0 | CN32: =MAX(0,CK32-CM32) -> 12570 | CU32: Step 4 | CV32: Personal Allowance | CW32: =CM50 -> 0 | CX32: @ | CY32: =CY19 -> 0 | CZ32: =CY32*CW32 -> 0
